Workbook

Sheet PRI_2010
A1: ANNEE | B1: COD_ECOLE | C1: COD_GROUPE_REPERE | D1: INTERVENANT | E1: COD_PERMANENT | F1: IND_DOUBLEUR | G1: DAT_NAISSANCE_ELEVE | H1: NOM_ELEVE | I1: PRENOM_ELEVE | J1: COD_SEXE_ELEVE | K1: AN_2008_ET_1_ECRIRE | L1: AN_2008_ET_1_LIRE | M1: AN_2008_ET_1_RESOUDRE | N1: AN_2008_ET_1_RAISONNER | O1: AN_2008_ET_2_ECRIRE | P1: AN_2008_ET_2_LIRE | Q1: AN_2008_ET_2_RESOUDRE | R1: AN_2008_ET_2_RAISONNER | S1: AN_2008_ET_3_ECRIRE | T1: AN_2008_ET_3_LIRE | U1: AN_2008_ET_3_RESOUDRE | V1: AN_2008_ET_3_RAISONNER | W1: AN_2008_ET_EX_ECRIRE | X1: AN_2008_ET_EX_LIRE | Y1: AN_2008_ET_EX_RESOUDRE | Z1: AN_2008_ET_EX_RAISONNER | AA1: AN_2009_ET_1_ECRIRE | AB1: AN_2009_ET_1_LIRE | AC1: AN_2009_ET_1_RESOUDRE | AD1: AN_2009_ET_1_RAISONNER | AE1: AN_2009_ET_2_ECRIRE | AF1: AN_2009_ET_2_LIRE | AG1: AN_2009_ET_2_RESOUDRE | AH1: AN_2009_ET_2_RAISONNER | AI1: AN_2009_ET_3_ECRIRE | AJ1: AN_2009_ET_3_LIRE | AK1: AN_2009_ET_3_RESOUDRE | AL1: AN_2009_ET_3_RAISONNER | AM1: AN_2009_ET_EX_ECRIRE | AN1: AN_2009_ET_EX_LIRE | AO1: AN_2009_ET_EX_RESOUDRE | AP1: AN_2009_ET_EX_RAISONNER | AQ1: AN_2010_ET_1_ECRIRE | AR1: AN_2010_ET_1_LIRE | AS1: AN_2010_ET_1_RESOUDRE | AT1: AN_2010_ET_1_RAISONNER | AU1: AN_2010_ET_2_ECRIRE | AV1: AN_2010_ET_2_LIRE | AW1: AN_2010_ET_2_RESOUDRE | AX1: AN_2010_ET_2_RAISONNER | AY1: AN_2010_ET_3_ECRIRE | AZ1: AN_2010_ET_3_LIRE | BA1: AN_2010_ET_3_RESOUDRE | BB1: AN_2010_ET_3_RAISONNER | BC1: AN_2010_ET_EX_ECRIRE | BD1: AN_2010_ET_EX_LIRE | BE1: AN_2010_ET_EX_RESOUDRE | BF1: AN_2010_ET_EX_RAISONNER | BG1: AN_2011_ET_1_ECRIRE | BH1: AN_2011_ET_1_LIRE | BI1: AN_2011_ET_1_RESOUDRE | BJ1: AN_2011_ET_1_RAISONNER | BK1: AN_2011_ET_2_ECRIRE | BL1: AN_2011_ET_2_LIRE | BM1: AN_2011_ET_2_RESOUDRE | BN1: AN_2011_ET_2_RAISONNER | BO1: AN_2011_ET_3_ECRIRE | BP1: AN_2011_ET_3_LIRE | BQ1: AN_2011_ET_3_RESOUDRE | BR1: AN_2011_ET_3_RAISONNER | BS1: AN_2011_ET_EX_ECRIRE | BT1: AN_2011_ET_EX_LIRE | BU1: AN_2011_ET_EX_RESOUDRE | BV1: AN_2011_ET_EX_RAISONNER | BX1: moy-10 | BY1: moy-20 | BZ1: moy-30 | CA1: moy-1 | CB1: moy-2 | CC1: moy0 | CD1: moy0min | CE1: moy1 | CF1: moy2 | CG1: moy3 | CH1: moy3min | CI1: moy4 | CM1: code ecole-gr | CN1: défavorisation | CO1: niveau | CP1: calc age 1 | CQ1: calc age 2 | CR1: calc age 3 | CS1: age a virgule | CT1: age | CU1: élève dont on as un passé | CV1: compilation | DC1: =HLOOKUP(CW2,adrcol,3,FALSE) -> AJ | DD1: =HLOOKUP(CW2,adrcol,2,FALSE) -> 36 | DE1: =HLOOKUP(CW2,adrcol,4,FALSE) -> 27 | DL1: =HLOOKUP(DF2,adrcol,3,FALSE) -> AN | DM1: =HLOOKUP(DF2,adrcol,2,FALSE) -> 40 | DN1: =HLOOKUP(DF2,adrcol,4,FALSE) -> 31 | DU1: =HLOOKUP(DO2,adrcol,3,FALSE) -> AR | DV1: =HLOOKUP(DO2,adrcol,2,FALSE) -> 44 | DW1: =HLOOKUP(DO2,adrcol,4,FALSE) -> 35 | ED1: =HLOOKUP(DX2,adrcol,3,FALSE) -> AV | EE1: =HLOOKUP(DX2,adrcol,2,FALSE) -> 48 | EF1: =HLOOKUP(DX2,adrcol,4,FALSE) -> 39 | EM1: =HLOOKUP(EG2,adrcol,3,FALSE) -> AZ | EN1: =HLOOKUP(EG2,adrcol,2,FALSE) -> 52 | EO1: =HLOOKUP(EG2,adrcol,4,FALSE) -> 43 | EV1: =HLOOKUP(EP2,adrcol,3,FALSE) -> BD | EW1: =HLOOKUP(EP2,adrcol,2,FALSE) -> 56 | EX1: =HLOOKUP(EP2,adrcol,4,FALSE) -> 47 | FE1: =HLOOKUP(EY2,adrcol,3,FALSE) -> BH | FF1: =HLOOKUP(EY2,adrcol,2,FALSE) -> 60 | FG1: =HLOOKUP(EY2,adrcol,4,FALSE) -> 51 | FN1: =HLOOKUP(FH2,adrcol,3,FALSE) -> AI | FO1: =HLOOKUP(FH2,adrcol,2,FALSE) -> 35 | FP1: =HLOOKUP(FH2,adrcol,4,FALSE) -> 26 | FW1: =HLOOKUP(FQ2,adrcol,3,FALSE) -> AM | FX1: =HLOOKUP(FQ2,adrcol,2,FALSE) -> 39 | FY1: =HLOOKUP(FQ2,adrcol,4,FALSE) -> 30 | GF1: =HLOOKUP(FZ2,adrcol,3,FALSE) -> AQ | GG1: =HLOOKUP(FZ2,adrcol,2,FALSE) -> 43 | GH1: =HLOOKUP(FZ2,adrcol,4,FALSE) -> 34 | GO1: =HLOOKUP(GI2,adrcol,3,FALSE) -> AU | GP1: =HLOOKUP(GI2,adrcol,2,FALSE) -> 47 | GQ1: =HLOOKUP(GI2,adrcol,4,FALSE) -> 38 | GX1: =HLOOKUP(GR2,adrcol,3,FALSE) -> AY | GY1: =HLOOKUP(GR2,adrcol,2,FALSE) -> 51 | GZ1: =HLOOKUP(GR2,adrcol,4,FALSE) -> 42 | HG1: =HLOOKUP(HA2,adrcol,3,FALSE) -> BC | HH1: =HLOOKUP(HA2,adrcol,2,FALSE) -> 55 | HI1: =HLOOKUP(HA2,adrcol,4,FALSE) -> 46 | HP1: =HLOOKUP(HJ2,adrcol,3,FALSE) -> BG | HQ1: =HLOOKUP(HJ2,adrcol,2,FALSE) -> 59 | HR1: =HLOOKUP(HJ2,adrcol,4,FALSE) -> 50 | HY1: =HLOOKUP(HS2,adrcol,3,FALSE) -> AL | HZ1: =HLOOKUP(HS2,adrcol,2,FALSE) -> 38 | IA1: =HLOOKUP(HS2,adrcol,4,FALSE) -> 29 | IH1: =HLOOKUP(IB2,adrcol,3,FALSE) -> AP | II1: =HLOOKUP(IB2,adrcol,2,FALSE) -> 42 | IJ1: =HLOOKUP(IB2,adrcol,4,FALSE) -> 33 | IQ1: =HLOOKUP(IK2,adrcol,3,FALSE) -> AT | IR1: =HLOOKUP(IK2,adrcol,2,FALSE) -> 46 | IS1: =HLOOKUP(IK2,adrcol,4,FALSE) -> 37 | IZ1: =HLOOKUP(IT2,adrcol,3,FALSE) -> AX | JA1: =HLOOKUP(IT2,adrcol,2,FALSE) -> 50 | JB1: =HLOOKUP(IT2,adrcol,4,FALSE) -> 41 | JI1: =HLOOKUP(JC2,adrcol,3,FALSE) -> BB | JJ1: =HLOOKUP(JC2,adrcol,2,FALSE) -> 54 | JK1: =HLOOKUP(JC2,adrcol,4,FALSE) -> 45 | JR1: =HLOOKUP(JL2,adrcol,3,FALSE) -> BF | JS1: =HLOOKUP(JL2,adrcol,2,FALSE) -> 58 | JT1: =HLOOKUP(JL2,adrcol,4,FALSE) -> 49 | KA1: =HLOOKUP(JU2,adrcol,3,FALSE) -> BJ | KB1: =HLOOKUP(JU2,adrcol,2,FALSE) -> 62 | KC1: =HLOOKUP(JU2,adrcol,4,FALSE) -> 53 | KJ1: =HLOOKUP(KD2,adrcol,3,FALSE) -> AK | KK1: =HLOOKUP(KD2,adrcol,2,FALSE) -> 37 | KL1: =HLOOKUP(KD2,adrcol,4,FALSE) -> 28 | KS1: =HLOOKUP(KM2,adrcol,3,FALSE) -> AO | KT1: =HLOOKUP(KM2,adrcol,2,FALSE) -> 41 | KU1: =HLOOKUP(KM2,adrcol,4,FALSE) -> 32 | LB1: =HLOOKUP(KV2,adrcol,3,FALSE) -> AS | LC1: =HLOOKUP(KV2,adrcol,2,FALSE) -> 45 | LD1: =HLOOKUP(KV2,adrcol,4,FALSE) -> 36 | LK1: =HLOOKUP(LE2,adrcol,3,FALSE) -> AW | LL1: =HLOOKUP(LE2,adrcol,2,FALSE) -> 49 | LM1: =HLOOKUP(LE2,adrcol,4,FALSE) -> 40 | LT1: =HLOOKUP(LN2,adrcol,3,FALSE) -> BA | LU1: =HLOOKUP(LN2,adrcol,2,FALSE) -> 53 | LV1: =HLOOKUP(LN2,adrcol,4,FALSE) -> 44 | MC1: =HLOOKUP(LW2,adrcol,3,FALSE) -> BE | MD1: =HLOOKUP(LW2,adrcol,2,FALSE) -> 57 | ME1: =HLOOKUP(LW2,adrcol,4,FALSE) -> 48 | ML1: =HLOOKUP(MF2,adrcol,3,FALSE) -> BI | MM1: =HLOOKUP(MF2,adrcol,2,FALSE) -> 61 | MN1: =HLOOKUP(MF2,adrcol,4,FALSE) -> 52 | MU1: =HLOOKUP(MO2,adrcol,3,FALSE) -> BM | MV1: =HLOOKUP(MO2,adrcol,2,FALSE) -> 65 | MW1: =HLOOKUP(MO2,adrcol,4,FALSE) -> 56 | ND1: =HLOOKUP(MX2,adrcol,3,FALSE) -> CC | NE1: =HLOOKUP(MX2,adrcol,2,FALSE) -> 81 | NF1: =HLOOKUP(MX2,adrcol,4,FALSE) -> 72 | NM1: =HLOOKUP(NG2,adrcol,3,FALSE) -> CD | NN1: =HLOOKUP(NG2,adrcol,2,FALSE) -> 82 | NO1: =HLOOKUP(NG2,adrcol,4,FALSE) -> 73 | NV1: =HLOOKUP(NP2,adrcol,3,FALSE) -> CE | NW1: =HLOOKUP(NP2,adrcol,2,FALSE) -> 83 | NX1: =HLOOKUP(NP2,adrcol,4,FALSE) -> 74 | OE1: =HLOOKUP(NY2,adrcol,3,FALSE) -> CF | OF1: =HLOOKUP(NY2,adrcol,2,FALSE) -> 84 | OG1: =HLOOKUP(NY2,adrcol,4,FALSE) -> 75 | ON1: =HLOOKUP(OH2,adrcol,3,FALSE) -> CG | OO1: =HLOOKUP(OH2,adrcol,2,FALSE) -> 85 | OP1: =HLOOKUP(OH2,adrcol,4,FALSE) -> 76 | OW1: =HLOOKUP(OQ2,adrcol,3,FALSE) -> CH | OX1: =HLOOKUP(OQ2,adrcol,2,FALSE) -> 86 | OY1: =HLOOKUP(OQ2,adrcol,4,FALSE) -> 77 | PF1: =HLOOKUP(OZ2,adrcol,3,FALSE) -> CI | PG1: =HLOOKUP(OZ2,adrcol,2,FALSE) -> 87 | PH1: =HLOOKUP(OZ2,adrcol,4,FALSE) -> 78
A2: 2010 | B2: 001 | C2: 501 | F2: 0 | G2: 2000-05-02 | J2: M | K2: 70 | L2: 60 | M2: 0 | N2: 70 | O2: 65 | P2: 65 | Q2: 60 | R2: 75 | S2: 65 | T2: 70 | U2: 55 | V2: 60 | W2: 0 | X2: 0 | Y2: 0 | Z2: 0 | AA2: 70 | AB2: 65 | AC2: 0 | AD2: 80 | AE2: 65 | AF2: 75 | AG2: 85 | AH2: 75 | AI2: 65 | AJ2: 65 | AK2: 80 | AL2: 80 | AM2: 0 | AN2: 0 | AO2: 0 | AP2: 0 | AQ2: 50 | AR2: 70 | AS2: 0 | AT2: 60 | AU2: 50 | AV2: 65 | AW2: 40 | AX2: 40 | AY2: 50 | AZ2: 50 | BA2: 45 | BB2: 40 | BC2: 0 | BD2: 0 | BE2: 0 | BF2: 0 | BG2: 42 | BH2: 51 | BI2: 0 | BJ2: 30 | BK2: 49 | BL2: 41 | BM2: 21 | BN2: 30 | BO2: 45 | BP2: 27 | BQ2: 16 | BR2: 30 | BS2: 32 | BT2: 32 | BU2: 20 | BV2: 35 | BX2: =IF(L2=0,0,IF(M2=0,AVERAGE(M2,K2,N2),AVERAGE(K2:N2))) -> 46.66666667 | BY2: =IF(P2=0,0,IF(Q2=0,AVERAGE(Q2,O2,R2),AVERAGE(O2:R2))) -> 66.25 | BZ2: =IF(T2=0,0,IF(U2=0,AVERAGE(T2,S2,V2),AVERAGE(S2:V2))) -> 62.5 | CA2: =IF(AB2=0,0,IF(AC2=0,AVERAGE(AB2,AA2,AD2),AVERAGE(AA2:AD2))) -> 71.66666667 | CB2: =IF(AF2=0,0,IF(AG2=0,AVERAGE(AF2,AE2,AH2),AVERAGE(AE2:AH2))) -> 75 | CC2: =IF(AJ2=0,0,IF(AK2=0,AVERAGE(AJ2,AI2,AL2),AVERAGE(AI2:AL2))) -> 72.5 | CD2: =IF(AN2=0,0,IF(AO2=0,AVERAGE(AN2,AM2,AP2),AVERAGE(AM2:AP2))) -> 0 | CE2: =IF(AR2=0,0,IF(AS2=0,AVERAGE(AR2,AQ2,AT2),AVERAGE(AQ2:AT2))) -> 60 | CF2: =IF(AV2=0,0,IF(AW2=0,AVERAGE(AV2,AU2,AX2),AVERAGE(AU2:AX2))) -> 48.75 | CG2: =IF(AZ2=0,0,IF(BA2=0,AVERAGE(AZ2,AY2,BB2),AVERAGE(AY2:BB2))) -> 46.25 | CH2: =IF(BD2=0,0,IF(BE2=0,AVERAGE(BD2,BC2,BF2),AVERAGE(BC2:BF2))) -> 0 | CI2: =IF(BH2=0,0,IF(BI2=0,AVERAGE(BH2,BG2,BJ2,BM2),AVERAGE(BG2:BJ2))) -> 36 | CM2: =IF(LEFT(C2,1)="8","",IF(LEFT(C2,1)="9","",B2&C2)) -> 001501 | CN2: =VLOOKUP(B2,ecoleTaux,3,FALSE) -> 0.100 | CO2: =LEFT(C2,2) -> 50 | CP2: =Tableau_SSRSMSA03_BI_Integration_STEPH_2010[[#This Row],[DAT_NAISSANCE_ELEVE]] -> 2000-05-02 | CQ2: 2009-09-30 | CR2: =DATEDIF(CP2,CQ2,"d") -> 3438 | CS2: =CR2/365.25 -> 9.412731006 | CT2: =IF(AND(LEFT(CO2,1)="1",CS2>5.5),"V",IF(AND(LEFT(CO2,1)="2",CS2>6.5),"V",IF(AND(LEFT(CO2,1)="3",CS2>7.5),"V",IF(AND(LEFT(CO2,1)="4",CS2>8.5),"V",IF(AND(LEFT(CO2,1)="5",CS2>9.5),"V",IF(AND(LEFT(CO2,1)="6",CS2>10.5),"V","J")))))) -> J | CU2: =IF(AJ2=0,0,IF(BH2=0,0,1)) -> 1 | CV2: =CM2 -> 001501 | CW2: Lect0 | CX2: =ROW(CW2) -> 2 | CY2: Ratio : | CZ2: =CY4/SUM(CY4:CZ4)*100 -> 55 | DA2: Ratio : | DB2: =DA4/SUM(DA4:DB4)*100 -> 35 | DC2: ava | DD2: 4 | DE2: 6 | DF2: Lect0min | DG2: =ROW(DF2) -> 2 | DH2: Ratio : | DI2: =DH4/SUM(DH4:DI4)*100 ->  | DJ2: Ratio : | DK2: =DJ4/SUM(DJ4:DK4)*100 ->  | DL2: ava | DO2: Lect1 | DP2: =ROW(DO2) -> 2 | DQ2: Ratio : | DR2: =DQ4/SUM(DQ4:DR4)*100 -> 56 | DS2: Ratio : | DT2: =DS4/SUM(DS4:DT4)*100 -> 36 | DU2: ava | DV2: 3 | DW2: 3 | DX2: lect2 | DY2: =ROW(DX2) -> 2 | DZ2: Ratio : | EA2: =DZ4/SUM(DZ4:EA4)*100 -> 56 | EB2: Ratio : | EC2: =EB4/SUM(EB4:EC4)*100 -> 36 | ED2: ava | EE2: 4 | EF2: 6 | EG2: lect3 | EH2: =ROW(EG2) -> 2 | EI2: Ratio : | EJ2: =EI4/SUM(EI4:EJ4)*100 -> 53.84615385 | EK2: Ratio : | EL2: =EK4/SUM(EK4:EL4)*100 -> 38.46153846 | EM2: ava | EN2: 4 | EO2: 4 | EP2: lect3min | EQ2: =ROW(EP2) -> 2 | ER2: Ratio : | ES2: =ER4/SUM(ER4:ES4)*100 ->  | ET2: Ratio : | EU2: =ET4/SUM(ET4:EU4)*100 ->  | EV2: ava | EY2: lect4 | EZ2: =ROW(EY2) -> 2 | FA2: Ratio : | FB2: =FA4/SUM(FA4:FB4)*100 -> 53.84615385 | FC2: Ratio : | FD2: =FC4/SUM(FC4:FD4)*100 -> 38.46153846 | FE2: ava | FF2: 4 | FG2: 4 | FH2: ecr0 | FI2: =ROW(FH2) -> 2 | FJ2: Ratio : | FK2: =FJ4/SUM(FJ4:FK4)*100 -> 55 | FL2: Ratio : | FM2: =FL4/SUM(FL4:FM4)*100 -> 35 | FN2: ava | FO2: 4 | FP2: 6 | FQ2: ecr0min | FR2: =ROW(FQ2) -> 2 | FS2: Ratio : | FT2: =FS4/SUM(FS4:FT4)*100 ->  | FU2: Ratio : | FV2: =FU4/SUM(FU4:FV4)*100 ->  | FW2: ava | FZ2: ecr1 | GA2: =ROW(FZ2) -> 2 | GB2: Ratio : | GC2: =GB4/SUM(GB4:GC4)*100 -> 56 | GD2: Ratio : | GE2: =GD4/SUM(GD4:GE4)*100 -> 36 | GF2: ava | GG2: 4 | GH2: 4 | GI2: ecr2 | GJ2: =ROW(GI2) -> 2 | GK2: Ratio : | GL2: =GK4/SUM(GK4:GL4)*100 -> 56 | GM2: Ratio : | GN2: =GM4/SUM(GM4:GN4)*100 -> 36 | GO2: ava | GP2: 4 | GQ2: 4 | GR2: ecr3 | GS2: =ROW(GR2) -> 2 | GT2: Ratio : | GU2: =GT4/SUM(GT4:GU4)*100 -> 53.84615385 | GV2: Ratio : | GW2: =GV4/SUM(GV4:GW4)*100 -> 38.46153846 | GX2: ava | GY2: 4 | GZ2: 4 | HA2: ecr3min | HB2: =ROW(HA2) -> 2 | HC2: Ratio : | HD2: =HC4/SUM(HC4:HD4)*100 ->  | HE2: Ratio : | HF2: =HE4/SUM(HE4:HF4)*100 ->  | HG2: ava | HJ2: ecr4 | HK2: =ROW(HJ2) -> 2 | HL2: Ratio : | HM2: =HL4/SUM(HL4:HM4)*100 -> 53.84615385 | HN2: Ratio : | HO2: =HN4/SUM(HN4:HO4)*100 -> 38.46153846 | HP2: ava | HQ2: 4 | HR2: 4 | HS2: rais0 | HT2: =ROW(HS2) -> 2 | HU2: Ratio : | HV2: =HU4/SUM(HU4:HV4)*100 -> 54.54545455 | HW2: Ratio : | HX2: =HW4/SUM(HW4:HX4)*100 -> 31.81818182 | HY2: ava | HZ2: 3 | IA2: 2 | IB2: rais0min | IC2: =ROW(IB2) -> 2 | ID2: Ratio : | IE2: =ID4/SUM(ID4:IE4)*100 ->  | IF2: Ratio : | IG2: =IF4/SUM(IF4:IG4)*100 ->  | IH2: ava | IK2: rais1 | IL2: =ROW(IK2) -> 2 | IM2: Ratio : | IN2: =IM4/SUM(IM4:IN4)*100 -> 56 | IO2: Ratio : | IP2: =IO4/SUM(IO4:IP4)*100 -> 36 | IQ2: ava | IR2: 3 | IS2: 6 | IT2: rais2 | IU2: =ROW(IT2) -> 2 | IV2: Ratio : | IW2: =IV4/SUM(IV4:IW4)*100 -> 56 | IX2: Ratio : | IY2: =IX4/SUM(IX4:IY4)*100 -> 36 | IZ2: ava | JA2: 4 | JB2: 4 | JC2: rais3 | JD2: =ROW(JC2) -> 2 | JE2: Ratio : | JF2: =JE4/SUM(JE4:JF4)*100 -> 53.84615385 | JG2: Ratio : | JH2: =JG4/SUM(JG4:JH4)*100 -> 38.46153846 | JI2: ava | JJ2: 4 | JK2: 4 | JL2: rais3min | JM2: =ROW(JL2) -> 2 | JN2: Ratio : | JO2: =JN4/SUM(JN4:JO4)*100 ->  | JP2: Ratio : | JQ2: =JP4/SUM(JP4:JQ4)*100 ->  | JR2: ava | JU2: rais4 | JV2: =ROW(JU2) -> 2 | JW2: Ratio : | JX2: =JW4/SUM(JW4:JX4)*100 -> 53.84615385 | JY2: Ratio : | JZ2: =JY4/SUM(JY4:JZ4)*100 -> 38.46153846 | KA2: ava | KB2: 4 | KC2: 4 | KD2: res0 | KE2: =ROW(KD2) -> 2 | KF2: Ratio : | KG2: =KF4/SUM(KF4:KG4)*100 -> 55 | KH2: Ratio : | KI2: =KH4/SUM(KH4:KI4)*100 -> 35 | KJ2: ava | KK2: 2 | KL2: 2 | KM2: res0min | KN2: =ROW(KM2) -> 2 | KO2: Ratio : | KP2: =KO4/SUM(KO4:KP4)*100 ->  | KQ2: Ratio : | KR2: =KQ4/SUM(KQ4:KR4)*100 ->  | KS2: ava | KV2: res1 | KW2: =ROW(KV2) -> 2 | KX2: Ratio : | KY2: =KX4/SUM(KX4:KY4)*100 ->  | KZ2: Ratio : | LA2: =KZ4/SUM(KZ4:LA4)*100 ->  | LB2: ava | LE2: res2 | LF2: =ROW(LE2) -> 2 | LG2: Ratio : | LH2: =LG4/SUM(LG4:LH4)*100 -> 56 | LI2: Ratio : | LJ2: =LI4/SUM(LI4:LJ4)*100 -> 36 | LK2: ava | LL2: 4 | LM2: 4 | LN2: res3 | LO2: =ROW(LN2) -> 2 | LP2: Ratio : | LQ2: =LP4/SUM(LP4:LQ4)*100 -> 53.84615385 | LR2: Ratio : | LS2: =LR4/SUM(LR4:LS4)*100 -> 38.46153846 | LT2: ava | LU2: 4 | LV2: 4 | LW2: res3min | LX2: =ROW(LW2) -> 2 | LY2: Ratio : | LZ2: =LY4/SUM(LY4:LZ4)*100 ->  | MA2: Ratio : | MB2: =MA4/SUM(MA4:MB4)*100 ->  | MC2: ava | MF2: res4 | MG2: =ROW(MF2) -> 2 | MH2: Ratio : | MI2: =MH4/SUM(MH4:MI4)*100 -> 0 | MJ2: Ratio : | MK2: =MJ4/SUM(MJ4:MK4)*100 -> 0 | ML2: ava | MO2: res5 | MP2: =ROW(MO2) -> 2 | MQ2: Ratio : | MR2: =MQ4/SUM(MQ4:MR4)*100 -> 58.33333333 | MS2: Ratio : | MT2: =MS4/SUM(MS4:MT4)*100 -> 41.66666667 | MU2: ava | MV2: 4 | MW2: 4 | MX2: moy0 | MY2: =ROW(MX2) -> 2 | MZ2: Ratio : | NA2: =MZ4/SUM(MZ4:NA4)*100 -> 55 | NB2: Ratio : | NC2: =NB4/SUM(NB4:NC4)*100 -> 35 | ND2: ava | NE2: 4 | NF2: 3 | NG2: moy0min | NH2: =ROW(NG2) -> 2 | NI2: Ratio : | NJ2: =NI4/SUM(NI4:NJ4)*100 ->  | NK2: Ratio : | NL2: =NK4/SUM(NK4:NL4)*100 ->  | NM2: ava | NP2: moy1 | NQ2: =ROW(NP2) -> 2 | NR2: Ratio : | NS2: =NR4/SUM(NR4:NS4)*100 -> 56 | NT2: Ratio : | NU2: =NT4/SUM(NT4:NU4)*100 -> 36 | NV2: ava | NW2: 4 | NX2: 6 | NY2: moy2 | NZ2: =ROW(NY2) -> 2 | OA2: Ratio : | OB2: =OA4/SUM(OA4:OB4)*100 -> 56 | OC2: Ratio : | OD2: =OC4/SUM(OC4:OD4)*100 -> 36 | OE2: ava | OF2: 4 | OG2: 4 | OH2: moy3 | OI2: =ROW(OH2) -> 2 | OJ2: Ratio : | OK2: =OJ4/SUM(OJ4:OK4)*100 -> 53.84615385 | OL2: Ratio : | OM2: =OL4/SUM(OL4:OM4)*100 -> 38.46153846 | ON2: ava | OO2: 4 | OP2: 4 | OQ2: moy3min | OR2: =ROW(OQ2) -> 2 | OS2: Ratio : | OT2: =OS4/SUM(OS4:OT4)*100 ->  | OU2: Ratio : | OV2: =OU4/SUM(OU4:OV4)*100 ->  | OW2: ava | OZ2: moy4 | PA2: =ROW(OZ2) -> 2 | PB2: Ratio : | PC2: =PB4/SUM(PB4:PC4)*100 -> 53.84615385 | PD2: Ratio : | PE2: =PD4/SUM(PD4:PE4)*100 -> 38.46153846 | PF2: ava | PG2: 4 | PH2: 4
A3: 2010 | B3: 001 | C3: 501 | F3: 0 | G3: 2000-09-12 | J3: F | K3: 0 | L3: 0 | M3: 0 | N3: 0 | O3: 0 | P3: 0 | Q3: 0 | R3: 0 | S3: 0 | T3: 0 | U3: 0 | V3: 0 | W3: 0 | X3: 0 | Y3: 0 | Z3: 0 | AA3: 0 | AB3: 0 | AC3: 0 | AD3: 0 | AE3: 0 | AF3: 0 | AG3: 0 | AH3: 0 | AI3: 0 | AJ3: 0 | AK3: 0 | AL3: 0 | AM3: 0 | AN3: 0 | AO3: 0 | AP3: 0 | AQ3: 70 | AR3: 75 | AS3: 0 | AT3: 50 | AU3: 75 | AV3: 70 | AW3: 40 | AX3: 60 | AY3: 80 | AZ3: 70 | BA3: 40 | BB3: 45 | BC3: 0 | BD3: 0 | BE3: 0 | BF3: 0 | BG3: 79 | BH3: 81 | BI3: 0 | BJ3: 50 | BK3: 82 | BL3: 73 | BM3: 30 | BN3: 51 | BO3: 82 | BP3: 65 | BQ3: 20 | BR3: 50 | BS3: 80 | BT3: 79 | BU3: 24 | BV3: 47 | BX3: =IF(L3=0,0,IF(M3=0,AVERAGE(M3,K3,N3),AVERAGE(K3:N3))) -> 0 | BY3: =IF(P3=0,0,IF(Q3=0,AVERAGE(Q3,O3,R3),AVERAGE(O3:R3))) -> 0 | BZ3: =IF(T3=0,0,IF(U3=0,AVERAGE(T3,S3,V3),AVERAGE(S3:V3))) -> 0 | CA3: =IF(AB3=0,0,IF(AC3=0,AVERAGE(AB3,AA3,AD3),AVERAGE(AA3:AD3))) -> 0 | CB3: =IF(AF3=0,0,IF(AG3=0,AVERAGE(AF3,AE3,AH3),AVERAGE(AE3:AH3))) -> 0 | CC3: =IF(AJ3=0,0,IF(AK3=0,AVERAGE(AJ3,AI3,AL3),AVERAGE(AI3:AL3))) -> 0 | CD3: =IF(AN3=0,0,IF(AO3=0,AVERAGE(AN3,AM3,AP3),AVERAGE(AM3:AP3))) -> 0 | CE3: =IF(AR3=0,0,IF(AS3=0,AVERAGE(AR3,AQ3,AT3),AVERAGE(AQ3:AT3))) -> 65 | CF3: =IF(AV3=0,0,IF(AW3=0,AVERAGE(AV3,AU3,AX3),AVERAGE(AU3:AX3))) -> 61.25 | CG3: =IF(AZ3=0,0,IF(BA3=0,AVERAGE(AZ3,AY3,BB3),AVERAGE(AY3:BB3))) -> 58.75 | CH3: =IF(BD3=0,0,IF(BE3=0,AVERAGE(BD3,BC3,BF3),AVERAGE(BC3:BF3))) -> 0 | CI3: =IF(BH3=0,0,IF(BI3=0,AVERAGE(BH3,BG3,BJ3,BM3),AVERAGE(BG3:BJ3))) -> 60 | CM3: 001501 | CN3: 0.100 | CO3: =LEFT(C3,2) -> 50 | CP3: =Tableau_SSRSMSA03_BI_Integration_STEPH_2010[[#This Row],[DAT_NAISSANCE_ELEVE]] -> 2000-09-12 | CQ3: 2009-09-30 | CR3: =DATEDIF(CP3,CQ3,"d") -> 3305 | CS3: =CR3/365.25 -> 9.048596851 | CT3: =IF(AND(LEFT(CO3,1)="1",CS3>5.5),"V",IF(AND(LEFT(CO3,1)="2",CS3>6.5),"V",IF(AND(LEFT(CO3,1)="3",CS3>7.5),"V",IF(AND(LEFT(CO3,1)="4",CS3>8.5),"V",IF(AND(LEFT(CO3,1)="5",CS3>9.5),"V",IF(AND(LEFT(CO3,1)="6",CS3>10.5),"V","J")))))) -> J | CU3: =IF(AJ3=0,0,IF(BH3=0,0,1)) -> 0 | CV3: =DC11&DC12&1 -> 500.1001 | CW3: nb ele tot | CX3: =SUMPRODUCT(($CM$2:$CM$338=$CV2)*1) -> 26 | CY3: =COUNTIFS($CM$2:$CM$338,$CV2,$J$2:$J$338,"M") -> 14 | CZ3: =COUNTIFS($CM$2:$CM$338,$CV2,$J$2:$J$338,"F") -> 12 | DA3: =COUNTIFS($CM$2:$CM$338,$CV2,$CT$2:$CT$338,"J") -> 10 | DB3: =COUNTIFS($CM$2:$CM$338,$CV2,$CT$2:$CT$338,"V") -> 16 | DC3: =IF(CX4<5,"",CY5-CZ5) -> -5.050505051 | DD3: 8 | DE3: 8 | DF3: =CV3 -> 500.1001 | DG3: =SUMPRODUCT(($CM$2:$CM$338=$CV2)*1) -> 26 | DH3: =COUNTIFS($CM$2:$CM$338,$CV2,$J$2:$J$338,"M") -> 14 | DI3: =COUNTIFS($CM$2:$CM$338,$CV2,$J$2:$J$338,"F") -> 12 | DJ3: =COUNTIFS($CM$2:$CM$338,$CV2,$CT$2:$CT$338,"J") -> 10 | DK3: =COUNTIFS($CM$2:$CM$338,$CV2,$CT$2:$CT$338,"V") -> 16 | DL3: =IF(DG4<5,"",DH5-DI5) ->  | DO3: =$CV3 -> 500.1001 | DP3: =SUMPRODUCT(($CM$2:$CM$338=$CV2)*1) -> 26 | DQ3: =COUNTIFS($CM$2:$CM$338,$CV2,$J$2:$J$338,"M") -> 14 | DR3: =COUNTIFS($CM$2:$CM$338,$CV2,$J$2:$J$338,"F") -> 12 | DS3: =COUNTIFS($CM$2:$CM$338,$CV2,$CT$2:$CT$338,"J") -> 10 | DT3: =COUNTIFS($CM$2:$CM$338,$CV2,$CT$2:$CT$338,"V") -> 16 | DU3: =IF(DP4<5,"",DQ5-DR5) -> -4.545454545 | DV3: 2 | DW3: 2 | DX3: =$CV3 -> 500.1001 | DY3: =SUMPRODUCT(($CM$2:$CM$338=$CV2)*1) -> 26 | DZ3: =COUNTIFS($CM$2:$CM$338,$CV2,$J$2:$J$338,"M") -> 14 | EA3: =COUNTIFS($CM$2:$CM$338,$CV2,$J$2:$J$338,"F") -> 12 | EB3: =COUNTIFS($CM$2:$CM$338,$CV2,$CT$2:$CT$338,"J") -> 10 | EC3: =COUNTIFS($CM$2:$CM$338,$CV2,$CT$2:$CT$338,"V") -> 16 | ED3: =IF(DY4<5,"",DZ5-EA5) -> -2.467532468 | EE3: 3 | EF3: 3 | EG3: =$CV3 -> 500.1001 | EH3: =SUMPRODUCT(($CM$2:$CM$338=$CV2)*1) -> 26 | EI3: =COUNTIFS($CM$2:$CM$338,$CV2,$J$2:$J$338,"M") -> 14 | EJ3: =COUNTIFS($CM$2:$CM$338,$CV2,$J$2:$J$338,"F") -> 12 | EK3: =COUNTIFS($CM$2:$CM$338,$CV2,$CT$2:$CT$338,"J") -> 10 | EL3: =COUNTIFS($CM$2:$CM$338,$CV2,$CT$2:$CT$338,"V") -> 16 | EM3: =IF(EH4<5,"",EI5-EJ5) -> 0.7142857143 | EN3: 3 | EO3: 3 | EP3: =$CV3 -> 500.1001 | EQ3: =SUMPRODUCT(($CM$2:$CM$338=$CV2)*1) -> 26 | ER3: =COUNTIFS($CM$2:$CM$338,$CV2,$J$2:$J$338,"M") -> 14 | ES3: =COUNTIFS($CM$2:$CM$338,$CV2,$J$2:$J$338,"F") -> 12 | ET3: =COUNTIFS($CM$2:$CM$338,$CV2,$CT$2:$CT$338,"J") -> 10 | EU3: =COUNTIFS($CM$2:$CM$338,$CV2,$CT$2:$CT$338,"V") -> 16 | EV3: =IF(EQ4<5,"",ER5-ES5) ->  | EY3: =$CV3 -> 500.1001 | EZ3: =SUMPRODUCT(($CM$2:$CM$338=$CV2)*1) -> 26 | FA3: =COUNTIFS($CM$2:$CM$338,$CV2,$J$2:$J$338,"M") -> 14 | FB3: =COUNTIFS($CM$2:$CM$338,$CV2,$J$2:$J$338,"F") -> 12 | FC3: =COUNTIFS($CM$2:$CM$338,$CV2,$CT$2:$CT$338,"J") -> 10 | FD3: =COUNTIFS($CM$2:$CM$338,$CV2,$CT$2:$CT$338,"V") -> 16 | FE3: =IF(EZ4<5,"",FA5-FB5) -> -4.226190476 | FF3: 1 | FG3: 2 | FH3: =$CV3 -> 500.1001 | FI3: =SUMPRODUCT(($CM$2:$CM$338=$CV2)*1) -> 26 | FJ3: =COUNTIFS($CM$2:$CM$338,$CV2,$J$2:$J$338,"M") -> 14 | FK3: =COUNTIFS($CM$2:$CM$338,$CV2,$J$2:$J$338,"F") -> 12 | FL3: =COUNTIFS($CM$2:$CM$338,$CV2,$CT$2:$CT$338,"J") -> 10 | FM3: =COUNTIFS($CM$2:$CM$338,$CV2,$CT$2:$CT$338,"V") -> 16 | FN3: =IF(FI4<5,"",FJ5-FK5) -> -3.282828283 | FO3: 8 | FP3: 8 | FQ3: =$CV3 -> 500.1001 | FR3: =SUMPRODUCT(($CM$2:$CM$338=$CV2)*1) -> 26 | FS3: =COUNTIFS($CM$2:$CM$338,$CV2,$J$2:$J$338,"M") -> 14 | FT3: =COUNTIFS($CM$2:$CM$338,$CV2,$J$2:$J$338,"F") -> 12 | FU3: =COUNTIFS($CM$2:$CM$338,$CV2,$CT$2:$CT$338,"J") -> 10 | FV3: =COUNTIFS($CM$2:$CM$338,$CV2,$CT$2:$CT$338,"V") -> 16 | FW3: =IF(FR4<5,"",FS5-FT5) ->  | FZ3: =$CV3 -> 500.1001 | GA3: =SUMPRODUCT(($CM$2:$CM$338=$CV2)*1) -> 26 | GB3: =COUNTIFS($CM$2:$CM$338,$CV2,$J$2:$J$338,"M") -> 14 | GC3: =COUNTIFS($CM$2:$CM$338,$CV2,$J$2:$J$338,"F") -> 12 | GD3: =COUNTIFS($CM$2:$CM$338,$CV2,$CT$2:$CT$338,"J") -> 10 | GE3: =COUNTIFS($CM$2:$CM$338,$CV2,$CT$2:$CT$338,"V") -> 16 | GF3: =IF(GA4<5,"",GB5-GC5) -> -4.935064935 | GG3: 2 | GH3: 3 | GI3: =$CV3 -> 500.1001 | GJ3: =SUMPRODUCT(($CM$2:$CM$338=$CV2)*1) -> 26 | GK3: =COUNTIFS($CM$2:$CM$338,$CV2,$J$2:$J$338,"M") -> 14 | GL3: =COUNTIFS($CM$2:$CM$338,$CV2,$J$2:$J$338,"F") -> 12 | GM3: =COUNTIFS($CM$2:$CM$338,$CV2,$CT$2:$CT$338,"J") -> 10 | GN3: =COUNTIFS($CM$2:$CM$338,$CV2,$CT$2:$CT$338,"V") -> 16 | GO3: =IF(GJ4<5,"",GK5-GL5) -> -6.590909091 | GP3: 2 | GQ3: 2 | GR3: =$CV3 -> 500.1001 | GS3: =SUMPRODUCT(($CM$2:$CM$338=$CV2)*1) -> 26 | GT3: =COUNTIFS($CM$2:$CM$338,$CV2,$J$2:$J$338,"M") -> 14 | GU3: =COUNTIFS($CM$2:$CM$338,$CV2,$J$2:$J$338,"F") -> 12 | GV3: =COUNTIFS($CM$2:$CM$338,$CV2,$CT$2:$CT$338,"J") -> 10 | GW3: =COUNTIFS($CM$2:$CM$338,$CV2,$CT$2:$CT$338,"V") -> 16 | GX3: =IF(GS4<5,"",GT5-GU5) -> -5.714285714 | GY3: 2 | GZ3: 2 | HA3: =$CV3 -> 500.1001 | HB3: =SUMPRODUCT(($CM$2:$CM$338=$CV2)*1) -> 26 | HC3: =COUNTIFS($CM$2:$CM$338,$CV2,$J$2:$J$338,"M") -> 14 | HD3: =COUNTIFS($CM$2:$CM$338,$CV2,$J$2:$J$338,"F") -> 12 | HE3: =COUNTIFS($CM$2:$CM$338,$CV2,$CT$2:$CT$338,"J") -> 10 | HF3: =COUNTIFS($CM$2:$CM$338,$CV2,$CT$2:$CT$338,"V") -> 16 | HG3: =IF(HB4<5,"",HC5-HD5) ->  | HJ3: =$CV3 -> 500.1001 | HK3: =SUMPRODUCT(($CM$2:$CM$338=$CV2)*1) -> 26 | HL3: =COUNTIFS($CM$2:$CM$338,$CV2,$J$2:$J$338,"M") -> 14 | HM3: =COUNTIFS($CM$2:$CM$338,$CV2,$J$2:$J$338,"F") -> 12 | HN3: =COUNTIFS($CM$2:$CM$338,$CV2,$CT$2:$CT$338,"J") -> 10 | HO3: =COUNTIFS($CM$2:$CM$338,$CV2,$CT$2:$CT$338,"V") -> 16 | HP3: =IF(HK4<5,"",HL5-HM5) -> -3.821428571 | HQ3: 2 | HR3: 2 | HS3: =$CV3 -> 500.1001 | HT3: =SUMPRODUCT(($CM$2:$CM$338=$CV2)*1) -> 26 | HU3: =COUNTIFS($CM$2:$CM$338,$CV2,$J$2:$J$338,"M") -> 14 | HV3: =COUNTIFS($CM$2:$CM$338,$CV2,$J$2:$J$338,"F") -> 12 | HW3: =COUNTIFS($CM$2:$CM$338,$CV2,$CT$2:$CT$338,"J") -> 10 | HX3: =COUNTIFS($CM$2:$CM$338,$CV2,$CT$2:$CT$338,"V") -> 16 | HY3: =IF(HT4<5,"",HU5-HV5) -> 1.25 | HZ3: 8 | IA3: 8 | IB3: =$CV3 -> 500.1001 | IC3: =SUMPRODUCT(($CM$2:$CM$338=$CV2)*1) -> 26 | ID3: =COUNTIFS($CM$2:$CM$338,$CV2,$J$2:$J$338,"M") -> 14 | IE3: =COUNTIFS($CM$2:$CM$338,$CV2,$J$2:$J$338,"F") -> 12 | IF3: =COUNTIFS($CM$2:$CM$338,$CV2,$CT$2:$CT$338,"J") -> 10 | IG3: =COUNTIFS($CM$2:$CM$338,$CV2,$CT$2:$CT$338,"V") -> 16 | IH3: =IF(IC4<5,"",ID5-IE5) ->  | IK3: =$CV3 -> 500.1001 | IL3: =SUMPRODUCT(($CM$2:$CM$338=$CV2)*1) -> 26 | IM3: =COUNTIFS($CM$2:$CM$338,$CV2,$J$2:$J$338,"M") -> 14 | IN3: =COUNTIFS($CM$2:$CM$338,$CV2,$J$2:$J$338,"F") -> 12 | IO3: =COUNTIFS($CM$2:$CM$338,$CV2,$CT$2:$CT$338,"J") -> 10 | IP3: =COUNTIFS($CM$2:$CM$338,$CV2,$CT$2:$CT$338,"V") -> 16 | IQ3: =IF(IL4<5,"",IM5-IN5) -> 6.396103896 | IR3: 4 | IS3: 4 | IT3: =$CV3 -> 500.1001 | IU3: =SUMPRODUCT(($CM$2:$CM$338=$CV2)*1) -> 26 | IV3: =COUNTIFS($CM$2:$CM$338,$CV2,$J$2:$J$338,"M") -> 14 | IW3: =COUNTIFS($CM$2:$CM$338,$CV2,$J$2:$J$338,"F") -> 12 | IX3: =COUNTIFS($CM$2:$CM$338,$CV2,$CT$2:$CT$338,"J") -> 10 | IY3: =COUNTIFS($CM$2:$CM$338,$CV2,$CT$2:$CT$338,"V") -> 16 | IZ3: =IF(IU4<5,"",IV5-IW5) -> 4.577922078 | JA3: 3 | JB3: 6 | JC3: =$CV3 -> 500.1001 | JD3: =SUMPRODUCT(($CM$2:$CM$338=$CV2)*1) -> 26 | JE3: =COUNTIFS($CM$2:$CM$338,$CV2,$J$2:$J$338,"M") -> 14 | JF3: =COUNTIFS($CM$2:$CM$338,$CV2,$J$2:$J$338,"F") -> 12 | JG3: =COUNTIFS($CM$2:$CM$338,$CV2,$CT$2:$CT$338,"J") -> 10 | JH3: =COUNTIFS($CM$2:$CM$338,$CV2,$CT$2:$CT$338,"V") -> 16 | JI3: =IF(JD4<5,"",JE5-JF5) -> 6.19047619 | JJ3: 4 | JK3: 4 | JL3: =$CV3 -> 500.1001 | JM3: =SUMPRODUCT(($CM$2:$CM$338=$CV2)*1) -> 26 | JN3: =COUNTIFS($CM$2:$CM$338,$CV2,$J$2:$J$338,"M") -> 14 | JO3: =COUNTIFS($CM$2:$CM$338,$CV2,$J$2:$J$338,"F") -> 12 | JP3: =COUNTIFS($CM$2:$CM$338,$CV2,$CT$2:$CT$338,"J") -> 10 | JQ3: =COUNTIFS($CM$2:$CM$338,$CV2,$CT$2:$CT$338,"V") -> 16 | JR3: =IF(JM4<5,"",JN5-JO5) ->  | JU3: =$CV3 -> 500.1001 | JV3: =SUMPRODUCT(($CM$2:$CM$338=$CV2)*1) -> 26 | JW3: =COUNTIFS($CM$2:$CM$338,$CV2,$J$2:$J$338,"M") -> 14 | JX3: =COUNTIFS($CM$2:$CM$338,$CV2,$J$2:$J$338,"F") -> 12 | JY3: =COUNTIFS($CM$2:$CM$338,$CV2,$CT$2:$CT$338,"J") -> 10 | JZ3: =COUNTIFS($CM$2:$CM$338,$CV2,$CT$2:$CT$338,"V") -> 16 | KA3: =IF(JV4<5,"",JW5-JX5) -> 0.4404761905 | KB3: 3 | KC3: 4 | KD3: =$CV3 -> 500.1001 | KE3: =SUMPRODUCT(($CM$2:$CM$338=$CV2)*1) -> 26 | KF3: =COUNTIFS($CM$2:$CM$338,$CV2,$J$2:$J$338,"M") -> 14 | KG3: =COUNTIFS($CM$2:$CM$338,$CV2,$J$2:$J$338,"F") -> 12 | KH3: =COUNTIFS($CM$2:$CM$338,$CV2,$CT$2:$CT$338,"J") -> 10 | KI3: =COUNTIFS($CM$2:$CM$338,$CV2,$CT$2:$CT$338,"V") -> 16 | KJ3: =IF(KE4<5,"",KF5-KG5) -> 1.616161616 | KK3: 8 | KL3: 8 | KM3: =$CV3 -> 500.1001 | KN3: =SUMPRODUCT(($CM$2:$CM$338=$CV2)*1) -> 26 | KO3: =COUNTIFS($CM$2:$CM$338,$CV2,$J$2:$J$338,"M") -> 14 | KP3: =COUNTIFS($CM$2:$CM$338,$CV2,$J$2:$J$338,"F") -> 12 | KQ3: =COUNTIFS($CM$2:$CM$338,$CV2,$CT$2:$CT$338,"J") -> 10 | KR3: =COUNTIFS($CM$2:$CM$338,$CV2,$CT$2:$CT$338,"V") -> 16 | KS3: =IF(KN4<5,"",KO5-KP5) ->  | KV3: =$CV3 -> 500.1001 | KW3: =SUMPRODUCT(($CM$2:$CM$338=$CV2)*1) -> 26 | KX3: =COUNTIFS($CM$2:$CM$338,$CV2,$J$2:$J$338,"M") -> 14 | KY3: =COUNTIFS($CM$2:$CM$338,$CV2,$J$2:$J$338,"F") -> 12 | KZ3: =COUNTIFS($CM$2:$CM$338,$CV2,$CT$2:$CT$338,"J") -> 10 | LA3: =COUNTIFS($CM$2:$CM$338,$CV2,$CT$2:$CT$338,"V") -> 16 | LB3: =IF(KW4<5,"",KX5-KY5) ->  | LE3: =$CV3 -> 500.1001 | LF3: =SUMPRODUCT(($CM$2:$CM$338=$CV2)*1) -> 26 | LG3: =COUNTIFS($CM$2:$CM$338,$CV2,$J$2:$J$338,"M") -> 14 | LH3: =COUNTIFS($CM$2:$CM$338,$CV2,$J$2:$J$338,"F") -> 12 | LI3: =COUNTIFS($CM$2:$CM$338,$CV2,$CT$2:$CT$338,"J") -> 10 | LJ3: =COUNTIFS($CM$2:$CM$338,$CV2,$CT$2:$CT$338,"V") -> 16 | LK3: =IF(LF4<5,"",LG5-LH5) -> 4.285714286 | LL3: 4 | LM3: 4 | LN3: =$CV3 -> 500.1001 | LO3: =SUMPRODUCT(($CM$2:$CM$338=$CV2)*1) -> 26 | LP3: =COUNTIFS($CM$2:$CM$338,$CV2,$J$2:$J$338,"M") -> 14 | LQ3: =COUNTIFS($CM$2:$CM$338,$CV2,$J$2:$J$338,"F") -> 12 | LR3: =COUNTIFS($CM$2:$CM$338,$CV2,$CT$2:$CT$338,"J") -> 10 | LS3: =COUNTIFS($CM$2:$CM$338,$CV2,$CT$2:$CT$338,"V") -> 16 | LT3: =IF(LO4<5,"",LP5-LQ5) -> 1.845238095 | LU3: 4 | LV3: 4 | LW3: =$CV3 -> 500.1001 | LX3: =SUMPRODUCT(($CM$2:$CM$338=$CV2)*1) -> 26 | LY3: =COUNTIFS($CM$2:$CM$338,$CV2,$J$2:$J$338,"M") -> 14 | LZ3: =COUNTIFS($CM$2:$CM$338,$CV2,$J$2:$J$338,"F") -> 12 | MA3: =COUNTIFS($CM$2:$CM$338,$CV2,$CT$2:$CT$338,"J") -> 10 | MB3: =COUNTIFS($CM$2:$CM$338,$CV2,$CT$2:$CT$338,"V") -> 16 | MC3: =IF(LX4<5,"",LY5-LZ5) ->  | MF3: =$CV3 -> 500.1001 | MG3: =SUMPRODUCT(($CM$2:$CM$338=$CV2)*1) -> 26 | MH3: =COUNTIFS($CM$2:$CM$338,$CV2,$J$2:$J$338,"M") -> 14 | MI3: =COUNTIFS($CM$2:$CM$338,$CV2,$J$2:$J$338,"F") -> 12 | MJ3: =COUNTIFS($CM$2:$CM$338,$CV2,$CT$2:$CT$338,"J") -> 10 | MK3: =COUNTIFS($CM$2:$CM$338,$CV2,$CT$2:$CT$338,"V") -> 16 | ML3: =IF(MG4<5,"",MH5-MI5) ->  | MO3: =$CV3 -> 500.1001 | MP3: =SUMPRODUCT(($CM$2:$CM$338=$CV2)*1) -> 26 | MQ3: =COUNTIFS($CM$2:$CM$338,$CV2,$J$2:$J$338,"M") -> 14 | MR3: =COUNTIFS($CM$2:$CM$338,$CV2,$J$2:$J$338,"F") -> 12 | MS3: =COUNTIFS($CM$2:$CM$338,$CV2,$CT$2:$CT$338,"J") -> 10 | MT3: =COUNTIFS($CM$2:$CM$338,$CV2,$CT$2:$CT$338,"V") -> 16 | MU3: =IF(MP4<5,"",MQ5-MR5) -> -4 | MV3: 4 | MW3: 4 | MX3: =$CV3 -> 500.1001 | MY3: =SUMPRODUCT(($CM$2:$CM$338=$CV2)*1) -> 26 | MZ3: =COUNTIFS($CM$2:$CM$338,$CV2,$J$2:$J$338,"M") -> 14 | NA3: =COUNTIFS($CM$2:$CM$338,$CV2,$J$2:$J$338,"F") -> 12 | NB3: =COUNTIFS($CM$2:$CM$338,$CV2,$CT$2:$CT$338,"J") -> 10 | NC3: =COUNTIFS($CM$2:$CM$338,$CV2,$CT$2:$CT$338,"V") -> 16 | ND3: =IF(MY4<5,"",MZ5-NA5) -> -1.338383838 | NE3: 8 | NF3: 8 | NG3: =$CV3 -> 500.1001 | NH3: =SUMPRODUCT(($CM$2:$CM$338=$CV2)*1) -> 26 | NI3: =COUNTIFS($CM$2:$CM$338,$CV2,$J$2:$J$338,"M") -> 14 | NJ3: =COUNTIFS($CM$2:$CM$338,$CV2,$J$2:$J$338,"F") -> 12 | NK3: =COUNTIFS($CM$2:$CM$338,$CV2,$CT$2:$CT$338,"J") -> 10 | NL3: =COUNTIFS($CM$2:$CM$338,$CV2,$CT$2:$CT$338,"V") -> 16 | NM3: =IF(NH4<5,"",NI5-NJ5) ->  | NP3: =$CV3 -> 500.1001 | NQ3: =SUMPRODUCT(($CM$2:$CM$338=$CV2)*1) -> 26 | NR3: =COUNTIFS($CM$2:$CM$338,$CV2,$J$2:$J$338,"M") -> 14 | NS3: =COUNTIFS($CM$2:$CM$338,$CV2,$J$2:$J$338,"F") -> 12 | NT3: =COUNTIFS($CM$2:$CM$338,$CV2,$CT$2:$CT$338,"J") -> 10 | NU3: =COUNTIFS($CM$2:$CM$338,$CV2,$CT$2:$CT$338,"V") -> 16 | NV3: =IF(NQ4<5,"",NR5-NS5) -> -1.028138528 | NW3: 3 | NX3: 6 | NY3: =$CV3 -> 500.1001 | NZ3: =SUMPRODUCT(($CM$2:$CM$338=$CV2)*1) -> 26 | OA3: =COUNTIFS($CM$2:$CM$338,$CV2,$J$2:$J$338,"M") -> 14 | OB3: =COUNTIFS($CM$2:$CM$338,$CV2,$J$2:$J$338,"F") -> 12 | OC3: =COUNTIFS($CM$2:$CM$338,$CV2,$CT$2:$CT$338,"J") -> 10 | OD3: =COUNTIFS($CM$2:$CM$338,$CV2,$CT$2:$CT$338,"V") -> 16 | OE3: =IF(NZ4<5,"",OA5-OB5) -> -0.0487012987 | OF3: 3 | OG3: 6 | OH3: =$CV3 -> 500.1001 | OI3: =SUMPRODUCT(($CM$2:$CM$338=$CV2)*1) -> 26 | OJ3: =COUNTIFS($CM$2:$CM$338,$CV2,$J$2:$J$338,"M") -> 14 | OK3: =COUNTIFS($CM$2:$CM$338,$CV2,$J$2:$J$338,"F") -> 12 | OL3: =COUNTIFS($CM$2:$CM$338,$CV2,$CT$2:$CT$338,"J") -> 10 | OM3: =COUNTIFS($CM$2:$CM$338,$CV2,$CT$2:$CT$338,"V") -> 16 | ON3: =IF(OI4<5,"",OJ5-OK5) -> 0.7589285714 | OO3: 3 | OP3: 4 | OQ3: =$CV3 -> 500.1001 | OR3: =SUMPRODUCT(($CM$2:$CM$338=$CV2)*1) -> 26 | OS3: =COUNTIFS($CM$2:$CM$338,$CV2,$J$2:$J$338,"M") -> 14 | OT3: =COUNTIFS($CM$2:$CM$338,$CV2,$J$2:$J$338,"F") -> 12 | OU3: =COUNTIFS($CM$2:$CM$338,$CV2,$CT$2:$CT$338,"J") -> 10 | OV3: =COUNTIFS($CM$2:$CM$338,$CV2,$CT$2:$CT$338,"V") -> 16 | OW3: =IF(OR4<5,"",OS5-OT5) ->  | OZ3: =$CV3 -> 500.1001 | PA3: =SUMPRODUCT(($CM$2:$CM$338=$CV2)*1) -> 26 | PB3: =COUNTIFS($CM$2:$CM$338,$CV2,$J$2:$J$338,"M") -> 14 | PC3: =COUNTIFS($CM$2:$CM$338,$CV2,$J$2:$J$338,"F") -> 12 | PD3: =COUNTIFS($CM$2:$CM$338,$CV2,$CT$2:$CT$338,"J") -> 10 | PE3: =COUNTIFS($CM$2:$CM$338,$CV2,$CT$2:$CT$338,"V") -> 16 | PF3: =IF(PA4<5,"",PB5-PC5) -> -3.672619048 | PG3: 3 | PH3: 6
A4: 2010 | B4: 001 | C4: 501 | F4: 0 | G4: 2000-01-31 | J4: M | K4: 75 | L4: 70 | M4: 0 | N4: 80 | O4: 80 | P4: 75 | Q4: 80 | R4: 75 | S4: 75 | T4: 75 | U4: 70 | V4: 80 | W4: 0 | X4: 0 | Y4: 0 | Z4: 0 | AA4: 75 | AB4: 65 | AC4: 0 | AD4: 65 | AE4: 70 | AF4: 60 | AG4: 70 | AH4: 75 | AI4: 70 | AJ4: 80 | AK4: 75 | AL4: 70 | AM4: 0 | AN4: 0 | AO4: 0 | AP4: 0 | AQ4: 65 | AR4: 75 | AS4: 0 | AT4: 75 | AU4: 75 | AV4: 70 | AW4: 80 | AX4: 75 | AY4: 70 | AZ4: 65 | BA4: 70 | BB4: 75 | BC4: 0 | BD4: 0 | BE4: 0 | BF4: 0 | BG4: 72 | BH4: 70 | BI4: 0 | BJ4: 69 | BK4: 77 | BL4: 73 | BM4: 60 | BN4: 74 | BO4: 75 | BP4: 64 | BQ4: 64 | BR4: 65 | BS4: 64 | BT4: 61 | BU4: 76 | BV4: 76 | BX4: 51.66666667 | BY4: 77.5 | BZ4: 75 | CA4: 68.33333333 | CB4: 68.75 | CC4: 73.75 | CD4: 0 | CE4: 71.66666667 | CF4: 75 | CG4: =IF(AZ4=0,0,IF(BA4=0,AVERAGE(AZ4,AY4,BB4),AVERAGE(AY4:BB4))) -> 70 | CH4: 0 | CI4: 67.75 | CM4: 001501 | CN4: 0.100 | CO4: 50 | CP4: =Tableau_SSRSMSA03_BI_Integration_STEPH_2010[[#This Row],[DAT_NAISSANCE_ELEVE]] -> 2000-01-31 | CQ4: 2009-09-30 | CR4: 3530 | CS4: 9.664613279 | CT4: =IF(AND(LEFT(CO4,1)="1",CS4>5.5),"V",IF(AND(LEFT(CO4,1)="2",CS4>6.5),"V",IF(AND(LEFT(CO4,1)="3",CS4>7.5),"V",IF(AND(LEFT(CO4,1)="4",CS4>8.5),"V",IF(AND(LEFT(CO4,1)="5",CS4>9.5),"V",IF(AND(LEFT(CO4,1)="6",CS4>10.5),"V","J")))))) -> V | CU4: =IF(AJ4=0,0,IF(BH4=0,0,1)) -> 1 | CV4: =DC11&DC12&2 -> 500.1002 | CW4: nb note | CX4: =SUMPRODUCT(($CM$2:$CM$338=$CV2)*($AJ$2:$AJ$338>3)) -> 20 | CY4: =COUNTIFS($CM$2:$CM$338,$CV2,$J$2:$J$338,"M",$AJ$2:$AJ$338,">3") -> 11 | CZ4: =COUNTIFS($CM$2:$CM$338,$CV2,$J$2:$J$338,"F",$AJ$2:$AJ$338,">3") -> 9 | DA4: =COUNTIFS($CM$2:$CM$338,$CV2,$CT$2:$CT$338,"J",$AJ$2:$AJ$338,">3") -> 7 | DB4: =COUNTIFS($CM$2:$CM$338,$CV2,$CT$2:$CT$338,"V",$AJ$2:$AJ$338,">3") -> 13 | DC4: =IF(CX4<5,"",CY10-CZ10) -> -2.371094351 | DD4: 2 | DE4: 2 | DF4: =CV4 -> 500.1002 | DG4: =SUMPRODUCT(($CM$2:$CM$338=$CV2)*($AN$2:$AN$338>3)) -> 0 | DH4: =COUNTIFS($CM$2:$CM$338,$CV2,$J$2:$J$338,"M",$AN$2:$AN$338,">3") -> 0 | DI4: =COUNTIFS($CM$2:$CM$338,$CV2,$J$2:$J$338,"F",$AN$2:$AN$338,">3") -> 0 | DJ4: =COUNTIFS($CM$2:$CM$338,$CV2,$CT$2:$CT$338,"J",$AN$2:$AN$338,">3") -> 0 | DK4: =COUNTIFS($CM$2:$CM$338,$CV2,$CT$2:$CT$338,"V",$AN$2:$AN$338,">3") -> 0 | DL4: =IF(DG4<5,"",DH10-DI10) ->  | DO4: =$CV4 -> 500.1002 | DP4: =SUMPRODUCT(($CM$2:$CM$338=$CV2)*($AR$2:$AR$338>3)) -> 25 | DQ4: =COUNTIFS($CM$2:$CM$338,$CV2,$J$2:$J$338,"M",$AR$2:$AR$338,">3") -> 14 | DR4: =COUNTIFS($CM$2:$CM$338,$CV2,$J$2:$J$338,"F",$AR$2:$AR$338,">3") -> 11 | DS4: =COUNTIFS($CM$2:$CM$338,$CV2,$CT$2:$CT$338,"J",$AR$2:$AR$338,">3") -> 9 | DT4: =COUNTIFS($CM$2:$CM$338,$CV2,$CT$2:$CT$338,"V",$AR$2:$AR$338,">3") -> 16 | DU4: =IF(DP4<5,"",DQ10-DR10) -> -1.528674761 | DV4: 2 | DW4: 2 | DX4: =$CV4 -> 500.1002 | DY4: =SUMPRODUCT(($CM$2:$CM$338=$CV2)*($AV$2:$AV$338>3)) -> 25 | DZ4: =COUNTIFS($CM$2:$CM$338,$CV2,$J$2:$J$338,"M",$AV$2:$AV$338,">3") -> 14 | EA4: =COUNTIFS($CM$2:$CM$338,$CV2,$J$2:$J$338,"F",$AV$2:$AV$338,">3") -> 11 | EB4: =COUNTIFS($CM$2:$CM$338,$CV2,$CT$2:$CT$338,"J",$AV$2:$AV$338,">3") -> 9 | EC4: =COUNTIFS($CM$2:$CM$338,$CV2,$CT$2:$CT$338,"V",$AV$2:$AV$338,">3") -> 16 | ED4: =IF(DY4<5,"",DZ10-EA10) -> -1.360439841 | EE4: 3 | EF4: 3 | EG4: =$CV4 -> 500.1002 | EH4: =SUMPRODUCT(($CM$2:$CM$338=$CV2)*($AZ$2:$AZ$338>3)) -> 26 | EI4: =COUNTIFS($CM$2:$CM$338,$CV2,$J$2:$J$338,"M",$AZ$2:$AZ$338,">3") -> 14 | EJ4: =COUNTIFS($CM$2:$CM$338,$CV2,$J$2:$J$338,"F",$AZ$2:$AZ$338,">3") -> 12 | EK4: =COUNTIFS($CM$2:$CM$338,$CV2,$CT$2:$CT$338,"J",$AZ$2:$AZ$338,">3") -> 10 | EL4: =COUNTIFS($CM$2:$CM$338,$CV2,$CT$2:$CT$338,"V",$AZ$2:$AZ$338,">3") -> 16 | EM4: =IF(EH4<5,"",EI10-EJ10) -> -0.544332211 | EN4: 3 | EO4: 6 | EP4: =$CV4 -> 500.1002 | EQ4: =SUMPRODUCT(($CM$2:$CM$338=$CV2)*($BD$2:$BD$338>3)) -> 0 | ER4: =COUNTIFS($CM$2:$CM$338,$CV2,$J$2:$J$338,"M",$BD$2:$BD$338,">3") -> 0 | ES4: =COUNTIFS($CM$2:$CM$338,$CV2,$J$2:$J$338,"F",$BD$2:$BD$338,">3") -> 0 | ET4: =COUNTIFS($CM$2:$CM$338,$CV2,$CT$2:$CT$338,"J",$BD$2:$BD$338,">3") -> 0 | EU4: =COUNTIFS($CM$2:$CM$338,$CV2,$CT$2:$CT$338,"V",$BD$2:$BD$338,">3") -> 0 | EV4: =IF(EQ4<5,"",ER10-ES10) ->  | EY4: =$CV4 -> 500.1002 | EZ4: =SUMPRODUCT(($CM$2:$CM$338=$CV2)*($BH$2:$BH$338>3)) -> 26 | FA4: =COUNTIFS($CM$2:$CM$338,$CV2,$J$2:$J$338,"M",$BH$2:$BH$338,">3") -> 14 | FB4: =COUNTIFS($CM$2:$CM$338,$CV2,$J$2:$J$338,"F",$BH$2:$BH$338,">3") -> 12 | FC4: =COUNTIFS($CM$2:$CM$338,$CV2,$CT$2:$CT$338,"J",$BH$2:$BH$338,">3") -> 10 | FD4: =COUNTIFS($CM$2:$CM$338,$CV2,$CT$2:$CT$338,"V",$BH$2:$BH$338,">3") -> 16 | FE4: =IF(EZ4<5,"",FA10-FB10) -> -0.9543495825 | FF4: 2 | FG4: 3 | FH4: =$CV4 -> 500.1002 | FI4: =SUMPRODUCT(($CM$2:$CM$338=$CV2)*($AI$2:$AI$338>3)) -> 20 | FJ4: =COUNTIFS($CM$2:$CM$338,$CV2,$J$2:$J$338,"M",$AI$2:$AI$338,">3") -> 11 | FK4: =COUNTIFS($CM$2:$CM$338,$CV2,$J$2:$J$338,"F",$AI$2:$AI$338,">3") -> 9 | FL4: =COUNTIFS($CM$2:$CM$338,$CV2,$CT$2:$CT$338,"J",$AI$2:$AI$338,">3") -> 7 | FM4: =COUNTIFS($CM$2:$CM$338,$CV2,$CT$2:$CT$338,"V",$AI$2:$AI$338,">3") -> 13 | FN4: =IF(FI4<5,"",FJ10-FK10) -> -2.352624288 | FO4: 4 | FP4: 3 | FQ4: =$CV4 -> 500.1002 | FR4: =SUMPRODUCT(($CM$2:$CM$338=$CV2)*($AM$2:$AM$338>3)) -> 0 | FS4: =COUNTIFS($CM$2:$CM$338,$CV2,$J$2:$J$338,"M",$AM$2:$AM$338,">3") -> 0 | FT4: =COUNTIFS($CM$2:$CM$338,$CV2,$J$2:$J$338,"F",$AM$2:$AM$338,">3") -> 0 | FU4: =COUNTIFS($CM$2:$CM$338,$CV2,$CT$2:$CT$338,"J",$AM$2:$AM$338,">3") -> 0 | FV4: =COUNTIFS($CM$2:$CM$338,$CV2,$CT$2:$CT$338,"V",$AM$2:$AM$338,">3") -> 0 | FW4: =IF(FR4<5,"",FS10-FT10) ->  | FZ4: =$CV4 -> 500.1002 | GA4: =SUMPRODUCT(($CM$2:$CM$338=$CV2)*($AQ$2:$AQ$338>3)) -> 25 | GB4: =COUNTIFS($CM$2:$CM$338,$CV2,$J$2:$J$338,"M",$AQ$2:$AQ$338,">3") -> 14 | GC4: =COUNTIFS($CM$2:$CM$338,$CV2,$J$2:$J$338,"F",$AQ$2:$AQ$338,">3") -> 11 | GD4: =COUNTIFS($CM$2:$CM$338,$CV2,$CT$2:$CT$338,"J",$AQ$2:$AQ$338,">3") -> 9 | GE4: =COUNTIFS($CM$2:$CM$338,$CV2,$CT$2:$CT$338,"V",$AQ$2:$AQ$338,">3") -> 16 | GF4: =IF(GA4<5,"",GB10-GC10) -> -4.106819943 | GG4: 3 | GH4: 6 | GI4: =$CV4 -> 500.1002 | GJ4: =SUMPRODUCT(($CM$2:$CM$338=$CV2)*($AU$2:$AU$338>3)) -> 25 | GK4: =COUNTIFS($CM$2:$CM$338,$CV2,$J$2:$J$338,"M",$AU$2:$AU$338,">3") -> 14 | GL4: =COUNTIFS($CM$2:$CM$338,$CV2,$J$2:$J$338,"F",$AU$2:$AU$338,">3") -> 11 | GM4: =COUNTIFS($CM$2:$CM$338,$CV2,$CT$2:$CT$338,"J",$AU$2:$AU$338,">3") -> 9 | GN4: =COUNTIFS($CM$2:$CM$338,$CV2,$CT$2:$CT$338,"V",$AU$2:$AU$338,">3") -> 16 | GO4: =IF(GJ4<5,"",GK10-GL10) -> -3.955632272 | GP4: 2 | GQ4: 2 | GR4: =$CV4 -> 500.1002 | GS4: =SUMPRODUCT(($CM$2:$CM$338=$CV2)*($AY$2:$AY$338>3)) -> 26 | GT4: =COUNTIFS($CM$2:$CM$338,$CV2,$J$2:$J$338,"M",$AY$2:$AY$338,">3") -> 14 | GU4: =COUNTIFS($CM$2:$CM$338,$CV2,$J$2:$J$338,"F",$AY$2:$AY$338,">3") -> 12 | GV4: =COUNTIFS($CM$2:$CM$338,$CV2,$CT$2:$CT$338,"J",$AY$2:$AY$338,">3") -> 10 | GW4: =COUNTIFS($CM$2:$CM$338,$CV2,$CT$2:$CT$338,"V",$AY$2:$AY$338,">3") -> 16 | GX4: =IF(GS4<5,"",GT10-GU10) -> -3.411896745 | GY4: 3 | GZ4: 3 | HA4: =$CV4 -> 500.1002 | HB4: =SUMPRODUCT(($CM$2:$CM$338=$CV2)*($BC$2:$BC$338>3)) -> 0 | HC4: =COUNTIFS($CM$2:$CM$338,$CV2,$J$2:$J$338,"M",$BC$2:$BC$338,">3") -> 0 | HD4: =COUNTIFS($CM$2:$CM$338,$CV2,$J$2:$J$338,"F",$BC$2:$BC$338,">3") -> 0 | HE4: =COUNTIFS($CM$2:$CM$338,$CV2,$CT$2:$CT$338,"J",$BC$2:$BC$338,">3") -> 0 | HF4: =COUNTIFS($CM$2:$CM$338,$CV2,$CT$2:$CT$338,"V",$BC$2:$BC$338,">3") -> 0 | HG4: =IF(HB4<5,"",HC10-HD10) ->  | HJ4: =$CV4 -> 500.1002 | HK4: =SUMPRODUCT(($CM$2:$CM$338=$CV2)*($BG$2:$BG$338>3)) -> 26 | HL4: =COUNTIFS($CM$2:$CM$338,$CV2,$J$2:$J$338,"M",$BG$2:$BG$338,">3") -> 14 | HM4: =COUNTIFS($CM$2:$CM$338,$CV2,$J$2:$J$338,"F",$BG$2:$BG$338,">3") -> 12 | HN4: =COUNTIFS($CM$2:$CM$338,$CV2,$CT$2:$CT$338,"J",$BG$2:$BG$338,">3") -> 10 | HO4: =COUNTIFS($CM$2:$CM$338,$CV2,$CT$2:$CT$338,"V",$BG$2:$BG$338,">3") -> 16 | HP4: =IF(HK4<5,"",HL10-HM10) -> -4.043630487 | HQ4: 2 | HR4: 3 | HS4: =$CV4 -> 500.1002 | HT4: =SUMPRODUCT(($CM$2:$CM$338=$CV2)*($AL$2:$AL$338>3)) -> 22 | HU4: =COUNTIFS($CM$2:$CM$338,$CV2,$J$2:$J$338,"M",$AL$2:$AL$338,">3") -> 12 | HV4: =COUNTIFS($CM$2:$CM$338,$CV2,$J$2:$J$338,"F",$AL$2:$AL$338,">3") -> 10 | HW4: =COUNTIFS($CM$2:$CM$338,$CV2,$CT$2:$CT$338,"J",$AL$2:$AL$338,">3") -> 7 | HX4: =COUNTIFS($CM$2:$CM$338,$CV2,$CT$2:$CT$338,"V",$AL$2:$AL$338,">3") -> 15 | HY4: =IF(HT4<5,"",HU10-HV10) -> 0.01321651322 | HZ4: 4 | IA4: 3 | IB4: =$CV4 -> 500.1002 | IC4: =SUMPRODUCT(($CM$2:$CM$338=$CV2)*($AP$2:$AP$338>3)) -> 0 | ID4: =COUNTIFS($CM$2:$CM$338,$CV2,$J$2:$J$338,"M",$AP$2:$AP$338,">3") -> 0 | IE4: =COUNTIFS($CM$2:$CM$338,$CV2,$J$2:$J$338,"F",$AP$2:$AP$338,">3") -> 0 | IF4: =COUNTIFS($CM$2:$CM$338,$CV2,$CT$2:$CT$338,"J",$AP$2:$AP$338,">3") -> 0 | IG4: =COUNTIFS($CM$2:$CM$338,$CV2,$CT$2:$CT$338,"V",$AP$2:$AP$338,">3") -> 0 | IH4: =IF(IC4<5,"",ID10-IE10) ->  | IK4: =$CV4 -> 500.1002 | IL4: =SUMPRODUCT(($CM$2:$CM$338=$CV2)*($AT$2:$AT$338>3)) -> 25 | IM4: =COUNTIFS($CM$2:$CM$338,$CV2,$J$2:$J$338,"M",$AT$2:$AT$338,">3") -> 14 | IN4: =COUNTIFS($CM$2:$CM$338,$CV2,$J$2:$J$338,"F",$AT$2:$AT$338,">3") -> 11 | IO4: =COUNTIFS($CM$2:$CM$338,$CV2,$CT$2:$CT$338,"J",$AT$2:$AT$338,">3") -> 9 | IP4: =COUNTIFS($CM$2:$CM$338,$CV2,$CT$2:$CT$338,"V",$AT$2:$AT$338,">3") -> 16 | IQ4: =IF(IL4<5,"",IM10-IN10) -> 0.6858692844 | IR4: 2 | IS4: 2 | IT4: =$CV4 -> 500.1002 | IU4: =SUMPRODUCT(($CM$2:$CM$338=$CV2)*($AX$2:$AX$338>3)) -> 25 | IV4: =COUNTIFS($CM$2:$CM$338,$CV2,$J$2:$J$338,"M",$AX$2:$AX$338,">3") -> 14 | IW4: =COUNTIFS($CM$2:$CM$338,$CV2,$J$2:$J$338,"F",$AX$2:$AX$338,">3") -> 11 | IX4: =COUNTIFS($CM$2:$CM$338,$CV2,$CT$2:$CT$338,"J",$AX$2:$AX$338,">3") -> 9 | IY4: =COUNTIFS($CM$2:$CM$338,$CV2,$CT$2:$CT$338,"V",$AX$2:$AX$338,">3") -> 16 | IZ4: =IF(IU4<5,"",IV10-IW10) -> 0.5945531262 | JA4: 2 | JB4: 2 | JC4: =$CV4 -> 500.1002 | JD4: =SUMPRODUCT(($CM$2:$CM$338=$CV2)*($BB$2:$BB$338>3)) -> 26 | JE4: =COUNTIFS($CM$2:$CM$338,$CV2,$J$2:$J$338,"M",$BB$2:$BB$338,">3") -> 14 | JF4: =COUNTIFS($CM$2:$CM$338,$CV2,$J$2:$J$338,"F",$BB$2:$BB$338,">3") -> 12 | JG4: =COUNTIFS($CM$2:$CM$338,$CV2,$CT$2:$CT$338,"J",$BB$2:$BB$338,">3") -> 10 | JH4: =COUNTIFS($CM$2:$CM$338,$CV2,$CT$2:$CT$338,"V",$BB$2:$BB$338,">3") -> 16 | JI4: =IF(JD4<5,"",JE10-JF10) -> 2.008978676 | JJ4: 2 | JK4: 2 | JL4: =$CV4 -> 500.1002 | JM4: =SUMPRODUCT(($CM$2:$CM$338=$CV2)*($BF$2:$BF$338>3)) -> 0 | JN4: =COUNTIFS($CM$2:$CM$338,$CV2,$J$2:$J$338,"M",$BF$2:$BF$338,">3") -> 0 | JO4: =COUNTIFS($CM$2:$CM$338,$CV2,$J$2:$J$338,"F",$BF$2:$BF$338,">3") -> 0 | JP4: =COUNTIFS($CM$2:$CM$338,$CV2,$CT$2:$CT$338,"J",$BF$2:$BF$338,">3") -> 0 | JQ4: =COUNTIFS($CM$2:$CM$338,$CV2,$CT$2:$CT$338,"V",$BF$2:$BF$338,">3") -> 0 | JR4: =IF(JM4<5,"",JN10-JO10) ->  | JU4: =$CV4 -> 500.1002 | JV4: =SUMPRODUCT(($CM$2:$CM$338=$CV2)*($BJ$2:$BJ$338>3)) -> 26 | JW4: =COUNTIFS($CM$2:$CM$338,$CV2,$J$2:$J$338,"M",$BJ$2:$BJ$338,">3") -> 14 | JX4: =COUNTIFS($CM$2:$CM$338,$CV2,$J$2:$J$338,"F",$BJ$2:$BJ$338,">3") -> 12 | JY4: =COUNTIFS($CM$2:$CM$338,$CV2,$CT$2:$CT$338,"J",$BJ$2:$BJ$338,">3") -> 10 | JZ4: =COUNTIFS($CM$2:$CM$338,$CV2,$CT$2:$CT$338,"V",$BJ$2:$BJ$338,">3") -> 16 | KA4: =IF(JV4<5,"",JW10-JX10) -> 0.6477242122 | KB4: 2 | KC4: 3 | KD4: =$CV4 -> 500.1002 | KE4: =SUMPRODUCT(($CM$2:$CM$338=$CV2)*($AK$2:$AK$338>3)) -> 20 | KF4: =COUNTIFS($CM$2:$CM$338,$CV2,$J$2:$J$338,"M",$AK$2:$AK$338,">3") -> 11 | KG4: =COUNTIFS($CM$2:$CM$338,$CV2,$J$2:$J$338,"F",$AK$2:$AK$338,">3") -> 9 | KH4: =COUNTIFS($CM$2:$CM$338,$CV2,$CT$2:$CT$338,"J",$AK$2:$AK$338,">3") -> 7 | KI4: =COUNTIFS($CM$2:$CM$338,$CV2,$CT$2:$CT$338,"V",$AK$2:$AK$338,">3") -> 13 | KJ4: =IF(KE4<5,"",KF10-KG10) -> 0.5111589965 | KK4: 2 | KL4: 2 | KM4: =$CV4 -> 500.1002 | KN4: =SUMPRODUCT(($CM$2:$CM$338=$CV2)*($AO$2:$AO$338>3)) -> 0 | KO4: =COUNTIFS($CM$2:$CM$338,$CV2,$J$2:$J$338,"M",$AO$2:$AO$338,">3") -> 0 | KP4: =COUNTIFS($CM$2:$CM$338,$CV2,$J$2:$J$338,"F",$AO$2:$AO$338,">3") -> 0 | KQ4: =COUNTIFS($CM$2:$CM$338,$CV2,$CT$2:$CT$338,"J",$AO$2:$AO$338,">3") -> 0 | KR4: =COUNTIFS($CM$2:$CM$338,$CV2,$CT$2:$CT$338,"V",$AO$2:$AO$338,">3") -> 0 | KS4: =IF(KN4<5,"",KO10-KP10) ->  | KV4: =$CV4 -> 500.1002 | KW4: =SUMPRODUCT(($CM$2:$CM$338=$CV2)*($AS$2:$AS$338>3)) -> 0 | KX4: =COUNTIFS($CM$2:$CM$338,$CV2,$J$2:$J$338,"M",$AS$2:$AS$338,">3") -> 0 | KY4: =COUNTIFS($CM$2:$CM$338,$CV2,$J$2:$J$338,"F",$AS$2:$AS$338,">3") -> 0 | KZ4: =COUNTIFS($CM$2:$CM$338,$CV2,$CT$2:$CT$338,"J",$AS$2:$AS$338,">3") -> 0 | LA4: =COUNTIFS($CM$2:$CM$338,$CV2,$CT$2:$CT$338,"V",$AS$2:$AS$338,">3") -> 0 | LB4: =IF(KW4<5,"",KX10-KY10) ->  | LE4: =$CV4 -> 500.1002 | LF4: =SUMPRODUCT(($CM$2:$CM$338=$CV2)*($AW$2:$AW$338>3)) -> 25 | LG4: =COUNTIFS($CM$2:$CM$338,$CV2,$J$2:$J$338,"M",$AW$2:$AW$338,">3") -> 14 | LH4: =COUNTIFS($CM$2:$CM$338,$CV2,$J$2:$J$338,"F",$AW$2:$AW$338,">3") -> 11 | LI4: =COUNTIFS($CM$2:$CM$338,$CV2,$CT$2:$CT$338,"J",$AW$2:$AW$338,">3") -> 9 | LJ4: =COUNTIFS($CM$2:$CM$338,$CV2,$CT$2:$CT$338,"V",$AW$2:$AW$338,">3") -> 16 | LK4: =IF(LF4<5,"",LG10-LH10) -> -1.271065081 | LL4: 2 | LM4: 2 | LN4: =$CV4 -> 500.1002 | LO4: =SUMPRODUCT(($CM$2:$CM$338=$CV2)*($BA$2:$BA$338>3)) -> 26 | LP4: =COUNTIFS($CM$2:$CM$338,$CV2,$J$2:$J$338,"M",$BA$2:$BA$338,">3") -> 14 | LQ4: =COUNTIFS($CM$2:$CM$338,$CV2,$J$2:$J$338,"F",$BA$2:$BA$338,">3") -> 12 | LR4: =COUNTIFS($CM$2:$CM$338,$CV2,$CT$2:$CT$338,"J",$BA$2:$BA$338,">3") -> 10 | LS4: =COUNTIFS($CM$2:$CM$338,$CV2,$CT$2:$CT$338,"V",$BA$2:$BA$338,">3") -> 16 | LT4: =IF(LO4<5,"",LP10-LQ10) -> -2.396184063 | LU4: 2 | LV4: 3 | LW4: =$CV4 -> 500.1002 | LX4: =SUMPRODUCT(($CM$2:$CM$338=$CV2)*($BE$2:$BE$338>3)) -> 0 | LY4: =COUNTIFS($CM$2:$CM$338,$CV2,$J$2:$J$338,"M",$BE$2:$BE$338,">3") -> 0 | LZ4: =COUNTIFS($CM$2:$CM$338,$CV2,$J$2:$J$338,"F",$BE$2:$BE$338,">3") -> 0 | MA4: =COUNTIFS($CM$2:$CM$338,$CV2,$CT$2:$CT$338,"J",$BE$2:$BE$338,">3") -> 0 | MB4: =COUNTIFS($CM$2:$CM$338,$CV2,$CT$2:$CT$338,"V",$BE$2:$BE$338,">3") -> 0 | MC4: =IF(LX4<5,"",LY10-LZ10) ->  | MF4: =$CV4 -> 500.1002 | MG4: =SUMPRODUCT(($CM$2:$CM$338=$CV2)*($BI$2:$BI$338>3)) -> 2 | MH4: =COUNTIFS($CM$2:$CM$338,$CV2,$J$2:$J$338,"M",$BI$2:$BI$338,">3") -> 0 | MI4: =COUNTIFS($CM$2:$CM$338,$CV2,$J$2:$J$338,"F",$BI$2:$BI$338,">3") -> 2 | MJ4: =COUNTIFS($CM$2:$CM$338,$CV2,$CT$2:$CT$338,"J",$BI$2:$BI$338,">3") -> 0 | MK4: =COUNTIFS($CM$2:$CM$338,$CV2,$CT$2:$CT$338,"V",$BI$2:$BI$338,">3") -> 2 | ML4: =IF(MG4<5,"",MH10-MI10) ->  | MO4: =$CV4 -> 500.1002 | MP4: =SUMPRODUCT(($CM$2:$CM$338=$CV2)*($BM$2:$BM$338>3)) -> 24 | MQ4: =COUNTIFS($CM$2:$CM$338,$CV2,$J$2:$J$338,"M",$BM$2:$BM$338,">3") -> 14 | MR4: =COUNTIFS($CM$2:$CM$338,$CV2,$J$2:$J$338,"F",$BM$2:$BM$338,">3") -> 10 | MS4: =COUNTIFS($CM$2:$CM$338,$CV2,$CT$2:$CT$338,"J",$BM$2:$BM$338,">3") -> 10 | MT4: =COUNTIFS($CM$2:$CM$338,$CV2,$CT$2:$CT$338,"V",$BM$2:$BM$338,">3") -> 14 | MU4: =IF(MP4<5,"",MQ10-MR10) -> 2.095192308 | MV4: 2 | MW4: 6 | MX4: =$CV4 -> 500.1002 | MY4: =SUMPRODUCT(($CM$2:$CM$338=$CV2)*($CC$2:$CC$338>3)) -> 20 | MZ4: =COUNTIFS($CM$2:$CM$338,$CV2,$J$2:$J$338,"M",$CC$2:$CC$338,">3") -> 11 | NA4: =COUNTIFS($CM$2:$CM$338,$CV2,$J$2:$J$338,"F",$CC$2:$CC$338,">3") -> 9 | NB4: =COUNTIFS($CM$2:$CM$338,$CV2,$CT$2:$CT$338,"J",$CC$2:$CC$338,">3") -> 7 | NC4: =COUNTIFS($CM$2:$CM$338,$CV2,$CT$2:$CT$338,"V",$CC$2:$CC$338,">3") -> 13 | ND4: =IF(MY4<5,"",MZ10-NA10) -> -1.049835782 | NE4: 3 | NF4: 2 | NG4: =$CV4 -> 500.1002 | NH4: =SUMPRODUCT(($CM$2:$CM$338=$CV2)*($CD$2:$CD$338>3)) -> 0 | NI4: =COUNTIFS($CM$2:$CM$338,$CV2,$J$2:$J$338,"M",$CD$2:$CD$338,">3") -> 0 | NJ4: =COUNTIFS($CM$2:$CM$338,$CV2,$J$2:$J$338,"F",$CD$2:$CD$338,">3") -> 0 | NK4: =COUNTIFS($CM$2:$CM$338,$CV2,$CT$2:$CT$338,"J",$CD$2:$CD$338,">3") -> 0 | NL4: =COUNTIFS($CM$2:$CM$338,$CV2,$CT$2:$CT$338,"V",$CD$2:$CD$338,">3") -> 0 | NM4: =IF(NH4<5,"",NI10-NJ10) ->  | NP4: =$CV4 -> 500.1002 | NQ4: =SUMPRODUCT(($CM$2:$CM$338=$CV2)*($CE$2:$CE$338>3)) -> 25 | NR4: =COUNTIFS($CM$2:$CM$338,$CV2,$J$2:$J$338,"M",$CE$2:$CE$338,">3") -> 14 | NS4: =COUNTIFS($CM$2:$CM$338,$CV2,$J$2:$J$338,"F",$CE$2:$CE$338,">3") -> 11 | NT4: =COUNTIFS($CM$2:$CM$338,$CV2,$CT$2:$CT$338,"J",$CE$2:$CE$338,">3") -> 9 | NU4: =COUNTIFS($CM$2:$CM$338,$CV2,$CT$2:$CT$338,"V",$CE$2:$CE$338,">3") -> 16 | NV4: =IF(NQ4<5,"",NR10-NS10) ->  | NW4: 2 | NX4: 3 | NY4: =$CV4 -> 500.1002 | NZ4: =SUMPRODUCT(($CM$2:$CM$338=$CV2)*($CF$2:$CF$338>3)) -> 25 | OA4: =COUNTIFS($CM$2:$CM$338,$CV2,$J$2:$J$338,"M",$CF$2:$CF$338,">3") -> 14 | OB4: =COUNTIFS($CM$2:$CM$338,$CV2,$J$2:$J$338,"F",$CF$2:$CF$338,">3") -> 11 | OC4: =COUNTIFS($CM$2:$CM$338,$CV2,$CT$2:$CT$338,"J",$CF$2:$CF$338,">3") -> 9 | OD4: =COUNTIFS($CM$2:$CM$338,$CV2,$CT$2:$CT$338,"V",$CF$2:$CF$338,">3") -> 16 | OE4: =IF(NZ4<5,"",OA10-OB10) -> -1.498146017 | OF4: 2 | OG4: 2 | OH4: =$CV4 -> 500.1002 | OI4: =SUMPRODUCT(($CM$2:$CM$338=$CV2)*($CG$2:$CG$338>3)) -> 26 | OJ4: =COUNTIFS($CM$2:$CM$338,$CV2,$J$2:$J$338,"M",$CG$2:$CG$338,">3") -> 14 | OK4: =COUNTIFS($CM$2:$CM$338,$CV2,$J$2:$J$338,"F",$CG$2:$CG$338,">3") -> 12 | OL4: =COUNTIFS($CM$2:$CM$338,$CV2,$CT$2:$CT$338,"J",$CG$2:$CG$338,">3") -> 10 | OM4: =COUNTIFS($CM$2:$CM$338,$CV2,$CT$2:$CT$338,"V",$CG$2:$CG$338,">3") -> 16 | ON4: =IF(OI4<5,"",OJ10-OK10) -> -1.085858586 | OO4: 2 | OP4: 3 | OQ4: =$CV4 -> 500.1002 | OR4: =SUMPRODUCT(($CM$2:$CM$338=$CV2)*($CH$2:$CH$338>3)) -> 0 | OS4: =COUNTIFS($CM$2:$CM$338,$CV2,$J$2:$J$338,"M",$CH$2:$CH$338,">3") -> 0 | OT4: =COUNTIFS($CM$2:$CM$338,$CV2,$J$2:$J$338,"F",$CH$2:$CH$338,">3") -> 0 | OU4: =COUNTIFS($CM$2:$CM$338,$CV2,$CT$2:$CT$338,"J",$CH$2:$CH$338,">3") -> 0 | OV4: =COUNTIFS($CM$2:$CM$338,$CV2,$CT$2:$CT$338,"V",$CH$2:$CH$338,">3") -> 0 | OW4: =IF(OR4<5,"",OS10-OT10) ->  | OZ4: =$CV4 -> 500.1002 | PA4: =SUMPRODUCT(($CM$2:$CM$338=$CV2)*($CI$2:$CI$338>3)) -> 26 | PB4: =COUNTIFS($CM$2:$CM$338,$CV2,$J$2:$J$338,"M",$CI$2:$CI$338,">3") -> 14 | PC4: =COUNTIFS($CM$2:$CM$338,$CV2,$J$2:$J$338,"F",$CI$2:$CI$338,">3") -> 12 | PD4: =COUNTIFS($CM$2:$CM$338,$CV2,$CT$2:$CT$338,"J",$CI$2:$CI$338,">3") -> 10 | PE4: =COUNTIFS($CM$2:$CM$338,$CV2,$CT$2:$CT$338,"V",$CI$2:$CI$338,">3") -> 16 | PF4: =IF(PA4<5,"",PB10-PC10) -> -2.480421107 | PG4: 2 | PH4: 3
A5: 2010 | B5: 001 | C5: 501 | F5: 0 | G5: 1999-11-18 | J5: F | K5: 75 | L5: 80 | M5: 0 | N5: 70 | O5: 75 | P5: 75 | Q5: 70 | R5: 70 | S5: 75 | T5: 70 | U5: 65 | V5: 70 | W5: 0 | X5: 0 | Y5: 0 | Z5: 0 | AA5: 70 | AB5: 70 | AC5: 0 | AD5: 70 | AE5: 75 | AF5: 65 | AG5: 65 | AH5: 80 | AI5: 80 | AJ5: 80 | AK5: 65 | AL5: 80 | AM5: 0 | AN5: 0 | AO5: 0 | AP5: 0 | AQ5: 75 | AR5: 75 | AS5: 0 | AT5: 75 | AU5: 75 | AV5: 75 | AW5: 60 | AX5: 60 | AY5: 70 | AZ5: 70 | BA5: 60 | BB5: 55 | BC5: 0 | BD5: 0 | BE5: 0 | BF5: 0 | BG5: 68 | BH5: 72 | BI5: 0 | BJ5: 60 | BK5: 75 | BL5: 66 | BM5: 82 | BN5: 53 | BO5: 75 | BP5: 75 | BQ5: 81 | BR5: 66 | BS5: 80 | BT5: 79 | BU5: 72 | BV5: 68 | BX5: 48.33333333 | BY5: 72.5 | BZ5: 70 | CA5: 70 | CB5: 71.25 | CC5: 76.25 | CD5: 0 | CE5: 75 | CF5: 67.5 | CG5: =IF(AZ5=0,0,IF(BA5=0,AVERAGE(AZ5,AY5,BB5),AVERAGE(AY5:BB5))) -> 63.75 | CH5: 0 | CI5: 70.5 | CM5: 001501 | CN5: 0.100 | CO5: 50 | CP5: =Tableau_SSRSMSA03_BI_Integration_STEPH_2010[[#This Row],[DAT_NAISSANCE_ELEVE]] -> 1999-11-18 | CQ5: 2009-09-30 | CR5: 3604 | CS5: 9.867214237 | CT5: =IF(AND(LEFT(CO5,1)="1",CS5>5.5),"V",IF(AND(LEFT(CO5,1)="2",CS5>6.5),"V",IF(AND(LEFT(CO5,1)="3",CS5>7.5),"V",IF(AND(LEFT(CO5,1)="4",CS5>8.5),"V",IF(AND(LEFT(CO5,1)="5",CS5>9.5),"V",IF(AND(LEFT(CO5,1)="6",CS5>10.5),"V","J")))))) -> V | CU5: =IF(AJ5=0,0,IF(BH5=0,0,1)) -> 1 | CV5: =DC11&DC12&3 -> 500.1003 | CW5: % moyenne | CX5: =IF(CX4<5,"",SUMPRODUCT((($CM$2:$CM$338=$CV2)*($AJ$2:$AJ$338>3)*($AJ$2:$AJ$338)/CX4))) -> 80 | CY5: =IF(CX4<5,"",SUMPRODUCT(($CM$2:$CM$338=$CV2)*($J$2:$J$338="M")*($AJ$2:$AJ$338>3)*($AJ$2:$AJ$338))/CY4) -> 77.72727273 | CZ5: =IF(CX4<5,"",SUMPRODUCT(($CM$2:$CM$338=$CV2)*($J$2:$J$338="F")*($AJ$2:$AJ$338>3)*($AJ$2:$AJ$338))/CZ4) -> 82.77777778 | DA5: =IF(CX4<5,"",SUMPRODUCT(($CM$2:$CM$338=$CV2)*($CT$2:$CT$338="J")*($AJ$2:$AJ$338>3)*($AJ$2:$AJ$338))/DA4) -> 79.28571429 | DB5: =IF(CX4<5,"",SUMPRODUCT(($CM$2:$CM$338=$CV2)*($CT$2:$CT$338="V")*($AJ$2:$AJ$338>3)*($AJ$2:$AJ$338))/DB4) -> 80.38461538 | DC5: =IF(CX4<5,"",CY12-CZ12) -> -2.371094351 | DD5: 2 | DE5: 2 | DF5: 500.1003 | DG5: =IF(DG4<5,"",SUMPRODUCT((($CM$2:$CM$338=$CV2)*($AN$2:$AN$338>3)*($AN$2:$AN$338)/DG4))) ->  | DH5: =IF(DG4<5,"",SUMPRODUCT(($CM$2:$CM$338=$CV2)*($J$2:$J$338="M")*($AN$2:$AN$338>3)*($AN$2:$AN$338))/DH4) ->  | DI5: =IF(DG4<5,"",SUMPRODUCT(($CM$2:$CM$338=$CV2)*($J$2:$J$338="F")*($AN$2:$AN$338>3)*($AN$2:$AN$338))/DI4) ->  | DJ5: =IF(DG4<5,"",SUMPRODUCT(($CM$2:$CM$338=$CV2)*($CT$2:$CT$338="J")*($AN$2:$AN$338>3)*($AN$2:$AN$338))/DJ4) ->  | DK5: =IF(DG4<5,"",SUMPRODUCT(($CM$2:$CM$338=$CV2)*($CT$2:$CT$338="V")*($AN$2:$AN$338>3)*($AN$2:$AN$338))/DK4) ->  | DL5: =IF(DG4<5,"",DH12-DI12) ->  | DO5: 500.1003 | DP5: =IF(DP4<5,"",SUMPRODUCT((($CM$2:$CM$338=$CV2)*($AR$2:$AR$338>3)*($AR$2:$AR$338)/DP4))) -> 77 | DQ5: =IF(DP4<5,"",SUMPRODUCT(($CM$2:$CM$338=$CV2)*($J$2:$J$338="M")*($AR$2:$AR$338>3)*($AR$2:$AR$338))/DQ4) -> 75 | DR5: =IF(DP4<5,"",SUMPRODUCT(($CM$2:$CM$338=$CV2)*($J$2:$J$338="F")*($AR$2:$AR$338>3)*($AR$2:$AR$338))/DR4) -> 79.54545455 | DS5: =IF(DP4<5,"",SUMPRODUCT(($CM$2:$CM$338=$CV2)*($CT$2:$CT$338="J")*($AR$2:$AR$338>3)*($AR$2:$AR$338))/DS4) -> 74.44444444 | DT5: =IF(DP4<5,"",SUMPRODUCT(($CM$2:$CM$338=$CV2)*($CT$2:$CT$338="V")*($AR$2:$AR$338>3)*($AR$2:$AR$338))/DT4) -> 78.4375 | DU5: =IF(DP4<5,"",DQ12-DR12) -> -1.528674761 | DV5: 2 | DW5: 2 | DX5: 500.1003 | DY5: =IF(DY4<5,"",SUMPRODUCT((($CM$2:$CM$338=$CV2)*($AV$2:$AV$338>3)*($AV$2:$AV$338)/DY4))) -> 76.8 | DZ5: =IF(DY4<5,"",SUMPRODUCT(($CM$2:$CM$338=$CV2)*($J$2:$J$338="M")*($AV$2:$AV$338>3)*($AV$2:$AV$338))/DZ4) -> 75.71428571 | EA5: =IF(DY4<5,"",SUMPRODUCT(($CM$2:$CM$338=$CV2)*($J$2:$J$338="F")*($AV$2:$AV$338>3)*($AV$2:$AV$338))/EA4) -> 78.18181818 | EB5: =IF(DY4<5,"",SUMPRODUCT(($CM$2:$CM$338=$CV2)*($CT$2:$CT$338="J")*($AV$2:$AV$338>3)*($AV$2:$AV$338))/EB4) -> 72.77777778 | EC5: =IF(DY4<5,"",SUMPRODUCT(($CM$2:$CM$338=$CV2)*($CT$2:$CT$338="V")*($AV$2:$AV$338>3)*($AV$2:$AV$338))/EC4) -> 79.0625 | ED5: =IF(DY4<5,"",DZ12-EA12) -> -1.360439841 | EE5: 3 | EF5: 2 | EG5: 500.1003 | EH5: =IF(EH4<5,"",SUMPRODUCT((($CM$2:$CM$338=$CV2)*($AZ$2:$AZ$338>3)*($AZ$2:$AZ$338)/EH4))) -> 75.38461538 | EI5: =IF(EH4<5,"",SUMPRODUCT(($CM$2:$CM$338=$CV2)*($J$2:$J$338="M")*($AZ$2:$AZ$338>3)*($AZ$2:$AZ$338))/EI4) -> 75.71428571 | EJ5: =IF(EH4<5,"",SUMPRODUCT(($CM$2:$CM$338=$CV2)*($J$2:$J$338="F")*($AZ$2:$AZ$338>3)*($AZ$2:$AZ$338))/EJ4) -> 75 | EK5: =IF(EH4<5,"",SUMPRODUCT(($CM$2:$CM$338=$CV2)*($CT$2:$CT$338="J")*($AZ$2:$AZ$338>3)*($AZ$2:$AZ$338))/EK4) -> 73.5 | EL5: =IF(EH4<5,"",SUMPRODUCT(($CM$2:$CM$338=$CV2)*($CT$2:$CT$338="V")*($AZ$2:$AZ$338>3)*($AZ$2:$AZ$338))/EL4) -> 76.5625 | EM5: =IF(EH4<5,"",EI12-EJ12) -> -0.544332211 | EN5: 3 | EO5: 3 | EP5: 500.1003 | EQ5: =IF(EQ4<5,"",SUMPRODUCT((($CM$2:$CM$338=$CV2)*($BD$2:$BD$338>3)*($BD$2:$BD$338)/EQ4))) ->  | ER5: =IF(EQ4<5,"",SUMPRODUCT(($CM$2:$CM$338=$CV2)*($J$2:$J$338="M")*($BD$2:$BD$338>3)*($BD$2:$BD$338))/ER4) ->  | ES5: =IF(EQ4<5,"",SUMPRODUCT(($CM$2:$CM$338=$CV2)*($J$2:$J$338="F")*($BD$2:$BD$338>3)*($BD$2:$BD$338))/ES4) ->  | ET5: =IF(EQ4<5,"",SUMPRODUCT(($CM$2:$CM$338=$CV2)*($CT$2:$CT$338="J")*($BD$2:$BD$338>3)*($BD$2:$BD$338))/ET4) ->  | EU5: =IF(EQ4<5,"",SUMPRODUCT(($CM$2:$CM$338=$CV2)*($CT$2:$CT$338="V")*($BD$2:$BD$338>3)*($BD$2:$BD$338))/EU4) ->  | EV5: =IF(EQ4<5,"",ER12-ES12) ->  | EY5: 500.1003 | EZ5: =IF(EZ4<5,"",SUMPRODUCT((($CM$2:$CM$338=$CV2)*($BH$2:$BH$338>3)*($BH$2:$BH$338)/EZ4))) -> 74.30769231 | FA5: =IF(EZ4<5,"",SUMPRODUCT(($CM$2:$CM$338=$CV2)*($J$2:$J$338="M")*($BH$2:$BH$338>3)*($BH$2:$BH$338))/FA4) -> 72.35714286 | FB5: =IF(EZ4<5,"",SUMPRODUCT(($CM$2:$CM$338=$CV2)*($J$2:$J$338="F")*($BH$2:$BH$338>3)*($BH$2:$BH$338))/FB4) -> 76.58333333 | FC5: =IF(EZ4<5,"",SUMPRODUCT(($CM$2:$CM$338=$CV2)*($CT$2:$CT$338="J")*($BH$2:$BH$338>3)*($BH$2:$BH$338))/FC4) -> 74 | FD5: =IF(EZ4<5,"",SUMPRODUCT(($CM$2:$CM$338=$CV2)*($CT$2:$CT$338="V")*($BH$2:$BH$338>3)*($BH$2:$BH$338))/FD4) -> 74.5 | FE5: =IF(EZ4<5,"",FA12-FB12) -> -0.9543495825 | FF5: 2 | FG5: 3 | FH5: 500.1003 | FI5: =IF(FI4<5,"",SUMPRODUCT((($CM$2:$CM$338=$CV2)*($AI$2:$AI$338>3)*($AI$2:$AI$338)/FI4))) -> 78.75 | FJ5: =IF(FI4<5,"",SUMPRODUCT(($CM$2:$CM$338=$CV2)*($J$2:$J$338="M")*($AI$2:$AI$338>3)*($AI$2:$AI$338))/FJ4) -> 77.27272727 | FK5: =IF(FI4<5,"",SUMPRODUCT(($CM$2:$CM$338=$CV2)*($J$2:$J$338="F")*($AI$2:$AI$338>3)*($AI$2:$AI$338))/FK4) -> 80.55555556 | FL5: =IF(FI4<5,"",SUMPRODUCT(($CM$2:$CM$338=$CV2)*($CT$2:$CT$338="J")*($AI$2:$AI$338>3)*($AI$2:$AI$338))/FL4) -> 76.42857143 | FM5: =IF(FI4<5,"",SUMPRODUCT(($CM$2:$CM$338=$CV2)*($CT$2:$CT$338="V")*($AI$2:$AI$338>3)*($AI$2:$AI$338))/FM4) -> 80 | FN5: =IF(FI4<5,"",FJ12-FK12) -> -2.352624288 | FO5: 2 | FP5: 2 | FQ5: 500.1003 | FR5: =IF(FR4<5,"",SUMPRODUCT((($CM$2:$CM$338=$CV2)*($AM$2:$AM$338>3)*($AM$2:$AM$338)/FR4))) ->  | FS5: =IF(FR4<5,"",SUMPRODUCT(($CM$2:$CM$338=$CV2)*($J$2:$J$338="M")*($AM$2:$AM$338>3)*($AM$2:$AM$338))/FS4) ->  | FT5: =IF(FR4<5,"",SUMPRODUCT(($CM$2:$CM$338=$CV2)*($J$2:$J$338="F")*($AM$2:$AM$338>3)*($AM$2:$AM$338))/FT4) ->  | FU5: =IF(FR4<5,"",SUMPRODUCT(($CM$2:$CM$338=$CV2)*($CT$2:$CT$338="J")*($AM$2:$AM$338>3)*($AM$2:$AM$338))/FU4) ->  | FV5: =IF(FR4<5,"",SUMPRODUCT(($CM$2:$CM$338=$CV2)*($CT$2:$CT$338="V")*($AM$2:$AM$338>3)*($AM$2:$AM$338))/FV4) ->  | FW5: =IF(FR4<5,"",FS12-FT12) ->  | FZ5: 500.1003 | GA5: =IF(GA4<5,"",SUMPRODUCT((($CM$2:$CM$338=$CV2)*($AQ$2:$AQ$338>3)*($AQ$2:$AQ$338)/GA4))) -> 68.6 | GB5: =IF(GA4<5,"",SUMPRODUCT(($CM$2:$CM$338=$CV2)*($J$2:$J$338="M")*($AQ$2:$AQ$338>3)*($AQ$2:$AQ$338))/GB4) -> 66.42857143 | GC5: =IF(GA4<5,"",SUMPRODUCT(($CM$2:$CM$338=$CV2)*($J$2:$J$338="F")*($AQ$2:$AQ$338>3)*($AQ$2:$AQ$338))/GC4) -> 71.36363636 | GD5: =IF(GA4<5,"",SUMPRODUCT(($CM$2:$CM$338=$CV2)*($CT$2:$CT$338="J")*($AQ$2:$AQ$338>3)*($AQ$2:$AQ$338))/GD4) -> 66.66666667 | GE5: =IF(GA4<5,"",SUMPRODUCT(($CM$2:$CM$338=$CV2)*($CT$2:$CT$338="V")*($AQ$2:$AQ$338>3)*($AQ$2:$AQ$338))/GE4) -> 69.6875 | GF5: =IF(GA4<5,"",GB12-GC12) -> -4.106819943 | GG5: 2 | GH5: 2 | GI5: 500.1003 | GJ5: =IF(GJ4<5,"",SUMPRODUCT((($CM$2:$CM$338=$CV2)*($AU$2:$AU$338>3)*($AU$2:$AU$338)/GJ4))) -> 75.4 | GK5: =IF(GJ4<5,"",SUMPRODUCT(($CM$2:$CM$338=$CV2)*($J$2:$J$338="M")*($AU$2:$AU$338>3)*($AU$2:$AU$338))/GK4) -> 72.5 | GL5: =IF(GJ4<5,"",SUMPRODUCT(($CM$2:$CM$338=$CV2)*($J$2:$J$338="F")*($AU$2:$AU$338>3)*($AU$2:$AU$338))/GL4) -> 79.09090909 | GM5: =IF(GJ4<5,"",SUMPRODUCT(($CM$2:$CM$338=$CV2)*($CT$2:$CT$338="J")*($AU$2:$AU$338>3)*($AU$2:$AU$338))/GM4) -> 71.66666667 | GN5: =IF(GJ4<5,"",SUMPRODUCT(($CM$2:$CM$338=$CV2)*($CT$2:$CT$338="V")*($AU$2:$AU$338>3)*($AU$2:$AU$338))/GN4) -> 77.5 | GO5: =IF(GJ4<5,"",GK12-GL12) -> -3.955632272 | GP5: 2 | GQ5: 2 | GR5: 500.1003 | GS5: =IF(GS4<5,"",SUMPRODUCT((($CM$2:$CM$338=$CV2)*($AY$2:$AY$338>3)*($AY$2:$AY$338)/GS4))) -> 74.42307692 | GT5: =IF(GS4<5,"",SUMPRODUCT(($CM$2:$CM$338=$CV2)*($J$2:$J$338="M")*($AY$2:$AY$338>3)*($AY$2:$AY$338))/GT4) -> 71.78571429 | GU5: =IF(GS4<5,"",SUMPRODUCT(($CM$2:$CM$338=$CV2)*($J$2:$J$338="F")*($AY$2:$AY$338>3)*($AY$2:$AY$338))/GU4) -> 77.5 | GV5: =IF(GS4<5,"",SUMPRODUCT(($CM$2:$CM$338=$CV2)*($CT$2:$CT$338="J")*($AY$2:$AY$338>3)*($AY$2:$AY$338))/GV4) -> 71 | GW5: =IF(GS4<5,"",SUMPRODUCT(($CM$2:$CM$338=$CV2)*($CT$2:$CT$338="V")*($AY$2:$AY$338>3)*($AY$2:$AY$338))/GW4) -> 76.5625 | GX5: =IF(GS4<5,"",GT12-GU12) -> -3.411896745 | GY5: 3 | GZ5: 3 | HA5: 500.1003 | HB5: =IF(HB4<5,"",SUMPRODUCT((($CM$2:$CM$338=$CV2)*($BC$2:$BC$338>3)*($BC$2:$BC$338)/HB4))) ->  | HC5: =IF(HB4<5,"",SUMPRODUCT(($CM$2:$CM$338=$CV2)*($J$2:$J$338="M")*($BC$2:$BC$338>3)*($BC$2:$BC$338))/HC4) ->  | HD5: =IF(HB4<5,"",SUMPRODUCT(($CM$2:$CM$338=$CV2)*($J$2:$J$338="F")*($BC$2:$BC$338>3)*($BC$2:$BC$338))/HD4) ->  | HE5: =IF(HB4<5,"",SUMPRODUCT(($CM$2:$CM$338=$CV2)*($CT$2:$CT$338="J")*($BC$2:$BC$338>3)*($BC$2:$BC$338))/HE4) ->  | HF5: =IF(HB4<5,"",SUMPRODUCT(($CM$2:$CM$338=$CV2)*($CT$2:$CT$338="V")*($BC$2:$BC$338>3)*($BC$2:$BC$338))/HF4) ->  | HG5: =IF(HB4<5,"",HC12-HD12) ->  | HJ5: 500.1003 | HK5: =IF(HK4<5,"",SUMPRODUCT((($CM$2:$CM$338=$CV2)*($BG$2:$BG$338>3)*($BG$2:$BG$338)/HK4))) -> 73.69230769 | HL5: =IF(HK4<5,"",SUMPRODUCT(($CM$2:$CM$338=$CV2)*($J$2:$J$338="M")*($BG$2:$BG$338>3)*($BG$2:$BG$338))/HL4) -> 71.92857143 | HM5: =IF(HK4<5,"",SUMPRODUCT(($CM$2:$CM$338=$CV2)*($J$2:$J$338="F")*($BG$2:$BG$338>3)*($BG$2:$BG$338))/HM4) -> 75.75 | HN5: =IF(HK4<5,"",SUMPRODUCT(($CM$2:$CM$338=$CV2)*($CT$2:$CT$338="J")*($BG$2:$BG$338>3)*($BG$2:$BG$338))/HN4) -> 70.3 | HO5: =IF(HK4<5,"",SUMPRODUCT(($CM$2:$CM$338=$CV2)*($CT$2:$CT$338="V")*($BG$2:$BG$338>3)*($BG$2:$BG$338))/HO4) -> 75.8125 | HP5: =IF(HK4<5,"",HL12-HM12) -> -4.043630487 | HQ5: 2 | HR5: 3 | HS5: 500.1003 | HT5: =IF(HT4<5,"",SUMPRODUCT((($CM$2:$CM$338=$CV2)*($AL$2:$AL$338>3)*($AL$2:$AL$338)/HT4))) -> 80.68181818 | HU5: =IF(HT4<5,"",SUMPRODUCT(($CM$2:$CM$338=$CV2)*($J$2:$J$338="M")*($AL$2:$AL$338>3)*($AL$2:$AL$338))/HU4) -> 81.25 | HV5: =IF(HT4<5,"",SUMPRODUCT(($CM$2:$CM$338=$CV2)*($J$2:$J$338="F")*($AL$2:$AL$338>3)*($AL$2:$AL$338))/HV4) -> 80 | HW5: =IF(HT4<5,"",SUMPRODUCT(($CM$2:$CM$338=$CV2)*($CT$2:$CT$338="J")*($AL$2:$AL$338>3)*($AL$2:$AL$338))/HW4) -> 79.28571429 | HX5: =IF(HT4<5,"",SUMPRODUCT(($CM$2:$CM$338=$CV2)*($CT$2:$CT$338="V")*($AL$2:$AL$338>3)*($AL$2:$AL$338))/HX4) -> 81.33333333 | HY5: =IF(HT4<5,"",HU12-HV12) -> 0.01321651322 | HZ5: 3 | IA5: 2 | IB5: 500.1003 | IC5: =IF(IC4<5,"",SUMPRODUCT((($CM$2:$CM$338=$CV2)*($AP$2:$AP$338>3)*($AP$2:$AP$338)/IC4))) ->  | ID5: =IF(IC4<5,"",SUMPRODUCT(($CM$2:$CM$338=$CV2)*($J$2:$J$338="M")*($AP$2:$AP$338>3)*($AP$2:$AP$338))/ID4) ->  | IE5: =IF(IC4<5,"",SUMPRODUCT(($CM$2:$CM$338=$CV2)*($J$2:$J$338="F")*($AP$2:$AP$338>3)*($AP$2:$AP$338))/IE4) ->  | IF5: =IF(IC4<5,"",SUMPRODUCT(($CM$2:$CM$338=$CV2)*($CT$2:$CT$338="J")*($AP$2:$AP$338>3)*($AP$2:$AP$338))/IF4) ->  | IG5: =IF(IC4<5,"",SUMPRODUCT(($CM$2:$CM$338=$CV2)*($CT$2:$CT$338="V")*($AP$2:$AP$338>3)*($AP$2:$AP$338))/IG4) ->  | IH5: =IF(IC4<5,"",ID12-IE12) ->  | IK5: 500.1003 | IL5: =IF(IL4<5,"",SUMPRODUCT((($CM$2:$CM$338=$CV2)*($AT$2:$AT$338>3)*($AT$2:$AT$338)/IL4))) -> 75.4 | IM5: =IF(IL4<5,"",SUMPRODUCT(($CM$2:$CM$338=$CV2)*($J$2:$J$338="M")*($AT$2:$AT$338>3)*($AT$2:$AT$338))/IM4) -> 78.21428571 | IN5: =IF(IL4<5,"",SUMPRODUCT(($CM$2:$CM$338=$CV2)*($J$2:$J$338="F")*($AT$2:$AT$338>3)*($AT$2:$AT$338))/IN4) -> 71.81818182 | IO5: =IF(IL4<5,"",SUMPRODUCT(($CM$2:$CM$338=$CV2)*($CT$2:$CT$338="J")*($AT$2:$AT$338>3)*($AT$2:$AT$338))/IO4) -> 73.33333333 | IP5: =IF(IL4<5,"",SUMPRODUCT(($CM$2:$CM$338=$CV2)*($CT$2:$CT$338="V")*($AT$2:$AT$338>3)*($AT$2:$AT$338))/IP4) -> 76.5625 | IQ5: =IF(IL4<5,"",IM12-IN12) -> 0.6858692844 | IR5: 2 | IS5: 2 | IT5: 500.1003 | IU5: =IF(IU4<5,"",SUMPRODUCT((($CM$2:$CM$338=$CV2)*($AX$2:$AX$338>3)*($AX$2:$AX$338)/IU4))) -> 76.2 | IV5: =IF(IU4<5,"",SUMPRODUCT(($CM$2:$CM$338=$CV2)*($J$2:$J$338="M")*($AX$2:$AX$338>3)*($AX$2:$AX$338))/IV4) -> 78.21428571 | IW5: =IF(IU4<5,"",SUMPRODUCT(($CM$2:$CM$338=$CV2)*($J$2:$J$338="F")*($AX$2:$AX$338>3)*($AX$2:$AX$338))/IW4) -> 73.63636364 | IX5: =IF(IU4<5,"",SUMPRODUCT(($CM$2:$CM$338=$CV2)*($CT$2:$CT$338="J")*($AX$2:$AX$338>3)*($AX$2:$AX$338))/IX4) -> 73.33333333 | IY5: =IF(IU4<5,"",SUMPRODUCT(($CM$2:$CM$338=$CV2)*($CT$2:$CT$338="V")*($AX$2:$AX$338>3)*($AX$2:$AX$338))/IY4) -> 77.8125 | IZ5: =IF(IU4<5,"",IV12-IW12) -> 0.5945531262 | JA5: 3 | JB5: 6 | JC5: 500.1003 | JD5: =IF(JD4<5,"",SUMPRODUCT((($CM$2:$CM$338=$CV2)*($BB$2:$BB$338>3)*($BB$2:$BB$338)/JD4))) -> 70 | JE5: =IF(JD4<5,"",SUMPRODUCT(($CM$2:$CM$338=$CV2)*($J$2:$J$338="M")*($BB$2:$BB$338>3)*($BB$2:$BB$338))/JE4) -> 72.85714286 | JF5: =IF(JD4<5,"",SUMPRODUCT(($CM$2:$CM$338=$CV2)*($J$2:$J$338="F")*($BB$2:$BB$338>3)*($BB$2:$BB$338))/JF4) -> 66.66666667 | JG5: =IF(JD4<5,"",SUMPRODUCT(($CM$2:$CM$338=$CV2)*($CT$2:$CT$338="J")*($BB$2:$BB$338>3)*($BB$2:$BB$338))/JG4) -> 65 | JH5: =IF(JD4<5,"",SUMPRODUCT(($CM$2:$CM$338=$CV2)*($CT$2:$CT$338="V")*($BB$2:$BB$338>3)*($BB$2:$BB$338))/JH4) -> 73.125 | JI5: =IF(JD4<5,"",JE12-JF12) -> 2.008978676 | JJ5: 3 | JK5: 4 | JL5: 500.1003 | JM5: =IF(JM4<5,"",SUMPRODUCT((($CM$2:$CM$338=$CV2)*($BF$2:$BF$338>3)*($BF$2:$BF$338)/JM4))) ->  | JN5: =IF(JM4<5,"",SUMPRODUCT(($CM$2:$CM$338=$CV2)*($J$2:$J$338="M")*($BF$2:$BF$338>3)*($BF$2:$BF$338))/JN4) ->  | JO5: =IF(JM4<5,"",SUMPRODUCT(($CM$2:$CM$338=$CV2)*($J$2:$J$338="F")*($BF$2:$BF$338>3)*($BF$2:$BF$338))/JO4) ->  | JP5: =IF(JM4<5,"",SUMPRODUCT(($CM$2:$CM$338=$CV2)*($CT$2:$CT$338="J")*($BF$2:$BF$338>3)*($BF$2:$BF$338))/JP4) ->  | JQ5: =IF(JM4<5,"",SUMPRODUCT(($CM$2:$CM$338=$CV2)*($CT$2:$CT$338="V")*($BF$2:$BF$338>3)*($BF$2:$BF$338))/JQ4) ->  | JR5: =IF(JM4<5,"",JN12-JO12) ->  | JU5: 500.1003 | JV5: =IF(JV4<5,"",SUMPRODUCT((($CM$2:$CM$338=$CV2)*($BJ$2:$BJ$338>3)*($BJ$2:$BJ$338)/JV4))) -> 72.65384615 | JW5: =IF(JV4<5,"",SUMPRODUCT(($CM$2:$CM$338=$CV2)*($J$2:$J$338="M")*($BJ$2:$BJ$338>3)*($BJ$2:$BJ$338))/JW4) -> 72.85714286 | JX5: =IF(JV4<5,"",SUMPRODUCT(($CM$2:$CM$338=$CV2)*($J$2:$J$338="F")*($BJ$2:$BJ$338>3)*($BJ$2:$BJ$338))/JX4) -> 72.41666667 | JY5: =IF(JV4<5,"",SUMPRODUCT(($CM$2:$CM$338=$CV2)*($CT$2:$CT$338="J")*($BJ$2:$BJ$338>3)*($BJ$2:$BJ$338))/JY4) -> 67.5 | JZ5: =IF(JV4<5,"",SUMPRODUCT(($CM$2:$CM$338=$CV2)*($CT$2:$CT$338="V")*($BJ$2:$BJ$338>3)*($BJ$2:$BJ$338))/JZ4) -> 75.875 | KA5: =IF(JV4<5,"",JW12-JX12) -> 0.6477242122 | KB5: 3 | KC5: 6 | KD5: 500.1003 | KE5: =IF(KE4<5,"",SUMPRODUCT((($CM$2:$CM$338=$CV2)*($AK$2:$AK$338>3)*($AK$2:$AK$338)/KE4))) -> 77 | KF5: =IF(KE4<5,"",SUMPRODUCT(($CM$2:$CM$338=$CV2)*($J$2:$J$338="M")*($AK$2:$AK$338>3)*($AK$2:$AK$338))/KF4) -> 77.72727273 | KG5: =IF(KE4<5,"",SUMPRODUCT(($CM$2:$CM$338=$CV2)*($J$2:$J$338="F")*($AK$2:$AK$338>3)*($AK$2:$AK$338))/KG4) -> 76.11111111 | KH5: =IF(KE4<5,"",SUMPRODUCT(($CM$2:$CM$338=$CV2)*($CT$2:$CT$338="J")*($AK$2:$AK$338>3)*($AK$2:$AK$338))/KH4) -> 82.14285714 | KI5: =IF(KE4<5,"",SUMPRODUCT(($CM$2:$CM$338=$CV2)*($CT$2:$CT$338="V")*($AK$2:$AK$338>3)*($AK$2:$AK$338))/KI4) -> 74.23076923 | KJ5: =IF(KE4<5,"",KF12-KG12) -> 0.5111589965 | KK5: 3 | KL5: 6 | KM5: 500.1003 | KN5: =IF(KN4<5,"",SUMPRODUCT((($CM$2:$CM$338=$CV2)*($AO$2:$AO$338>3)*($AO$2:$AO$338)/KN4))) ->  | KO5: =IF(KN4<5,"",SUMPRODUCT(($CM$2:$CM$338=$CV2)*($J$2:$J$338="M")*($AO$2:$AO$338>3)*($AO$2:$AO$338))/KO4) ->  | KP5: =IF(KN4<5,"",SUMPRODUCT(($CM$2:$CM$338=$CV2)*($J$2:$J$338="F")*($AO$2:$AO$338>3)*($AO$2:$AO$338))/KP4) ->  | KQ5: =IF(KN4<5,"",SUMPRODUCT(($CM$2:$CM$338=$CV2)*($CT$2:$CT$338="J")*($AO$2:$AO$338>3)*($AO$2:$AO$338))/KQ4) ->  | KR5: =IF(KN4<5,"",SUMPRODUCT(($CM$2:$CM$338=$CV2)*($CT$2:$CT$338="V")*($AO$2:$AO$338>3)*($AO$2:$AO$338))/KR4) ->  | KS5: =IF(KN4<5,"",KO12-KP12) ->  | KV5: 500.1003 | KW5: =IF(KW4<5,"",SUMPRODUCT((($CM$2:$CM$338=$CV2)*($AS$2:$AS$338>3)*($AS$2:$AS$338)/KW4))) ->  | KX5: =IF(KW4<5,"",SUMPRODUCT(($CM$2:$CM$338=$CV2)*($J$2:$J$338="M")*($AS$2:$AS$338>3)*($AS$2:$AS$338))/KX4) ->  | KY5: =IF(KW4<5,"",SUMPRODUCT(($CM$2:$CM$338=$CV2)*($J$2:$J$338="F")*($AS$2:$AS$338>3)*($AS$2:$AS$338))/KY4) ->  | KZ5: =IF(KW4<5,"",SUMPRODUCT(($CM$2:$CM$338=$CV2)*($CT$2:$CT$338="J")*($AS$2:$AS$338>3)*($AS$2:$AS$338))/KZ4) ->  | LA5: =IF(KW4<5,"",SUMPRODUCT(($CM$2:$CM$338=$CV2)*($CT$2:$CT$338="V")*($AS$2:$AS$338>3)*($AS$2:$AS$338))/LA4) ->  | LB5: =IF(KW4<5,"",KX12-KY12) ->  | LE5: 500.1003 | LF5: =IF(LF4<5,"",SUMPRODUCT((($CM$2:$CM$338=$CV2)*($AW$2:$AW$338>3)*($AW$2:$AW$338)/LF4))) -> 72.4 | LG5: =IF(LF4<5,"",SUMPRODUCT(($CM$2:$CM$338=$CV2)*($J$2:$J$338="M")*($AW$2:$AW$338>3)*($AW$2:$AW$338))/LG4) -> 74.28571429 | LH5: =IF(LF4<5,"",SUMPRODUCT(($CM$2:$CM$338=$CV2)*($J$2:$J$338="F")*($AW$2:$AW$338>3)*($AW$2:$AW$338))/LH4) -> 70 | LI5: =IF(LF4<5,"",SUMPRODUCT(($CM$2:$CM$338=$CV2)*($CT$2:$CT$338="J")*($AW$2:$AW$338>3)*($AW$2:$AW$338))/LI4) -> 68.88888889 | LJ5: =IF(LF4<5,"",SUMPRODUCT(($CM$2:$CM$338=$CV2)*($CT$2:$CT$338="V")*($AW$2:$AW$338>3)*($AW$2:$AW$338))/LJ4) -> 74.375 | LK5: =IF(LF4<5,"",LG12-LH12) -> -1.271065081 | LL5: 3 | LM5: 6 | LN5: 500.1003 | LO5: =IF(LO4<5,"",SUMPRODUCT((($CM$2:$CM$338=$CV2)*($BA$2:$BA$338>3)*($BA$2:$BA$338)/LO4))) -> 68.07692308 | LP5: =IF(LO4<5,"",SUMPRODUCT(($CM$2:$CM$338=$CV2)*($J$2:$J$338="M")*($BA$2:$BA$338>3)*($BA$2:$BA$338))/LP4) -> 68.92857143 | LQ5: =IF(LO4<5,"",SUMPRODUCT(($CM$2:$CM$338=$CV2)*($J$2:$J$338="F")*($BA$2:$BA$338>3)*($BA$2:$BA$338))/LQ4) -> 67.08333333 | LR5: =IF(LO4<5,"",SUMPRODUCT(($CM$2:$CM$338=$CV2)*($CT$2:$CT$338="J")*($BA$2:$BA$338>3)*($BA$2:$BA$338))/LR4) -> 60 | LS5: =IF(LO4<5,"",SUMPRODUCT(($CM$2:$CM$338=$CV2)*($CT$2:$CT$338="V")*($BA$2:$BA$338>3)*($BA$2:$BA$338))/LS4) -> 73.125 | LT5: =IF(LO4<5,"",LP12-LQ12) -> -2.396184063 | LU5: 3 | LV5: 6 | LW5: 500.1003 | LX5: =IF(LX4<5,"",SUMPRODUCT((($CM$2:$CM$338=$CV2)*($BE$2:$BE$338>3)*($BE$2:$BE$338)/LX4))) ->  | LY5: =IF(LX4<5,"",SUMPRODUCT(($CM$2:$CM$338=$CV2)*($J$2:$J$338="M")*($BE$2:$BE$338>3)*($BE$2:$BE$338))/LY4) ->  | LZ5: =IF(LX4<5,"",SUMPRODUCT(($CM$2:$CM$338=$CV2)*($J$2:$J$338="F")*($BE$2:$BE$338>3)*($BE$2:$BE$338))/LZ4) ->  | MA5: =IF(LX4<5,"",SUMPRODUCT(($CM$2:$CM$338=$CV2)*($CT$2:$CT$338="J")*($BE$2:$BE$338>3)*($BE$2:$BE$338))/MA4) ->  | MB5: =IF(LX4<5,"",SUMPRODUCT(($CM$2:$CM$338=$CV2)*($CT$2:$CT$338="V")*($BE$2:$BE$338>3)*($BE$2:$BE$338))/MB4) ->  | MC5: =IF(LX4<5,"",LY12-LZ12) ->  | MF5: 500.1003 | MG5: =IF(MG4<5,"",SUMPRODUCT((($CM$2:$CM$338=$CV2)*($BI$2:$BI$338>3)*($BI$2:$BI$338)/MG4))) ->  | MH5: =IF(MG4<5,"",SUMPRODUCT(($CM$2:$CM$338=$CV2)*($J$2:$J$338="M")*($BI$2:$BI$338>3)*($BI$2:$BI$338))/MH4) ->  | MI5: =IF(MG4<5,"",SUMPRODUCT(($CM$2:$CM$338=$CV2)*($J$2:$J$338="F")*($BI$2:$BI$338>3)*($BI$2:$BI$338))/MI4) ->  | MJ5: =IF(MG4<5,"",SUMPRODUCT(($CM$2:$CM$338=$CV2)*($CT$2:$CT$338="J")*($BI$2:$BI$338>3)*($BI$2:$BI$338))/MJ4) ->  | MK5: =IF(MG4<5,"",SUMPRODUCT(($CM$2:$CM$338=$CV2)*($CT$2:$CT$338="V")*($BI$2:$BI$338>3)*($BI$2:$BI$338))/MK4) ->  | ML5: =IF(MG4<5,"",MH12-MI12) ->  | MO5: 500.1003 | MP5: =IF(MP4<5,"",SUMPRODUCT((($CM$2:$CM$338=$CV2)*($BM$2:$BM$338>3)*($BM$2:$BM$338)/MP4))) -> 71.66666667 | MQ5: =IF(MP4<5,"",SUMPRODUCT(($CM$2:$CM$338=$CV2)*($J$2:$J$338="M")*($BM$2:$BM$338>3)*($BM$2:$BM$338))/MQ4) -> 70 | MR5: =IF(MP4<5,"",SUMPRODUCT(($CM$2:$CM$338=$CV2)*($J$2:$J$338="F")*($BM$2:$BM$338>3)*($BM$2:$BM$338))/MR4) -> 74 | MS5: =IF(MP4<5,"",SUMPRODUCT(($CM$2:$CM$338=$CV2)*($CT$2:$CT$338="J")*($BM$2:$BM$338>3)*($BM$2:$BM$338))/MS4) -> 67.3 | MT5: =IF(MP4<5,"",SUMPRODUCT(($CM$2:$CM$338=$CV2)*($CT$2:$CT$338="V")*($BM$2:$BM$338>3)*($BM$2:$BM$338))/MT4) -> 74.78571429 | MU5: =IF(MP4<5,"",MQ12-MR12) -> 2.095192308 | MV5: 1 | MW5: 2 | MX5: 500.1003 | MY5: =IF(MY4<5,"",SUMPRODUCT((($CM$2:$CM$338=$CV2)*($CC$2:$CC$338>3)*($CC$2:$CC$338)/MY4))) -> 79.125 | MZ5: =IF(MY4<5,"",SUMPRODUCT(($CM$2:$CM$338=$CV2)*($J$2:$J$338="M")*($CC$2:$CC$338>3)*($CC$2:$CC$338))/MZ4) -> 78.52272727 | NA5: =IF(MY4<5,"",SUMPRODUCT(($CM$2:$CM$338=$CV2)*($J$2:$J$338="F")*($CC$2:$CC$338>3)*($CC$2:$CC$338))/NA4) -> 79.86111111 | NB5: =IF(MY4<5,"",SUMPRODUCT(($CM$2:$CM$338=$CV2)*($CT$2:$CT$338="J")*($CC$2:$CC$338>3)*($CC$2:$CC$338))/NB4) -> 79.28571429 | NC5: =IF(MY4<5,"",SUMPRODUCT(($CM$2:$CM$338=$CV2)*($CT$2:$CT$338="V")*($CC$2:$CC$338>3)*($CC$2:$CC$338))/NC4) -> 79.03846154 | ND5: =IF(MY4<5,"",MZ12-NA12) -> -1.072071725 | NE5: 3 | NF5: 2 | NG5: 500.1003 | NH5: =IF(NH4<5,"",SUMPRODUCT((($CM$2:$CM$338=$CV2)*($CD$2:$CD$338>3)*($CD$2:$CD$338)/NH4))) ->  | NI5: =IF(NH4<5,"",SUMPRODUCT(($CM$2:$CM$338=$CV2)*($J$2:$J$338="M")*($CD$2:$CD$338>3)*($CD$2:$CD$338))/NI4) ->  | NJ5: =IF(NH4<5,"",SUMPRODUCT(($CM$2:$CM$338=$CV2)*($J$2:$J$338="F")*($CD$2:$CD$338>3)*($CD$2:$CD$338))/NJ4) ->  | NK5: =IF(NH4<5,"",SUMPRODUCT(($CM$2:$CM$338=$CV2)*($CT$2:$CT$338="J")*($CD$2:$CD$338>3)*($CD$2:$CD$338))/NK4) ->  | NL5: =IF(NH4<5,"",SUMPRODUCT(($CM$2:$CM$338=$CV2)*($CT$2:$CT$338="V")*($CD$2:$CD$338>3)*($CD$2:$CD$338))/NL4) ->  | NM5: =IF(NH4<5,"",NI12-NJ12) ->  | NP5: 500.1003 | NQ5: =IF(NQ4<5,"",SUMPRODUCT((($CM$2:$CM$338=$CV2)*($CE$2:$CE$338>3)*($CE$2:$CE$338)/NQ4))) -> 73.66666667 | NR5: =IF(NQ4<5,"",SUMPRODUCT(($CM$2:$CM$338=$CV2)*($J$2:$J$338="M")*($CE$2:$CE$338>3)*($CE$2:$CE$338))/NR4) -> 73.21428571 | NS5: =IF(NQ4<5,"",SUMPRODUCT(($CM$2:$CM$338=$CV2)*($J$2:$J$338="F")*($CE$2:$CE$338>3)*($CE$2:$CE$338))/NS4) -> 74.24242424 | NT5: =IF(NQ4<5,"",SUMPRODUCT(($CM$2:$CM$338=$CV2)*($CT$2:$CT$338="J")*($CE$2:$CE$338>3)*($CE$2:$CE$338))/NT4) -> 71.48148148 | NU5: =IF(NQ4<5,"",SUMPRODUCT(($CM$2:$CM$338=$CV2)*($CT$2:$CT$338="V")*($CE$2:$CE$338>3)*($CE$2:$CE$338))/NU4) -> 74.89583333 | NV5: =IF(NQ4<5,"",NR12-NS12) -> -1.64987514 | NW5: 2 | NX5: 2 | NY5: 500.1003 | NZ5: =IF(NZ4<5,"",SUMPRODUCT((($CM$2:$CM$338=$CV2)*($CF$2:$CF$338>3)*($CF$2:$CF$338)/NZ4))) -> 75.2 | OA5: =IF(NZ4<5,"",SUMPRODUCT(($CM$2:$CM$338=$CV2)*($J$2:$J$338="M")*($CF$2:$CF$338>3)*($CF$2:$CF$338))/OA4) -> 75.17857143 | OB5: =IF(NZ4<5,"",SUMPRODUCT(($CM$2:$CM$338=$CV2)*($J$2:$J$338="F")*($CF$2:$CF$338>3)*($CF$2:$CF$338))/OB4) -> 75.22727273 | OC5: =IF(NZ4<5,"",SUMPRODUCT(($CM$2:$CM$338=$CV2)*($CT$2:$CT$338="J")*($CF$2:$CF$338>3)*($CF$2:$CF$338))/OC4) -> 71.66666667 | OD5: =IF(NZ4<5,"",SUMPRODUCT(($CM$2:$CM$338=$CV2)*($CT$2:$CT$338="V")*($CF$2:$CF$338>3)*($CF$2:$CF$338))/OD4) -> 77.1875 | OE5: =IF(NZ4<5,"",OA12-OB12) -> -1.498146017 | OF5: 3 | OG5: 3 | OH5: 500.1003 | OI5: =IF(OI4<5,"",SUMPRODUCT((($CM$2:$CM$338=$CV2)*($CG$2:$CG$338>3)*($CG$2:$CG$338)/OI4))) -> 71.97115385 | OJ5: =IF(OI4<5,"",SUMPRODUCT(($CM$2:$CM$338=$CV2)*($J$2:$J$338="M")*($CG$2:$CG$338>3)*($CG$2:$CG$338))/OJ4) -> 72.32142857 | OK5: =IF(OI4<5,"",SUMPRODUCT(($CM$2:$CM$338=$CV2)*($J$2:$J$338="F")*($CG$2:$CG$338>3)*($CG$2:$CG$338))/OK4) -> 71.5625 | OL5: =IF(OI4<5,"",SUMPRODUCT(($CM$2:$CM$338=$CV2)*($CT$2:$CT$338="J")*($CG$2:$CG$338>3)*($CG$2:$CG$338))/OL4) -> 67.375 | OM5: =IF(OI4<5,"",SUMPRODUCT(($CM$2:$CM$338=$CV2)*($CT$2:$CT$338="V")*($CG$2:$CG$338>3)*($CG$2:$CG$338))/OM4) -> 74.84375 | ON5: =IF(OI4<5,"",OJ12-OK12) -> -1.085858586 | OO5: 3 | OP5: 6 | OQ5: 500.1003 | OR5: =IF(OR4<5,"",SUMPRODUCT((($CM$2:$CM$338=$CV2)*($CH$2:$CH$338>3)*($CH$2:$CH$338)/OR4))) ->  | OS5: =IF(OR4<5,"",SUMPRODUCT(($CM$2:$CM$338=$CV2)*($J$2:$J$338="M")*($CH$2:$CH$338>3)*($CH$2:$CH$338))/OS4) ->  | OT5: =IF(OR4<5,"",SUMPRODUCT(($CM$2:$CM$338=$CV2)*($J$2:$J$338="F")*($CH$2:$CH$338>3)*($CH$2:$CH$338))/OT4) ->  | OU5: =IF(OR4<5,"",SUMPRODUCT(($CM$2:$CM$338=$CV2)*($CT$2:$CT$338="J")*($CH$2:$CH$338>3)*($CH$2:$CH$338))/OU4) ->  | OV5: =IF(OR4<5,"",SUMPRODUCT(($CM$2:$CM$338=$CV2)*($CT$2:$CT$338="V")*($CH$2:$CH$338>3)*($CH$2:$CH$338))/OV4) ->  | OW5: =IF(OR4<5,"",OS12-OT12) ->  | OZ5: 500.1003 | PA5: =IF(PA4<5,"",SUMPRODUCT((($CM$2:$CM$338=$CV2)*($CI$2:$CI$338>3)*($CI$2:$CI$338)/PA4))) -> 73.48076923 | PB5: =IF(PA4<5,"",SUMPRODUCT(($CM$2:$CM$338=$CV2)*($J$2:$J$338="M")*($CI$2:$CI$338>3)*($CI$2:$CI$338))/PB4) -> 71.78571429 | PC5: =IF(PA4<5,"",SUMPRODUCT(($CM$2:$CM$338=$CV2)*($J$2:$J$338="F")*($CI$2:$CI$338>3)*($CI$2:$CI$338))/PC4) -> 75.45833333 | PD5: =IF(PA4<5,"",SUMPRODUCT(($CM$2:$CM$338=$CV2)*($CT$2:$CT$338="J")*($CI$2:$CI$338>3)*($CI$2:$CI$338))/PD4) -> 69.775 | PE5: =IF(PA4<5,"",SUMPRODUCT(($CM$2:$CM$338=$CV2)*($CT$2:$CT$338="V")*($CI$2:$CI$338>3)*($CI$2:$CI$338))/PE4) -> 75.796875 | PF5: =IF(PA4<5,"",PB12-PC12) -> -1.089449232 | PG5: 2 | PH5: 3
A6: 2010 | B6: 001 | C6: 501 | F6: 0 | G6: 2000-05-31 | J6: M | K6: 70 | L6: 70 | M6: 80 | N6: 0 | O6: 70 | P6: 0 | Q6: 0 | R6: 65 | S6: 0 | T6: 75 | U6: 0 | V6: 60 | W6: 0 | X6: 0 | Y6: 0 | Z6: 0 | AA6: 80 | AB6: 85 | AC6: 0 | AD6: 85 | AE6: 75 | AF6: 85 | AG6: 75 | AH6: 80 | AI6: 70 | AJ6: 80 | AK6: 85 | AL6: 80 | AM6: 0 | AN6: 0 | AO6: 0 | AP6: 0 | AQ6: 55 | AR6: 70 | AS6: 0 | AT6: 70 | AU6: 60 | AV6: 75 | AW6: 75 | AX6: 70 | AY6: 70 | AZ6: 85 | BA6: 65 | BB6: 60 | BC6: 0 | BD6: 0 | BE6: 0 | BF6: 0 | BG6: 62 | BH6: 75 | BI6: 0 | BJ6: 63 | BK6: 68 | BL6: 80 | BM6: 60 | BN6: 64 | BO6: 70 | BP6: 76 | BQ6: 60 | BR6: 73 | BS6: 68 | BT6: 68 | BU6: 80 | BV6: 70 | BX6: 55 | BY6: 0 | BZ6: 45 | CA6: 83.33333333 | CB6: 78.75 | CC6: 78.75 | CD6: 0 | CE6: 65 | CF6: 70 | CG6: 70 | CH6: 0 | CI6: 65 | CM6: 001501 | CN6: 0.100 | CO6: =LEFT(C6,2) -> 50 | CP6: =Tableau_SSRSMSA03_BI_Integration_STEPH_2010[[#This Row],[DAT_NAISSANCE_ELEVE]] -> 2000-05-31 | CQ6: 2009-09-30 | CR6: =DATEDIF(CP6,CQ6,"d") -> 3409 | CS6: =CR6/365.25 -> 9.333333333 | CT6: =IF(AND(LEFT(CO6,1)="1",CS6>5.5),"V",IF(AND(LEFT(CO6,1)="2",CS6>6.5),"V",IF(AND(LEFT(CO6,1)="3",CS6>7.5),"V",IF(AND(LEFT(CO6,1)="4",CS6>8.5),"V",IF(AND(LEFT(CO6,1)="5",CS6>9.5),"V",IF(AND(LEFT(CO6,1)="6",CS6>10.5),"V","J")))))) -> J | CU6: =IF(AJ6=0,0,IF(BH6=0,0,1)) -> 1 | CV6: =DC11&DC12&4 -> 500.1004 | CW6: ecartype | CX6: =IF(CX4<5,"",STDEV(IF(($CM$2:$CM$338=$CV2)*($AJ$2:$AJ$338>3),($AJ$2:$AJ$338)))) -> 7.433919417 | CY6: =IF(CX4<5,"",STDEV(IF(($CM$2:$CM$338=$CV2)*($J$2:$J$338="M")*($AJ$2:$AJ$338>3),($AJ$2:$AJ$338)))) -> 8.174238914 | CZ6: =IF(CX4<5,"",STDEV(IF(($CM$2:$CM$338=$CV2)*($J$2:$J$338="F")*($AJ$2:$AJ$338>3),($AJ$2:$AJ$338)))) -> 5.651941653 | DA6: =IF(CX4<5,"",STDEV(IF(($CM$2:$CM$338=$CV2)*($CT$2:$CT$338="J")*($AJ$2:$AJ$338>3),($AJ$2:$AJ$338)))) -> 8.864052604 | DB6: =IF(CX4<5,"",STDEV(IF(($CM$2:$CM$338=$CV2)*($CT$2:$CT$338="V")*($AJ$2:$AJ$338>3),($AJ$2:$AJ$338)))) -> 6.910601295 | DC6: =IF(CX4<5,"",DA5-DB5) -> -1.098901099 | DD6: 2 | DE6: 2 | DF6: 500.1004 | DG6: =IF(DG4<5,"",STDEV(IF(($CM$2:$CM$338=$CV2)*($AN$2:$AN$338>3),($AN$2:$AN$338)))) ->  | DH6: =IF(DG4<5,"",STDEV(IF(($CM$2:$CM$338=$CV2)*($J$2:$J$338="M")*($AN$2:$AN$338>3),($AN$2:$AN$338)))) ->  | DI6: =IF(DG4<5,"",STDEV(IF(($CM$2:$CM$338=$CV2)*($J$2:$J$338="F")*($AN$2:$AN$338>3),($AN$2:$AN$338)))) ->  | DJ6: =IF(DG4<5,"",STDEV(IF(($CM$2:$CM$338=$CV2)*($CT$2:$CT$338="J")*($AN$2:$AN$338>3),($AN$2:$AN$338)))) ->  | DK6: =IF(DG4<5,"",STDEV(IF(($CM$2:$CM$338=$CV2)*($CT$2:$CT$338="V")*($AN$2:$AN$338>3),($AN$2:$AN$338)))) ->  | DL6: =IF(DG4<5,"",DJ5-DK5) ->  | DO6: =$CV6 -> 500.1004 | DP6: =IF(DP4<5,"",STDEV(IF(($CM$2:$CM$338=$CV2)*($AR$2:$AR$338>3),($AR$2:$AR$338)))) -> 10.30776406 | DQ6: =IF(DP4<5,"",STDEV(IF(($CM$2:$CM$338=$CV2)*($J$2:$J$338="M")*($AR$2:$AR$338>3),($AR$2:$AR$338)))) -> 9.405399431 | DR6: =IF(DP4<5,"",STDEV(IF(($CM$2:$CM$338=$CV2)*($J$2:$J$338="F")*($AR$2:$AR$338>3),($AR$2:$AR$338)))) -> 11.2815215 | DS6: =IF(DP4<5,"",STDEV(IF(($CM$2:$CM$338=$CV2)*($CT$2:$CT$338="J")*($AR$2:$AR$338>3),($AR$2:$AR$338)))) -> 8.819171037 | DT6: =IF(DP4<5,"",STDEV(IF(($CM$2:$CM$338=$CV2)*($CT$2:$CT$338="V")*($AR$2:$AR$338>3),($AR$2:$AR$338)))) -> 11.06326504 | DU6: =IF(DP4<5,"",DS5-DT5) -> -3.993055556 | DV6: 3 | DW6: 3 | DX6: 500.1004 | DY6: =IF(DY4<5,"",STDEV(IF(($CM$2:$CM$338=$CV2)*($AV$2:$AV$338>3),($AV$2:$AV$338)))) -> 10.59481005 | DZ6: =IF(DY4<5,"",STDEV(IF(($CM$2:$CM$338=$CV2)*($J$2:$J$338="M")*($AV$2:$AV$338>3),($AV$2:$AV$338)))) -> 9.579052237 | EA6: =IF(DY4<5,"",STDEV(IF(($CM$2:$CM$338=$CV2)*($J$2:$J$338="F")*($AV$2:$AV$338>3),($AV$2:$AV$338)))) -> 12.098084 | EB6: =IF(DY4<5,"",STDEV(IF(($CM$2:$CM$338=$CV2)*($CT$2:$CT$338="J")*($AV$2:$AV$338>3),($AV$2:$AV$338)))) -> 9.391189725 | EC6: =IF(DY4<5,"",STDEV(IF(($CM$2:$CM$338=$CV2)*($CT$2:$CT$338="V")*($AV$2:$AV$338>3),($AV$2:$AV$338)))) -> 10.83493578 | ED6: =IF(DY4<5,"",EB5-EC5) -> -6.284722222 | EE6: 3 | EF6: 2 | EG6: 500.1004 | EH6: =IF(EH4<5,"",STDEV(IF(($CM$2:$CM$338=$CV2)*($AZ$2:$AZ$338>3),($AZ$2:$AZ$338)))) -> 11.21811721 | EI6: =IF(EH4<5,"",STDEV(IF(($CM$2:$CM$338=$CV2)*($J$2:$J$338="M")*($AZ$2:$AZ$338>3),($AZ$2:$AZ$338)))) -> 11.90622702 | EJ6: =IF(EH4<5,"",STDEV(IF(($CM$2:$CM$338=$CV2)*($J$2:$J$338="F")*($AZ$2:$AZ$338>3),($AZ$2:$AZ$338)))) -> 10.87114613 | EK6: =IF(EH4<5,"",STDEV(IF(($CM$2:$CM$338=$CV2)*($CT$2:$CT$338="J")*($AZ$2:$AZ$338>3),($AZ$2:$AZ$338)))) -> 12.70389267 | EL6: =IF(EH4<5,"",STDEV(IF(($CM$2:$CM$338=$CV2)*($CT$2:$CT$338="V")*($AZ$2:$AZ$338>3),($AZ$2:$AZ$338)))) -> 10.44329929 | EM6: =IF(EH4<5,"",EK5-EL5) -> -3.0625 | EN6: 1 | EO6: 2 | EP6: 500.1004 | EQ6: =IF(EQ4<5,"",STDEV(IF(($CM$2:$CM$338=$CV2)*($BD$2:$BD$338>3),($BD$2:$BD$338)))) ->  | ER6: =IF(EQ4<5,"",STDEV(IF(($CM$2:$CM$338=$CV2)*($J$2:$J$338="M")*($BD$2:$BD$338>3),($BD$2:$BD$338)))) ->  | ES6: =IF(EQ4<5,"",STDEV(IF(($CM$2:$CM$338=$CV2)*($J$2:$J$338="F")*($BD$2:$BD$338>3),($BD$2:$BD$338)))) ->  | ET6: =IF(EQ4<5,"",STDEV(IF(($CM$2:$CM$338=$CV2)*($CT$2:$CT$338="J")*($BD$2:$BD$338>3),($BD$2:$BD$338)))) ->  | EU6: =IF(EQ4<5,"",STDEV(IF(($CM$2:$CM$338=$CV2)*($CT$2:$CT$338="V")*($BD$2:$BD$338>3),($BD$2:$BD$338)))) ->  | EV6: =IF(EQ4<5,"",ET5-EU5) ->  | EY6: 500.1004 | EZ6: =IF(EZ4<5,"",STDEV(IF(($CM$2:$CM$338=$CV2)*($BH$2:$BH$338>3),($BH$2:$BH$338)))) -> 10.19321041 | FA6: =IF(EZ4<5,"",STDEV(IF(($CM$2:$CM$338=$CV2)*($J$2:$J$338="M")*($BH$2:$BH$338>3),($BH$2:$BH$338)))) -> 10.94466602 | FB6: =IF(EZ4<5,"",STDEV(IF(($CM$2:$CM$338=$CV2)*($J$2:$J$338="F")*($BH$2:$BH$338>3),($BH$2:$BH$338)))) -> 9.169696469 | FC6: =IF(EZ4<5,"",STDEV(IF(($CM$2:$CM$338=$CV2)*($CT$2:$CT$338="J")*($BH$2:$BH$338>3),($BH$2:$BH$338)))) -> 9.977753031 | FD6: =IF(EZ4<5,"",STDEV(IF(($CM$2:$CM$338=$CV2)*($CT$2:$CT$338="V")*($BH$2:$BH$338>3),($BH$2:$BH$338)))) -> 10.64581295 | FE6: =IF(EZ4<5,"",FC5-FD5) -> -0.5 | FF6: 2 | FG6: 2 | FH6: 500.1004 | FI6: =IF(FI4<5,"",STDEV(IF(($CM$2:$CM$338=$CV2)*($AI$2:$AI$338>3),($AI$2:$AI$338)))) -> 8.564768716 | FJ6: =IF(FI4<5,"",STDEV(IF(($CM$2:$CM$338=$CV2)*($J$2:$J$338="M")*($AI$2:$AI$338>3),($AI$2:$AI$338)))) -> 7.862453931 | FK6: =IF(FI4<5,"",STDEV(IF(($CM$2:$CM$338=$CV2)*($J$2:$J$338="F")*($AI$2:$AI$338>3),($AI$2:$AI$338)))) -> 9.501461876 | FL6: =IF(FI4<5,"",STDEV(IF(($CM$2:$CM$338=$CV2)*($CT$2:$CT$338="J")*($AI$2:$AI$338>3),($AI$2:$AI$338)))) -> 10.2933173 | FM6: =IF(FI4<5,"",STDEV(IF(($CM$2:$CM$338=$CV2)*($CT$2:$CT$338="V")*($AI$2:$AI$338>3),($AI$2:$AI$338)))) -> 7.637626158 | FN6: =IF(FI4<5,"",FL5-FM5) -> -3.571428571 | FO6: 4 | FP6: 3 | FQ6: 500.1004 | FR6: =IF(FR4<5,"",STDEV(IF(($CM$2:$CM$338=$CV2)*($AM$2:$AM$338>3),($AM$2:$AM$338)))) ->  | FS6: =IF(FR4<5,"",STDEV(IF(($CM$2:$CM$338=$CV2)*($J$2:$J$338="M")*($AM$2:$AM$338>3),($AM$2:$AM$338)))) ->  | FT6: =IF(FR4<5,"",STDEV(IF(($CM$2:$CM$338=$CV2)*($J$2:$J$338="F")*($AM$2:$AM$338>3),($AM$2:$AM$338)))) ->  | FU6: =IF(FR4<5,"",STDEV(IF(($CM$2:$CM$338=$CV2)*($CT$2:$CT$338="J")*($AM$2:$AM$338>3),($AM$2:$AM$338)))) ->  | FV6: =IF(FR4<5,"",STDEV(IF(($CM$2:$CM$338=$CV2)*($CT$2:$CT$338="V")*($AM$2:$AM$338>3),($AM$2:$AM$338)))) ->  | FW6: =IF(FR4<5,"",FU5-FV5) ->  | FZ6: 500.1004 | GA6: =IF(GA4<5,"",STDEV(IF(($CM$2:$CM$338=$CV2)*($AQ$2:$AQ$338>3),($AQ$2:$AQ$338)))) -> 9.630680142 | GB6: =IF(GA4<5,"",STDEV(IF(($CM$2:$CM$338=$CV2)*($J$2:$J$338="M")*($AQ$2:$AQ$338>3),($AQ$2:$AQ$338)))) -> 9.492622931 | GC6: =IF(GA4<5,"",STDEV(IF(($CM$2:$CM$338=$CV2)*($J$2:$J$338="F")*($AQ$2:$AQ$338>3),($AQ$2:$AQ$338)))) -> 9.510759457 | GD6: =IF(GA4<5,"",STDEV(IF(($CM$2:$CM$338=$CV2)*($CT$2:$CT$338="J")*($AQ$2:$AQ$338>3),($AQ$2:$AQ$338)))) -> 10.60660172 | GE6: =IF(GA4<5,"",STDEV(IF(($CM$2:$CM$338=$CV2)*($CT$2:$CT$338="V")*($AQ$2:$AQ$338>3),($AQ$2:$AQ$338)))) -> 9.213893495 | GF6: =IF(GA4<5,"",GD5-GE5) -> -3.020833333 | GG6: 4 | GH6: 4 | GI6: 500.1004 | GJ6: =IF(GJ4<5,"",STDEV(IF(($CM$2:$CM$338=$CV2)*($AU$2:$AU$338>3),($AU$2:$AU$338)))) -> 11.89537725 | GK6: =IF(GJ4<5,"",STDEV(IF(($CM$2:$CM$338=$CV2)*($J$2:$J$338="M")*($AU$2:$AU$338>3),($AU$2:$AU$338)))) -> 12.04957708 | GL6: =IF(GJ4<5,"",STDEV(IF(($CM$2:$CM$338=$CV2)*($J$2:$J$338="F")*($AU$2:$AU$338>3),($AU$2:$AU$338)))) -> 11.13960992 | GM6: =IF(GJ4<5,"",STDEV(IF(($CM$2:$CM$338=$CV2)*($CT$2:$CT$338="J")*($AU$2:$AU$338>3),($AU$2:$AU$338)))) -> 13.69306394 | GN6: =IF(GJ4<5,"",STDEV(IF(($CM$2:$CM$338=$CV2)*($CT$2:$CT$338="V")*($AU$2:$AU$338>3),($AU$2:$AU$338)))) -> 10.64581295 | GO6: =IF(GJ4<5,"",GM5-GN5) -> -5.833333333 | GP6: 4 | GQ6: 6 | GR6: 500.1004 | GS6: =IF(GS4<5,"",STDEV(IF(($CM$2:$CM$338=$CV2)*($AY$2:$AY$338>3),($AY$2:$AY$338)))) -> 11.34256788 | GT6: =IF(GS4<5,"",STDEV(IF(($CM$2:$CM$338=$CV2)*($J$2:$J$338="M")*($AY$2:$AY$338>3),($AY$2:$AY$338)))) -> 11.86577866 | GU6: =IF(GS4<5,"",STDEV(IF(($CM$2:$CM$338=$CV2)*($J$2:$J$338="F")*($AY$2:$AY$338>3),($AY$2:$AY$338)))) -> 10.33528818 | GV6: =IF(GS4<5,"",STDEV(IF(($CM$2:$CM$338=$CV2)*($CT$2:$CT$338="J")*($AY$2:$AY$338>3),($AY$2:$AY$338)))) -> 11.00504935 | GW6: =IF(GS4<5,"",STDEV(IF(($CM$2:$CM$338=$CV2)*($CT$2:$CT$338="V")*($AY$2:$AY$338>3),($AY$2:$AY$338)))) -> 11.36056777 | GX6: =IF(GS4<5,"",GV5-GW5) -> -5.5625 | GY6: 3 | GZ6: 3 | HA6: 500.1004 | HB6: =IF(HB4<5,"",STDEV(IF(($CM$2:$CM$338=$CV2)*($BC$2:$BC$338>3),($BC$2:$BC$338)))) ->  | HC6: =IF(HB4<5,"",STDEV(IF(($CM$2:$CM$338=$CV2)*($J$2:$J$338="M")*($BC$2:$BC$338>3),($BC$2:$BC$338)))) ->  | HD6: =IF(HB4<5,"",STDEV(IF(($CM$2:$CM$338=$CV2)*($J$2:$J$338="F")*($BC$2:$BC$338>3),($BC$2:$BC$338)))) ->  | HE6: =IF(HB4<5,"",STDEV(IF(($CM$2:$CM$338=$CV2)*($CT$2:$CT$338="J")*($BC$2:$BC$338>3),($BC$2:$BC$338)))) ->  | HF6: =IF(HB4<5,"",STDEV(IF(($CM$2:$CM$338=$CV2)*($CT$2:$CT$338="V")*($BC$2:$BC$338>3),($BC$2:$BC$338)))) ->  | HG6: =IF(HB4<5,"",HE5-HF5) ->  | HJ6: 500.1004 | HK6: =IF(HK4<5,"",STDEV(IF(($CM$2:$CM$338=$CV2)*($BG$2:$BG$338>3),($BG$2:$BG$338)))) -> 11.51961538 | HL6: =IF(HK4<5,"",STDEV(IF(($CM$2:$CM$338=$CV2)*($J$2:$J$338="M")*($BG$2:$BG$338>3),($BG$2:$BG$338)))) -> 12.8450187 | HM6: =IF(HK4<5,"",STDEV(IF(($CM$2:$CM$338=$CV2)*($J$2:$J$338="F")*($BG$2:$BG$338>3),($BG$2:$BG$338)))) -> 9.900642771 | HN6: =IF(HK4<5,"",STDEV(IF(($CM$2:$CM$338=$CV2)*($CT$2:$CT$338="J")*($BG$2:$BG$338>3),($BG$2:$BG$338)))) -> 13.35040574 | HO6: =IF(HK4<5,"",STDEV(IF(($CM$2:$CM$338=$CV2)*($CT$2:$CT$338="V")*($BG$2:$BG$338>3),($BG$2:$BG$338)))) -> 10.08774008 | HP6: =IF(HK4<5,"",HN5-HO5) -> -5.5125 | HQ6: 3 | HR6: 6 | HS6: 500.1004 | HT6: =IF(HT4<5,"",STDEV(IF(($CM$2:$CM$338=$CV2)*($AL$2:$AL$338>3),($AL$2:$AL$338)))) -> 7.120636432 | HU6: =IF(HT4<5,"",STDEV(IF(($CM$2:$CM$338=$CV2)*($J$2:$J$338="M")*($AL$2:$AL$338>3),($AL$2:$AL$338)))) -> 6.440285143 | HV6: =IF(HT4<5,"",STDEV(IF(($CM$2:$CM$338=$CV2)*($J$2:$J$338="F")*($AL$2:$AL$338>3),($AL$2:$AL$338)))) -> 8.164965809 | HW6: =IF(HT4<5,"",STDEV(IF(($CM$2:$CM$338=$CV2)*($CT$2:$CT$338="J")*($AL$2:$AL$338>3),($AL$2:$AL$338)))) -> 6.725927091 | HX6: =IF(HT4<5,"",STDEV(IF(($CM$2:$CM$338=$CV2)*($CT$2:$CT$338="V")*($AL$2:$AL$338>3),($AL$2:$AL$338)))) -> 7.43223353 | HY6: =IF(HT4<5,"",HW5-HX5) -> -2.047619048 | HZ6: 3 | IA6: 2 | IB6: 500.1004 | IC6: =IF(IC4<5,"",STDEV(IF(($CM$2:$CM$338=$CV2)*($AP$2:$AP$338>3),($AP$2:$AP$338)))) ->  | ID6: =IF(IC4<5,"",STDEV(IF(($CM$2:$CM$338=$CV2)*($J$2:$J$338="M")*($AP$2:$AP$338>3),($AP$2:$AP$338)))) ->  | IE6: =IF(IC4<5,"",STDEV(IF(($CM$2:$CM$338=$CV2)*($J$2:$J$338="F")*($AP$2:$AP$338>3),($AP$2:$AP$338)))) ->  | IF6: =IF(IC4<5,"",STDEV(IF(($CM$2:$CM$338=$CV2)*($CT$2:$CT$338="J")*($AP$2:$AP$338>3),($AP$2:$AP$338)))) ->  | IG6: =IF(IC4<5,"",STDEV(IF(($CM$2:$CM$338=$CV2)*($CT$2:$CT$338="V")*($AP$2:$AP$338>3),($AP$2:$AP$338)))) ->  | IH6: =IF(IC4<5,"",IF5-IG5) ->  | IK6: 500.1004 | IL6: =IF(IL4<5,"",STDEV(IF(($CM$2:$CM$338=$CV2)*($AT$2:$AT$338>3),($AT$2:$AT$338)))) -> 14.28285686 | IM6: =IF(IL4<5,"",STDEV(IF(($CM$2:$CM$338=$CV2)*($J$2:$J$338="M")*($AT$2:$AT$338>3),($AT$2:$AT$338)))) -> 11.19875386 | IN6: =IF(IL4<5,"",STDEV(IF(($CM$2:$CM$338=$CV2)*($J$2:$J$338="F")*($AT$2:$AT$338>3),($AT$2:$AT$338)))) -> 17.35982824 | IO6: =IF(IL4<5,"",STDEV(IF(($CM$2:$CM$338=$CV2)*($CT$2:$CT$338="J")*($AT$2:$AT$338>3),($AT$2:$AT$338)))) -> 12.74754878 | IP6: =IF(IL4<5,"",STDEV(IF(($CM$2:$CM$338=$CV2)*($CT$2:$CT$338="V")*($AT$2:$AT$338>3),($AT$2:$AT$338)))) -> 15.35347409 | IQ6: =IF(IL4<5,"",IO5-IP5) -> -3.229166667 | IR6: 2 | IS6: 3 | IT6: 500.1004 | IU6: =IF(IU4<5,"",STDEV(IF(($CM$2:$CM$338=$CV2)*($AX$2:$AX$338>3),($AX$2:$AX$338)))) -> 13.17193987 | IV6: =IF(IU4<5,"",STDEV(IF(($CM$2:$CM$338=$CV2)*($J$2:$J$338="M")*($AX$2:$AX$338>3),($AX$2:$AX$338)))) -> 12.49725245 | IW6: =IF(IU4<5,"",STDEV(IF(($CM$2:$CM$338=$CV2)*($J$2:$J$338="F")*($AX$2:$AX$338>3),($AX$2:$AX$338)))) -> 14.15819711 | IX6: =IF(IU4<5,"",STDEV(IF(($CM$2:$CM$338=$CV2)*($CT$2:$CT$338="J")*($AX$2:$AX$338>3),($AX$2:$AX$338)))) -> 15.41103501 | IY6: =IF(IU4<5,"",STDEV(IF(($CM$2:$CM$338=$CV2)*($CT$2:$CT$338="V")*($AX$2:$AX$338>3),($AX$2:$AX$338)))) -> 11.96783885 | IZ6: =IF(IU4<5,"",IX5-IY5) -> -4.479166667 | JA6: 2 | JB6: 3 | JC6: 500.1004 | JD6: =IF(JD4<5,"",STDEV(IF(($CM$2:$CM$338=$CV2)*($BB$2:$BB$338>3),($BB$2:$BB$338)))) -> 12.56980509 | JE6: =IF(JD4<5,"",STDEV(IF(($CM$2:$CM$338=$CV2)*($J$2:$J$338="M")*($BB$2:$BB$338>3),($BB$2:$BB$338)))) -> 11.88313053 | JF6: =IF(JD4<5,"",STDEV(IF(($CM$2:$CM$338=$CV2)*($J$2:$J$338="F")*($BB$2:$BB$338>3),($BB$2:$BB$338)))) -> 13.02677895 | JG6: =IF(JD4<5,"",STDEV(IF(($CM$2:$CM$338=$CV2)*($CT$2:$CT$338="J")*($BB$2:$BB$338>3),($BB$2:$BB$338)))) -> 14.90711985 | JH6: =IF(JD4<5,"",STDEV(IF(($CM$2:$CM$338=$CV2)*($CT$2:$CT$338="V")*($BB$2:$BB$338>3),($BB$2:$BB$338)))) -> 10.1447852 | JI6: =IF(JD4<5,"",JG5-JH5) -> -8.125 | JJ6: 3 | JK6: 6 | JL6: 500.1004 | JM6: =IF(JM4<5,"",STDEV(IF(($CM$2:$CM$338=$CV2)*($BF$2:$BF$338>3),($BF$2:$BF$338)))) ->  | JN6: =IF(JM4<5,"",STDEV(IF(($CM$2:$CM$338=$CV2)*($J$2:$J$338="M")*($BF$2:$BF$338>3),($BF$2:$BF$338)))) ->  | JO6: =IF(JM4<5,"",STDEV(IF(($CM$2:$CM$338=$CV2)*($J$2:$J$338="F")*($BF$2:$BF$338>3),($BF$2:$BF$338)))) ->  | JP6: =IF(JM4<5,"",STDEV(IF(($CM$2:$CM$338=$CV2)*($CT$2:$CT$338="J")*($BF$2:$BF$338>3),($BF$2:$BF$338)))) ->  | JQ6: =IF(JM4<5,"",STDEV(IF(($CM$2:$CM$338=$CV2)*($CT$2:$CT$338="V")*($BF$2:$BF$338>3),($BF$2:$BF$338)))) ->  | JR6: =IF(JM4<5,"",JP5-JQ5) ->  | JU6: 500.1004 | JV6: =IF(JV4<5,"",STDEV(IF(($CM$2:$CM$338=$CV2)*($BJ$2:$BJ$338>3),($BJ$2:$BJ$338)))) -> 14.01982113 | JW6: =IF(JV4<5,"",STDEV(IF(($CM$2:$CM$338=$CV2)*($J$2:$J$338="M")*($BJ$2:$BJ$338>3),($BJ$2:$BJ$338)))) -> 14.07593223 | JX6: =IF(JV4<5,"",STDEV(IF(($CM$2:$CM$338=$CV2)*($J$2:$J$338="F")*($BJ$2:$BJ$338>3),($BJ$2:$BJ$338)))) -> 14.5755607 | JY6: =IF(JV4<5,"",STDEV(IF(($CM$2:$CM$338=$CV2)*($CT$2:$CT$338="J")*($BJ$2:$BJ$338>3),($BJ$2:$BJ$338)))) -> 16.20185175 | JZ6: =IF(JV4<5,"",STDEV(IF(($CM$2:$CM$338=$CV2)*($CT$2:$CT$338="V")*($BJ$2:$BJ$338>3),($BJ$2:$BJ$338)))) -> 11.88766868 | KA6: =IF(JV4<5,"",JY5-JZ5) -> -8.375 | KB6: 3 | KC6: 6 | KD6: 500.1004 | KE6: =IF(KE4<5,"",STDEV(IF(($CM$2:$CM$338=$CV2)*($AK$2:$AK$338>3),($AK$2:$AK$338)))) -> 10.31095483 | KF6: =IF(KE4<5,"",STDEV(IF(($CM$2:$CM$338=$CV2)*($J$2:$J$338="M")*($AK$2:$AK$338>3),($AK$2:$AK$338)))) -> 11.69693044 | KG6: =IF(KE4<5,"",STDEV(IF(($CM$2:$CM$338=$CV2)*($J$2:$J$338="F")*($AK$2:$AK$338>3),($AK$2:$AK$338)))) -> 8.936504412 | KH6: =IF(KE4<5,"",STDEV(IF(($CM$2:$CM$338=$CV2)*($CT$2:$CT$338="J")*($AK$2:$AK$338>3),($AK$2:$AK$338)))) -> 3.933978962 | KI6: =IF(KE4<5,"",STDEV(IF(($CM$2:$CM$338=$CV2)*($CT$2:$CT$338="V")*($AK$2:$AK$338>3),($AK$2:$AK$338)))) -> 11.69867404 | KJ6: =IF(KE4<5,"",KH5-KI5) -> 7.912087912 | KK6: 1 | KL6: 2 | KM6: 500.1004 | KN6: =IF(KN4<5,"",STDEV(IF(($CM$2:$CM$338=$CV2)*($AO$2:$AO$338>3),($AO$2:$AO$338)))) ->  | KO6: =IF(KN4<5,"",STDEV(IF(($CM$2:$CM$338=$CV2)*($J$2:$J$338="M")*($AO$2:$AO$338>3),($AO$2:$AO$338)))) ->  | KP6: =IF(KN4<5,"",STDEV(IF(($CM$2:$CM$338=$CV2)*($J$2:$J$338="F")*($AO$2:$AO$338>3),($AO$2:$AO$338)))) ->  | KQ6: =IF(KN4<5,"",STDEV(IF(($CM$2:$CM$338=$CV2)*($CT$2:$CT$338="J")*($AO$2:$AO$338>3),($AO$2:$AO$338)))) ->  | KR6: =IF(KN4<5,"",STDEV(IF(($CM$2:$CM$338=$CV2)*($CT$2:$CT$338="V")*($AO$2:$AO$338>3),($AO$2:$AO$338)))) ->  | KS6: =IF(KN4<5,"",KQ5-KR5) ->  | KV6: 500.1004 | KW6: =IF(KW4<5,"",STDEV(IF(($CM$2:$CM$338=$CV2)*($AS$2:$AS$338>3),($AS$2:$AS$338)))) ->  | KX6: =IF(KW4<5,"",STDEV(IF(($CM$2:$CM$338=$CV2)*($J$2:$J$338="M")*($AS$2:$AS$338>3),($AS$2:$AS$338)))) ->  | KY6: =IF(KW4<5,"",STDEV(IF(($CM$2:$CM$338=$CV2)*($J$2:$J$338="F")*($AS$2:$AS$338>3),($AS$2:$AS$338)))) ->  | KZ6: =IF(KW4<5,"",STDEV(IF(($CM$2:$CM$338=$CV2)*($CT$2:$CT$338="J")*($AS$2:$AS$338>3),($AS$2:$AS$338)))) ->  | LA6: =IF(KW4<5,"",STDEV(IF(($CM$2:$CM$338=$CV2)*($CT$2:$CT$338="V")*($AS$2:$AS$338>3),($AS$2:$AS$338)))) ->  | LB6: =IF(KW4<5,"",KZ5-LA5) ->  | LE6: 500.1004 | LF6: =IF(LF4<5,"",STDEV(IF(($CM$2:$CM$338=$CV2)*($AW$2:$AW$338>3),($AW$2:$AW$338)))) -> 15.07757717 | LG6: =IF(LF4<5,"",STDEV(IF(($CM$2:$CM$338=$CV2)*($J$2:$J$338="M")*($AW$2:$AW$338>3),($AW$2:$AW$338)))) -> 13.84768001 | LH6: =IF(LF4<5,"",STDEV(IF(($CM$2:$CM$338=$CV2)*($J$2:$J$338="F")*($AW$2:$AW$338>3),($AW$2:$AW$338)))) -> 16.88194302 | LI6: =IF(LF4<5,"",STDEV(IF(($CM$2:$CM$338=$CV2)*($CT$2:$CT$338="J")*($AW$2:$AW$338>3),($AW$2:$AW$338)))) -> 18.67113042 | LJ6: =IF(LF4<5,"",STDEV(IF(($CM$2:$CM$338=$CV2)*($CT$2:$CT$338="V")*($AW$2:$AW$338>3),($AW$2:$AW$338)))) -> 12.89379696 | LK6: =IF(LF4<5,"",LI5-LJ5) -> -5.486111111 | LL6: 2 | LM6: 2 | LN6: 500.1004 | LO6: =IF(LO4<5,"",STDEV(IF(($CM$2:$CM$338=$CV2)*($BA$2:$BA$338>3),($BA$2:$BA$338)))) -> 14.14757386 | LP6: =IF(LO4<5,"",STDEV(IF(($CM$2:$CM$338=$CV2)*($J$2:$J$338="M")*($BA$2:$BA$338>3),($BA$2:$BA$338)))) -> 13.03524386 | LQ6: =IF(LO4<5,"",STDEV(IF(($CM$2:$CM$338=$CV2)*($J$2:$J$338="F")*($BA$2:$BA$338>3),($BA$2:$BA$338)))) -> 15.8771324 | LR6: =IF(LO4<5,"",STDEV(IF(($CM$2:$CM$338=$CV2)*($CT$2:$CT$338="J")*($BA$2:$BA$338>3),($BA$2:$BA$338)))) -> 13.74368542 | LS6: =IF(LO4<5,"",STDEV(IF(($CM$2:$CM$338=$CV2)*($CT$2:$CT$338="V")*($BA$2:$BA$338>3),($BA$2:$BA$338)))) -> 12.23042654 | LT6: =IF(LO4<5,"",LR5-LS5) -> -13.125 | LU6: 2 | LV6: 6 | LW6: 500.1004 | LX6: =IF(LX4<5,"",STDEV(IF(($CM$2:$CM$338=$CV2)*($BE$2:$BE$338>3),($BE$2:$BE$338)))) ->  | LY6: =IF(LX4<5,"",STDEV(IF(($CM$2:$CM$338=$CV2)*($J$2:$J$338="M")*($BE$2:$BE$338>3),($BE$2:$BE$338)))) ->  | LZ6: =IF(LX4<5,"",STDEV(IF(($CM$2:$CM$338=$CV2)*($J$2:$J$338="F")*($BE$2:$BE$338>3),($BE$2:$BE$338)))) ->  | MA6: =IF(LX4<5,"",STDEV(IF(($CM$2:$CM$338=$CV2)*($CT$2:$CT$338="J")*($BE$2:$BE$338>3),($BE$2:$BE$338)))) ->  | MB6: =IF(LX4<5,"",STDEV(IF(($CM$2:$CM$338=$CV2)*($CT$2:$CT$338="V")*($BE$2:$BE$338>3),($BE$2:$BE$338)))) ->  | MC6: =IF(LX4<5,"",MA5-MB5) ->  | MF6: 500.1004 | MG6: =IF(MG4<5,"",STDEV(IF(($CM$2:$CM$338=$CV2)*($BI$2:$BI$338>3),($BI$2:$BI$338)))) ->  | MH6: =IF(MG4<5,"",STDEV(IF(($CM$2:$CM$338=$CV2)*($J$2:$J$338="M")*($BI$2:$BI$338>3),($BI$2:$BI$338)))) ->  | MI6: =IF(MG4<5,"",STDEV(IF(($CM$2:$CM$338=$CV2)*($J$2:$J$338="F")*($BI$2:$BI$338>3),($BI$2:$BI$338)))) ->  | MJ6: =IF(MG4<5,"",STDEV(IF(($CM$2:$CM$338=$CV2)*($CT$2:$CT$338="J")*($BI$2:$BI$338>3),($BI$2:$BI$338)))) ->  | MK6: =IF(MG4<5,"",STDEV(IF(($CM$2:$CM$338=$CV2)*($CT$2:$CT$338="V")*($BI$2:$BI$338>3),($BI$2:$BI$338)))) ->  | ML6: =IF(MG4<5,"",MJ5-MK5) ->  | MO6: 500.1004 | MP6: =IF(MP4<5,"",STDEV(IF(($CM$2:$CM$338=$CV2)*($BM$2:$BM$338>3),($BM$2:$BM$338)))) -> 19.60405164 | MQ6: =IF(MP4<5,"",STDEV(IF(($CM$2:$CM$338=$CV2)*($J$2:$J$338="M")*($BM$2:$BM$338>3),($BM$2:$BM$338)))) -> 19.67427059 | MR6: =IF(MP4<5,"",STDEV(IF(($CM$2:$CM$338=$CV2)*($J$2:$J$338="F")*($BM$2:$BM$338>3),($BM$2:$BM$338)))) -> 20.31419865 | MS6: =IF(MP4<5,"",STDEV(IF(($CM$2:$CM$338=$CV2)*($CT$2:$CT$338="J")*($BM$2:$BM$338>3),($BM$2:$BM$338)))) -> 24.76130494 | MT6: =IF(MP4<5,"",STDEV(IF(($CM$2:$CM$338=$CV2)*($CT$2:$CT$338="V")*($BM$2:$BM$338>3),($BM$2:$BM$338)))) -> 15.17679692 | MU6: =IF(MP4<5,"",MS5-MT5) -> -7.485714286 | MV6: 2 | MW6: 6 | MX6: 500.1004 | MY6: =IF(MY4<5,"",STDEV(IF(($CM$2:$CM$338=$CV2)*($CC$2:$CC$338>3),($CC$2:$CC$338)))) -> 6.336247021 | MZ6: =IF(MY4<5,"",STDEV(IF(($CM$2:$CM$338=$CV2)*($J$2:$J$338="M")*($CC$2:$CC$338>3),($CC$2:$CC$338)))) -> 6.245452891 | NA6: =IF(MY4<5,"",STDEV(IF(($CM$2:$CM$338=$CV2)*($J$2:$J$338="F")*($CC$2:$CC$338>3),($CC$2:$CC$338)))) -> 6.74433919 | NB6: =IF(MY4<5,"",STDEV(IF(($CM$2:$CM$338=$CV2)*($CT$2:$CT$338="J")*($CC$2:$CC$338>3),($CC$2:$CC$338)))) -> 6.367934927 | NC6: =IF(MY4<5,"",STDEV(IF(($CM$2:$CM$338=$CV2)*($CT$2:$CT$338="V")*($CC$2:$CC$338>3),($CC$2:$CC$338)))) -> 6.577935145 | ND6: =IF(MY4<5,"",NB5-NC5) -> 0.2472527473 | NE6: 2 | NF6: 2 | NG6: 500.1004 | NH6: =IF(NH4<5,"",STDEV(IF(($CM$2:$CM$338=$CV2)*($CD$2:$CD$338>3),($CD$2:$CD$338)))) ->  | NI6: =IF(NH4<5,"",STDEV(IF(($CM$2:$CM$338=$CV2)*($J$2:$J$338="M")*($CD$2:$CD$338>3),($CD$2:$CD$338)))) ->  | NJ6: =IF(NH4<5,"",STDEV(IF(($CM$2:$CM$338=$CV2)*($J$2:$J$338="F")*($CD$2:$CD$338>3),($CD$2:$CD$338)))) ->  | NK6: =IF(NH4<5,"",STDEV(IF(($CM$2:$CM$338=$CV2)*($CT$2:$CT$338="J")*($CD$2:$CD$338>3),($CD$2:$CD$338)))) ->  | NL6: =IF(NH4<5,"",STDEV(IF(($CM$2:$CM$338=$CV2)*($CT$2:$CT$338="V")*($CD$2:$CD$338>3),($CD$2:$CD$338)))) ->  | NM6: =IF(NH4<5,"",NK5-NL5) ->  | NP6: 500.1004 | NQ6: =IF(NQ4<5,"",STDEV(IF(($CM$2:$CM$338=$CV2)*($CE$2:$CE$338>3),($CE$2:$CE$338)))) -> 9.586352182 | NR6: =IF(NQ4<5,"",STDEV(IF(($CM$2:$CM$338=$CV2)*($J$2:$J$338="M")*($CE$2:$CE$338>3),($CE$2:$CE$338)))) -> 8.018788986 | NS6: =IF(NQ4<5,"",STDEV(IF(($CM$2:$CM$338=$CV2)*($J$2:$J$338="F")*($CE$2:$CE$338>3),($CE$2:$CE$338)))) -> 11.67532147 | NT6: =IF(NQ4<5,"",STDEV(IF(($CM$2:$CM$338=$CV2)*($CT$2:$CT$338="J")*($CE$2:$CE$338>3),($CE$2:$CE$338)))) -> 8.637951003 | NU6: =IF(NQ4<5,"",STDEV(IF(($CM$2:$CM$338=$CV2)*($CT$2:$CT$338="V")*($CE$2:$CE$338>3),($CE$2:$CE$338)))) -> 10.1373667 | NV6: =IF(NQ4<5,"",NT5-NU5) -> -3.414351852 | NW6: 3 | NX6: 6 | NY6: 500.1004 | NZ6: =IF(NZ4<5,"",STDEV(IF(($CM$2:$CM$338=$CV2)*($CF$2:$CF$338>3),($CF$2:$CF$338)))) -> 10.883378 | OA6: =IF(NZ4<5,"",STDEV(IF(($CM$2:$CM$338=$CV2)*($J$2:$J$338="M")*($CF$2:$CF$338>3),($CF$2:$CF$338)))) -> 10.53676191 | OB6: =IF(NZ4<5,"",STDEV(IF(($CM$2:$CM$338=$CV2)*($J$2:$J$338="F")*($CF$2:$CF$338>3),($CF$2:$CF$338)))) -> 11.82975832 | OC6: =IF(NZ4<5,"",STDEV(IF(($CM$2:$CM$338=$CV2)*($CT$2:$CT$338="J")*($CF$2:$CF$338>3),($CF$2:$CF$338)))) -> 12.39014225 | OD6: =IF(NZ4<5,"",STDEV(IF(($CM$2:$CM$338=$CV2)*($CT$2:$CT$338="V")*($CF$2:$CF$338>3),($CF$2:$CF$338)))) -> 9.794769012 | OE6: =IF(NZ4<5,"",OC5-OD5) -> -5.520833333 | OF6: 3 | OG6: 3 | OH6: 500.1004 | OI6: =IF(OI4<5,"",STDEV(IF(($CM$2:$CM$338=$CV2)*($CG$2:$CG$338>3),($CG$2:$CG$338)))) -> 10.95543859 | OJ6: =IF(OI4<5,"",STDEV(IF(($CM$2:$CM$338=$CV2)*($J$2:$J$338="M")*($CG$2:$CG$338>3),($CG$2:$CG$338)))) -> 10.8846348 | OK6: =IF(OI4<5,"",STDEV(IF(($CM$2:$CM$338=$CV2)*($J$2:$J$338="F")*($CG$2:$CG$338>3),($CG$2:$CG$338)))) -> 11.5074704 | OL6: =IF(OI4<5,"",STDEV(IF(($CM$2:$CM$338=$CV2)*($CT$2:$CT$338="J")*($CG$2:$CG$338>3),($CG$2:$CG$338)))) -> 11.15624514 | OM6: =IF(OI4<5,"",STDEV(IF(($CM$2:$CM$338=$CV2)*($CT$2:$CT$338="V")*($CG$2:$CG$338>3),($CG$2:$CG$338)))) -> 10.12294218 | ON6: =IF(OI4<5,"",OL5-OM5) -> -7.46875 | OO6: 2 | OP6: 3 | OQ6: 500.1004 | OR6: =IF(OR4<5,"",STDEV(IF(($CM$2:$CM$338=$CV2)*($CH$2:$CH$338>3),($CH$2:$CH$338)))) ->  | OS6: =IF(OR4<5,"",STDEV(IF(($CM$2:$CM$338=$CV2)*($J$2:$J$338="M")*($CH$2:$CH$338>3),($CH$2:$CH$338)))) ->  | OT6: =IF(OR4<5,"",STDEV(IF(($CM$2:$CM$338=$CV2)*($J$2:$J$338="F")*($CH$2:$CH$338>3),($CH$2:$CH$338)))) ->  | OU6: =IF(OR4<5,"",STDEV(IF(($CM$2:$CM$338=$CV2)*($CT$2:$CT$338="J")*($CH$2:$CH$338>3),($CH$2:$CH$338)))) ->  | OV6: =IF(OR4<5,"",STDEV(IF(($CM$2:$CM$338=$CV2)*($CT$2:$CT$338="V")*($CH$2:$CH$338>3),($CH$2:$CH$338)))) ->  | OW6: =IF(OR4<5,"",OU5-OV5) ->  | OZ6: 500.1004 | PA6: =IF(PA4<5,"",STDEV(IF(($CM$2:$CM$338=$CV2)*($CI$2:$CI$338>3),($CI$2:$CI$338)))) -> 11.95699023 | PB6: =IF(PA4<5,"",STDEV(IF(($CM$2:$CM$338=$CV2)*($J$2:$J$338="M")*($CI$2:$CI$338>3),($CI$2:$CI$338)))) -> 13.03429542 | PC6: =IF(PA4<5,"",STDEV(IF(($CM$2:$CM$338=$CV2)*($J$2:$J$338="F")*($CI$2:$CI$338>3),($CI$2:$CI$338)))) -> 10.78078748 | PD6: =IF(PA4<5,"",STDEV(IF(($CM$2:$CM$338=$CV2)*($CT$2:$CT$338="J")*($CI$2:$CI$338>3),($CI$2:$CI$338)))) -> 14.13105819 | PE6: =IF(PA4<5,"",STDEV(IF(($CM$2:$CM$338=$CV2)*($CT$2:$CT$338="V")*($CI$2:$CI$338>3),($CI$2:$CI$338)))) -> 10.1780887 | PF6: =IF(PA4<5,"",PD5-PE5) -> -6.021875 | PG6: 2 | PH6: 6
A7: 2010 | B7: 001 | C7: 501 | F7: 0 | G7: 2000-05-23 | J7: F | K7: 0 | L7: 0 | M7: 0 | N7: 0 | O7: 0 | P7: 0 | Q7: 0 | R7: 0 | S7: 0 | T7: 0 | U7: 0 | V7: 0 | W7: 0 | X7: 0 | Y7: 0 | Z7: 0 | AA7: 0 | AB7: 0 | AC7: 0 | AD7: 0 | AE7: 0 | AF7: 0 | AG7: 0 | AH7: 0 | AI7: 0 | AJ7: 0 | AK7: 0 | AL7: 0 | AM7: 0 | AN7: 0 | AO7: 0 | AP7: 0 | AQ7: 0 | AR7: 0 | AS7: 0 | AT7: 0 | AU7: 0 | AV7: 0 | AW7: 0 | AX7: 0 | AY7: 65 | AZ7: 75 | BA7: 50 | BB7: 60 | BC7: 0 | BD7: 0 | BE7: 0 | BF7: 0 | BG7: 68 | BH7: 76 | BI7: 0 | BJ7: 71 | BK7: 78 | BL7: 71 | BM7: 87 | BN7: 70 | BO7: 70 | BP7: 80 | BQ7: 80 | BR7: 75 | BS7: 72 | BT7: 82 | BU7: 72 | BV7: 81 | BX7: 0 | BY7: 0 | BZ7: 0 | CA7: 0 | CB7: 0 | CC7: 0 | CD7: 0 | CE7: 0 | CF7: 0 | CG7: 62.5 | CH7: 0 | CI7: 75.5 | CM7: 001501 | CN7: 0.100 | CO7: 50 | CP7: =Tableau_SSRSMSA03_BI_Integration_STEPH_2010[[#This Row],[DAT_NAISSANCE_ELEVE]] -> 2000-05-23 | CQ7: 2009-09-30 | CR7: 3417 | CS7: 9.35523614 | CT7: =IF(AND(LEFT(CO7,1)="1",CS7>5.5),"V",IF(AND(LEFT(CO7,1)="2",CS7>6.5),"V",IF(AND(LEFT(CO7,1)="3",CS7>7.5),"V",IF(AND(LEFT(CO7,1)="4",CS7>8.5),"V",IF(AND(LEFT(CO7,1)="5",CS7>9.5),"V",IF(AND(LEFT(CO7,1)="6",CS7>10.5),"V","J")))))) -> J | CU7: =IF(AJ7=0,0,IF(BH7=0,0,1)) -> 0 | CV7: =DC11&DC12&5 -> 500.1005 | CW7: ="moy "&$CX4 -> moy 20 | CX7: =IF(CX4<5,"",SUMPRODUCT((($CM$2:$CM$338=$CV2)*($CU$2:$CU$338=1)*($AJ$2:$AJ$338>3)*($AJ$2:$AJ$338)/$CX4))) -> 80 | CY7: =IF(CX4<5,"",SUMPRODUCT(($CM$2:$CM$338=$CV2)*($CU$2:$CU$338=1)*($J$2:$J$338="M")*($AJ$2:$AJ$338>3)*($AJ$2:$AJ$338))/$CY4) -> 77.72727273 | CZ7: =IF(CX4<5,"",SUMPRODUCT(($CM$2:$CM$338=$CV2)*($CU$2:$CU$338=1)*($J$2:$J$338="F")*($AJ$2:$AJ$338>3)*($AJ$2:$AJ$338))/$CZ4) -> 82.77777778 | DA7: =IF(CX4<5,"",SUMPRODUCT(($CM$2:$CM$338=$CV2)*($CU$2:$CU$338=1)*($CT$2:$CT$338="J")*($AJ$2:$AJ$338>3)*($AJ$2:$AJ$338))/$DA4) -> 79.28571429 | DB7: =IF(CX4<5,"",SUMPRODUCT(($CM$2:$CM$338=$CV2)*($CU$2:$CU$338=1)*($CT$2:$CT$338="V")*($AJ$2:$AJ$338>3)*($AJ$2:$AJ$338))/$DB4) -> 80.38461538 | DC7: =IF(CX4<5,"",DA10-DB10) -> 0.7223001403 | DD7: 8 | DE7: 8 | DF7: 500.1005 | DG7: =IF(DG4<5,"",SUMPRODUCT((($CM$2:$CM$338=$CV2)*($CU$2:$CU$338=1)*($AN$2:$AN$338>3)*($AN$2:$AN$338)/$CX4))) ->  | DH7: =IF(DG4<5,"",SUMPRODUCT(($CM$2:$CM$338=$CV2)*($CU$2:$CU$338=1)*($J$2:$J$338="M")*($AN$2:$AN$338>3)*($AN$2:$AN$338))/$CY4) ->  | DI7: =IF(DG4<5,"",SUMPRODUCT(($CM$2:$CM$338=$CV2)*($CU$2:$CU$338=1)*($J$2:$J$338="F")*($AN$2:$AN$338>3)*($AN$2:$AN$338))/$CZ4) ->  | DJ7: =IF(DG4<5,"",SUMPRODUCT(($CM$2:$CM$338=$CV2)*($CU$2:$CU$338=1)*($CT$2:$CT$338="J")*($AN$2:$AN$338>3)*($AN$2:$AN$338))/$DA4) ->  | DK7: =IF(DG4<5,"",SUMPRODUCT(($CM$2:$CM$338=$CV2)*($CU$2:$CU$338=1)*($CT$2:$CT$338="V")*($AN$2:$AN$338>3)*($AN$2:$AN$338))/$DB4) ->  | DL7: =IF(DG4<5,"",DJ10-DK10) ->  | DO7: 500.1005 | DP7: =IF(DP4<5,"",SUMPRODUCT((($CM$2:$CM$338=$CV2)*($CU$2:$CU$338=1)*($AR$2:$AR$338>3)*($AR$2:$AR$338)/$CX4))) -> 78.5 | DQ7: =IF(DP4<5,"",SUMPRODUCT(($CM$2:$CM$338=$CV2)*($CU$2:$CU$338=1)*($J$2:$J$338="M")*($AR$2:$AR$338>3)*($AR$2:$AR$338))/$CY4) -> 75.90909091 | DR7: =IF(DP4<5,"",SUMPRODUCT(($CM$2:$CM$338=$CV2)*($CU$2:$CU$338=1)*($J$2:$J$338="F")*($AR$2:$AR$338>3)*($AR$2:$AR$338))/$CZ4) -> 81.66666667 | DS7: =IF(DP4<5,"",SUMPRODUCT(($CM$2:$CM$338=$CV2)*($CU$2:$CU$338=1)*($CT$2:$CT$338="J")*($AR$2:$AR$338>3)*($AR$2:$AR$338))/$DA4) -> 75.71428571 | DT7: =IF(DP4<5,"",SUMPRODUCT(($CM$2:$CM$338=$CV2)*($CU$2:$CU$338=1)*($CT$2:$CT$338="V")*($AR$2:$AR$338>3)*($AR$2:$AR$338))/$DB4) -> 80 | DU7: =IF(DP4<5,"",DS10-DT10) -> -0.117248567 | DV7: 8 | DW7: 8 | DX7: 500.1005 | DY7: =IF(DY4<5,"",SUMPRODUCT((($CM$2:$CM$338=$CV2)*($CU$2:$CU$338=1)*($AV$2:$AV$338>3)*($AV$2:$AV$338)/$CX4))) -> 78.75 | DZ7: =IF(DY4<5,"",SUMPRODUCT(($CM$2:$CM$338=$CV2)*($CU$2:$CU$338=1)*($J$2:$J$338="M")*($AV$2:$AV$338>3)*($AV$2:$AV$338))/$CY4) -> 76.81818182 | EA7: =IF(DY4<5,"",SUMPRODUCT(($CM$2:$CM$338=$CV2)*($CU$2:$CU$338=1)*($J$2:$J$338="F")*($AV$2:$AV$338>3)*($AV$2:$AV$338))/$CZ4) -> 81.11111111 | EB7: =IF(DY4<5,"",SUMPRODUCT(($CM$2:$CM$338=$CV2)*($CU$2:$CU$338=1)*($CT$2:$CT$338="J")*($AV$2:$AV$338>3)*($AV$2:$AV$338))/$DA4) -> 75 | EC7: =IF(DY4<5,"",SUMPRODUCT(($CM$2:$CM$338=$CV2)*($CU$2:$CU$338=1)*($CT$2:$CT$338="V")*($AV$2:$AV$338>3)*($AV$2:$AV$338))/$DB4) -> 80.76923077 | ED7: =IF(DY4<5,"",EB10-EC10) -> -0.544375645 | EE7: 8 | EF7: 8 | EG7: 500.1005 | EH7: =IF(EH4<5,"",SUMPRODUCT((($CM$2:$CM$338=$CV2)*($CU$2:$CU$338=1)*($AZ$2:$AZ$338>3)*($AZ$2:$AZ$338)/$CX4))) -> 76.75 | EI7: =IF(EH4<5,"",SUMPRODUCT(($CM$2:$CM$338=$CV2)*($CU$2:$CU$338=1)*($J$2:$J$338="M")*($AZ$2:$AZ$338>3)*($AZ$2:$AZ$338))/$CY4) -> 76.36363636 | EJ7: =IF(EH4<5,"",SUMPRODUCT(($CM$2:$CM$338=$CV2)*($CU$2:$CU$338=1)*($J$2:$J$338="F")*($AZ$2:$AZ$338>3)*($AZ$2:$AZ$338))/$CZ4) -> 77.22222222 | EK7: =IF(EH4<5,"",SUMPRODUCT(($CM$2:$CM$338=$CV2)*($CU$2:$CU$338=1)*($CT$2:$CT$338="J")*($AZ$2:$AZ$338>3)*($AZ$2:$AZ$338))/$DA4) -> 74.28571429 | EL7: =IF(EH4<5,"",SUMPRODUCT(($CM$2:$CM$338=$CV2)*($CU$2:$CU$338=1)*($CT$2:$CT$338="V")*($AZ$2:$AZ$338>3)*($AZ$2:$AZ$338))/$DB4) -> 78.07692308 | EM7: =IF(EH4<5,"",EK10-EL10) -> 0.7180683394 | EN7: 2 | EO7: 2 | EP7: 500.1005 | EQ7: =IF(EQ4<5,"",SUMPRODUCT((($CM$2:$CM$338=$CV2)*($CU$2:$CU$338=1)*($BD$2:$BD$338>3)*($BD$2:$BD$338)/$CX4))) ->  | ER7: =IF(EQ4<5,"",SUMPRODUCT(($CM$2:$CM$338=$CV2)*($CU$2:$CU$338=1)*($J$2:$J$338="M")*($BD$2:$BD$338>3)*($BD$2:$BD$338))/$CY4) ->  | ES7: =IF(EQ4<5,"",SUMPRODUCT(($CM$2:$CM$338=$CV2)*($CU$2:$CU$338=1)*($J$2:$J$338="F")*($BD$2:$BD$338>3)*($BD$2:$BD$338))/$CZ4) ->  | ET7: =IF(EQ4<5,"",SUMPRODUCT(($CM$2:$CM$338=$CV2)*($CU$2:$CU$338=1)*($CT$2:$CT$338="J")*($BD$2:$BD$338>3)*($BD$2:$BD$338))/$DA4) ->  | EU7: =IF(EQ4<5,"",SUMPRODUCT(($CM$2:$CM$338=$CV2)*($CU$2:$CU$338=1)*($CT$2:$CT$338="V")*($BD$2:$BD$338>3)*($BD$2:$BD$338))/$DB4) ->  | EV7: =IF(EQ4<5,"",ET10-EU10) ->  | EY7: 500.1005 | EZ7: =IF(EZ4<5,"",SUMPRODUCT((($CM$2:$CM$338=$CV2)*($CU$2:$CU$338=1)*($BH$2:$BH$338>3)*($BH$2:$BH$338)/$CX4))) -> 75.25 | FA7: =IF(EZ4<5,"",SUMPRODUCT(($CM$2:$CM$338=$CV2)*($CU$2:$CU$338=1)*($J$2:$J$338="M")*($BH$2:$BH$338>3)*($BH$2:$BH$338))/$CY4) -> 73 | FB7: =IF(EZ4<5,"",SUMPRODUCT(($CM$2:$CM$338=$CV2)*($CU$2:$CU$338=1)*($J$2:$J$338="F")*($BH$2:$BH$338>3)*($BH$2:$BH$338))/$CZ4) -> 78 | FC7: =IF(EZ4<5,"",SUMPRODUCT(($CM$2:$CM$338=$CV2)*($CU$2:$CU$338=1)*($CT$2:$CT$338="J")*($BH$2:$BH$338>3)*($BH$2:$BH$338))/$DA4) -> 73.42857143 | FD7: =IF(EZ4<5,"",SUMPRODUCT(($CM$2:$CM$338=$CV2)*($CU$2:$CU$338=1)*($CT$2:$CT$338="V")*($BH$2:$BH$338>3)*($BH$2:$BH$338))/$DB4) -> 76.23076923 | FE7: =IF(EZ4<5,"",FC10-FD10) -> 1.155724362 | FF7: 2 | FG7: 2 | FH7: 500.1005 | FI7: =IF(FI4<5,"",SUMPRODUCT((($CM$2:$CM$338=$CV2)*($CU$2:$CU$338=1)*($AI$2:$AI$338>3)*($AI$2:$AI$338)/$CX4))) -> 78.75 | FJ7: =IF(FI4<5,"",SUMPRODUCT(($CM$2:$CM$338=$CV2)*($CU$2:$CU$338=1)*($J$2:$J$338="M")*($AI$2:$AI$338>3)*($AI$2:$AI$338))/$CY4) -> 77.27272727 | FK7: =IF(FI4<5,"",SUMPRODUCT(($CM$2:$CM$338=$CV2)*($CU$2:$CU$338=1)*($J$2:$J$338="F")*($AI$2:$AI$338>3)*($AI$2:$AI$338))/$CZ4) -> 80.55555556 | FL7: =IF(FI4<5,"",SUMPRODUCT(($CM$2:$CM$338=$CV2)*($CU$2:$CU$338=1)*($CT$2:$CT$338="J")*($AI$2:$AI$338>3)*($AI$2:$AI$338))/$DA4) -> 76.42857143 | FM7: =IF(FI4<5,"",SUMPRODUCT(($CM$2:$CM$338=$CV2)*($CU$2:$CU$338=1)*($CT$2:$CT$338="V")*($AI$2:$AI$338>3)*($AI$2:$AI$338))/$DB4) -> 80 | FN7: =IF(FI4<5,"",FL10-FM10) -> -1.52173913 | FO7: 8 | FP7: 8 | FQ7: 500.1005 | FR7: =IF(FR4<5,"",SUMPRODUCT((($CM$2:$CM$338=$CV2)*($CU$2:$CU$338=1)*($AM$2:$AM$338>3)*($AM$2:$AM$338)/$CX4))) ->  | FS7: =IF(FR4<5,"",SUMPRODUCT(($CM$2:$CM$338=$CV2)*($CU$2:$CU$338=1)*($J$2:$J$338="M")*($AM$2:$AM$338>3)*($AM$2:$AM$338))/$CY4) ->  | FT7: =IF(FR4<5,"",SUMPRODUCT(($CM$2:$CM$338=$CV2)*($CU$2:$CU$338=1)*($J$2:$J$338="F")*($AM$2:$AM$338>3)*($AM$2:$AM$338))/$CZ4) ->  | FU7: =IF(FR4<5,"",SUMPRODUCT(($CM$2:$CM$338=$CV2)*($CU$2:$CU$338=1)*($CT$2:$CT$338="J")*($AM$2:$AM$338>3)*($AM$2:$AM$338))/$DA4) ->  | FV7: =IF(FR4<5,"",SUMPRODUCT(($CM$2:$CM$338=$CV2)*($CU$2:$CU$338=1)*($CT$2:$CT$338="V")*($AM$2:$AM$338>3)*($AM$2:$AM$338))/$DB4) ->  | FW7: =IF(FR4<5,"",FU10-FV10) ->  | FZ7: 500.1005 | GA7: =IF(GA4<5,"",SUMPRODUCT((($CM$2:$CM$338=$CV2)*($CU$2:$CU$338=1)*($AQ$2:$AQ$338>3)*($AQ$2:$AQ$338)/$CX4))) -> 70.5 | GB7: =IF(GA4<5,"",SUMPRODUCT(($CM$2:$CM$338=$CV2)*($CU$2:$CU$338=1)*($J$2:$J$338="M")*($AQ$2:$AQ$338>3)*($AQ$2:$AQ$338))/$CY4) -> 67.72727273 | GC7: =IF(GA4<5,"",SUMPRODUCT(($CM$2:$CM$338=$CV2)*($CU$2:$CU$338=1)*($J$2:$J$338="F")*($AQ$2:$AQ$338>3)*($AQ$2:$AQ$338))/$CZ4) -> 73.88888889 | GD7: =IF(GA4<5,"",SUMPRODUCT(($CM$2:$CM$338=$CV2)*($CU$2:$CU$338=1)*($CT$2:$CT$338="J")*($AQ$2:$AQ$338>3)*($AQ$2:$AQ$338))/$DA4) -> 67.85714286 | GE7: =IF(GA4<5,"",SUMPRODUCT(($CM$2:$CM$338=$CV2)*($CU$2:$CU$338=1)*($CT$2:$CT$338="V")*($AQ$2:$AQ$338>3)*($AQ$2:$AQ$338))/$DB4) -> 71.92307692 | GF7: =IF(GA4<5,"",GD10-GE10) -> 2.238144867 | GG7: 8 | GH7: 8 | GI7: 500.1005 | GJ7: =IF(GJ4<5,"",SUMPRODUCT((($CM$2:$CM$338=$CV2)*($CU$2:$CU$338=1)*($AU$2:$AU$338>3)*($AU$2:$AU$338)/$CX4))) -> 77.5 | GK7: =IF(GJ4<5,"",SUMPRODUCT(($CM$2:$CM$338=$CV2)*($CU$2:$CU$338=1)*($J$2:$J$338="M")*($AU$2:$AU$338>3)*($AU$2:$AU$338))/$CY4) -> 74.09090909 | GL7: =IF(GJ4<5,"",SUMPRODUCT(($CM$2:$CM$338=$CV2)*($CU$2:$CU$338=1)*($J$2:$J$338="F")*($AU$2:$AU$338>3)*($AU$2:$AU$338))/$CZ4) -> 81.66666667 | GM7: =IF(GJ4<5,"",SUMPRODUCT(($CM$2:$CM$338=$CV2)*($CU$2:$CU$338=1)*($CT$2:$CT$338="J")*($AU$2:$AU$338>3)*($AU$2:$AU$338))/$DA4) -> 73.57142857 | GN7: =IF(GJ4<5,"",SUMPRODUCT(($CM$2:$CM$338=$CV2)*($CU$2:$CU$338=1)*($CT$2:$CT$338="V")*($AU$2:$AU$338>3)*($AU$2:$AU$338))/$DB4) -> 79.61538462 | GO7: =IF(GJ4<5,"",GM10-GN10) -> 0.2182662539 | GP7: 8 | GQ7: 8 | GR7: 500.1005 | GS7: =IF(GS4<5,"",SUMPRODUCT((($CM$2:$CM$338=$CV2)*($CU$2:$CU$338=1)*($AY$2:$AY$338>3)*($AY$2:$AY$338)/$CX4))) -> 76 | GT7: =IF(GS4<5,"",SUMPRODUCT(($CM$2:$CM$338=$CV2)*($CU$2:$CU$338=1)*($J$2:$J$338="M")*($AY$2:$AY$338>3)*($AY$2:$AY$338))/$CY4) -> 73.18181818 | GU7: =IF(GS4<5,"",SUMPRODUCT(($CM$2:$CM$338=$CV2)*($CU$2:$CU$338=1)*($J$2:$J$338="F")*($AY$2:$AY$338>3)*($AY$2:$AY$338))/$CZ4) -> 79.44444444 | GV7: =IF(GS4<5,"",SUMPRODUCT(($CM$2:$CM$338=$CV2)*($CU$2:$CU$338=1)*($CT$2:$CT$338="J")*($AY$2:$AY$338>3)*($AY$2:$AY$338))/$DA4) -> 72.14285714 | GW7: =IF(GS4<5,"",SUMPRODUCT(($CM$2:$CM$338=$CV2)*($CU$2:$CU$338=1)*($CT$2:$CT$338="V")*($AY$2:$AY$338>3)*($AY$2:$AY$338))/$DB4) -> 78.07692308 | GX7: =IF(GS4<5,"",GV10-GW10) -> 0.7792207792 | GY7: 3 | GZ7: 6 | HA7: 500.1005 | HB7: =IF(HB4<5,"",SUMPRODUCT((($CM$2:$CM$338=$CV2)*($CU$2:$CU$338=1)*($BC$2:$BC$338>3)*($BC$2:$BC$338)/$CX4))) ->  | HC7: =IF(HB4<5,"",SUMPRODUCT(($CM$2:$CM$338=$CV2)*($CU$2:$CU$338=1)*($J$2:$J$338="M")*($BC$2:$BC$338>3)*($BC$2:$BC$338))/$CY4) ->  | HD7: =IF(HB4<5,"",SUMPRODUCT(($CM$2:$CM$338=$CV2)*($CU$2:$CU$338=1)*($J$2:$J$338="F")*($BC$2:$BC$338>3)*($BC$2:$BC$338))/$CZ4) ->  | HE7: =IF(HB4<5,"",SUMPRODUCT(($CM$2:$CM$338=$CV2)*($CU$2:$CU$338=1)*($CT$2:$CT$338="J")*($BC$2:$BC$338>3)*($BC$2:$BC$338))/$DA4) ->  | HF7: =IF(HB4<5,"",SUMPRODUCT(($CM$2:$CM$338=$CV2)*($CU$2:$CU$338=1)*($CT$2:$CT$338="V")*($BC$2:$BC$338>3)*($BC$2:$BC$338))/$DB4) ->  | HG7: =IF(HB4<5,"",HE10-HF10) ->  | HJ7: 500.1005 | HK7: =IF(HK4<5,"",SUMPRODUCT((($CM$2:$CM$338=$CV2)*($CU$2:$CU$338=1)*($BG$2:$BG$338>3)*($BG$2:$BG$338)/$CX4))) -> 74.5 | HL7: =IF(HK4<5,"",SUMPRODUCT(($CM$2:$CM$338=$CV2)*($CU$2:$CU$338=1)*($J$2:$J$338="M")*($BG$2:$BG$338>3)*($BG$2:$BG$338))/$CY4) -> 72.09090909 | HM7: =IF(HK4<5,"",SUMPRODUCT(($CM$2:$CM$338=$CV2)*($CU$2:$CU$338=1)*($J$2:$J$338="F")*($BG$2:$BG$338>3)*($BG$2:$BG$338))/$CZ4) -> 77.44444444 | HN7: =IF(HK4<5,"",SUMPRODUCT(($CM$2:$CM$338=$CV2)*($CU$2:$CU$338=1)*($CT$2:$CT$338="J")*($BG$2:$BG$338>3)*($BG$2:$BG$338))/$DA4) -> 70.28571429 | HO7: =IF(HK4<5,"",SUMPRODUCT(($CM$2:$CM$338=$CV2)*($CU$2:$CU$338=1)*($CT$2:$CT$338="V")*($BG$2:$BG$338>3)*($BG$2:$BG$338))/$DB4) -> 76.76923077 | HP7: =IF(HK4<5,"",HN10-HO10) -> 1.91020076 | HQ7: 2 | HR7: 3 | HS7: 500.1005 | HT7: =IF(HT4<5,"",SUMPRODUCT((($CM$2:$CM$338=$CV2)*($CU$2:$CU$338=1)*($AL$2:$AL$338>3)*($AL$2:$AL$338)/$CX4))) -> 80.75 | HU7: =IF(HT4<5,"",SUMPRODUCT(($CM$2:$CM$338=$CV2)*($CU$2:$CU$338=1)*($J$2:$J$338="M")*($AL$2:$AL$338>3)*($AL$2:$AL$338))/$CY4) -> 81.36363636 | HV7: =IF(HT4<5,"",SUMPRODUCT(($CM$2:$CM$338=$CV2)*($CU$2:$CU$338=1)*($J$2:$J$338="F")*($AL$2:$AL$338>3)*($AL$2:$AL$338))/$CZ4) -> 80 | HW7: =IF(HT4<5,"",SUMPRODUCT(($CM$2:$CM$338=$CV2)*($CU$2:$CU$338=1)*($CT$2:$CT$338="J")*($AL$2:$AL$338>3)*($AL$2:$AL$338))/$DA4) -> 79.28571429 | HX7: =IF(HT4<5,"",SUMPRODUCT(($CM$2:$CM$338=$CV2)*($CU$2:$CU$338=1)*($CT$2:$CT$338="V")*($AL$2:$AL$338>3)*($AL$2:$AL$338))/$DB4) -> 81.53846154 | HY7: =IF(HT4<5,"",HW10-HX10) -> 0.2870842074 | HZ7: 8 | IA7: 8 | IB7: 500.1005 | IC7: =IF(IC4<5,"",SUMPRODUCT((($CM$2:$CM$338=$CV2)*($CU$2:$CU$338=1)*($AP$2:$AP$338>3)*($AP$2:$AP$338)/$CX4))) ->  | ID7: =IF(IC4<5,"",SUMPRODUCT(($CM$2:$CM$338=$CV2)*($CU$2:$CU$338=1)*($J$2:$J$338="M")*($AP$2:$AP$338>3)*($AP$2:$AP$338))/$CY4) ->  | IE7: =IF(IC4<5,"",SUMPRODUCT(($CM$2:$CM$338=$CV2)*($CU$2:$CU$338=1)*($J$2:$J$338="F")*($AP$2:$AP$338>3)*($AP$2:$AP$338))/$CZ4) ->  | IF7: =IF(IC4<5,"",SUMPRODUCT(($CM$2:$CM$338=$CV2)*($CU$2:$CU$338=1)*($CT$2:$CT$338="J")*($AP$2:$AP$338>3)*($AP$2:$AP$338))/$DA4) ->  | IG7: =IF(IC4<5,"",SUMPRODUCT(($CM$2:$CM$338=$CV2)*($CU$2:$CU$338=1)*($CT$2:$CT$338="V")*($AP$2:$AP$338>3)*($AP$2:$AP$338))/$DB4) ->  | IH7: =IF(IC4<5,"",IF10-IG10) ->  | IK7: 500.1005 | IL7: =IF(IL4<5,"",SUMPRODUCT((($CM$2:$CM$338=$CV2)*($CU$2:$CU$338=1)*($AT$2:$AT$338>3)*($AT$2:$AT$338)/$CX4))) -> 77.25 | IM7: =IF(IL4<5,"",SUMPRODUCT(($CM$2:$CM$338=$CV2)*($CU$2:$CU$338=1)*($J$2:$J$338="M")*($AT$2:$AT$338>3)*($AT$2:$AT$338))/$CY4) -> 77.27272727 | IN7: =IF(IL4<5,"",SUMPRODUCT(($CM$2:$CM$338=$CV2)*($CU$2:$CU$338=1)*($J$2:$J$338="F")*($AT$2:$AT$338>3)*($AT$2:$AT$338))/$CZ4) -> 77.22222222 | IO7: =IF(IL4<5,"",SUMPRODUCT(($CM$2:$CM$338=$CV2)*($CU$2:$CU$338=1)*($CT$2:$CT$338="J")*($AT$2:$AT$338>3)*($AT$2:$AT$338))/$DA4) -> 76.42857143 | IP7: =IF(IL4<5,"",SUMPRODUCT(($CM$2:$CM$338=$CV2)*($CU$2:$CU$338=1)*($CT$2:$CT$338="V")*($AT$2:$AT$338>3)*($AT$2:$AT$338))/$DB4) -> 77.69230769 | IQ7: =IF(IL4<5,"",IO10-IP10) -> 0.2305888484 | IR7: 8 | IS7: 8 | IT7: 500.1005 | IU7: =IF(IU4<5,"",SUMPRODUCT((($CM$2:$CM$338=$CV2)*($CU$2:$CU$338=1)*($AX$2:$AX$338>3)*($AX$2:$AX$338)/$CX4))) -> 78 | IV7: =IF(IU4<5,"",SUMPRODUCT(($CM$2:$CM$338=$CV2)*($CU$2:$CU$338=1)*($J$2:$J$338="M")*($AX$2:$AX$338>3)*($AX$2:$AX$338))/$CY4) -> 78.63636364 | IW7: =IF(IU4<5,"",SUMPRODUCT(($CM$2:$CM$338=$CV2)*($CU$2:$CU$338=1)*($J$2:$J$338="F")*($AX$2:$AX$338>3)*($AX$2:$AX$338))/$CZ4) -> 77.22222222 | IX7: =IF(IU4<5,"",SUMPRODUCT(($CM$2:$CM$338=$CV2)*($CU$2:$CU$338=1)*($CT$2:$CT$338="J")*($AX$2:$AX$338>3)*($AX$2:$AX$338))/$DA4) -> 75 | IY7: =IF(IU4<5,"",SUMPRODUCT(($CM$2:$CM$338=$CV2)*($CU$2:$CU$338=1)*($CT$2:$CT$338="V")*($AX$2:$AX$338>3)*($AX$2:$AX$338))/$DB4) -> 79.61538462 | IZ7: =IF(IU4<5,"",IX10-IY10) -> -1.344169247 | JA7: 8 | JB7: 8 | JC7: 500.1005 | JD7: =IF(JD4<5,"",SUMPRODUCT((($CM$2:$CM$338=$CV2)*($CU$2:$CU$338=1)*($BB$2:$BB$338>3)*($BB$2:$BB$338)/$CX4))) -> 70.75 | JE7: =IF(JD4<5,"",SUMPRODUCT(($CM$2:$CM$338=$CV2)*($CU$2:$CU$338=1)*($J$2:$J$338="M")*($BB$2:$BB$338>3)*($BB$2:$BB$338))/$CY4) -> 70.90909091 | JF7: =IF(JD4<5,"",SUMPRODUCT(($CM$2:$CM$338=$CV2)*($CU$2:$CU$338=1)*($J$2:$J$338="F")*($BB$2:$BB$338>3)*($BB$2:$BB$338))/$CZ4) -> 70.55555556 | JG7: =IF(JD4<5,"",SUMPRODUCT(($CM$2:$CM$338=$CV2)*($CU$2:$CU$338=1)*($CT$2:$CT$338="J")*($BB$2:$BB$338>3)*($BB$2:$BB$338))/$DA4) -> 66.42857143 | JH7: =IF(JD4<5,"",SUMPRODUCT(($CM$2:$CM$338=$CV2)*($CU$2:$CU$338=1)*($CT$2:$CT$338="V")*($BB$2:$BB$338>3)*($BB$2:$BB$338))/$DB4) -> 73.07692308 | JI7: =IF(JD4<5,"",JG10-JH10) -> 1.105787416 | JJ7: 3 | JK7: 6 | JL7: 500.1005 | JM7: =IF(JM4<5,"",SUMPRODUCT((($CM$2:$CM$338=$CV2)*($CU$2:$CU$338=1)*($BF$2:$BF$338>3)*($BF$2:$BF$338)/$CX4))) ->  | JN7: =IF(JM4<5,"",SUMPRODUCT(($CM$2:$CM$338=$CV2)*($CU$2:$CU$338=1)*($J$2:$J$338="M")*($BF$2:$BF$338>3)*($BF$2:$BF$338))/$CY4) ->  | JO7: =IF(JM4<5,"",SUMPRODUCT(($CM$2:$CM$338=$CV2)*($CU$2:$CU$338=1)*($J$2:$J$338="F")*($BF$2:$BF$338>3)*($BF$2:$BF$338))/$CZ4) ->  | JP7: =IF(JM4<5,"",SUMPRODUCT(($CM$2:$CM$338=$CV2)*($CU$2:$CU$338=1)*($CT$2:$CT$338="J")*($BF$2:$BF$338>3)*($BF$2:$BF$338))/$DA4) ->  | JQ7: =IF(JM4<5,"",SUMPRODUCT(($CM$2:$CM$338=$CV2)*($CU$2:$CU$338=1)*($CT$2:$CT$338="V")*($BF$2:$BF$338>3)*($BF$2:$BF$338))/$DB4) ->  | JR7: =IF(JM4<5,"",JP10-JQ10) ->  | JU7: 500.1005 | JV7: =IF(JV4<5,"",SUMPRODUCT((($CM$2:$CM$338=$CV2)*($CU$2:$CU$338=1)*($BJ$2:$BJ$338>3)*($BJ$2:$BJ$338)/$CX4))) -> 73.25 | JW7: =IF(JV4<5,"",SUMPRODUCT(($CM$2:$CM$338=$CV2)*($CU$2:$CU$338=1)*($J$2:$J$338="M")*($BJ$2:$BJ$338>3)*($BJ$2:$BJ$338))/$CY4) -> 71.63636364 | JX7: =IF(JV4<5,"",SUMPRODUCT(($CM$2:$CM$338=$CV2)*($CU$2:$CU$338=1)*($J$2:$J$338="F")*($BJ$2:$BJ$338>3)*($BJ$2:$BJ$338))/$CZ4) -> 75.22222222 | JY7: =IF(JV4<5,"",SUMPRODUCT(($CM$2:$CM$338=$CV2)*($CU$2:$CU$338=1)*($CT$2:$CT$338="J")*($BJ$2:$BJ$338>3)*($BJ$2:$BJ$338))/$DA4) -> 67.85714286 | JZ7: =IF(JV4<5,"",SUMPRODUCT(($CM$2:$CM$338=$CV2)*($CU$2:$CU$338=1)*($CT$2:$CT$338="V")*($BJ$2:$BJ$338>3)*($BJ$2:$BJ$338))/$DB4) -> 76.15384615 | KA7: =IF(JV4<5,"",JY10-JZ10) -> -0.1190992946 | KB7: 2 | KC7: 3 | KD7: 500.1005 | KE7: =IF(KE4<5,"",SUMPRODUCT((($CM$2:$CM$338=$CV2)*($CU$2:$CU$338=1)*($AK$2:$AK$338>3)*($AK$2:$AK$338)/$CX4))) -> 77 | KF7: =IF(KE4<5,"",SUMPRODUCT(($CM$2:$CM$338=$CV2)*($CU$2:$CU$338=1)*($J$2:$J$338="M")*($AK$2:$AK$338>3)*($AK$2:$AK$338))/$CY4) -> 77.72727273 | KG7: =IF(KE4<5,"",SUMPRODUCT(($CM$2:$CM$338=$CV2)*($CU$2:$CU$338=1)*($J$2:$J$338="F")*($AK$2:$AK$338>3)*($AK$2:$AK$338))/$CZ4) -> 76.11111111 | KH7: =IF(KE4<5,"",SUMPRODUCT(($CM$2:$CM$338=$CV2)*($CU$2:$CU$338=1)*($CT$2:$CT$338="J")*($AK$2:$AK$338>3)*($AK$2:$AK$338))/$DA4) -> 82.14285714 | KI7: =IF(KE4<5,"",SUMPRODUCT(($CM$2:$CM$338=$CV2)*($CU$2:$CU$338=1)*($CT$2:$CT$338="V")*($AK$2:$AK$338>3)*($AK$2:$AK$338))/$DB4) -> 74.23076923 | KJ7: =IF(KE4<5,"",KH10-KI10) -> -0.3913043478 | KK7: 8 | KL7: 8 | KM7: 500.1005 | KN7: =IF(KN4<5,"",SUMPRODUCT((($CM$2:$CM$338=$CV2)*($CU$2:$CU$338=1)*($AO$2:$AO$338>3)*($AO$2:$AO$338)/$CX4))) ->  | KO7: =IF(KN4<5,"",SUMPRODUCT(($CM$2:$CM$338=$CV2)*($CU$2:$CU$338=1)*($J$2:$J$338="M")*($AO$2:$AO$338>3)*($AO$2:$AO$338))/$CY4) ->  | KP7: =IF(KN4<5,"",SUMPRODUCT(($CM$2:$CM$338=$CV2)*($CU$2:$CU$338=1)*($J$2:$J$338="F")*($AO$2:$AO$338>3)*($AO$2:$AO$338))/$CZ4) ->  | KQ7: =IF(KN4<5,"",SUMPRODUCT(($CM$2:$CM$338=$CV2)*($CU$2:$CU$338=1)*($CT$2:$CT$338="J")*($AO$2:$AO$338>3)*($AO$2:$AO$338))/$DA4) ->  | KR7: =IF(KN4<5,"",SUMPRODUCT(($CM$2:$CM$338=$CV2)*($CU$2:$CU$338=1)*($CT$2:$CT$338="V")*($AO$2:$AO$338>3)*($AO$2:$AO$338))/$DB4) ->  | KS7: =IF(KN4<5,"",KQ10-KR10) ->  | KV7: 500.1005 | KW7: =IF(KW4<5,"",SUMPRODUCT((($CM$2:$CM$338=$CV2)*($CU$2:$CU$338=1)*($AS$2:$AS$338>3)*($AS$2:$AS$338)/$CX4))) ->  | KX7: =IF(KW4<5,"",SUMPRODUCT(($CM$2:$CM$338=$CV2)*($CU$2:$CU$338=1)*($J$2:$J$338="M")*($AS$2:$AS$338>3)*($AS$2:$AS$338))/$CY4) ->  | KY7: =IF(KW4<5,"",SUMPRODUCT(($CM$2:$CM$338=$CV2)*($CU$2:$CU$338=1)*($J$2:$J$338="F")*($AS$2:$AS$338>3)*($AS$2:$AS$338))/$CZ4) ->  | KZ7: =IF(KW4<5,"",SUMPRODUCT(($CM$2:$CM$338=$CV2)*($CU$2:$CU$338=1)*($CT$2:$CT$338="J")*($AS$2:$AS$338>3)*($AS$2:$AS$338))/$DA4) ->  | LA7: =IF(KW4<5,"",SUMPRODUCT(($CM$2:$CM$338=$CV2)*($CU$2:$CU$338=1)*($CT$2:$CT$338="V")*($AS$2:$AS$338>3)*($AS$2:$AS$338))/$DB4) ->  | LB7: =IF(KW4<5,"",KZ10-LA10) ->  | LE7: 500.1005 | LF7: =IF(LF4<5,"",SUMPRODUCT((($CM$2:$CM$338=$CV2)*($CU$2:$CU$338=1)*($AW$2:$AW$338>3)*($AW$2:$AW$338)/$CX4))) -> 75 | LG7: =IF(LF4<5,"",SUMPRODUCT(($CM$2:$CM$338=$CV2)*($CU$2:$CU$338=1)*($J$2:$J$338="M")*($AW$2:$AW$338>3)*($AW$2:$AW$338))/$CY4) -> 75 | LH7: =IF(LF4<5,"",SUMPRODUCT(($CM$2:$CM$338=$CV2)*($CU$2:$CU$338=1)*($J$2:$J$338="F")*($AW$2:$AW$338>3)*($AW$2:$AW$338))/$CZ4) -> 75 | LI7: =IF(LF4<5,"",SUMPRODUCT(($CM$2:$CM$338=$CV2)*($CU$2:$CU$338=1)*($CT$2:$CT$338="J")*($AW$2:$AW$338>3)*($AW$2:$AW$338))/$DA4) -> 72.85714286 | LJ7: =IF(LF4<5,"",SUMPRODUCT(($CM$2:$CM$338=$CV2)*($CU$2:$CU$338=1)*($CT$2:$CT$338="V")*($AW$2:$AW$338>3)*($AW$2:$AW$338))/$DB4) -> 76.15384615 | LK7: =IF(LF4<5,"",LI10-LJ10) -> -4.12745098 | LL7: 8 | LM7: 8 | LN7: 500.1005 | LO7: =IF(LO4<5,"",SUMPRODUCT((($CM$2:$CM$338=$CV2)*($CU$2:$CU$338=1)*($BA$2:$BA$338>3)*($BA$2:$BA$338)/$CX4))) -> 71 | LP7: =IF(LO4<5,"",SUMPRODUCT(($CM$2:$CM$338=$CV2)*($CU$2:$CU$338=1)*($J$2:$J$338="M")*($BA$2:$BA$338>3)*($BA$2:$BA$338))/$CY4) -> 69.54545455 | LQ7: =IF(LO4<5,"",SUMPRODUCT(($CM$2:$CM$338=$CV2)*($CU$2:$CU$338=1)*($J$2:$J$338="F")*($BA$2:$BA$338>3)*($BA$2:$BA$338))/$CZ4) -> 72.77777778 | LR7: =IF(LO4<5,"",SUMPRODUCT(($CM$2:$CM$338=$CV2)*($CU$2:$CU$338=1)*($CT$2:$CT$338="J")*($BA$2:$BA$338>3)*($BA$2:$BA$338))/$DA4) -> 65.71428571 | LS7: =IF(LO4<5,"",SUMPRODUCT(($CM$2:$CM$338=$CV2)*($CU$2:$CU$338=1)*($CT$2:$CT$338="V")*($BA$2:$BA$338>3)*($BA$2:$BA$338))/$DB4) -> 73.84615385 | LT7: =IF(LO4<5,"",LR10-LS10) -> -2.137813643 | LU7: 4 | LV7: 4 | LW7: 500.1005 | LX7: =IF(LX4<5,"",SUMPRODUCT((($CM$2:$CM$338=$CV2)*($CU$2:$CU$338=1)*($BE$2:$BE$338>3)*($BE$2:$BE$338)/$CX4))) ->  | LY7: =IF(LX4<5,"",SUMPRODUCT(($CM$2:$CM$338=$CV2)*($CU$2:$CU$338=1)*($J$2:$J$338="M")*($BE$2:$BE$338>3)*($BE$2:$BE$338))/$CY4) ->  | LZ7: =IF(LX4<5,"",SUMPRODUCT(($CM$2:$CM$338=$CV2)*($CU$2:$CU$338=1)*($J$2:$J$338="F")*($BE$2:$BE$338>3)*($BE$2:$BE$338))/$CZ4) ->  | MA7: =IF(LX4<5,"",SUMPRODUCT(($CM$2:$CM$338=$CV2)*($CU$2:$CU$338=1)*($CT$2:$CT$338="J")*($BE$2:$BE$338>3)*($BE$2:$BE$338))/$DA4) ->  | MB7: =IF(LX4<5,"",SUMPRODUCT(($CM$2:$CM$338=$CV2)*($CU$2:$CU$338=1)*($CT$2:$CT$338="V")*($BE$2:$BE$338>3)*($BE$2:$BE$338))/$DB4) ->  | MC7: =IF(LX4<5,"",MA10-MB10) ->  | MF7: 500.1005 | MG7: =IF(MG4<5,"",SUMPRODUCT((($CM$2:$CM$338=$CV2)*($CU$2:$CU$338=1)*($BI$2:$BI$338>3)*($BI$2:$BI$338)/$CX4))) ->  | MH7: =IF(MG4<5,"",SUMPRODUCT(($CM$2:$CM$338=$CV2)*($CU$2:$CU$338=1)*($J$2:$J$338="M")*($BI$2:$BI$338>3)*($BI$2:$BI$338))/$CY4) ->  | MI7: =IF(MG4<5,"",SUMPRODUCT(($CM$2:$CM$338=$CV2)*($CU$2:$CU$338=1)*($J$2:$J$338="F")*($BI$2:$BI$338>3)*($BI$2:$BI$338))/$CZ4) ->  | MJ7: =IF(MG4<5,"",SUMPRODUCT(($CM$2:$CM$338=$CV2)*($CU$2:$CU$338=1)*($CT$2:$CT$338="J")*($BI$2:$BI$338>3)*($BI$2:$BI$338))/$DA4) ->  | MK7: =IF(MG4<5,"",SUMPRODUCT(($CM$2:$CM$338=$CV2)*($CU$2:$CU$338=1)*($CT$2:$CT$338="V")*($BI$2:$BI$338>3)*($BI$2:$BI$338))/$DB4) ->  | ML7: =IF(MG4<5,"",MJ10-MK10) ->  | MO7: 500.1005 | MP7: =IF(MP4<5,"",SUMPRODUCT((($CM$2:$CM$338=$CV2)*($CU$2:$CU$338=1)*($BM$2:$BM$338>3)*($BM$2:$BM$338)/$CX4))) -> 65.15 | MQ7: =IF(MP4<5,"",SUMPRODUCT(($CM$2:$CM$338=$CV2)*($CU$2:$CU$338=1)*($J$2:$J$338="M")*($BM$2:$BM$338>3)*($BM$2:$BM$338))/$CY4) -> 66.72727273 | MR7: =IF(MP4<5,"",SUMPRODUCT(($CM$2:$CM$338=$CV2)*($CU$2:$CU$338=1)*($J$2:$J$338="F")*($BM$2:$BM$338>3)*($BM$2:$BM$338))/$CZ4) -> 63.22222222 | MS7: =IF(MP4<5,"",SUMPRODUCT(($CM$2:$CM$338=$CV2)*($CU$2:$CU$338=1)*($CT$2:$CT$338="J")*($BM$2:$BM$338>3)*($BM$2:$BM$338))/$DA4) -> 69 | MT7: =IF(MP4<5,"",SUMPRODUCT(($CM$2:$CM$338=$CV2)*($CU$2:$CU$338=1)*($CT$2:$CT$338="V")*($BM$2:$BM$338>3)*($BM$2:$BM$338))/$DB4) -> 63.07692308 | MU7: =IF(MP4<5,"",MS10-MT10) -> -1.312114198 | MV7: 1 | MW7: 1 | MX7: 500.1005 | MY7: =IF(MY4<5,"",SUMPRODUCT((($CM$2:$CM$338=$CV2)*($CU$2:$CU$338=1)*($CC$2:$CC$338>3)*($CC$2:$CC$338)/$CX4))) -> 79.125 | MZ7: =IF(MY4<5,"",SUMPRODUCT(($CM$2:$CM$338=$CV2)*($CU$2:$CU$338=1)*($J$2:$J$338="M")*($CC$2:$CC$338>3)*($CC$2:$CC$338))/$CY4) -> 78.52272727 | NA7: =IF(MY4<5,"",SUMPRODUCT(($CM$2:$CM$338=$CV2)*($CU$2:$CU$338=1)*($J$2:$J$338="F")*($CC$2:$CC$338>3)*($CC$2:$CC$338))/$CZ4) -> 79.86111111 | NB7: =IF(MY4<5,"",SUMPRODUCT(($CM$2:$CM$338=$CV2)*($CU$2:$CU$338=1)*($CT$2:$CT$338="J")*($CC$2:$CC$338>3)*($CC$2:$CC$338))/$DA4) -> 79.28571429 | NC7: =IF(MY4<5,"",SUMPRODUCT(($CM$2:$CM$338=$CV2)*($CU$2:$CU$338=1)*($CT$2:$CT$338="V")*($CC$2:$CC$338>3)*($CC$2:$CC$338))/$DB4) -> 79.03846154 | ND7: =IF(MY4<5,"",NB10-NC10) -> -0.2259147827 | NE7: 8 | NF7: 8 | NG7: 500.1005 | NH7: =IF(NH4<5,"",SUMPRODUCT((($CM$2:$CM$338=$CV2)*($CU$2:$CU$338=1)*($CD$2:$CD$338>3)*($CD$2:$CD$338)/$CX4))) ->  | NI7: =IF(NH4<5,"",SUMPRODUCT(($CM$2:$CM$338=$CV2)*($CU$2:$CU$338=1)*($J$2:$J$338="M")*($CD$2:$CD$338>3)*($CD$2:$CD$338))/$CY4) ->  | NJ7: =IF(NH4<5,"",SUMPRODUCT(($CM$2:$CM$338=$CV2)*($CU$2:$CU$338=1)*($J$2:$J$338="F")*($CD$2:$CD$338>3)*($CD$2:$CD$338))/$CZ4) ->  | NK7: =IF(NH4<5,"",SUMPRODUCT(($CM$2:$CM$338=$CV2)*($CU$2:$CU$338=1)*($CT$2:$CT$338="J")*($CD$2:$CD$338>3)*($CD$2:$CD$338))/$DA4) ->  | NL7: =IF(NH4<5,"",SUMPRODUCT(($CM$2:$CM$338=$CV2)*($CU$2:$CU$338=1)*($CT$2:$CT$338="V")*($CD$2:$CD$338>3)*($CD$2:$CD$338))/$DB4) ->  | NM7: =IF(NH4<5,"",NK10-NL10) ->  | NP7: 500.1005 | NQ7: =IF(NQ4<5,"",SUMPRODUCT((($CM$2:$CM$338=$CV2)*($CU$2:$CU$338=1)*($CE$2:$CE$338>3)*($CE$2:$CE$338)/$CX4))) -> 75.41666667 | NR7: =IF(NQ4<5,"",SUMPRODUCT(($CM$2:$CM$338=$CV2)*($CU$2:$CU$338=1)*($J$2:$J$338="M")*($CE$2:$CE$338>3)*($CE$2:$CE$338))/$CY4) -> 73.63636364 | NS7: =IF(NQ4<5,"",SUMPRODUCT(($CM$2:$CM$338=$CV2)*($CU$2:$CU$338=1)*($J$2:$J$338="F")*($CE$2:$CE$338>3)*($CE$2:$CE$338))/$CZ4) -> 77.59259259 | NT7: =IF(NQ4<5,"",SUMPRODUCT(($CM$2:$CM$338=$CV2)*($CU$2:$CU$338=1)*($CT$2:$CT$338="J")*($CE$2:$CE$338>3)*($CE$2:$CE$338))/$DA4) -> 73.33333333 | NU7: =IF(NQ4<5,"",SUMPRODUCT(($CM$2:$CM$338=$CV2)*($CU$2:$CU$338=1)*($CT$2:$CT$338="V")*($CE$2:$CE$338>3)*($CE$2:$CE$338))/$DB4) -> 76.53846154 | NV7: =IF(NQ4<5,"",NT10-NU10) ->  | NW7: 8 | NX7: 8 | NY7: 500.1005 | NZ7: =IF(NZ4<5,"",SUMPRODUCT((($CM$2:$CM$338=$CV2)*($CU$2:$CU$338=1)*($CF$2:$CF$338>3)*($CF$2:$CF$338)/$CX4))) -> 77.3125 | OA7: =IF(NZ4<5,"",SUMPRODUCT(($CM$2:$CM$338=$CV2)*($CU$2:$CU$338=1)*($J$2:$J$338="M")*($CF$2:$CF$338>3)*($CF$2:$CF$338))/$CY4) -> 76.13636364 | OB7: =IF(NZ4<5,"",SUMPRODUCT(($CM$2:$CM$338=$CV2)*($CU$2:$CU$338=1)*($J$2:$J$338="F")*($CF$2:$CF$338>3)*($CF$2:$CF$338))/$CZ4) -> 78.75 | OC7: =IF(NZ4<5,"",SUMPRODUCT(($CM$2:$CM$338=$CV2)*($CU$2:$CU$338=1)*($CT$2:$CT$338="J")*($CF$2:$CF$338>3)*($CF$2:$CF$338))/$DA4) -> 74.10714286 | OD7: =IF(NZ4<5,"",SUMPRODUCT(($CM$2:$CM$338=$CV2)*($CU$2:$CU$338=1)*($CT$2:$CT$338="V")*($CF$2:$CF$338>3)*($CF$2:$CF$338))/$DB4) -> 79.03846154 | OE7: =IF(NZ4<5,"",OC10-OD10) -> -1.449432405 | OF7: 8 | OG7: 8 | OH7: 500.1005 | OI7: =IF(OI4<5,"",SUMPRODUCT((($CM$2:$CM$338=$CV2)*($CU$2:$CU$338=1)*($CG$2:$CG$338>3)*($CG$2:$CG$338)/$CX4))) -> 73.625 | OJ7: =IF(OI4<5,"",SUMPRODUCT(($CM$2:$CM$338=$CV2)*($CU$2:$CU$338=1)*($J$2:$J$338="M")*($CG$2:$CG$338>3)*($CG$2:$CG$338))/$CY4) -> 72.5 | OK7: =IF(OI4<5,"",SUMPRODUCT(($CM$2:$CM$338=$CV2)*($CU$2:$CU$338=1)*($J$2:$J$338="F")*($CG$2:$CG$338>3)*($CG$2:$CG$338))/$CZ4) -> 75 | OL7: =IF(OI4<5,"",SUMPRODUCT(($CM$2:$CM$338=$CV2)*($CU$2:$CU$338=1)*($CT$2:$CT$338="J")*($CG$2:$CG$338>3)*($CG$2:$CG$338))/$DA4) -> 69.64285714 | OM7: =IF(OI4<5,"",SUMPRODUCT(($CM$2:$CM$338=$CV2)*($CU$2:$CU$338=1)*($CT$2:$CT$338="V")*($CG$2:$CG$338>3)*($CG$2:$CG$338))/$DB4) -> 75.76923077 | ON7: =IF(OI4<5,"",OL10-OM10) -> 0.1163157231 | OO7: 3 | OP7: 6 | OQ7: 500.1005 | OR7: =IF(OR4<5,"",SUMPRODUCT((($CM$2:$CM$338=$CV2)*($CU$2:$CU$338=1)*($CH$2:$CH$338>3)*($CH$2:$CH$338)/$CX4))) ->  | OS7: =IF(OR4<5,"",SUMPRODUCT(($CM$2:$CM$338=$CV2)*($CU$2:$CU$338=1)*($J$2:$J$338="M")*($CH$2:$CH$338>3)*($CH$2:$CH$338))/$CY4) ->  | OT7: =IF(OR4<5,"",SUMPRODUCT(($CM$2:$CM$338=$CV2)*($CU$2:$CU$338=1)*($J$2:$J$338="F")*($CH$2:$CH$338>3)*($CH$2:$CH$338))/$CZ4) ->  | OU7: =IF(OR4<5,"",SUMPRODUCT(($CM$2:$CM$338=$CV2)*($CU$2:$CU$338=1)*($CT$2:$CT$338="J")*($CH$2:$CH$338>3)*($CH$2:$CH$338))/$DA4) ->  | OV7: =IF(OR4<5,"",SUMPRODUCT(($CM$2:$CM$338=$CV2)*($CU$2:$CU$338=1)*($CT$2:$CT$338="V")*($CH$2:$CH$338>3)*($CH$2:$CH$338))/$DB4) ->  | OW7: =IF(OR4<5,"",OU10-OV10) ->  | OZ7: 500.1005 | PA7: =IF(PA4<5,"",SUMPRODUCT((($CM$2:$CM$338=$CV2)*($CU$2:$CU$338=1)*($CI$2:$CI$338>3)*($CI$2:$CI$338)/$CX4))) -> 74.35 | PB7: =IF(PA4<5,"",SUMPRODUCT(($CM$2:$CM$338=$CV2)*($CU$2:$CU$338=1)*($J$2:$J$338="M")*($CI$2:$CI$338>3)*($CI$2:$CI$338))/$CY4) -> 70.86363636 | PC7: =IF(PA4<5,"",SUMPRODUCT(($CM$2:$CM$338=$CV2)*($CU$2:$CU$338=1)*($J$2:$J$338="F")*($CI$2:$CI$338>3)*($CI$2:$CI$338))/$CZ4) -> 78.61111111 | PD7: =IF(PA4<5,"",SUMPRODUCT(($CM$2:$CM$338=$CV2)*($CU$2:$CU$338=1)*($CT$2:$CT$338="J")*($CI$2:$CI$338>3)*($CI$2:$CI$338))/$DA4) -> 70.14285714 | PE7: =IF(PA4<5,"",SUMPRODUCT(($CM$2:$CM$338=$CV2)*($CU$2:$CU$338=1)*($CT$2:$CT$338="V")*($CI$2:$CI$338>3)*($CI$2:$CI$338))/$DB4) -> 76.61538462 | PF7: =IF(PA4<5,"",PD10-PE10) -> 0.2901823927 | PG7: 2 | PH7: 2
A8: 2010 | B8: 001 | C8: 501 | F8: 0 | G8: 1999-06-01 | J8: M | K8: 0 | L8: 0 | M8: 0 | N8: 0 | O8: 0 | P8: 0 | Q8: 0 | R8: 0 | S8: 0 | T8: 0 | U8: 0 | V8: 0 | W8: 0 | X8: 0 | Y8: 0 | Z8: 0 | AA8: 0 | AB8: 0 | AC8: 0 | AD8: 0 | AE8: 0 | AF8: 0 | AG8: 0 | AH8: 80 | AI8: 0 | AJ8: 0 | AK8: 0 | AL8: 80 | AM8: 0 | AN8: 0 | AO8: 0 | AP8: 0 | AQ8: 70 | AR8: 75 | AS8: 0 | AT8: 90 | AU8: 80 | AV8: 80 | AW8: 75 | AX8: 80 | AY8: 80 | AZ8: 75 | BA8: 80 | BB8: 85 | BC8: 0 | BD8: 0 | BE8: 0 | BF8: 0 | BG8: 76 | BH8: 64 | BI8: 0 | BJ8: 79 | BK8: 80 | BL8: 85 | BM8: 95 | BN8: 80 | BO8: 75 | BP8: 75 | BQ8: 80 | BR8: 90 | BS8: 76 | BT8: 75 | BU8: 99 | BV8: 93 | BX8: 0 | BY8: 0 | BZ8: 0 | CA8: 0 | CB8: 0 | CC8: 0 | CD8: 0 | CE8: 78.33333333 | CF8: 78.75 | CG8: 80 | CH8: 0 | CI8: 78.5 | CM8: 001501 | CN8: 0.100 | CO8: 50 | CP8: =Tableau_SSRSMSA03_BI_Integration_STEPH_2010[[#This Row],[DAT_NAISSANCE_ELEVE]] -> 1999-06-01 | CQ8: 2009-09-30 | CR8: 3774 | CS8: 10.33264887 | CT8: =IF(AND(LEFT(CO8,1)="1",CS8>5.5),"V",IF(AND(LEFT(CO8,1)="2",CS8>6.5),"V",IF(AND(LEFT(CO8,1)="3",CS8>7.5),"V",IF(AND(LEFT(CO8,1)="4",CS8>8.5),"V",IF(AND(LEFT(CO8,1)="5",CS8>9.5),"V",IF(AND(LEFT(CO8,1)="6",CS8>10.5),"V","J")))))) -> V | CU8: =IF(AJ8=0,0,IF(BH8=0,0,1)) -> 0 | CV8: =DC11&DC12&6 -> 500.1006 | CW8: ="ecar "&$CX4 -> ecar 20 | CX8: =IF(CX4<5,"",STDEV(IF(($CM$2:$CM$338=$CV2)*($CU$2:$CU$338=1)*($AJ$2:$AJ$338>3),($AJ$2:$AJ$338)))) -> 7.433919417 | CY8: =IF(CX4<5,"",STDEV(IF(($CM$2:$CM$338=$CV2)*($CU$2:$CU$338=1)*($J$2:$J$338="M")*($AJ$2:$AJ$338>3),($AJ$2:$AJ$338)))) -> 8.174238914 | CZ8: =IF(CX4<5,"",STDEV(IF(($CM$2:$CM$338=$CV2)*($CU$2:$CU$338=1)*($J$2:$J$338="F")*($AJ$2:$AJ$338>3),($AJ$2:$AJ$338)))) -> 5.651941653 | DA8: =IF(CX4<5,"",STDEV(IF(($CM$2:$CM$338=$CV2)*($CU$2:$CU$338=1)*($CT$2:$CT$338="J")*($AJ$2:$AJ$338>3),($AJ$2:$AJ$338)))) -> 8.864052604 | DB8: =IF(CX4<5,"",STDEV(IF(($CM$2:$CM$338=$CV2)*($CU$2:$CU$338=1)*($CT$2:$CT$338="V")*($AJ$2:$AJ$338>3),($AJ$2:$AJ$338)))) -> 6.910601295 | DC8: =IF(CX4<5,"",DA12-DB12) -> 0.7223001403 | DD8: 8 | DE8: 8 | DF8: 500.1006 | DG8: =IF(DG4<5,"",STDEV(IF(($CM$2:$CM$338=$CV2)*($CU$2:$CU$338=1)*($AN$2:$AN$338>3),($AN$2:$AN$338)))) ->  | DH8: =IF(DG4<5,"",STDEV(IF(($CM$2:$CM$338=$CV2)*($CU$2:$CU$338=1)*($J$2:$J$338="M")*($AN$2:$AN$338>3),($AN$2:$AN$338)))) ->  | DI8: =IF(DG4<5,"",STDEV(IF(($CM$2:$CM$338=$CV2)*($CU$2:$CU$338=1)*($J$2:$J$338="F")*($AN$2:$AN$338>3),($AN$2:$AN$338)))) ->  | DJ8: =IF(DG4<5,"",STDEV(IF(($CM$2:$CM$338=$CV2)*($CU$2:$CU$338=1)*($CT$2:$CT$338="J")*($AN$2:$AN$338>3),($AN$2:$AN$338)))) ->  | DK8: =IF(DG4<5,"",STDEV(IF(($CM$2:$CM$338=$CV2)*($CU$2:$CU$338=1)*($CT$2:$CT$338="V")*($AN$2:$AN$338>3),($AN$2:$AN$338)))) ->  | DL8: =IF(DG4<5,"",DJ12-DK12) ->  | DO8: 500.1006 | DP8: =IF(DP4<5,"",STDEV(IF(($CM$2:$CM$338=$CV2)*($CU$2:$CU$338=1)*($AR$2:$AR$338>3),($AR$2:$AR$338)))) -> 10.7727727 | DQ8: =IF(DP4<5,"",STDEV(IF(($CM$2:$CM$338=$CV2)*($CU$2:$CU$338=1)*($J$2:$J$338="M")*($AR$2:$AR$338>3),($AR$2:$AR$338)))) -> 10.20249524 | DR8: =IF(DP4<5,"",STDEV(IF(($CM$2:$CM$338=$CV2)*($CU$2:$CU$338=1)*($J$2:$J$338="F")*($AR$2:$AR$338>3),($AR$2:$AR$338)))) -> 11.18033989 | DS8: =IF(DP4<5,"",STDEV(IF(($CM$2:$CM$338=$CV2)*($CU$2:$CU$338=1)*($CT$2:$CT$338="J")*($AR$2:$AR$338>3),($AR$2:$AR$338)))) -> 9.322272357 | DT8: =IF(DP4<5,"",STDEV(IF(($CM$2:$CM$338=$CV2)*($CU$2:$CU$338=1)*($CT$2:$CT$338="V")*($AR$2:$AR$338>3),($AR$2:$AR$338)))) -> 11.54700538 | DU8: =IF(DP4<5,"",DS12-DT12) -> -0.117248567 | DV8: 2 | DW8: 2 | DX8: 500.1006 | DY8: =IF(DY4<5,"",STDEV(IF(($CM$2:$CM$338=$CV2)*($CU$2:$CU$338=1)*($AV$2:$AV$338>3),($AV$2:$AV$338)))) -> 10.24374007 | DZ8: =IF(DY4<5,"",STDEV(IF(($CM$2:$CM$338=$CV2)*($CU$2:$CU$338=1)*($J$2:$J$338="M")*($AV$2:$AV$338>3),($AV$2:$AV$338)))) -> 9.558432736 | EA8: =IF(DY4<5,"",STDEV(IF(($CM$2:$CM$338=$CV2)*($CU$2:$CU$338=1)*($J$2:$J$338="F")*($AV$2:$AV$338>3),($AV$2:$AV$338)))) -> 11.11805339 | EB8: =IF(DY4<5,"",STDEV(IF(($CM$2:$CM$338=$CV2)*($CU$2:$CU$338=1)*($CT$2:$CT$338="J")*($AV$2:$AV$338>3),($AV$2:$AV$338)))) -> 9.128709292 | EC8: =IF(DY4<5,"",STDEV(IF(($CM$2:$CM$338=$CV2)*($CU$2:$CU$338=1)*($CT$2:$CT$338="V")*($AV$2:$AV$338>3),($AV$2:$AV$338)))) -> 10.57634031 | ED8: =IF(DY4<5,"",EB12-EC12) -> -0.544375645 | EE8: 2 | EF8: 2 | EG8: 500.1006 | EH8: =IF(EH4<5,"",STDEV(IF(($CM$2:$CM$338=$CV2)*($CU$2:$CU$338=1)*($AZ$2:$AZ$338>3),($AZ$2:$AZ$338)))) -> 12.16930997 | EI8: =IF(EH4<5,"",STDEV(IF(($CM$2:$CM$338=$CV2)*($CU$2:$CU$338=1)*($J$2:$J$338="M")*($AZ$2:$AZ$338>3),($AZ$2:$AZ$338)))) -> 13.43333709 | EJ8: =IF(EH4<5,"",STDEV(IF(($CM$2:$CM$338=$CV2)*($CU$2:$CU$338=1)*($J$2:$J$338="F")*($AZ$2:$AZ$338>3),($AZ$2:$AZ$338)))) -> 11.21135337 | EK8: =IF(EH4<5,"",STDEV(IF(($CM$2:$CM$338=$CV2)*($CU$2:$CU$338=1)*($CT$2:$CT$338="J")*($AZ$2:$AZ$338>3),($AZ$2:$AZ$338)))) -> 15.39171082 | EL8: =IF(EH4<5,"",STDEV(IF(($CM$2:$CM$338=$CV2)*($CU$2:$CU$338=1)*($CT$2:$CT$338="V")*($AZ$2:$AZ$338>3),($AZ$2:$AZ$338)))) -> 10.51555624 | EM8: =IF(EH4<5,"",EK12-EL12) -> 0.7180683394 | EN8: 2 | EO8: 2 | EP8: 500.1006 | EQ8: =IF(EQ4<5,"",STDEV(IF(($CM$2:$CM$338=$CV2)*($CU$2:$CU$338=1)*($BD$2:$BD$338>3),($BD$2:$BD$338)))) ->  | ER8: =IF(EQ4<5,"",STDEV(IF(($CM$2:$CM$338=$CV2)*($CU$2:$CU$338=1)*($J$2:$J$338="M")*($BD$2:$BD$338>3),($BD$2:$BD$338)))) ->  | ES8: =IF(EQ4<5,"",STDEV(IF(($CM$2:$CM$338=$CV2)*($CU$2:$CU$338=1)*($J$2:$J$338="F")*($BD$2:$BD$338>3),($BD$2:$BD$338)))) ->  | ET8: =IF(EQ4<5,"",STDEV(IF(($CM$2:$CM$338=$CV2)*($CU$2:$CU$338=1)*($CT$2:$CT$338="J")*($BD$2:$BD$338>3),($BD$2:$BD$338)))) ->  | EU8: =IF(EQ4<5,"",STDEV(IF(($CM$2:$CM$338=$CV2)*($CU$2:$CU$338=1)*($CT$2:$CT$338="V")*($BD$2:$BD$338>3),($BD$2:$BD$338)))) ->  | EV8: =IF(EQ4<5,"",ET12-EU12) ->  | EY8: 500.1006 | EZ8: =IF(EZ4<5,"",STDEV(IF(($CM$2:$CM$338=$CV2)*($CU$2:$CU$338=1)*($BH$2:$BH$338>3),($BH$2:$BH$338)))) -> 10.72564561 | FA8: =IF(EZ4<5,"",STDEV(IF(($CM$2:$CM$338=$CV2)*($CU$2:$CU$338=1)*($J$2:$J$338="M")*($BH$2:$BH$338>3),($BH$2:$BH$338)))) -> 12.04159458 | FB8: =IF(EZ4<5,"",STDEV(IF(($CM$2:$CM$338=$CV2)*($CU$2:$CU$338=1)*($J$2:$J$338="F")*($BH$2:$BH$338>3),($BH$2:$BH$338)))) -> 8.746427842 | FC8: =IF(EZ4<5,"",STDEV(IF(($CM$2:$CM$338=$CV2)*($CU$2:$CU$338=1)*($CT$2:$CT$338="J")*($BH$2:$BH$338>3),($BH$2:$BH$338)))) -> 11.65986196 | FD8: =IF(EZ4<5,"",STDEV(IF(($CM$2:$CM$338=$CV2)*($CU$2:$CU$338=1)*($CT$2:$CT$338="V")*($BH$2:$BH$338>3),($BH$2:$BH$338)))) -> 10.54477632 | FE8: =IF(EZ4<5,"",FC12-FD12) -> 1.155724362 | FF8: 3 | FG8: 6 | FH8: 500.1006 | FI8: =IF(FI4<5,"",STDEV(IF(($CM$2:$CM$338=$CV2)*($CU$2:$CU$338=1)*($AI$2:$AI$338>3),($AI$2:$AI$338)))) -> 8.564768716 | FJ8: =IF(FI4<5,"",STDEV(IF(($CM$2:$CM$338=$CV2)*($CU$2:$CU$338=1)*($J$2:$J$338="M")*($AI$2:$AI$338>3),($AI$2:$AI$338)))) -> 7.862453931 | FK8: =IF(FI4<5,"",STDEV(IF(($CM$2:$CM$338=$CV2)*($CU$2:$CU$338=1)*($J$2:$J$338="F")*($AI$2:$AI$338>3),($AI$2:$AI$338)))) -> 9.501461876 | FL8: =IF(FI4<5,"",STDEV(IF(($CM$2:$CM$338=$CV2)*($CU$2:$CU$338=1)*($CT$2:$CT$338="J")*($AI$2:$AI$338>3),($AI$2:$AI$338)))) -> 10.2933173 | FM8: =IF(FI4<5,"",STDEV(IF(($CM$2:$CM$338=$CV2)*($CU$2:$CU$338=1)*($CT$2:$CT$338="V")*($AI$2:$AI$338>3),($AI$2:$AI$338)))) -> 7.637626158 | FN8: =IF(FI4<5,"",FL12-FM12) -> -1.52173913 | FO8: 8 | FP8: 8 | FQ8: 500.1006 | FR8: =IF(FR4<5,"",STDEV(IF(($CM$2:$CM$338=$CV2)*($CU$2:$CU$338=1)*($AM$2:$AM$338>3),($AM$2:$AM$338)))) ->  | FS8: =IF(FR4<5,"",STDEV(IF(($CM$2:$CM$338=$CV2)*($CU$2:$CU$338=1)*($J$2:$J$338="M")*($AM$2:$AM$338>3),($AM$2:$AM$338)))) ->  | FT8: =IF(FR4<5,"",STDEV(IF(($CM$2:$CM$338=$CV2)*($CU$2:$CU$338=1)*($J$2:$J$338="F")*($AM$2:$AM$338>3),($AM$2:$AM$338)))) ->  | FU8: =IF(FR4<5,"",STDEV(IF(($CM$2:$CM$338=$CV2)*($CU$2:$CU$338=1)*($CT$2:$CT$338="J")*($AM$2:$AM$338>3),($AM$2:$AM$338)))) ->  | FV8: =IF(FR4<5,"",STDEV(IF(($CM$2:$CM$338=$CV2)*($CU$2:$CU$338=1)*($CT$2:$CT$338="V")*($AM$2:$AM$338>3),($AM$2:$AM$338)))) ->  | FW8: =IF(FR4<5,"",FU12-FV12) ->  | FZ8: 500.1006 | GA8: =IF(GA4<5,"",STDEV(IF(($CM$2:$CM$338=$CV2)*($CU$2:$CU$338=1)*($AQ$2:$AQ$338>3),($AQ$2:$AQ$338)))) -> 9.017526794 | GB8: =IF(GA4<5,"",STDEV(IF(($CM$2:$CM$338=$CV2)*($CU$2:$CU$338=1)*($J$2:$J$338="M")*($AQ$2:$AQ$338>3),($AQ$2:$AQ$338)))) -> 9.839623053 | GC8: =IF(GA4<5,"",STDEV(IF(($CM$2:$CM$338=$CV2)*($CU$2:$CU$338=1)*($J$2:$J$338="F")*($AQ$2:$AQ$338>3),($AQ$2:$AQ$338)))) -> 6.972166888 | GD8: =IF(GA4<5,"",STDEV(IF(($CM$2:$CM$338=$CV2)*($CU$2:$CU$338=1)*($CT$2:$CT$338="J")*($AQ$2:$AQ$338>3),($AQ$2:$AQ$338)))) -> 11.12697281 | GE8: =IF(GA4<5,"",STDEV(IF(($CM$2:$CM$338=$CV2)*($CU$2:$CU$338=1)*($CT$2:$CT$338="V")*($AQ$2:$AQ$338>3),($AQ$2:$AQ$338)))) -> 7.783117825 | GF8: =IF(GA4<5,"",GD12-GE12) -> 2.238144867 | GG8: 2 | GH8: 3 | GI8: 500.1006 | GJ8: =IF(GJ4<5,"",STDEV(IF(($CM$2:$CM$338=$CV2)*($CU$2:$CU$338=1)*($AU$2:$AU$338>3),($AU$2:$AU$338)))) -> 11.52799795 | GK8: =IF(GJ4<5,"",STDEV(IF(($CM$2:$CM$338=$CV2)*($CU$2:$CU$338=1)*($J$2:$J$338="M")*($AU$2:$AU$338>3),($AU$2:$AU$338)))) -> 12.00378728 | GL8: =IF(GJ4<5,"",STDEV(IF(($CM$2:$CM$338=$CV2)*($CU$2:$CU$338=1)*($J$2:$J$338="F")*($AU$2:$AU$338>3),($AU$2:$AU$338)))) -> 10 | GM8: =IF(GJ4<5,"",STDEV(IF(($CM$2:$CM$338=$CV2)*($CU$2:$CU$338=1)*($CT$2:$CT$338="J")*($AU$2:$AU$338>3),($AU$2:$AU$338)))) -> 14.05770421 | GN8: =IF(GJ4<5,"",STDEV(IF(($CM$2:$CM$338=$CV2)*($CU$2:$CU$338=1)*($CT$2:$CT$338="V")*($AU$2:$AU$338>3),($AU$2:$AU$338)))) -> 9.887184142 | GO8: =IF(GJ4<5,"",GM12-GN12) -> 0.2182662539 | GP8: 2 | GQ8: 2 | GR8: 500.1006 | GS8: =IF(GS4<5,"",STDEV(IF(($CM$2:$CM$338=$CV2)*($CU$2:$CU$338=1)*($AY$2:$AY$338>3),($AY$2:$AY$338)))) -> 11.65287405 | GT8: =IF(GS4<5,"",STDEV(IF(($CM$2:$CM$338=$CV2)*($CU$2:$CU$338=1)*($J$2:$J$338="M")*($AY$2:$AY$338>3),($AY$2:$AY$338)))) -> 12.098084 | GU8: =IF(GS4<5,"",STDEV(IF(($CM$2:$CM$338=$CV2)*($CU$2:$CU$338=1)*($J$2:$J$338="F")*($AY$2:$AY$338>3),($AY$2:$AY$338)))) -> 10.73674894 | GV8: =IF(GS4<5,"",STDEV(IF(($CM$2:$CM$338=$CV2)*($CU$2:$CU$338=1)*($CT$2:$CT$338="J")*($AY$2:$AY$338>3),($AY$2:$AY$338)))) -> 11.8522652 | GW8: =IF(GS4<5,"",STDEV(IF(($CM$2:$CM$338=$CV2)*($CU$2:$CU$338=1)*($CT$2:$CT$338="V")*($AY$2:$AY$338>3),($AY$2:$AY$338)))) -> 11.46343127 | GX8: =IF(GS4<5,"",GV12-GW12) -> 0.7792207792 | GY8: 2 | GZ8: 2 | HA8: 500.1006 | HB8: =IF(HB4<5,"",STDEV(IF(($CM$2:$CM$338=$CV2)*($CU$2:$CU$338=1)*($BC$2:$BC$338>3),($BC$2:$BC$338)))) ->  | HC8: =IF(HB4<5,"",STDEV(IF(($CM$2:$CM$338=$CV2)*($CU$2:$CU$338=1)*($J$2:$J$338="M")*($BC$2:$BC$338>3),($BC$2:$BC$338)))) ->  | HD8: =IF(HB4<5,"",STDEV(IF(($CM$2:$CM$338=$CV2)*($CU$2:$CU$338=1)*($J$2:$J$338="F")*($BC$2:$BC$338>3),($BC$2:$BC$338)))) ->  | HE8: =IF(HB4<5,"",STDEV(IF(($CM$2:$CM$338=$CV2)*($CU$2:$CU$338=1)*($CT$2:$CT$338="J")*($BC$2:$BC$338>3),($BC$2:$BC$338)))) ->  | HF8: =IF(HB4<5,"",STDEV(IF(($CM$2:$CM$338=$CV2)*($CU$2:$CU$338=1)*($CT$2:$CT$338="V")*($BC$2:$BC$338>3),($BC$2:$BC$338)))) ->  | HG8: =IF(HB4<5,"",HE12-HF12) ->  | HJ8: 500.1006 | HK8: =IF(HK4<5,"",STDEV(IF(($CM$2:$CM$338=$CV2)*($CU$2:$CU$338=1)*($BG$2:$BG$338>3),($BG$2:$BG$338)))) -> 12.70930037 | HL8: =IF(HK4<5,"",STDEV(IF(($CM$2:$CM$338=$CV2)*($CU$2:$CU$338=1)*($J$2:$J$338="M")*($BG$2:$BG$338>3),($BG$2:$BG$338)))) -> 14.35586671 | HM8: =IF(HK4<5,"",STDEV(IF(($CM$2:$CM$338=$CV2)*($CU$2:$CU$338=1)*($J$2:$J$338="F")*($BG$2:$BG$338>3),($BG$2:$BG$338)))) -> 10.40566085 | HN8: =IF(HK4<5,"",STDEV(IF(($CM$2:$CM$338=$CV2)*($CU$2:$CU$338=1)*($CT$2:$CT$338="J")*($BG$2:$BG$338>3),($BG$2:$BG$338)))) -> 15.72380664 | HO8: =IF(HK4<5,"",STDEV(IF(($CM$2:$CM$338=$CV2)*($CU$2:$CU$338=1)*($CT$2:$CT$338="V")*($BG$2:$BG$338>3),($BG$2:$BG$338)))) -> 10.77925358 | HP8: =IF(HK4<5,"",HN12-HO12) -> 1.91020076 | HQ8: 2 | HR8: 2 | HS8: 500.1006 | HT8: =IF(HT4<5,"",STDEV(IF(($CM$2:$CM$338=$CV2)*($CU$2:$CU$338=1)*($AL$2:$AL$338>3),($AL$2:$AL$338)))) -> 7.482435573 | HU8: =IF(HT4<5,"",STDEV(IF(($CM$2:$CM$338=$CV2)*($CU$2:$CU$338=1)*($J$2:$J$338="M")*($AL$2:$AL$338>3),($AL$2:$AL$338)))) -> 6.741998625 | HV8: =IF(HT4<5,"",STDEV(IF(($CM$2:$CM$338=$CV2)*($CU$2:$CU$338=1)*($J$2:$J$338="F")*($AL$2:$AL$338>3),($AL$2:$AL$338)))) -> 8.660254038 | HW8: =IF(HT4<5,"",STDEV(IF(($CM$2:$CM$338=$CV2)*($CU$2:$CU$338=1)*($CT$2:$CT$338="J")*($AL$2:$AL$338>3),($AL$2:$AL$338)))) -> 6.725927091 | HX8: =IF(HT4<5,"",STDEV(IF(($CM$2:$CM$338=$CV2)*($CU$2:$CU$338=1)*($CT$2:$CT$338="V")*($AL$2:$AL$338>3),($AL$2:$AL$338)))) -> 8.00640769 | HY8: =IF(HT4<5,"",HW12-HX12) -> 0.2870842074 | HZ8: 3 | IA8: 2 | IB8: 500.1006 | IC8: =IF(IC4<5,"",STDEV(IF(($CM$2:$CM$338=$CV2)*($CU$2:$CU$338=1)*($AP$2:$AP$338>3),($AP$2:$AP$338)))) ->  | ID8: =IF(IC4<5,"",STDEV(IF(($CM$2:$CM$338=$CV2)*($CU$2:$CU$338=1)*($J$2:$J$338="M")*($AP$2:$AP$338>3),($AP$2:$AP$338)))) ->  | IE8: =IF(IC4<5,"",STDEV(IF(($CM$2:$CM$338=$CV2)*($CU$2:$CU$338=1)*($J$2:$J$338="F")*($AP$2:$AP$338>3),($AP$2:$AP$338)))) ->  | IF8: =IF(IC4<5,"",STDEV(IF(($CM$2:$CM$338=$CV2)*($CU$2:$CU$338=1)*($CT$2:$CT$338="J")*($AP$2:$AP$338>3),($AP$2:$AP$338)))) ->  | IG8: =IF(IC4<5,"",STDEV(IF(($CM$2:$CM$338=$CV2)*($CU$2:$CU$338=1)*($CT$2:$CT$338="V")*($AP$2:$AP$338>3),($AP$2:$AP$338)))) ->  | IH8: =IF(IC4<5,"",IF12-IG12) ->  | IK8: 500.1006 | IL8: =IF(IL4<5,"",STDEV(IF(($CM$2:$CM$338=$CV2)*($CU$2:$CU$338=1)*($AT$2:$AT$338>3),($AT$2:$AT$338)))) -> 12.6152581 | IM8: =IF(IL4<5,"",STDEV(IF(($CM$2:$CM$338=$CV2)*($CU$2:$CU$338=1)*($J$2:$J$338="M")*($AT$2:$AT$338>3),($AT$2:$AT$338)))) -> 12.11685528 | IN8: =IF(IL4<5,"",STDEV(IF(($CM$2:$CM$338=$CV2)*($CU$2:$CU$338=1)*($J$2:$J$338="F")*($AT$2:$AT$338>3),($AT$2:$AT$338)))) -> 13.94433378 | IO8: =IF(IL4<5,"",STDEV(IF(($CM$2:$CM$338=$CV2)*($CU$2:$CU$338=1)*($CT$2:$CT$338="J")*($AT$2:$AT$338>3),($AT$2:$AT$338)))) -> 10.69044968 | IP8: =IF(IL4<5,"",STDEV(IF(($CM$2:$CM$338=$CV2)*($CU$2:$CU$338=1)*($CT$2:$CT$338="V")*($AT$2:$AT$338>3),($AT$2:$AT$338)))) -> 13.93666995 | IQ8: =IF(IL4<5,"",IO12-IP12) -> 0.2305888484 | IR8: 1 | IS8: 1 | IT8: 500.1006 | IU8: =IF(IU4<5,"",STDEV(IF(($CM$2:$CM$338=$CV2)*($CU$2:$CU$338=1)*($AX$2:$AX$338>3),($AX$2:$AX$338)))) -> 13.31797361 | IV8: =IF(IU4<5,"",STDEV(IF(($CM$2:$CM$338=$CV2)*($CU$2:$CU$338=1)*($J$2:$J$338="M")*($AX$2:$AX$338>3),($AX$2:$AX$338)))) -> 14.15819711 | IW8: =IF(IU4<5,"",STDEV(IF(($CM$2:$CM$338=$CV2)*($CU$2:$CU$338=1)*($J$2:$J$338="F")*($AX$2:$AX$338>3),($AX$2:$AX$338)))) -> 13.01708279 | IX8: =IF(IU4<5,"",STDEV(IF(($CM$2:$CM$338=$CV2)*($CU$2:$CU$338=1)*($CT$2:$CT$338="J")*($AX$2:$AX$338>3),($AX$2:$AX$338)))) -> 16.83250823 | IY8: =IF(IU4<5,"",STDEV(IF(($CM$2:$CM$338=$CV2)*($CU$2:$CU$338=1)*($CT$2:$CT$338="V")*($AX$2:$AX$338>3),($AX$2:$AX$338)))) -> 11.44944294 | IZ8: =IF(IU4<5,"",IX12-IY12) -> -1.344169247 | JA8: 2 | JB8: 2 | JC8: 500.1006 | JD8: =IF(JD4<5,"",STDEV(IF(($CM$2:$CM$338=$CV2)*($CU$2:$CU$338=1)*($BB$2:$BB$338>3),($BB$2:$BB$338)))) -> 12.06070173 | JE8: =IF(JD4<5,"",STDEV(IF(($CM$2:$CM$338=$CV2)*($CU$2:$CU$338=1)*($J$2:$J$338="M")*($BB$2:$BB$338>3),($BB$2:$BB$338)))) -> 12.61312448 | JF8: =IF(JD4<5,"",STDEV(IF(($CM$2:$CM$338=$CV2)*($CU$2:$CU$338=1)*($J$2:$J$338="F")*($BB$2:$BB$338>3),($BB$2:$BB$338)))) -> 12.10486587 | JG8: =IF(JD4<5,"",STDEV(IF(($CM$2:$CM$338=$CV2)*($CU$2:$CU$338=1)*($CT$2:$CT$338="J")*($BB$2:$BB$338>3),($BB$2:$BB$338)))) -> 14.92042384 | JH8: =IF(JD4<5,"",STDEV(IF(($CM$2:$CM$338=$CV2)*($CU$2:$CU$338=1)*($CT$2:$CT$338="V")*($BB$2:$BB$338>3),($BB$2:$BB$338)))) -> 10.11155724 | JI8: =IF(JD4<5,"",JG12-JH12) -> 1.105787416 | JJ8: 1 | JK8: 2 | JL8: 500.1006 | JM8: =IF(JM4<5,"",STDEV(IF(($CM$2:$CM$338=$CV2)*($CU$2:$CU$338=1)*($BF$2:$BF$338>3),($BF$2:$BF$338)))) ->  | JN8: =IF(JM4<5,"",STDEV(IF(($CM$2:$CM$338=$CV2)*($CU$2:$CU$338=1)*($J$2:$J$338="M")*($BF$2:$BF$338>3),($BF$2:$BF$338)))) ->  | JO8: =IF(JM4<5,"",STDEV(IF(($CM$2:$CM$338=$CV2)*($CU$2:$CU$338=1)*($J$2:$J$338="F")*($BF$2:$BF$338>3),($BF$2:$BF$338)))) ->  | JP8: =IF(JM4<5,"",STDEV(IF(($CM$2:$CM$338=$CV2)*($CU$2:$CU$338=1)*($CT$2:$CT$338="J")*($BF$2:$BF$338>3),($BF$2:$BF$338)))) ->  | JQ8: =IF(JM4<5,"",STDEV(IF(($CM$2:$CM$338=$CV2)*($CU$2:$CU$338=1)*($CT$2:$CT$338="V")*($BF$2:$BF$338>3),($BF$2:$BF$338)))) ->  | JR8: =IF(JM4<5,"",JP12-JQ12) ->  | JU8: 500.1006 | JV8: =IF(JV4<5,"",STDEV(IF(($CM$2:$CM$338=$CV2)*($CU$2:$CU$338=1)*($BJ$2:$BJ$338>3),($BJ$2:$BJ$338)))) -> 15.05385071 | JW8: =IF(JV4<5,"",STDEV(IF(($CM$2:$CM$338=$CV2)*($CU$2:$CU$338=1)*($J$2:$J$338="M")*($BJ$2:$BJ$338>3),($BJ$2:$BJ$338)))) -> 15.7560955 | JX8: =IF(JV4<5,"",STDEV(IF(($CM$2:$CM$338=$CV2)*($CU$2:$CU$338=1)*($J$2:$J$338="F")*($BJ$2:$BJ$338>3),($BJ$2:$BJ$338)))) -> 14.83052408 | JY8: =IF(JV4<5,"",STDEV(IF(($CM$2:$CM$338=$CV2)*($CU$2:$CU$338=1)*($CT$2:$CT$338="J")*($BJ$2:$BJ$338>3),($BJ$2:$BJ$338)))) -> 17.84590122 | JZ8: =IF(JV4<5,"",STDEV(IF(($CM$2:$CM$338=$CV2)*($CU$2:$CU$338=1)*($CT$2:$CT$338="V")*($BJ$2:$BJ$338>3),($BJ$2:$BJ$338)))) -> 13.17096652 | KA8: =IF(JV4<5,"",JY12-JZ12) -> -0.1190992946 | KB8: 2 | KC8: 2 | KD8: 500.1006 | KE8: =IF(KE4<5,"",STDEV(IF(($CM$2:$CM$338=$CV2)*($CU$2:$CU$338=1)*($AK$2:$AK$338>3),($AK$2:$AK$338)))) -> 10.31095483 | KF8: =IF(KE4<5,"",STDEV(IF(($CM$2:$CM$338=$CV2)*($CU$2:$CU$338=1)*($J$2:$J$338="M")*($AK$2:$AK$338>3),($AK$2:$AK$338)))) -> 11.69693044 | KG8: =IF(KE4<5,"",STDEV(IF(($CM$2:$CM$338=$CV2)*($CU$2:$CU$338=1)*($J$2:$J$338="F")*($AK$2:$AK$338>3),($AK$2:$AK$338)))) -> 8.936504412 | KH8: =IF(KE4<5,"",STDEV(IF(($CM$2:$CM$338=$CV2)*($CU$2:$CU$338=1)*($CT$2:$CT$338="J")*($AK$2:$AK$338>3),($AK$2:$AK$338)))) -> 3.933978962 | KI8: =IF(KE4<5,"",STDEV(IF(($CM$2:$CM$338=$CV2)*($CU$2:$CU$338=1)*($CT$2:$CT$338="V")*($AK$2:$AK$338>3),($AK$2:$AK$338)))) -> 11.69867404 | KJ8: =IF(KE4<5,"",KH12-KI12) -> -0.3913043478 | KK8: 8 | KL8: 8 | KM8: 500.1006 | KN8: =IF(KN4<5,"",STDEV(IF(($CM$2:$CM$338=$CV2)*($CU$2:$CU$338=1)*($AO$2:$AO$338>3),($AO$2:$AO$338)))) ->  | KO8: =IF(KN4<5,"",STDEV(IF(($CM$2:$CM$338=$CV2)*($CU$2:$CU$338=1)*($J$2:$J$338="M")*($AO$2:$AO$338>3),($AO$2:$AO$338)))) ->  | KP8: =IF(KN4<5,"",STDEV(IF(($CM$2:$CM$338=$CV2)*($CU$2:$CU$338=1)*($J$2:$J$338="F")*($AO$2:$AO$338>3),($AO$2:$AO$338)))) ->  | KQ8: =IF(KN4<5,"",STDEV(IF(($CM$2:$CM$338=$CV2)*($CU$2:$CU$338=1)*($CT$2:$CT$338="J")*($AO$2:$AO$338>3),($AO$2:$AO$338)))) ->  | KR8: =IF(KN4<5,"",STDEV(IF(($CM$2:$CM$338=$CV2)*($CU$2:$CU$338=1)*($CT$2:$CT$338="V")*($AO$2:$AO$338>3),($AO$2:$AO$338)))) ->  | KS8: =IF(KN4<5,"",KQ12-KR12) ->  | KV8: 500.1006 | KW8: =IF(KW4<5,"",STDEV(IF(($CM$2:$CM$338=$CV2)*($CU$2:$CU$338=1)*($AS$2:$AS$338>3),($AS$2:$AS$338)))) ->  | KX8: =IF(KW4<5,"",STDEV(IF(($CM$2:$CM$338=$CV2)*($CU$2:$CU$338=1)*($J$2:$J$338="M")*($AS$2:$AS$338>3),($AS$2:$AS$338)))) ->  | KY8: =IF(KW4<5,"",STDEV(IF(($CM$2:$CM$338=$CV2)*($CU$2:$CU$338=1)*($J$2:$J$338="F")*($AS$2:$AS$338>3),($AS$2:$AS$338)))) ->  | KZ8: =IF(KW4<5,"",STDEV(IF(($CM$2:$CM$338=$CV2)*($CU$2:$CU$338=1)*($CT$2:$CT$338="J")*($AS$2:$AS$338>3),($AS$2:$AS$338)))) ->  | LA8: =IF(KW4<5,"",STDEV(IF(($CM$2:$CM$338=$CV2)*($CU$2:$CU$338=1)*($CT$2:$CT$338="V")*($AS$2:$AS$338>3),($AS$2:$AS$338)))) ->  | LB8: =IF(KW4<5,"",KZ12-LA12) ->  | LE8: 500.1006 | LF8: =IF(LF4<5,"",STDEV(IF(($CM$2:$CM$338=$CV2)*($CU$2:$CU$338=1)*($AW$2:$AW$338>3),($AW$2:$AW$338)))) -> 14.4185553 | LG8: =IF(LF4<5,"",STDEV(IF(($CM$2:$CM$338=$CV2)*($CU$2:$CU$338=1)*($J$2:$J$338="M")*($AW$2:$AW$338>3),($AW$2:$AW$338)))) -> 15.65247584 | LH8: =IF(LF4<5,"",STDEV(IF(($CM$2:$CM$338=$CV2)*($CU$2:$CU$338=1)*($J$2:$J$338="F")*($AW$2:$AW$338>3),($AW$2:$AW$338)))) -> 13.69306394 | LI8: =IF(LF4<5,"",STDEV(IF(($CM$2:$CM$338=$CV2)*($CU$2:$CU$338=1)*($CT$2:$CT$338="J")*($AW$2:$AW$338>3),($AW$2:$AW$338)))) -> 17.52549164 | LJ8: =IF(LF4<5,"",STDEV(IF(($CM$2:$CM$338=$CV2)*($CU$2:$CU$338=1)*($CT$2:$CT$338="V")*($AW$2:$AW$338>3),($AW$2:$AW$338)))) -> 13.09482184 | LK8: =IF(LF4<5,"",LI12-LJ12) -> -4.12745098 | LL8: 2 | LM8: 2 | LN8: 500.1006 | LO8: =IF(LO4<5,"",STDEV(IF(($CM$2:$CM$338=$CV2)*($CU$2:$CU$338=1)*($BA$2:$BA$338>3),($BA$2:$BA$338)))) -> 12.93709477 | LP8: =IF(LO4<5,"",STDEV(IF(($CM$2:$CM$338=$CV2)*($CU$2:$CU$338=1)*($J$2:$J$338="M")*($BA$2:$BA$338>3),($BA$2:$BA$338)))) -> 13.12527056 | LQ8: =IF(LO4<5,"",STDEV(IF(($CM$2:$CM$338=$CV2)*($CU$2:$CU$338=1)*($J$2:$J$338="F")*($BA$2:$BA$338>3),($BA$2:$BA$338)))) -> 13.2549781 | LR8: =IF(LO4<5,"",STDEV(IF(($CM$2:$CM$338=$CV2)*($CU$2:$CU$338=1)*($CT$2:$CT$338="J")*($BA$2:$BA$338>3),($BA$2:$BA$338)))) -> 12.05147689 | LS8: =IF(LO4<5,"",STDEV(IF(($CM$2:$CM$338=$CV2)*($CU$2:$CU$338=1)*($CT$2:$CT$338="V")*($BA$2:$BA$338>3),($BA$2:$BA$338)))) -> 12.93474748 | LT8: =IF(LO4<5,"",LR12-LS12) -> -2.137813643 | LU8: 1 | LV8: 2 | LW8: 500.1006 | LX8: =IF(LX4<5,"",STDEV(IF(($CM$2:$CM$338=$CV2)*($CU$2:$CU$338=1)*($BE$2:$BE$338>3),($BE$2:$BE$338)))) ->  | LY8: =IF(LX4<5,"",STDEV(IF(($CM$2:$CM$338=$CV2)*($CU$2:$CU$338=1)*($J$2:$J$338="M")*($BE$2:$BE$338>3),($BE$2:$BE$338)))) ->  | LZ8: =IF(LX4<5,"",STDEV(IF(($CM$2:$CM$338=$CV2)*($CU$2:$CU$338=1)*($J$2:$J$338="F")*($BE$2:$BE$338>3),($BE$2:$BE$338)))) ->  | MA8: =IF(LX4<5,"",STDEV(IF(($CM$2:$CM$338=$CV2)*($CU$2:$CU$338=1)*($CT$2:$CT$338="J")*($BE$2:$BE$338>3),($BE$2:$BE$338)))) ->  | MB8: =IF(LX4<5,"",STDEV(IF(($CM$2:$CM$338=$CV2)*($CU$2:$CU$338=1)*($CT$2:$CT$338="V")*($BE$2:$BE$338>3),($BE$2:$BE$338)))) ->  | MC8: =IF(LX4<5,"",MA12-MB12) ->  | MF8: 500.1006 | MG8: =IF(MG4<5,"",STDEV(IF(($CM$2:$CM$338=$CV2)*($CU$2:$CU$338=1)*($BI$2:$BI$338>3),($BI$2:$BI$338)))) ->  | MH8: =IF(MG4<5,"",STDEV(IF(($CM$2:$CM$338=$CV2)*($CU$2:$CU$338=1)*($J$2:$J$338="M")*($BI$2:$BI$338>3),($BI$2:$BI$338)))) ->  | MI8: =IF(MG4<5,"",STDEV(IF(($CM$2:$CM$338=$CV2)*($CU$2:$CU$338=1)*($J$2:$J$338="F")*($BI$2:$BI$338>3),($BI$2:$BI$338)))) ->  | MJ8: =IF(MG4<5,"",STDEV(IF(($CM$2:$CM$338=$CV2)*($CU$2:$CU$338=1)*($CT$2:$CT$338="J")*($BI$2:$BI$338>3),($BI$2:$BI$338)))) ->  | MK8: =IF(MG4<5,"",STDEV(IF(($CM$2:$CM$338=$CV2)*($CU$2:$CU$338=1)*($CT$2:$CT$338="V")*($BI$2:$BI$338>3),($BI$2:$BI$338)))) ->  | ML8: =IF(MG4<5,"",MJ12-MK12) ->  | MO8: 500.1006 | MP8: =IF(MP4<5,"",STDEV(IF(($CM$2:$CM$338=$CV2)*($CU$2:$CU$338=1)*($BM$2:$BM$338>3),($BM$2:$BM$338)))) -> 18.72443791 | MQ8: =IF(MP4<5,"",STDEV(IF(($CM$2:$CM$338=$CV2)*($CU$2:$CU$338=1)*($J$2:$J$338="M")*($BM$2:$BM$338>3),($BM$2:$BM$338)))) -> 20.53334317 | MR8: =IF(MP4<5,"",STDEV(IF(($CM$2:$CM$338=$CV2)*($CU$2:$CU$338=1)*($J$2:$J$338="F")*($BM$2:$BM$338>3),($BM$2:$BM$338)))) -> 11.81403524 | MS8: =IF(MP4<5,"",STDEV(IF(($CM$2:$CM$338=$CV2)*($CU$2:$CU$338=1)*($CT$2:$CT$338="J")*($BM$2:$BM$338>3),($BM$2:$BM$338)))) -> 24.78574859 | MT8: =IF(MP4<5,"",STDEV(IF(($CM$2:$CM$338=$CV2)*($CU$2:$CU$338=1)*($CT$2:$CT$338="V")*($BM$2:$BM$338>3),($BM$2:$BM$338)))) -> 14.6380575 | MU8: =IF(MP4<5,"",MS12-MT12) -> -1.312114198 | MV8: 1 | MW8: 1 | MX8: 500.1006 | MY8: =IF(MY4<5,"",STDEV(IF(($CM$2:$CM$338=$CV2)*($CU$2:$CU$338=1)*($CC$2:$CC$338>3),($CC$2:$CC$338)))) -> 6.336247021 | MZ8: =IF(MY4<5,"",STDEV(IF(($CM$2:$CM$338=$CV2)*($CU$2:$CU$338=1)*($J$2:$J$338="M")*($CC$2:$CC$338>3),($CC$2:$CC$338)))) -> 6.245452891 | NA8: =IF(MY4<5,"",STDEV(IF(($CM$2:$CM$338=$CV2)*($CU$2:$CU$338=1)*($J$2:$J$338="F")*($CC$2:$CC$338>3),($CC$2:$CC$338)))) -> 6.74433919 | NB8: =IF(MY4<5,"",STDEV(IF(($CM$2:$CM$338=$CV2)*($CU$2:$CU$338=1)*($CT$2:$CT$338="J")*($CC$2:$CC$338>3),($CC$2:$CC$338)))) -> 6.367934927 | NC8: =IF(MY4<5,"",STDEV(IF(($CM$2:$CM$338=$CV2)*($CU$2:$CU$338=1)*($CT$2:$CT$338="V")*($CC$2:$CC$338>3),($CC$2:$CC$338)))) -> 6.577935145 | ND8: =IF(MY4<5,"",NB12-NC12) -> -0.2633239832 | NE8: 8 | NF8: 8 | NG8: 500.1006 | NH8: =IF(NH4<5,"",STDEV(IF(($CM$2:$CM$338=$CV2)*($CU$2:$CU$338=1)*($CD$2:$CD$338>3),($CD$2:$CD$338)))) ->  | NI8: =IF(NH4<5,"",STDEV(IF(($CM$2:$CM$338=$CV2)*($CU$2:$CU$338=1)*($J$2:$J$338="M")*($CD$2:$CD$338>3),($CD$2:$CD$338)))) ->  | NJ8: =IF(NH4<5,"",STDEV(IF(($CM$2:$CM$338=$CV2)*($CU$2:$CU$338=1)*($J$2:$J$338="F")*($CD$2:$CD$338>3),($CD$2:$CD$338)))) ->  | NK8: =IF(NH4<5,"",STDEV(IF(($CM$2:$CM$338=$CV2)*($CU$2:$CU$338=1)*($CT$2:$CT$338="J")*($CD$2:$CD$338>3),($CD$2:$CD$338)))) ->  | NL8: =IF(NH4<5,"",STDEV(IF(($CM$2:$CM$338=$CV2)*($CU$2:$CU$338=1)*($CT$2:$CT$338="V")*($CD$2:$CD$338>3),($CD$2:$CD$338)))) ->  | NM8: =IF(NH4<5,"",NK12-NL12) ->  | NP8: 500.1006 | NQ8: =IF(NQ4<5,"",STDEV(IF(($CM$2:$CM$338=$CV2)*($CU$2:$CU$338=1)*($CE$2:$CE$338>3),($CE$2:$CE$338)))) -> 9.046258637 | NR8: =IF(NQ4<5,"",STDEV(IF(($CM$2:$CM$338=$CV2)*($CU$2:$CU$338=1)*($J$2:$J$338="M")*($CE$2:$CE$338>3),($CE$2:$CE$338)))) -> 8.589987124 | NS8: =IF(NQ4<5,"",STDEV(IF(($CM$2:$CM$338=$CV2)*($CU$2:$CU$338=1)*($J$2:$J$338="F")*($CE$2:$CE$338>3),($CE$2:$CE$338)))) -> 9.614482389 | NT8: =IF(NQ4<5,"",STDEV(IF(($CM$2:$CM$338=$CV2)*($CU$2:$CU$338=1)*($CT$2:$CT$338="J")*($CE$2:$CE$338>3),($CE$2:$CE$338)))) -> 9.026709338 | NU8: =IF(NQ4<5,"",STDEV(IF(($CM$2:$CM$338=$CV2)*($CU$2:$CU$338=1)*($CT$2:$CT$338="V")*($CE$2:$CE$338>3),($CE$2:$CE$338)))) -> 9.216067352 | NV8: =IF(NQ4<5,"",NT12-NU12) -> 0.7838283828 | NW8: 2 | NX8: 2 | NY8: 500.1006 | NZ8: =IF(NZ4<5,"",STDEV(IF(($CM$2:$CM$338=$CV2)*($CU$2:$CU$338=1)*($CF$2:$CF$338>3),($CF$2:$CF$338)))) -> 10.54653691 | OA8: =IF(NZ4<5,"",STDEV(IF(($CM$2:$CM$338=$CV2)*($CU$2:$CU$338=1)*($J$2:$J$338="M")*($CF$2:$CF$338>3),($CF$2:$CF$338)))) -> 11.40798166 | OB8: =IF(NZ4<5,"",STDEV(IF(($CM$2:$CM$338=$CV2)*($CU$2:$CU$338=1)*($J$2:$J$338="F")*($CF$2:$CF$338>3),($CF$2:$CF$338)))) -> 9.862333649 | OC8: =IF(NZ4<5,"",STDEV(IF(($CM$2:$CM$338=$CV2)*($CU$2:$CU$338=1)*($CT$2:$CT$338="J")*($CF$2:$CF$338>3),($CF$2:$CF$338)))) -> 13.12429136 | OD8: =IF(NZ4<5,"",STDEV(IF(($CM$2:$CM$338=$CV2)*($CU$2:$CU$338=1)*($CT$2:$CT$338="V")*($CF$2:$CF$338>3),($CF$2:$CF$338)))) -> 8.987170343 | OE8: =IF(NZ4<5,"",OC12-OD12) -> -1.449432405 | OF8: 2 | OG8: 2 | OH8: 500.1006 | OI8: =IF(OI4<5,"",STDEV(IF(($CM$2:$CM$338=$CV2)*($CU$2:$CU$338=1)*($CG$2:$CG$338>3),($CG$2:$CG$338)))) -> 11.4125681 | OJ8: =IF(OI4<5,"",STDEV(IF(($CM$2:$CM$338=$CV2)*($CU$2:$CU$338=1)*($J$2:$J$338="M")*($CG$2:$CG$338>3),($CG$2:$CG$338)))) -> 11.92424002 | OK8: =IF(OI4<5,"",STDEV(IF(($CM$2:$CM$338=$CV2)*($CU$2:$CU$338=1)*($J$2:$J$338="F")*($CG$2:$CG$338>3),($CG$2:$CG$338)))) -> 11.30196333 | OL8: =IF(OI4<5,"",STDEV(IF(($CM$2:$CM$338=$CV2)*($CU$2:$CU$338=1)*($CT$2:$CT$338="J")*($CG$2:$CG$338>3),($CG$2:$CG$338)))) -> 12.78252155 | OM8: =IF(OI4<5,"",STDEV(IF(($CM$2:$CM$338=$CV2)*($CU$2:$CU$338=1)*($CT$2:$CT$338="V")*($CG$2:$CG$338>3),($CG$2:$CG$338)))) -> 10.50221283 | ON8: =IF(OI4<5,"",OL12-OM12) -> 0.1163157231 | OO8: 2 | OP8: 2 | OQ8: 500.1006 | OR8: =IF(OR4<5,"",STDEV(IF(($CM$2:$CM$338=$CV2)*($CU$2:$CU$338=1)*($CH$2:$CH$338>3),($CH$2:$CH$338)))) ->  | OS8: =IF(OR4<5,"",STDEV(IF(($CM$2:$CM$338=$CV2)*($CU$2:$CU$338=1)*($J$2:$J$338="M")*($CH$2:$CH$338>3),($CH$2:$CH$338)))) ->  | OT8: =IF(OR4<5,"",STDEV(IF(($CM$2:$CM$338=$CV2)*($CU$2:$CU$338=1)*($J$2:$J$338="F")*($CH$2:$CH$338>3),($CH$2:$CH$338)))) ->  | OU8: =IF(OR4<5,"",STDEV(IF(($CM$2:$CM$338=$CV2)*($CU$2:$CU$338=1)*($CT$2:$CT$338="J")*($CH$2:$CH$338>3),($CH$2:$CH$338)))) ->  | OV8: =IF(OR4<5,"",STDEV(IF(($CM$2:$CM$338=$CV2)*($CU$2:$CU$338=1)*($CT$2:$CT$338="V")*($CH$2:$CH$338>3),($CH$2:$CH$338)))) ->  | OW8: =IF(OR4<5,"",OU12-OV12) ->  | OZ8: 500.1006 | PA8: =IF(PA4<5,"",STDEV(IF(($CM$2:$CM$338=$CV2)*($CU$2:$CU$338=1)*($CI$2:$CI$338>3),($CI$2:$CI$338)))) -> 13.01299957 | PB8: =IF(PA4<5,"",STDEV(IF(($CM$2:$CM$338=$CV2)*($CU$2:$CU$338=1)*($J$2:$J$338="M")*($CI$2:$CI$338>3),($CI$2:$CI$338)))) -> 14.62248424 | PC8: =IF(PA4<5,"",STDEV(IF(($CM$2:$CM$338=$CV2)*($CU$2:$CU$338=1)*($J$2:$J$338="F")*($CI$2:$CI$338>3),($CI$2:$CI$338)))) -> 9.887737917 | PD8: =IF(PA4<5,"",STDEV(IF(($CM$2:$CM$338=$CV2)*($CU$2:$CU$338=1)*($CT$2:$CT$338="J")*($CI$2:$CI$338>3),($CI$2:$CI$338)))) -> 16.66199339 | PE8: =IF(PA4<5,"",STDEV(IF(($CM$2:$CM$338=$CV2)*($CU$2:$CU$338=1)*($CT$2:$CT$338="V")*($CI$2:$CI$338>3),($CI$2:$CI$338)))) -> 10.65002709 | PF8: =IF(PA4<5,"",PD12-PE12) -> 0.7446079761 | PG8: 2 | PH8: 2
A9: 2010 | B9: 001 | C9: 501 | F9: 0 | G9: 1999-12-09 | J9: F | K9: 80 | L9: 85 | M9: 0 | N9: 90 | O9: 80 | P9: 80 | Q9: 90 | R9: 90 | S9: 80 | T9: 0 | U9: 0 | V9: 80 | W9: 0 | X9: 0 | Y9: 0 | Z9: 0 | AA9: 85 | AB9: 90 | AC9: 0 | AD9: 75 | AE9: 85 | AF9: 85 | AG9: 80 | AH9: 80 | AI9: 90 | AJ9: 85 | AK9: 80 | AL9: 80 | AM9: 0 | AN9: 0 | AO9: 0 | AP9: 0 | AQ9: 75 | AR9: 95 | AS9: 0 | AT9: 90 | AU9: 90 | AV9: 90 | AW9: 90 | AX9: 80 | AY9: 85 | AZ9: 85 | BA9: 85 | BB9: 80 | BC9: 0 | BD9: 0 | BE9: 0 | BF9: 0 | BG9: 87 | BH9: 90 | BI9: 100 | BJ9: 74 | BK9: 0 | BL9: 0 | BM9: 0 | BN9: 0 | BO9: 86 | BP9: 93 | BQ9: 90 | BR9: 88 | BS9: 84 | BT9: 92 | BU9: 92 | BV9: 97 | BX9: 56.66666667 | BY9: 85 | BZ9: 0 | CA9: 83.33333333 | CB9: 82.5 | CC9: 83.75 | CD9: 0 | CE9: 86.66666667 | CF9: 87.5 | CG9: 83.75 | CH9: 0 | CI9: 87.75 | CM9: 001501 | CN9: 0.100 | CO9: 50 | CP9: =Tableau_SSRSMSA03_BI_Integration_STEPH_2010[[#This Row],[DAT_NAISSANCE_ELEVE]] -> 1999-12-09 | CQ9: 2009-09-30 | CR9: 3583 | CS9: 9.80971937 | CT9: =IF(AND(LEFT(CO9,1)="1",CS9>5.5),"V",IF(AND(LEFT(CO9,1)="2",CS9>6.5),"V",IF(AND(LEFT(CO9,1)="3",CS9>7.5),"V",IF(AND(LEFT(CO9,1)="4",CS9>8.5),"V",IF(AND(LEFT(CO9,1)="5",CS9>9.5),"V",IF(AND(LEFT(CO9,1)="6",CS9>10.5),"V","J")))))) -> V | CU9: =IF(AJ9=0,0,IF(BH9=0,0,1)) -> 1 | CV9: =DC11&DC12&7 -> 500.1007 | CW9: Nb ele cs | CX9: =SUM(CY9:CZ9) -> 162 | CY9: =COUNTIFS($CO$2:$CO$338,DC11,$J$2:$J$338,"M",$AJ$2:$AJ$338,">3") -> 89 | CZ9: =COUNTIFS($CO$2:$CO$338,DC11,$J$2:$J$338,"F",$AJ$2:$AJ$338,">3") -> 73 | DA9: =COUNTIFS($CO$2:$CO$338,DC11,$CT$2:$CT$338,"J",$AJ$2:$AJ$338,">3") -> 93 | DB9: =COUNTIFS($CO$2:$CO$338,DC11,$CT$2:$CT$338,"V",$AJ$2:$AJ$338,">3") -> 69 | DD9: 1 | DE9: 2 | DF9: 500.1007 | DG9: =SUM(DH9:DI9) -> 0 | DH9: =COUNTIFS($CO$2:$CO$338,DL11,$J$2:$J$338,"M",$AN$2:$AN$338,">3") -> 0 | DI9: =COUNTIFS($CO$2:$CO$338,DL11,$J$2:$J$338,"F",$AN$2:$AN$338,">3") -> 0 | DJ9: =COUNTIFS($CO$2:$CO$338,DL11,$CT$2:$CT$338,"J",$AN$2:$AN$338,">3") -> 0 | DK9: =COUNTIFS($CO$2:$CO$338,DL11,$CT$2:$CT$338,"V",$AN$2:$AN$338,">3") -> 0 | DO9: 500.1007 | DP9: =SUM(DQ9:DR9) -> 177 | DQ9: =COUNTIFS($CO$2:$CO$338,DU11,$J$2:$J$338,"M",$AR$2:$AR$338,">3") -> 98 | DR9: =COUNTIFS($CO$2:$CO$338,DU11,$J$2:$J$338,"F",$AR$2:$AR$338,">3") -> 79 | DS9: =COUNTIFS($CO$2:$CO$338,DU11,$CT$2:$CT$338,"J",$AR$2:$AR$338,">3") -> 101 | DT9: =COUNTIFS($CO$2:$CO$338,DU11,$CT$2:$CT$338,"V",$AR$2:$AR$338,">3") -> 76 | DV9: 1 | DW9: 1 | DX9: 500.1007 | DY9: =SUM(DZ9:EA9) -> 178 | DZ9: =COUNTIFS($CO$2:$CO$338,ED11,$J$2:$J$338,"M",$AV$2:$AV$338,">3") -> 99 | EA9: =COUNTIFS($CO$2:$CO$338,ED11,$J$2:$J$338,"F",$AV$2:$AV$338,">3") -> 79 | EB9: =COUNTIFS($CO$2:$CO$338,ED11,$CT$2:$CT$338,"J",$AV$2:$AV$338,">3") -> 102 | EC9: =COUNTIFS($CO$2:$CO$338,ED11,$CT$2:$CT$338,"V",$AV$2:$AV$338,">3") -> 76 | EE9: 1 | EF9: 1 | EG9: 500.1007 | EH9: =SUM(EI9:EJ9) -> 180 | EI9: =COUNTIFS($CO$2:$CO$338,EM11,$J$2:$J$338,"M",$AZ$2:$AZ$338,">3") -> 99 | EJ9: =COUNTIFS($CO$2:$CO$338,EM11,$J$2:$J$338,"F",$AZ$2:$AZ$338,">3") -> 81 | EK9: =COUNTIFS($CO$2:$CO$338,EM11,$CT$2:$CT$338,"J",$AZ$2:$AZ$338,">3") -> 103 | EL9: =COUNTIFS($CO$2:$CO$338,EM11,$CT$2:$CT$338,"V",$AZ$2:$AZ$338,">3") -> 77 | EN9: 1 | EO9: 2 | EP9: 500.1007 | EQ9: =SUM(ER9:ES9) -> 0 | ER9: =COUNTIFS($CO$2:$CO$338,EV11,$J$2:$J$338,"M",$BD$2:$BD$338,">3") -> 0 | ES9: =COUNTIFS($CO$2:$CO$338,EV11,$J$2:$J$338,"F",$BD$2:$BD$338,">3") -> 0 | ET9: =COUNTIFS($CO$2:$CO$338,EV11,$CT$2:$CT$338,"J",$BD$2:$BD$338,">3") -> 0 | EU9: =COUNTIFS($CO$2:$CO$338,EV11,$CT$2:$CT$338,"V",$BD$2:$BD$338,">3") -> 0 | EY9: 500.1007 | EZ9: =SUM(FA9:FB9) -> 173 | FA9: =COUNTIFS($CO$2:$CO$338,FE11,$J$2:$J$338,"M",$BH$2:$BH$338,">3") -> 94 | FB9: =COUNTIFS($CO$2:$CO$338,FE11,$J$2:$J$338,"F",$BH$2:$BH$338,">3") -> 79 | FC9: =COUNTIFS($CO$2:$CO$338,FE11,$CT$2:$CT$338,"J",$BH$2:$BH$338,">3") -> 97 | FD9: =COUNTIFS($CO$2:$CO$338,FE11,$CT$2:$CT$338,"V",$BH$2:$BH$338,">3") -> 76 | FF9: 1 | FG9: 1 | FH9: 500.1007 | FI9: =SUM(FJ9:FK9) -> 162 | FJ9: =COUNTIFS($CO$2:$CO$338,FN11,$J$2:$J$338,"M",$AI$2:$AI$338,">3") -> 89 | FK9: =COUNTIFS($CO$2:$CO$338,FN11,$J$2:$J$338,"F",$AI$2:$AI$338,">3") -> 73 | FL9: =COUNTIFS($CO$2:$CO$338,FN11,$CT$2:$CT$338,"J",$AI$2:$AI$338,">3") -> 93 | FM9: =COUNTIFS($CO$2:$CO$338,FN11,$CT$2:$CT$338,"V",$AI$2:$AI$338,">3") -> 69 | FO9: 1 | FP9: 1 | FQ9: 500.1007 | FR9: =SUM(FS9:FT9) -> 0 | FS9: =COUNTIFS($CO$2:$CO$338,FW11,$J$2:$J$338,"M",$AM$2:$AM$338,">3") -> 0 | FT9: =COUNTIFS($CO$2:$CO$338,FW11,$J$2:$J$338,"F",$AM$2:$AM$338,">3") -> 0 | FU9: =COUNTIFS($CO$2:$CO$338,FW11,$CT$2:$CT$338,"J",$AM$2:$AM$338,">3") -> 0 | FV9: =COUNTIFS($CO$2:$CO$338,FW11,$CT$2:$CT$338,"V",$AM$2:$AM$338,">3") -> 0 | FZ9: 500.1007 | GA9: =SUM(GB9:GC9) -> 177 | GB9: =COUNTIFS($CO$2:$CO$338,GF11,$J$2:$J$338,"M",$AQ$2:$AQ$338,">3") -> 98 | GC9: =COUNTIFS($CO$2:$CO$338,GF11,$J$2:$J$338,"F",$AQ$2:$AQ$338,">3") -> 79 | GD9: =COUNTIFS($CO$2:$CO$338,GF11,$CT$2:$CT$338,"J",$AQ$2:$AQ$338,">3") -> 101 | GE9: =COUNTIFS($CO$2:$CO$338,GF11,$CT$2:$CT$338,"V",$AQ$2:$AQ$338,">3") -> 76 | GG9: 2 | GH9: 2 | GI9: 500.1007 | GJ9: =SUM(GK9:GL9) -> 178 | GK9: =COUNTIFS($CO$2:$CO$338,GO11,$J$2:$J$338,"M",$AU$2:$AU$338,">3") -> 99 | GL9: =COUNTIFS($CO$2:$CO$338,GO11,$J$2:$J$338,"F",$AU$2:$AU$338,">3") -> 79 | GM9: =COUNTIFS($CO$2:$CO$338,GO11,$CT$2:$CT$338,"J",$AU$2:$AU$338,">3") -> 102 | GN9: =COUNTIFS($CO$2:$CO$338,GO11,$CT$2:$CT$338,"V",$AU$2:$AU$338,">3") -> 76 | GP9: 1 | GQ9: 1 | GR9: 500.1007 | GS9: =SUM(GT9:GU9) -> 180 | GT9: =COUNTIFS($CO$2:$CO$338,GX11,$J$2:$J$338,"M",$AY$2:$AY$338,">3") -> 99 | GU9: =COUNTIFS($CO$2:$CO$338,GX11,$J$2:$J$338,"F",$AY$2:$AY$338,">3") -> 81 | GV9: =COUNTIFS($CO$2:$CO$338,GX11,$CT$2:$CT$338,"J",$AY$2:$AY$338,">3") -> 103 | GW9: =COUNTIFS($CO$2:$CO$338,GX11,$CT$2:$CT$338,"V",$AY$2:$AY$338,">3") -> 77 | GY9: 1 | GZ9: 2 | HA9: 500.1007 | HB9: =SUM(HC9:HD9) -> 0 | HC9: =COUNTIFS($CO$2:$CO$338,HG11,$J$2:$J$338,"M",$BC$2:$BC$338,">3") -> 0 | HD9: =COUNTIFS($CO$2:$CO$338,HG11,$J$2:$J$338,"F",$BC$2:$BC$338,">3") -> 0 | HE9: =COUNTIFS($CO$2:$CO$338,HG11,$CT$2:$CT$338,"J",$BC$2:$BC$338,">3") -> 0 | HF9: =COUNTIFS($CO$2:$CO$338,HG11,$CT$2:$CT$338,"V",$BC$2:$BC$338,">3") -> 0 | HJ9: 500.1007 | HK9: =SUM(HL9:HM9) -> 173 | HL9: =COUNTIFS($CO$2:$CO$338,HP11,$J$2:$J$338,"M",$BG$2:$BG$338,">3") -> 94 | HM9: =COUNTIFS($CO$2:$CO$338,HP11,$J$2:$J$338,"F",$BG$2:$BG$338,">3") -> 79 | HN9: =COUNTIFS($CO$2:$CO$338,HP11,$CT$2:$CT$338,"J",$BG$2:$BG$338,">3") -> 97 | HO9: =COUNTIFS($CO$2:$CO$338,HP11,$CT$2:$CT$338,"V",$BG$2:$BG$338,">3") -> 76 | HQ9: 1 | HR9: 1 | HS9: 500.1007 | HT9: =SUM(HU9:HV9) -> 165 | HU9: =COUNTIFS($CO$2:$CO$338,HY11,$J$2:$J$338,"M",$AL$2:$AL$338,">3") -> 91 | HV9: =COUNTIFS($CO$2:$CO$338,HY11,$J$2:$J$338,"F",$AL$2:$AL$338,">3") -> 74 | HW9: =COUNTIFS($CO$2:$CO$338,HY11,$CT$2:$CT$338,"J",$AL$2:$AL$338,">3") -> 94 | HX9: =COUNTIFS($CO$2:$CO$338,HY11,$CT$2:$CT$338,"V",$AL$2:$AL$338,">3") -> 71 | HZ9: 3 | IA9: 2 | IB9: 500.1007 | IC9: =SUM(ID9:IE9) -> 0 | ID9: =COUNTIFS($CO$2:$CO$338,IH11,$J$2:$J$338,"M",$AP$2:$AP$338,">3") -> 0 | IE9: =COUNTIFS($CO$2:$CO$338,IH11,$J$2:$J$338,"F",$AP$2:$AP$338,">3") -> 0 | IF9: =COUNTIFS($CO$2:$CO$338,IH11,$CT$2:$CT$338,"J",$AP$2:$AP$338,">3") -> 0 | IG9: =COUNTIFS($CO$2:$CO$338,IH11,$CT$2:$CT$338,"V",$AP$2:$AP$338,">3") -> 0 | IK9: 500.1007 | IL9: =SUM(IM9:IN9) -> 177 | IM9: =COUNTIFS($CO$2:$CO$338,IQ11,$J$2:$J$338,"M",$AT$2:$AT$338,">3") -> 98 | IN9: =COUNTIFS($CO$2:$CO$338,IQ11,$J$2:$J$338,"F",$AT$2:$AT$338,">3") -> 79 | IO9: =COUNTIFS($CO$2:$CO$338,IQ11,$CT$2:$CT$338,"J",$AT$2:$AT$338,">3") -> 101 | IP9: =COUNTIFS($CO$2:$CO$338,IQ11,$CT$2:$CT$338,"V",$AT$2:$AT$338,">3") -> 76 | IR9: 1 | IS9: 1 | IT9: 500.1007 | IU9: =SUM(IV9:IW9) -> 178 | IV9: =COUNTIFS($CO$2:$CO$338,IZ11,$J$2:$J$338,"M",$AX$2:$AX$338,">3") -> 99 | IW9: =COUNTIFS($CO$2:$CO$338,IZ11,$J$2:$J$338,"F",$AX$2:$AX$338,">3") -> 79 | IX9: =COUNTIFS($CO$2:$CO$338,IZ11,$CT$2:$CT$338,"J",$AX$2:$AX$338,">3") -> 102 | IY9: =COUNTIFS($CO$2:$CO$338,IZ11,$CT$2:$CT$338,"V",$AX$2:$AX$338,">3") -> 76 | JA9: 2 | JB9: 2 | JC9: 500.1007 | JD9: =SUM(JE9:JF9) -> 180 | JE9: =COUNTIFS($CO$2:$CO$338,JI11,$J$2:$J$338,"M",$BB$2:$BB$338,">3") -> 99 | JF9: =COUNTIFS($CO$2:$CO$338,JI11,$J$2:$J$338,"F",$BB$2:$BB$338,">3") -> 81 | JG9: =COUNTIFS($CO$2:$CO$338,JI11,$CT$2:$CT$338,"J",$BB$2:$BB$338,">3") -> 103 | JH9: =COUNTIFS($CO$2:$CO$338,JI11,$CT$2:$CT$338,"V",$BB$2:$BB$338,">3") -> 77 | JJ9: 1 | JK9: 2 | JL9: 500.1007 | JM9: =SUM(JN9:JO9) -> 0 | JN9: =COUNTIFS($CO$2:$CO$338,JR11,$J$2:$J$338,"M",$BF$2:$BF$338,">3") -> 0 | JO9: =COUNTIFS($CO$2:$CO$338,JR11,$J$2:$J$338,"F",$BF$2:$BF$338,">3") -> 0 | JP9: =COUNTIFS($CO$2:$CO$338,JR11,$CT$2:$CT$338,"J",$BF$2:$BF$338,">3") -> 0 | JQ9: =COUNTIFS($CO$2:$CO$338,JR11,$CT$2:$CT$338,"V",$BF$2:$BF$338,">3") -> 0 | JU9: 500.1007 | JV9: =SUM(JW9:JX9) -> 173 | JW9: =COUNTIFS($CO$2:$CO$338,KA11,$J$2:$J$338,"M",$BJ$2:$BJ$338,">3") -> 94 | JX9: =COUNTIFS($CO$2:$CO$338,KA11,$J$2:$J$338,"F",$BJ$2:$BJ$338,">3") -> 79 | JY9: =COUNTIFS($CO$2:$CO$338,KA11,$CT$2:$CT$338,"J",$BJ$2:$BJ$338,">3") -> 97 | JZ9: =COUNTIFS($CO$2:$CO$338,KA11,$CT$2:$CT$338,"V",$BJ$2:$BJ$338,">3") -> 76 | KB9: 2 | KC9: 2 | KD9: 500.1007 | KE9: =SUM(KF9:KG9) -> 162 | KF9: =COUNTIFS($CO$2:$CO$338,KJ11,$J$2:$J$338,"M",$AK$2:$AK$338,">3") -> 89 | KG9: =COUNTIFS($CO$2:$CO$338,KJ11,$J$2:$J$338,"F",$AK$2:$AK$338,">3") -> 73 | KH9: =COUNTIFS($CO$2:$CO$338,KJ11,$CT$2:$CT$338,"J",$AK$2:$AK$338,">3") -> 93 | KI9: =COUNTIFS($CO$2:$CO$338,KJ11,$CT$2:$CT$338,"V",$AK$2:$AK$338,">3") -> 69 | KK9: 2 | KL9: 2 | KM9: 500.1007 | KN9: =SUM(KO9:KP9) -> 0 | KO9: =COUNTIFS($CO$2:$CO$338,KS11,$J$2:$J$338,"M",$AO$2:$AO$338,">3") -> 0 | KP9: =COUNTIFS($CO$2:$CO$338,KS11,$J$2:$J$338,"F",$AO$2:$AO$338,">3") -> 0 | KQ9: =COUNTIFS($CO$2:$CO$338,KS11,$CT$2:$CT$338,"J",$AO$2:$AO$338,">3") -> 0 | KR9: =COUNTIFS($CO$2:$CO$338,KS11,$CT$2:$CT$338,"V",$AO$2:$AO$338,">3") -> 0 | KV9: 500.1007 | KW9: =SUM(KX9:KY9) -> 0 | KX9: =COUNTIFS($CO$2:$CO$338,LB11,$J$2:$J$338,"M",$AS$2:$AS$338,">3") -> 0 | KY9: =COUNTIFS($CO$2:$CO$338,LB11,$J$2:$J$338,"F",$AS$2:$AS$338,">3") -> 0 | KZ9: =COUNTIFS($CO$2:$CO$338,LB11,$CT$2:$CT$338,"J",$AS$2:$AS$338,">3") -> 0 | LA9: =COUNTIFS($CO$2:$CO$338,LB11,$CT$2:$CT$338,"V",$AS$2:$AS$338,">3") -> 0 | LE9: 500.1007 | LF9: =SUM(LG9:LH9) -> 178 | LG9: =COUNTIFS($CO$2:$CO$338,LK11,$J$2:$J$338,"M",$AW$2:$AW$338,">3") -> 99 | LH9: =COUNTIFS($CO$2:$CO$338,LK11,$J$2:$J$338,"F",$AW$2:$AW$338,">3") -> 79 | LI9: =COUNTIFS($CO$2:$CO$338,LK11,$CT$2:$CT$338,"J",$AW$2:$AW$338,">3") -> 102 | LJ9: =COUNTIFS($CO$2:$CO$338,LK11,$CT$2:$CT$338,"V",$AW$2:$AW$338,">3") -> 76 | LL9: 1 | LM9: 1 | LN9: 500.1007 | LO9: =SUM(LP9:LQ9) -> 180 | LP9: =COUNTIFS($CO$2:$CO$338,LT11,$J$2:$J$338,"M",$BA$2:$BA$338,">3") -> 99 | LQ9: =COUNTIFS($CO$2:$CO$338,LT11,$J$2:$J$338,"F",$BA$2:$BA$338,">3") -> 81 | LR9: =COUNTIFS($CO$2:$CO$338,LT11,$CT$2:$CT$338,"J",$BA$2:$BA$338,">3") -> 103 | LS9: =COUNTIFS($CO$2:$CO$338,LT11,$CT$2:$CT$338,"V",$BA$2:$BA$338,">3") -> 77 | LU9: 1 | LV9: 2 | LW9: 500.1007 | LX9: =SUM(LY9:LZ9) -> 0 | LY9: =COUNTIFS($CO$2:$CO$338,MC11,$J$2:$J$338,"M",$BE$2:$BE$338,">3") -> 0 | LZ9: =COUNTIFS($CO$2:$CO$338,MC11,$J$2:$J$338,"F",$BE$2:$BE$338,">3") -> 0 | MA9: =COUNTIFS($CO$2:$CO$338,MC11,$CT$2:$CT$338,"J",$BE$2:$BE$338,">3") -> 0 | MB9: =COUNTIFS($CO$2:$CO$338,MC11,$CT$2:$CT$338,"V",$BE$2:$BE$338,">3") -> 0 | MF9: 500.1007 | MG9: =SUM(MH9:MI9) -> 28 | MH9: =COUNTIFS($CO$2:$CO$338,ML11,$J$2:$J$338,"M",$BI$2:$BI$338,">3") -> 14 | MI9: =COUNTIFS($CO$2:$CO$338,ML11,$J$2:$J$338,"F",$BI$2:$BI$338,">3") -> 14 | MJ9: =COUNTIFS($CO$2:$CO$338,ML11,$CT$2:$CT$338,"J",$BI$2:$BI$338,">3") -> 17 | MK9: =COUNTIFS($CO$2:$CO$338,ML11,$CT$2:$CT$338,"V",$BI$2:$BI$338,">3") -> 11 | MO9: 500.1007 | MP9: =SUM(MQ9:MR9) -> 145 | MQ9: =COUNTIFS($CO$2:$CO$338,MU11,$J$2:$J$338,"M",$BM$2:$BM$338,">3") -> 80 | MR9: =COUNTIFS($CO$2:$CO$338,MU11,$J$2:$J$338,"F",$BM$2:$BM$338,">3") -> 65 | MS9: =COUNTIFS($CO$2:$CO$338,MU11,$CT$2:$CT$338,"J",$BM$2:$BM$338,">3") -> 81 | MT9: =COUNTIFS($CO$2:$CO$338,MU11,$CT$2:$CT$338,"V",$BM$2:$BM$338,">3") -> 64 | MV9: 8 | MW9: 8 | MX9: 500.1007 | MY9: =SUM(MZ9:NA9) -> 162 | MZ9: =COUNTIFS($CO$2:$CO$338,ND11,$J$2:$J$338,"M",$CC$2:$CC$338,">3") -> 89 | NA9: =COUNTIFS($CO$2:$CO$338,ND11,$J$2:$J$338,"F",$CC$2:$CC$338,">3") -> 73 | NB9: =COUNTIFS($CO$2:$CO$338,ND11,$CT$2:$CT$338,"J",$CC$2:$CC$338,">3") -> 93 | NC9: =COUNTIFS($CO$2:$CO$338,ND11,$CT$2:$CT$338,"V",$CC$2:$CC$338,">3") -> 69 | NE9: 2 | NF9: 2 | NG9: 500.1007 | NH9: =SUM(NI9:NJ9) -> 0 | NI9: =COUNTIFS($CO$2:$CO$338,NM11,$J$2:$J$338,"M",$CD$2:$CD$338,">3") -> 0 | NJ9: =COUNTIFS($CO$2:$CO$338,NM11,$J$2:$J$338,"F",$CD$2:$CD$338,">3") -> 0 | NK9: =COUNTIFS($CO$2:$CO$338,NM11,$CT$2:$CT$338,"J",$CD$2:$CD$338,">3") -> 0 | NL9: =COUNTIFS($CO$2:$CO$338,NM11,$CT$2:$CT$338,"V",$CD$2:$CD$338,">3") -> 0 | NP9: 500.1007 | NQ9: =SUM(NR9:NS9) -> 177 | NR9: =COUNTIFS($CO$2:$CO$338,NV11,$J$2:$J$338,"M",$CE$2:$CE$338,">3") -> 98 | NS9: =COUNTIFS($CO$2:$CO$338,NV11,$J$2:$J$338,"F",$CE$2:$CE$338,">3") -> 79 | NT9: =COUNTIFS($CO$2:$CO$338,NV11,$CT$2:$CT$338,"J",$CE$2:$CE$338,">3") -> 101 | NU9: =COUNTIFS($CO$2:$CO$338,NV11,$CT$2:$CT$338,"V",$CE$2:$CE$338,">3") -> 76 | NW9: 1 | NX9: 1 | NY9: 500.1007 | NZ9: =SUM(OA9:OB9) -> 178 | OA9: =COUNTIFS($CO$2:$CO$338,OE11,$J$2:$J$338,"M",$CF$2:$CF$338,">3") -> 99 | OB9: =COUNTIFS($CO$2:$CO$338,OE11,$J$2:$J$338,"F",$CF$2:$CF$338,">3") -> 79 | OC9: =COUNTIFS($CO$2:$CO$338,OE11,$CT$2:$CT$338,"J",$CF$2:$CF$338,">3") -> 102 | OD9: =COUNTIFS($CO$2:$CO$338,OE11,$CT$2:$CT$338,"V",$CF$2:$CF$338,">3") -> 76 | OF9: 1 | OG9: 1 | OH9: 500.1007 | OI9: =SUM(OJ9:OK9) -> 180 | OJ9: =COUNTIFS($CO$2:$CO$338,ON11,$J$2:$J$338,"M",$CG$2:$CG$338,">3") -> 99 | OK9: =COUNTIFS($CO$2:$CO$338,ON11,$J$2:$J$338,"F",$CG$2:$CG$338,">3") -> 81 | OL9: =COUNTIFS($CO$2:$CO$338,ON11,$CT$2:$CT$338,"J",$CG$2:$CG$338,">3") -> 103 | OM9: =COUNTIFS($CO$2:$CO$338,ON11,$CT$2:$CT$338,"V",$CG$2:$CG$338,">3") -> 77 | OO9: 1 | OP9: 2 | OQ9: 500.1007 | OR9: =SUM(OS9:OT9) -> 0 | OS9: =COUNTIFS($CO$2:$CO$338,OW11,$J$2:$J$338,"M",$CH$2:$CH$338,">3") -> 0 | OT9: =COUNTIFS($CO$2:$CO$338,OW11,$J$2:$J$338,"F",$CH$2:$CH$338,">3") -> 0 | OU9: =COUNTIFS($CO$2:$CO$338,OW11,$CT$2:$CT$338,"J",$CH$2:$CH$338,">3") -> 0 | OV9: =COUNTIFS($CO$2:$CO$338,OW11,$CT$2:$CT$338,"V",$CH$2:$CH$338,">3") -> 0 | OZ9: 500.1007 | PA9: =SUM(PB9:PC9) -> 173 | PB9: =COUNTIFS($CO$2:$CO$338,PF11,$J$2:$J$338,"M",$CI$2:$CI$338,">3") -> 94 | PC9: =COUNTIFS($CO$2:$CO$338,PF11,$J$2:$J$338,"F",$CI$2:$CI$338,">3") -> 79 | PD9: =COUNTIFS($CO$2:$CO$338,PF11,$CT$2:$CT$338,"J",$CI$2:$CI$338,">3") -> 97 | PE9: =COUNTIFS($CO$2:$CO$338,PF11,$CT$2:$CT$338,"V",$CI$2:$CI$338,">3") -> 76 | PG9: 1 | PH9: 1
A10: 2010 | B10: 001 | C10: 501 | F10: 0 | G10: 2000-07-17 | J10: F | K10: 80 | L10: 80 | M10: 0 | N10: 75 | O10: 80 | P10: 80 | Q10: 75 | R10: 85 | S10: 80 | T10: 80 | U10: 75 | V10: 75 | W10: 0 | X10: 0 | Y10: 0 | Z10: 0 | AA10: 80 | AB10: 80 | AC10: 0 | AD10: 80 | AE10: 80 | AF10: 75 | AG10: 75 | AH10: 65 | AI10: 85 | AJ10: 90 | AK10: 80 | AL10: 85 | AM10: 0 | AN10: 0 | AO10: 0 | AP10: 0 | AQ10: 75 | AR10: 90 | AS10: 0 | AT10: 75 | AU10: 85 | AV10: 85 | AW10: 85 | AX10: 80 | AY10: 85 | AZ10: 80 | BA10: 70 | BB10: 70 | BC10: 0 | BD10: 0 | BE10: 0 | BF10: 0 | BG10: 84 | BH10: 83 | BI10: 0 | BJ10: 78 | BK10: 84 | BL10: 84 | BM10: 81 | BN10: 71 | BO10: 80 | BP10: 76 | BQ10: 84 | BR10: 81 | BS10: 84 | BT10: 89 | BU10: 80 | BV10: 82 | BX10: 51.66666667 | BY10: 80 | BZ10: 77.5 | CA10: 80 | CB10: 73.75 | CC10: 85 | CD10: 0 | CE10: 80 | CF10: 83.75 | CG10: 76.25 | CH10: 0 | CI10: 81.5 | CM10: 001501 | CN10: 0.100 | CO10: 50 | CP10: =Tableau_SSRSMSA03_BI_Integration_STEPH_2010[[#This Row],[DAT_NAISSANCE_ELEVE]] -> 2000-07-17 | CQ10: 2009-09-30 | CR10: 3362 | CS10: 9.204654346 | CT10: =IF(AND(LEFT(CO10,1)="1",CS10>5.5),"V",IF(AND(LEFT(CO10,1)="2",CS10>6.5),"V",IF(AND(LEFT(CO10,1)="3",CS10>7.5),"V",IF(AND(LEFT(CO10,1)="4",CS10>8.5),"V",IF(AND(LEFT(CO10,1)="5",CS10>9.5),"V",IF(AND(LEFT(CO10,1)="6",CS10>10.5),"V","J")))))) -> J | CU10: =IF(AJ10=0,0,IF(BH10=0,0,1)) -> 1 | CV10: =DC11&DC12&8 -> 500.1008 | CW10: moy cs niveau | CX10: =IF(CX4<5,"",((CY10*CY9)+(CZ10*CZ9))/CX9) -> 81.57407407 | CY10: =IF(CX4<5,"",INDEX(compilations,MATCH(DC11&"M",$J$339:$J$424,0),27)) -> 80.50561798 | CZ10: =IF(CX4<5,"",INDEX(compilations,MATCH(DC11&"F",$J$339:$J$424,0),27)) -> 82.87671233 | DA10: =IF(CX4<5,"",INDEX(compilations,MATCH(DC11&"J",$J$339:$J$424,0),27)) -> 81.88172043 | DB10: =IF(CX4<5,"",INDEX(compilations,MATCH(DC11&"V",$J$339:$J$424,0),27)) -> 81.15942029 | DD10: 1 | DE10: 1 | DF10: 500.1008 | DG10: =IF(DG4<5,"",((DH10*DH9)+(DI10*DI9))/DG9) ->  | DH10: =IF(DG4<5,"",INDEX(compilations,MATCH(DL11&"M",$J$339:$J$424,0),31)) ->  | DI10: =IF(DG4<5,"",INDEX(compilations,MATCH(DL11&"F",$J$339:$J$424,0),31)) ->  | DJ10: =IF(DG4<5,"",INDEX(compilations,MATCH(DL11&"J",$J$339:$J$424,0),31)) ->  | DK10: =IF(DG4<5,"",INDEX(compilations,MATCH(DL11&"V",$J$339:$J$424,0),31)) ->  | DO10: 500.1008 | DP10: =IF(DP4<5,"",((DQ10*DQ9)+(DR10*DR9))/DP9) -> 79.40677966 | DQ10: =IF(DP4<5,"",INDEX(compilations,MATCH(DU11&"M",$J$339:$J$424,0),35)) -> 78.7244898 | DR10: =IF(DP4<5,"",INDEX(compilations,MATCH(DU11&"F",$J$339:$J$424,0),35)) -> 80.25316456 | DS10: =IF(DP4<5,"",INDEX(compilations,MATCH(DU11&"J",$J$339:$J$424,0),35)) -> 79.35643564 | DT10: =IF(DP4<5,"",INDEX(compilations,MATCH(DU11&"V",$J$339:$J$424,0),35)) -> 79.47368421 | DV10: 1 | DW10: 1 | DX10: 500.1008 | DY10: =IF(DY4<5,"",((DZ10*DZ9)+(EA10*EA9))/DY9) -> 77.97752809 | DZ10: =IF(DY4<5,"",INDEX(compilations,MATCH(ED11&"M",$J$339:$J$424,0),39)) -> 77.37373737 | EA10: =IF(DY4<5,"",INDEX(compilations,MATCH(ED11&"F",$J$339:$J$424,0),39)) -> 78.73417722 | EB10: =IF(DY4<5,"",INDEX(compilations,MATCH(ED11&"J",$J$339:$J$424,0),39)) -> 77.74509804 | EC10: =IF(DY4<5,"",INDEX(compilations,MATCH(ED11&"V",$J$339:$J$424,0),39)) -> 78.28947368 | EE10: 2 | EF10: 2 | EG10: 500.1008 | EH10: =IF(EH4<5,"",((EI10*EI9)+(EJ10*EJ9))/EH9) -> 78.52777778 | EI10: =IF(EH4<5,"",INDEX(compilations,MATCH(EM11&"M",$J$339:$J$424,0),43)) -> 78.28282828 | EJ10: =IF(EH4<5,"",INDEX(compilations,MATCH(EM11&"F",$J$339:$J$424,0),43)) -> 78.82716049 | EK10: =IF(EH4<5,"",INDEX(compilations,MATCH(EM11&"J",$J$339:$J$424,0),43)) -> 78.83495146 | EL10: =IF(EH4<5,"",INDEX(compilations,MATCH(EM11&"V",$J$339:$J$424,0),43)) -> 78.11688312 | EN10: 2 | EO10: 2 | EP10: 500.1008 | EQ10: =IF(EQ4<5,"",((ER10*ER9)+(ES10*ES9))/EQ9) ->  | ER10: =IF(EQ4<5,"",INDEX(compilations,MATCH(EV11&"M",$J$339:$J$424,0),47)) ->  | ES10: =IF(EQ4<5,"",INDEX(compilations,MATCH(EV11&"F",$J$339:$J$424,0),47)) ->  | ET10: =IF(EQ4<5,"",INDEX(compilations,MATCH(EV11&"J",$J$339:$J$424,0),47)) ->  | EU10: =IF(EQ4<5,"",INDEX(compilations,MATCH(EV11&"V",$J$339:$J$424,0),47)) ->  | EY10: 500.1008 | EZ10: =IF(EZ4<5,"",((FA10*FA9)+(FB10*FB9))/EZ9) -> 76.59537572 | FA10: =IF(EZ4<5,"",INDEX(compilations,MATCH(FE11&"M",$J$339:$J$424,0),51)) -> 76.15957447 | FB10: =IF(EZ4<5,"",INDEX(compilations,MATCH(FE11&"F",$J$339:$J$424,0),51)) -> 77.11392405 | FC10: =IF(EZ4<5,"",INDEX(compilations,MATCH(FE11&"J",$J$339:$J$424,0),51)) -> 77.10309278 | FD10: =IF(EZ4<5,"",INDEX(compilations,MATCH(FE11&"V",$J$339:$J$424,0),51)) -> 75.94736842 | FF10: 1 | FG10: 2 | FH10: 500.1008 | FI10: =IF(FI4<5,"",((FJ10*FJ9)+(FK10*FK9))/FI9) -> 78.98148148 | FJ10: =IF(FI4<5,"",INDEX(compilations,MATCH(FN11&"M",$J$339:$J$424,0),26)) -> 77.92134831 | FK10: =IF(FI4<5,"",INDEX(compilations,MATCH(FN11&"F",$J$339:$J$424,0),26)) -> 80.2739726 | FL10: =IF(FI4<5,"",INDEX(compilations,MATCH(FN11&"J",$J$339:$J$424,0),26)) -> 78.33333333 | FM10: =IF(FI4<5,"",INDEX(compilations,MATCH(FN11&"V",$J$339:$J$424,0),26)) -> 79.85507246 | FO10: 1 | FP10: 2 | FQ10: 500.1008 | FR10: =IF(FR4<5,"",((FS10*FS9)+(FT10*FT9))/FR9) ->  | FS10: =IF(FR4<5,"",INDEX(compilations,MATCH(FW11&"M",$J$339:$J$424,0),30)) ->  | FT10: =IF(FR4<5,"",INDEX(compilations,MATCH(FW11&"F",$J$339:$J$424,0),30)) ->  | FU10: =IF(FR4<5,"",INDEX(compilations,MATCH(FW11&"J",$J$339:$J$424,0),30)) ->  | FV10: =IF(FR4<5,"",INDEX(compilations,MATCH(FW11&"V",$J$339:$J$424,0),30)) ->  | FZ10: 500.1008 | GA10: =IF(GA4<5,"",((GB10*GB9)+(GC10*GC9))/GA9) -> 74.43502825 | GB10: =IF(GA4<5,"",INDEX(compilations,MATCH(GF11&"M",$J$339:$J$424,0),34)) -> 72.60204082 | GC10: =IF(GA4<5,"",INDEX(compilations,MATCH(GF11&"F",$J$339:$J$424,0),34)) -> 76.70886076 | GD10: =IF(GA4<5,"",INDEX(compilations,MATCH(GF11&"J",$J$339:$J$424,0),34)) -> 75.3960396 | GE10: =IF(GA4<5,"",INDEX(compilations,MATCH(GF11&"V",$J$339:$J$424,0),34)) -> 73.15789474 | GG10: 2 | GH10: 2 | GI10: 500.1008 | GJ10: =IF(GJ4<5,"",((GK10*GK9)+(GL10*GL9))/GJ9) -> 77.23033708 | GK10: =IF(GJ4<5,"",INDEX(compilations,MATCH(GO11&"M",$J$339:$J$424,0),38)) -> 75.47474747 | GL10: =IF(GJ4<5,"",INDEX(compilations,MATCH(GO11&"F",$J$339:$J$424,0),38)) -> 79.43037975 | GM10: =IF(GJ4<5,"",INDEX(compilations,MATCH(GO11&"J",$J$339:$J$424,0),38)) -> 77.32352941 | GN10: =IF(GJ4<5,"",INDEX(compilations,MATCH(GO11&"V",$J$339:$J$424,0),38)) -> 77.10526316 | GP10: 1 | GQ10: 2 | GR10: 500.1008 | GS10: =IF(GS4<5,"",((GT10*GT9)+(GU10*GU9))/GS9) -> 79.66666667 | GT10: =IF(GS4<5,"",INDEX(compilations,MATCH(GX11&"M",$J$339:$J$424,0),42)) -> 78.13131313 | GU10: =IF(GS4<5,"",INDEX(compilations,MATCH(GX11&"F",$J$339:$J$424,0),42)) -> 81.54320988 | GV10: =IF(GS4<5,"",INDEX(compilations,MATCH(GX11&"J",$J$339:$J$424,0),42)) -> 80 | GW10: =IF(GS4<5,"",INDEX(compilations,MATCH(GX11&"V",$J$339:$J$424,0),42)) -> 79.22077922 | GY10: 1 | GZ10: 2 | HA10: 500.1008 | HB10: =IF(HB4<5,"",((HC10*HC9)+(HD10*HD9))/HB9) ->  | HC10: =IF(HB4<5,"",INDEX(compilations,MATCH(HG11&"M",$J$339:$J$424,0),46)) ->  | HD10: =IF(HB4<5,"",INDEX(compilations,MATCH(HG11&"F",$J$339:$J$424,0),46)) ->  | HE10: =IF(HB4<5,"",INDEX(compilations,MATCH(HG11&"J",$J$339:$J$424,0),46)) ->  | HF10: =IF(HB4<5,"",INDEX(compilations,MATCH(HG11&"V",$J$339:$J$424,0),46)) ->  | HJ10: 500.1008 | HK10: =IF(HK4<5,"",((HL10*HL9)+(HM10*HM9))/HK9) -> 77.67630058 | HL10: =IF(HK4<5,"",INDEX(compilations,MATCH(HP11&"M",$J$339:$J$424,0),50)) -> 75.82978723 | HM10: =IF(HK4<5,"",INDEX(compilations,MATCH(HP11&"F",$J$339:$J$424,0),50)) -> 79.87341772 | HN10: =IF(HK4<5,"",INDEX(compilations,MATCH(HP11&"J",$J$339:$J$424,0),50)) -> 78.51546392 | HO10: =IF(HK4<5,"",INDEX(compilations,MATCH(HP11&"V",$J$339:$J$424,0),50)) -> 76.60526316 | HQ10: 1 | HR10: 2 | HS10: 500.1008 | HT10: =IF(HT4<5,"",((HU10*HU9)+(HV10*HV9))/HT9) -> 82.64242424 | HU10: =IF(HT4<5,"",INDEX(compilations,MATCH(HY11&"M",$J$339:$J$424,0),29)) -> 82.64835165 | HV10: =IF(HT4<5,"",INDEX(compilations,MATCH(HY11&"F",$J$339:$J$424,0),29)) -> 82.63513514 | HW10: =IF(HT4<5,"",INDEX(compilations,MATCH(HY11&"J",$J$339:$J$424,0),29)) -> 82.76595745 | HX10: =IF(HT4<5,"",INDEX(compilations,MATCH(HY11&"V",$J$339:$J$424,0),29)) -> 82.47887324 | HZ10: 2 | IA10: 2 | IB10: 500.1008 | IC10: =IF(IC4<5,"",((ID10*ID9)+(IE10*IE9))/IC9) ->  | ID10: =IF(IC4<5,"",INDEX(compilations,MATCH(IH11&"M",$J$339:$J$424,0),33)) ->  | IE10: =IF(IC4<5,"",INDEX(compilations,MATCH(IH11&"F",$J$339:$J$424,0),33)) ->  | IF10: =IF(IC4<5,"",INDEX(compilations,MATCH(IH11&"J",$J$339:$J$424,0),33)) ->  | IG10: =IF(IC4<5,"",INDEX(compilations,MATCH(IH11&"V",$J$339:$J$424,0),33)) ->  | IK10: 500.1008 | IL10: =IF(IL4<5,"",((IM10*IM9)+(IN10*IN9))/IL9) -> 80 | IM10: =IF(IL4<5,"",INDEX(compilations,MATCH(IQ11&"M",$J$339:$J$424,0),37)) -> 80.30612245 | IN10: =IF(IL4<5,"",INDEX(compilations,MATCH(IQ11&"F",$J$339:$J$424,0),37)) -> 79.62025316 | IO10: =IF(IL4<5,"",INDEX(compilations,MATCH(IQ11&"J",$J$339:$J$424,0),37)) -> 80.0990099 | IP10: =IF(IL4<5,"",INDEX(compilations,MATCH(IQ11&"V",$J$339:$J$424,0),37)) -> 79.86842105 | IR10: 2 | IS10: 2 | IT10: 500.1008 | IU10: =IF(IU4<5,"",((IV10*IV9)+(IW10*IW9))/IU9) -> 79.88764045 | IV10: =IF(IU4<5,"",INDEX(compilations,MATCH(IZ11&"M",$J$339:$J$424,0),41)) -> 80.15151515 | IW10: =IF(IU4<5,"",INDEX(compilations,MATCH(IZ11&"F",$J$339:$J$424,0),41)) -> 79.55696203 | IX10: =IF(IU4<5,"",INDEX(compilations,MATCH(IZ11&"J",$J$339:$J$424,0),41)) -> 79.31372549 | IY10: =IF(IU4<5,"",INDEX(compilations,MATCH(IZ11&"V",$J$339:$J$424,0),41)) -> 80.65789474 | JA10: 2 | JB10: 2 | JC10: 500.1008 | JD10: =IF(JD4<5,"",((JE10*JE9)+(JF10*JF9))/JD9) -> 78.94444444 | JE10: =IF(JD4<5,"",INDEX(compilations,MATCH(JI11&"M",$J$339:$J$424,0),45)) -> 79.84848485 | JF10: =IF(JD4<5,"",INDEX(compilations,MATCH(JI11&"F",$J$339:$J$424,0),45)) -> 77.83950617 | JG10: =IF(JD4<5,"",INDEX(compilations,MATCH(JI11&"J",$J$339:$J$424,0),45)) -> 79.41747573 | JH10: =IF(JD4<5,"",INDEX(compilations,MATCH(JI11&"V",$J$339:$J$424,0),45)) -> 78.31168831 | JJ10: 2 | JK10: 3 | JL10: 500.1008 | JM10: =IF(JM4<5,"",((JN10*JN9)+(JO10*JO9))/JM9) ->  | JN10: =IF(JM4<5,"",INDEX(compilations,MATCH(JR11&"M",$J$339:$J$424,0),49)) ->  | JO10: =IF(JM4<5,"",INDEX(compilations,MATCH(JR11&"F",$J$339:$J$424,0),49)) ->  | JP10: =IF(JM4<5,"",INDEX(compilations,MATCH(JR11&"J",$J$339:$J$424,0),49)) ->  | JQ10: =IF(JM4<5,"",INDEX(compilations,MATCH(JR11&"V",$J$339:$J$424,0),49)) ->  | JU10: 500.1008 | JV10: =IF(JV4<5,"",((JW10*JW9)+(JX10*JX9))/JV9) -> 79.95953757 | JW10: =IF(JV4<5,"",INDEX(compilations,MATCH(KA11&"M",$J$339:$J$424,0),53)) -> 80.25531915 | JX10: =IF(JV4<5,"",INDEX(compilations,MATCH(KA11&"F",$J$339:$J$424,0),53)) -> 79.60759494 | JY10: =IF(JV4<5,"",INDEX(compilations,MATCH(KA11&"J",$J$339:$J$424,0),53)) -> 79.90721649 | JZ10: =IF(JV4<5,"",INDEX(compilations,MATCH(KA11&"V",$J$339:$J$424,0),53)) -> 80.02631579 | KB10: 2 | KC10: 2 | KD10: 500.1008 | KE10: =IF(KE4<5,"",((KF10*KF9)+(KG10*KG9))/KE9) -> 78.5 | KF10: =IF(KE4<5,"",INDEX(compilations,MATCH(KJ11&"M",$J$339:$J$424,0),28)) -> 78.73033708 | KG10: =IF(KE4<5,"",INDEX(compilations,MATCH(KJ11&"F",$J$339:$J$424,0),28)) -> 78.21917808 | KH10: =IF(KE4<5,"",INDEX(compilations,MATCH(KJ11&"J",$J$339:$J$424,0),28)) -> 78.33333333 | KI10: =IF(KE4<5,"",INDEX(compilations,MATCH(KJ11&"V",$J$339:$J$424,0),28)) -> 78.72463768 | KK10: 2 | KL10: 2 | KM10: 500.1008 | KN10: =IF(KN4<5,"",((KO10*KO9)+(KP10*KP9))/KN9) ->  | KO10: =IF(KN4<5,"",INDEX(compilations,MATCH(KS11&"M",$J$339:$J$424,0),32)) ->  | KP10: =IF(KN4<5,"",INDEX(compilations,MATCH(KS11&"F",$J$339:$J$424,0),32)) ->  | KQ10: =IF(KN4<5,"",INDEX(compilations,MATCH(KS11&"J",$J$339:$J$424,0),32)) ->  | KR10: =IF(KN4<5,"",INDEX(compilations,MATCH(KS11&"V",$J$339:$J$424,0),32)) ->  | KV10: 500.1008 | KW10: =IF(KW4<5,"",((KX10*KX9)+(KY10*KY9))/KW9) ->  | KX10: =IF(KW4<5,"",INDEX(compilations,MATCH(LB11&"M",$J$339:$J$424,0),36)) ->  | KY10: =IF(KW4<5,"",INDEX(compilations,MATCH(LB11&"F",$J$339:$J$424,0),36)) ->  | KZ10: =IF(KW4<5,"",INDEX(compilations,MATCH(LB11&"J",$J$339:$J$424,0),36)) ->  | LA10: =IF(KW4<5,"",INDEX(compilations,MATCH(LB11&"V",$J$339:$J$424,0),36)) ->  | LE10: 500.1008 | LF10: =IF(LF4<5,"",((LG10*LG9)+(LH10*LH9))/LF9) -> 77.63483146 | LG10: =IF(LF4<5,"",INDEX(compilations,MATCH(LK11&"M",$J$339:$J$424,0),40)) -> 77.07070707 | LH10: =IF(LF4<5,"",INDEX(compilations,MATCH(LK11&"F",$J$339:$J$424,0),40)) -> 78.34177215 | LI10: =IF(LF4<5,"",INDEX(compilations,MATCH(LK11&"J",$J$339:$J$424,0),40)) -> 75.87254902 | LJ10: =IF(LF4<5,"",INDEX(compilations,MATCH(LK11&"V",$J$339:$J$424,0),40)) -> 80 | LL10: 1 | LM10: 2 | LN10: 500.1008 | LO10: =IF(LO4<5,"",((LP10*LP9)+(LQ10*LQ9))/LO9) -> 79.36111111 | LP10: =IF(LO4<5,"",INDEX(compilations,MATCH(LT11&"M",$J$339:$J$424,0),44)) -> 78.28282828 | LQ10: =IF(LO4<5,"",INDEX(compilations,MATCH(LT11&"F",$J$339:$J$424,0),44)) -> 80.67901235 | LR10: =IF(LO4<5,"",INDEX(compilations,MATCH(LT11&"J",$J$339:$J$424,0),44)) -> 78.44660194 | LS10: =IF(LO4<5,"",INDEX(compilations,MATCH(LT11&"V",$J$339:$J$424,0),44)) -> 80.58441558 | LU10: 2 | LV10: 3 | LW10: 500.1008 | LX10: =IF(LX4<5,"",((LY10*LY9)+(LZ10*LZ9))/LX9) ->  | LY10: =IF(LX4<5,"",INDEX(compilations,MATCH(MC11&"M",$J$339:$J$424,0),48)) ->  | LZ10: =IF(LX4<5,"",INDEX(compilations,MATCH(MC11&"F",$J$339:$J$424,0),48)) ->  | MA10: =IF(LX4<5,"",INDEX(compilations,MATCH(MC11&"J",$J$339:$J$424,0),48)) ->  | MB10: =IF(LX4<5,"",INDEX(compilations,MATCH(MC11&"V",$J$339:$J$424,0),48)) ->  | MF10: 500.1008 | MG10: =IF(MG4<5,"",((MH10*MH9)+(MI10*MI9))/MG9) ->  | MH10: =IF(MG4<5,"",INDEX(compilations,MATCH(ML11&"M",$J$339:$J$424,0),52)) ->  | MI10: =IF(MG4<5,"",INDEX(compilations,MATCH(ML11&"F",$J$339:$J$424,0),52)) ->  | MJ10: =IF(MG4<5,"",INDEX(compilations,MATCH(ML11&"J",$J$339:$J$424,0),52)) ->  | MK10: =IF(MG4<5,"",INDEX(compilations,MATCH(ML11&"V",$J$339:$J$424,0),52)) ->  | MO10: 500.1008 | MP10: =IF(MP4<5,"",((MQ10*MQ9)+(MR10*MR9))/MP9) -> 74.04827586 | MQ10: =IF(MP4<5,"",INDEX(compilations,MATCH(MU11&"M",$J$339:$J$424,0),56)) -> 74.9875 | MR10: =IF(MP4<5,"",INDEX(compilations,MATCH(MU11&"F",$J$339:$J$424,0),56)) -> 72.89230769 | MS10: =IF(MP4<5,"",INDEX(compilations,MATCH(MU11&"J",$J$339:$J$424,0),56)) -> 73.4691358 | MT10: =IF(MP4<5,"",INDEX(compilations,MATCH(MU11&"V",$J$339:$J$424,0),56)) -> 74.78125 | MV10: 1 | MW10: 2 | MX10: 500.1008 | MY10: =IF(MY4<5,"",((MZ10*MZ9)+(NA10*NA9))/MY9) -> 80.4244879 | MZ10: =IF(MY4<5,"",INDEX(compilations,MATCH(ND11&"M",$J$339:$J$424,0),72)) -> 79.95141375 | NA10: =IF(MY4<5,"",INDEX(compilations,MATCH(ND11&"F",$J$339:$J$424,0),72)) -> 81.00124954 | NB10: =IF(MY4<5,"",INDEX(compilations,MATCH(ND11&"J",$J$339:$J$424,0),72)) -> 80.32858614 | NC10: =IF(MY4<5,"",INDEX(compilations,MATCH(ND11&"V",$J$339:$J$424,0),72)) -> 80.55450092 | NE10: 1 | NF10: 2 | NG10: 500.1008 | NH10: =IF(NH4<5,"",((NI10*NI9)+(NJ10*NJ9))/NH9) ->  | NI10: =IF(NH4<5,"",INDEX(compilations,MATCH(NM11&"M",$J$339:$J$424,0),73)) ->  | NJ10: =IF(NH4<5,"",INDEX(compilations,MATCH(NM11&"F",$J$339:$J$424,0),73)) ->  | NK10: =IF(NH4<5,"",INDEX(compilations,MATCH(NM11&"J",$J$339:$J$424,0),73)) ->  | NL10: =IF(NH4<5,"",INDEX(compilations,MATCH(NM11&"V",$J$339:$J$424,0),73)) ->  | NP10: 500.1008 | NQ10: =IF(NQ4<5,"",((NR10*NR9)+(NS10*NS9))/NQ9) ->  | NR10: =IF(NQ4<5,"",INDEX(compilations,MATCH(NV11&"M",$J$339:$J$424,0),74)) ->  | NS10: =IF(NQ4<5,"",INDEX(compilations,MATCH(NV11&"F",$J$339:$J$424,0),74)) ->  | NT10: =IF(NQ4<5,"",INDEX(compilations,MATCH(NV11&"J",$J$339:$J$424,0),74)) ->  | NU10: =IF(NQ4<5,"",INDEX(compilations,MATCH(NV11&"V",$J$339:$J$424,0),74)) ->  | NW10: 2 | NX10: 2 | NY10: 500.1008 | NZ10: =IF(NZ4<5,"",((OA10*OA9)+(OB10*OB9))/NZ9) -> 78.18258427 | OA10: =IF(NZ4<5,"",INDEX(compilations,MATCH(OE11&"M",$J$339:$J$424,0),75)) -> 77.51767677 | OB10: =IF(NZ4<5,"",INDEX(compilations,MATCH(OE11&"F",$J$339:$J$424,0),75)) -> 79.01582278 | OC10: =IF(NZ4<5,"",INDEX(compilations,MATCH(OE11&"J",$J$339:$J$424,0),75)) -> 77.56372549 | OD10: =IF(NZ4<5,"",INDEX(compilations,MATCH(OE11&"V",$J$339:$J$424,0),75)) -> 79.01315789 | OF10: 1 | OG10: 2 | OH10: 500.1008 | OI10: =IF(OI4<5,"",((OJ10*OJ9)+(OK10*OK9))/OI9) -> 79.125 | OJ10: =IF(OI4<5,"",INDEX(compilations,MATCH(ON11&"M",$J$339:$J$424,0),76)) -> 78.63636364 | OK10: =IF(OI4<5,"",INDEX(compilations,MATCH(ON11&"F",$J$339:$J$424,0),76)) -> 79.72222222 | OL10: =IF(OI4<5,"",INDEX(compilations,MATCH(ON11&"J",$J$339:$J$424,0),76)) -> 79.17475728 | OM10: =IF(OI4<5,"",INDEX(compilations,MATCH(ON11&"V",$J$339:$J$424,0),76)) -> 79.05844156 | OO10: 2 | OP10: 2 | OQ10: 500.1008 | OR10: =IF(OR4<5,"",((OS10*OS9)+(OT10*OT9))/OR9) ->  | OS10: =IF(OR4<5,"",INDEX(compilations,MATCH(OW11&"M",$J$339:$J$424,0),77)) ->  | OT10: =IF(OR4<5,"",INDEX(compilations,MATCH(OW11&"F",$J$339:$J$424,0),77)) ->  | OU10: =IF(OR4<5,"",INDEX(compilations,MATCH(OW11&"J",$J$339:$J$424,0),77)) ->  | OV10: =IF(OR4<5,"",INDEX(compilations,MATCH(OW11&"V",$J$339:$J$424,0),77)) ->  | OZ10: 500.1008 | PA10: =IF(PA4<5,"",((PB10*PB9)+(PC10*PC9))/PA9) -> 79.15813377 | PB10: =IF(PA4<5,"",INDEX(compilations,MATCH(PF11&"M",$J$339:$J$424,0),78)) -> 78.02545593 | PC10: =IF(PA4<5,"",INDEX(compilations,MATCH(PF11&"F",$J$339:$J$424,0),78)) -> 80.50587703 | PD10: =IF(PA4<5,"",INDEX(compilations,MATCH(PF11&"J",$J$339:$J$424,0),78)) -> 79.36673742 | PE10: =IF(PA4<5,"",INDEX(compilations,MATCH(PF11&"V",$J$339:$J$424,0),78)) -> 79.07655502 | PG10: 1 | PH10: 2
A11: 2010 | B11: 001 | C11: 501 | F11: 0 | G11: 2000-02-22 | J11: F | K11: 85 | L11: 85 | M11: 0 | N11: 80 | O11: 90 | P11: 95 | Q11: 90 | R11: 90 | S11: 90 | T11: 0 | U11: 0 | V11: 95 | W11: 0 | X11: 0 | Y11: 0 | Z11: 0 | AA11: 85 | AB11: 85 | AC11: 0 | AD11: 85 | AE11: 85 | AF11: 85 | AG11: 85 | AH11: 90 | AI11: 85 | AJ11: 85 | AK11: 85 | AL11: 95 | AM11: 0 | AN11: 0 | AO11: 0 | AP11: 0 | AQ11: 80 | AR11: 95 | AS11: 0 | AT11: 90 | AU11: 90 | AV11: 90 | AW11: 85 | AX11: 95 | AY11: 95 | AZ11: 90 | BA11: 90 | BB11: 85 | BC11: 0 | BD11: 0 | BE11: 0 | BF11: 0 | BG11: 88 | BH11: 86 | BI11: 85 | BJ11: 95 | BK11: 0 | BL11: 0 | BM11: 0 | BN11: 0 | BO11: 94 | BP11: 81 | BQ11: 95 | BR11: 80 | BS11: 84 | BT11: 90 | BU11: 100 | BV11: 93 | BX11: 55 | BY11: 91.25 | BZ11: 0 | CA11: 85 | CB11: 86.25 | CC11: 87.5 | CD11: 0 | CE11: 88.33333333 | CF11: 90 | CG11: 90 | CH11: 0 | CI11: 88.5 | CM11: 001501 | CN11: 0.100 | CO11: 50 | CP11: =Tableau_SSRSMSA03_BI_Integration_STEPH_2010[[#This Row],[DAT_NAISSANCE_ELEVE]] -> 2000-02-22 | CQ11: 2009-09-30 | CR11: 3508 | CS11: 9.604380561 | CT11: =IF(AND(LEFT(CO11,1)="1",CS11>5.5),"V",IF(AND(LEFT(CO11,1)="2",CS11>6.5),"V",IF(AND(LEFT(CO11,1)="3",CS11>7.5),"V",IF(AND(LEFT(CO11,1)="4",CS11>8.5),"V",IF(AND(LEFT(CO11,1)="5",CS11>9.5),"V",IF(AND(LEFT(CO11,1)="6",CS11>10.5),"V","J")))))) -> V | CU11: =IF(AJ11=0,0,IF(BH11=0,0,1)) -> 1 | CV11: =DC11&DC12&9 -> 500.1009 | CW11: nb compa | CX11: =SUM(CY11:CZ11) -> 162 | CY11: =COUNTIFS($CO$2:$CO$338,DC11,$CN$2:$CN$338,DC12,$J$2:$J$338,"M",$AJ$2:$AJ$338,">3") -> 89 | CZ11: =COUNTIFS($CO$2:$CO$338,DC11,$CN$2:$CN$338,DC12,$J$2:$J$338,"F",$AJ$2:$AJ$338,">3") -> 73 | DA11: =COUNTIFS($CO$2:$CO$338,DC11,$CN$2:$CN$338,DC12,$CT$2:$CT$338,"J",$AJ$2:$AJ$338,">3") -> 93 | DB11: =COUNTIFS($CO$2:$CO$338,DC11,$CN$2:$CN$338,DC12,$CT$2:$CT$338,"V",$AJ$2:$AJ$338,">3") -> 69 | DC11: =$CO2 -> 50 | DD11: 1 | DE11: 2 | DF11: 500.1009 | DG11: =SUM(DH11:DI11) -> 0 | DH11: =COUNTIFS($CO$2:$CO$338,DL11,$CN$2:$CN$338,DL12,$J$2:$J$338,"M",$AN$2:$AN$338,">3") -> 0 | DI11: =COUNTIFS($CO$2:$CO$338,DL11,$CN$2:$CN$338,DL12,$J$2:$J$338,"F",$AN$2:$AN$338,">3") -> 0 | DJ11: =COUNTIFS($CO$2:$CO$338,DL11,$CN$2:$CN$338,DL12,$CT$2:$CT$338,"J",$AN$2:$AN$338,">3") -> 0 | DK11: =COUNTIFS($CO$2:$CO$338,DL11,$CN$2:$CN$338,DL12,$CT$2:$CT$338,"V",$AN$2:$AN$338,">3") -> 0 | DL11: =$CO2 -> 50 | DO11: 500.1009 | DP11: =SUM(DQ11:DR11) -> 177 | DQ11: =COUNTIFS($CO$2:$CO$338,DU11,$CN$2:$CN$338,DU12,$J$2:$J$338,"M",$AR$2:$AR$338,">3") -> 98 | DR11: =COUNTIFS($CO$2:$CO$338,DU11,$CN$2:$CN$338,DU12,$J$2:$J$338,"F",$AR$2:$AR$338,">3") -> 79 | DS11: =COUNTIFS($CO$2:$CO$338,DU11,$CN$2:$CN$338,DU12,$CT$2:$CT$338,"J",$AR$2:$AR$338,">3") -> 101 | DT11: =COUNTIFS($CO$2:$CO$338,DU11,$CN$2:$CN$338,DU12,$CT$2:$CT$338,"V",$AR$2:$AR$338,">3") -> 76 | DU11: =$CO2 -> 50 | DV11: 1 | DW11: 1 | DX11: 500.1009 | DY11: =SUM(DZ11:EA11) -> 178 | DZ11: =COUNTIFS($CO$2:$CO$338,ED11,$CN$2:$CN$338,ED12,$J$2:$J$338,"M",$AV$2:$AV$338,">3") -> 99 | EA11: =COUNTIFS($CO$2:$CO$338,ED11,$CN$2:$CN$338,ED12,$J$2:$J$338,"F",$AV$2:$AV$338,">3") -> 79 | EB11: =COUNTIFS($CO$2:$CO$338,ED11,$CN$2:$CN$338,ED12,$CT$2:$CT$338,"J",$AV$2:$AV$338,">3") -> 102 | EC11: =COUNTIFS($CO$2:$CO$338,ED11,$CN$2:$CN$338,ED12,$CT$2:$CT$338,"V",$AV$2:$AV$338,">3") -> 76 | ED11: =$CO2 -> 50 | EE11: 1 | EF11: 1 | EG11: 500.1009 | EH11: =SUM(EI11:EJ11) -> 180 | EI11: =COUNTIFS($CO$2:$CO$338,EM11,$CN$2:$CN$338,EM12,$J$2:$J$338,"M",$AZ$2:$AZ$338,">3") -> 99 | EJ11: =COUNTIFS($CO$2:$CO$338,EM11,$CN$2:$CN$338,EM12,$J$2:$J$338,"F",$AZ$2:$AZ$338,">3") -> 81 | EK11: =COUNTIFS($CO$2:$CO$338,EM11,$CN$2:$CN$338,EM12,$CT$2:$CT$338,"J",$AZ$2:$AZ$338,">3") -> 103 | EL11: =COUNTIFS($CO$2:$CO$338,EM11,$CN$2:$CN$338,EM12,$CT$2:$CT$338,"V",$AZ$2:$AZ$338,">3") -> 77 | EM11: =$CO2 -> 50 | EN11: 1 | EO11: 1 | EP11: 500.1009 | EQ11: =SUM(ER11:ES11) -> 0 | ER11: =COUNTIFS($CO$2:$CO$338,EV11,$CN$2:$CN$338,EV12,$J$2:$J$338,"M",$BD$2:$BD$338,">3") -> 0 | ES11: =COUNTIFS($CO$2:$CO$338,EV11,$CN$2:$CN$338,EV12,$J$2:$J$338,"F",$BD$2:$BD$338,">3") -> 0 | ET11: =COUNTIFS($CO$2:$CO$338,EV11,$CN$2:$CN$338,EV12,$CT$2:$CT$338,"J",$BD$2:$BD$338,">3") -> 0 | EU11: =COUNTIFS($CO$2:$CO$338,EV11,$CN$2:$CN$338,EV12,$CT$2:$CT$338,"V",$BD$2:$BD$338,">3") -> 0 | EV11: =$CO2 -> 50 | EY11: 500.1009 | EZ11: =SUM(FA11:FB11) -> 173 | FA11: =COUNTIFS($CO$2:$CO$338,FE11,$CN$2:$CN$338,FE12,$J$2:$J$338,"M",$BH$2:$BH$338,">3") -> 94 | FB11: =COUNTIFS($CO$2:$CO$338,FE11,$CN$2:$CN$338,FE12,$J$2:$J$338,"F",$BH$2:$BH$338,">3") -> 79 | FC11: =COUNTIFS($CO$2:$CO$338,FE11,$CN$2:$CN$338,FE12,$CT$2:$CT$338,"J",$BH$2:$BH$338,">3") -> 97 | FD11: =COUNTIFS($CO$2:$CO$338,FE11,$CN$2:$CN$338,FE12,$CT$2:$CT$338,"V",$BH$2:$BH$338,">3") -> 76 | FE11: =$CO2 -> 50 | FF11: 1 | FG11: 1 | FH11: 500.1009 | FI11: =SUM(FJ11:FK11) -> 162 | FJ11: =COUNTIFS($CO$2:$CO$338,FN11,$CN$2:$CN$338,FN12,$J$2:$J$338,"M",$AI$2:$AI$338,">3") -> 89 | FK11: =COUNTIFS($CO$2:$CO$338,FN11,$CN$2:$CN$338,FN12,$J$2:$J$338,"F",$AI$2:$AI$338,">3") -> 73 | FL11: =COUNTIFS($CO$2:$CO$338,FN11,$CN$2:$CN$338,FN12,$CT$2:$CT$338,"J",$AI$2:$AI$338,">3") -> 93 | FM11: =COUNTIFS($CO$2:$CO$338,FN11,$CN$2:$CN$338,FN12,$CT$2:$CT$338,"V",$AI$2:$AI$338,">3") -> 69 | FN11: =$CO2 -> 50 | FO11: 1 | FP11: 2 | FQ11: 500.1009 | FR11: =SUM(FS11:FT11) -> 0 | FS11: =COUNTIFS($CO$2:$CO$338,FW11,$CN$2:$CN$338,FW12,$J$2:$J$338,"M",$AM$2:$AM$338,">3") -> 0 | FT11: =COUNTIFS($CO$2:$CO$338,FW11,$CN$2:$CN$338,FW12,$J$2:$J$338,"F",$AM$2:$AM$338,">3") -> 0 | FU11: =COUNTIFS($CO$2:$CO$338,FW11,$CN$2:$CN$338,FW12,$CT$2:$CT$338,"J",$AM$2:$AM$338,">3") -> 0 | FV11: =COUNTIFS($CO$2:$CO$338,FW11,$CN$2:$CN$338,FW12,$CT$2:$CT$338,"V",$AM$2:$AM$338,">3") -> 0 | FW11: =$CO2 -> 50 | FZ11: 500.1009 | GA11: =SUM(GB11:GC11) -> 177 | GB11: =COUNTIFS($CO$2:$CO$338,GF11,$CN$2:$CN$338,GF12,$J$2:$J$338,"M",$AQ$2:$AQ$338,">3") -> 98 | GC11: =COUNTIFS($CO$2:$CO$338,GF11,$CN$2:$CN$338,GF12,$J$2:$J$338,"F",$AQ$2:$AQ$338,">3") -> 79 | GD11: =COUNTIFS($CO$2:$CO$338,GF11,$CN$2:$CN$338,GF12,$CT$2:$CT$338,"J",$AQ$2:$AQ$338,">3") -> 101 | GE11: =COUNTIFS($CO$2:$CO$338,GF11,$CN$2:$CN$338,GF12,$CT$2:$CT$338,"V",$AQ$2:$AQ$338,">3") -> 76 | GF11: =$CO2 -> 50 | GG11: 1 | GH11: 2 | GI11: 500.1009 | GJ11: =SUM(GK11:GL11) -> 178 | GK11: =COUNTIFS($CO$2:$CO$338,GO11,$CN$2:$CN$338,GO12,$J$2:$J$338,"M",$AU$2:$AU$338,">3") -> 99 | GL11: =COUNTIFS($CO$2:$CO$338,GO11,$CN$2:$CN$338,GO12,$J$2:$J$338,"F",$AU$2:$AU$338,">3") -> 79 | GM11: =COUNTIFS($CO$2:$CO$338,GO11,$CN$2:$CN$338,GO12,$CT$2:$CT$338,"J",$AU$2:$AU$338,">3") -> 102 | GN11: =COUNTIFS($CO$2:$CO$338,GO11,$CN$2:$CN$338,GO12,$CT$2:$CT$338,"V",$AU$2:$AU$338,">3") -> 76 | GO11: =$CO2 -> 50 | GP11: 1 | GQ11: 1 | GR11: 500.1009 | GS11: =SUM(GT11:GU11) -> 180 | GT11: =COUNTIFS($CO$2:$CO$338,GX11,$CN$2:$CN$338,GX12,$J$2:$J$338,"M",$AY$2:$AY$338,">3") -> 99 | GU11: =COUNTIFS($CO$2:$CO$338,GX11,$CN$2:$CN$338,GX12,$J$2:$J$338,"F",$AY$2:$AY$338,">3") -> 81 | GV11: =COUNTIFS($CO$2:$CO$338,GX11,$CN$2:$CN$338,GX12,$CT$2:$CT$338,"J",$AY$2:$AY$338,">3") -> 103 | GW11: =COUNTIFS($CO$2:$CO$338,GX11,$CN$2:$CN$338,GX12,$CT$2:$CT$338,"V",$AY$2:$AY$338,">3") -> 77 | GX11: =$CO2 -> 50 | GY11: 1 | GZ11: 1 | HA11: 500.1009 | HB11: =SUM(HC11:HD11) -> 0 | HC11: =COUNTIFS($CO$2:$CO$338,HG11,$CN$2:$CN$338,HG12,$J$2:$J$338,"M",$BC$2:$BC$338,">3") -> 0 | HD11: =COUNTIFS($CO$2:$CO$338,HG11,$CN$2:$CN$338,HG12,$J$2:$J$338,"F",$BC$2:$BC$338,">3") -> 0 | HE11: =COUNTIFS($CO$2:$CO$338,HG11,$CN$2:$CN$338,HG12,$CT$2:$CT$338,"J",$BC$2:$BC$338,">3") -> 0 | HF11: =COUNTIFS($CO$2:$CO$338,HG11,$CN$2:$CN$338,HG12,$CT$2:$CT$338,"V",$BC$2:$BC$338,">3") -> 0 | HG11: =$CO2 -> 50 | HJ11: 500.1009 | HK11: =SUM(HL11:HM11) -> 173 | HL11: =COUNTIFS($CO$2:$CO$338,HP11,$CN$2:$CN$338,HP12,$J$2:$J$338,"M",$BG$2:$BG$338,">3") -> 94 | HM11: =COUNTIFS($CO$2:$CO$338,HP11,$CN$2:$CN$338,HP12,$J$2:$J$338,"F",$BG$2:$BG$338,">3") -> 79 | HN11: =COUNTIFS($CO$2:$CO$338,HP11,$CN$2:$CN$338,HP12,$CT$2:$CT$338,"J",$BG$2:$BG$338,">3") -> 97 | HO11: =COUNTIFS($CO$2:$CO$338,HP11,$CN$2:$CN$338,HP12,$CT$2:$CT$338,"V",$BG$2:$BG$338,">3") -> 76 | HP11: =$CO2 -> 50 | HQ11: 1 | HR11: 1 | HS11: 500.1009 | HT11: =SUM(HU11:HV11) -> 165 | HU11: =COUNTIFS($CO$2:$CO$338,HY11,$CN$2:$CN$338,HY12,$J$2:$J$338,"M",$AL$2:$AL$338,">3") -> 91 | HV11: =COUNTIFS($CO$2:$CO$338,HY11,$CN$2:$CN$338,HY12,$J$2:$J$338,"F",$AL$2:$AL$338,">3") -> 74 | HW11: =COUNTIFS($CO$2:$CO$338,HY11,$CN$2:$CN$338,HY12,$CT$2:$CT$338,"J",$AL$2:$AL$338,">3") -> 94 | HX11: =COUNTIFS($CO$2:$CO$338,HY11,$CN$2:$CN$338,HY12,$CT$2:$CT$338,"V",$AL$2:$AL$338,">3") -> 71 | HY11: =$CO2 -> 50 | HZ11: 1 | IA11: 1 | IB11: 500.1009 | IC11: =SUM(ID11:IE11) -> 0 | ID11: =COUNTIFS($CO$2:$CO$338,IH11,$CN$2:$CN$338,IH12,$J$2:$J$338,"M",$AP$2:$AP$338,">3") -> 0 | IE11: =COUNTIFS($CO$2:$CO$338,IH11,$CN$2:$CN$338,IH12,$J$2:$J$338,"F",$AP$2:$AP$338,">3") -> 0 | IF11: =COUNTIFS($CO$2:$CO$338,IH11,$CN$2:$CN$338,IH12,$CT$2:$CT$338,"J",$AP$2:$AP$338,">3") -> 0 | IG11: =COUNTIFS($CO$2:$CO$338,IH11,$CN$2:$CN$338,IH12,$CT$2:$CT$338,"V",$AP$2:$AP$338,">3") -> 0 | IH11: =$CO2 -> 50 | IK11: 500.1009 | IL11: =SUM(IM11:IN11) -> 177 | IM11: =COUNTIFS($CO$2:$CO$338,IQ11,$CN$2:$CN$338,IQ12,$J$2:$J$338,"M",$AT$2:$AT$338,">3") -> 98 | IN11: =COUNTIFS($CO$2:$CO$338,IQ11,$CN$2:$CN$338,IQ12,$J$2:$J$338,"F",$AT$2:$AT$338,">3") -> 79 | IO11: =COUNTIFS($CO$2:$CO$338,IQ11,$CN$2:$CN$338,IQ12,$CT$2:$CT$338,"J",$AT$2:$AT$338,">3") -> 101 | IP11: =COUNTIFS($CO$2:$CO$338,IQ11,$CN$2:$CN$338,IQ12,$CT$2:$CT$338,"V",$AT$2:$AT$338,">3") -> 76 | IQ11: =$CO2 -> 50 | IR11: 1 | IS11: 1 | IT11: 500.1009 | IU11: =SUM(IV11:IW11) -> 178 | IV11: =COUNTIFS($CO$2:$CO$338,IZ11,$CN$2:$CN$338,IZ12,$J$2:$J$338,"M",$AX$2:$AX$338,">3") -> 99 | IW11: =COUNTIFS($CO$2:$CO$338,IZ11,$CN$2:$CN$338,IZ12,$J$2:$J$338,"F",$AX$2:$AX$338,">3") -> 79 | IX11: =COUNTIFS($CO$2:$CO$338,IZ11,$CN$2:$CN$338,IZ12,$CT$2:$CT$338,"J",$AX$2:$AX$338,">3") -> 102 | IY11: =COUNTIFS($CO$2:$CO$338,IZ11,$CN$2:$CN$338,IZ12,$CT$2:$CT$338,"V",$AX$2:$AX$338,">3") -> 76 | IZ11: =$CO2 -> 50 | JA11: 1 | JB11: 1 | JC11: 500.1009 | JD11: =SUM(JE11:JF11) -> 180 | JE11: =COUNTIFS($CO$2:$CO$338,JI11,$CN$2:$CN$338,JI12,$J$2:$J$338,"M",$BB$2:$BB$338,">3") -> 99 | JF11: =COUNTIFS($CO$2:$CO$338,JI11,$CN$2:$CN$338,JI12,$J$2:$J$338,"F",$BB$2:$BB$338,">3") -> 81 | JG11: =COUNTIFS($CO$2:$CO$338,JI11,$CN$2:$CN$338,JI12,$CT$2:$CT$338,"J",$BB$2:$BB$338,">3") -> 103 | JH11: =COUNTIFS($CO$2:$CO$338,JI11,$CN$2:$CN$338,JI12,$CT$2:$CT$338,"V",$BB$2:$BB$338,">3") -> 77 | JI11: =$CO2 -> 50 | JJ11: 1 | JK11: 2 | JL11: 500.1009 | JM11: =SUM(JN11:JO11) -> 0 | JN11: =COUNTIFS($CO$2:$CO$338,JR11,$CN$2:$CN$338,JR12,$J$2:$J$338,"M",$BF$2:$BF$338,">3") -> 0 | JO11: =COUNTIFS($CO$2:$CO$338,JR11,$CN$2:$CN$338,JR12,$J$2:$J$338,"F",$BF$2:$BF$338,">3") -> 0 | JP11: =COUNTIFS($CO$2:$CO$338,JR11,$CN$2:$CN$338,JR12,$CT$2:$CT$338,"J",$BF$2:$BF$338,">3") -> 0 | JQ11: =COUNTIFS($CO$2:$CO$338,JR11,$CN$2:$CN$338,JR12,$CT$2:$CT$338,"V",$BF$2:$BF$338,">3") -> 0 | JR11: =$CO2 -> 50 | JU11: 500.1009 | JV11: =SUM(JW11:JX11) -> 173 | JW11: =COUNTIFS($CO$2:$CO$338,KA11,$CN$2:$CN$338,KA12,$J$2:$J$338,"M",$BJ$2:$BJ$338,">3") -> 94 | JX11: =COUNTIFS($CO$2:$CO$338,KA11,$CN$2:$CN$338,KA12,$J$2:$J$338,"F",$BJ$2:$BJ$338,">3") -> 79 | JY11: =COUNTIFS($CO$2:$CO$338,KA11,$CN$2:$CN$338,KA12,$CT$2:$CT$338,"J",$BJ$2:$BJ$338,">3") -> 97 | JZ11: =COUNTIFS($CO$2:$CO$338,KA11,$CN$2:$CN$338,KA12,$CT$2:$CT$338,"V",$BJ$2:$BJ$338,">3") -> 76 | KA11: =$CO2 -> 50 | KB11: 1 | KC11: 1 | KD11: 500.1009 | KE11: =SUM(KF11:KG11) -> 162 | KF11: =COUNTIFS($CO$2:$CO$338,KJ11,$CN$2:$CN$338,KJ12,$J$2:$J$338,"M",$AK$2:$AK$338,">3") -> 89 | KG11: =COUNTIFS($CO$2:$CO$338,KJ11,$CN$2:$CN$338,KJ12,$J$2:$J$338,"F",$AK$2:$AK$338,">3") -> 73 | KH11: =COUNTIFS($CO$2:$CO$338,KJ11,$CN$2:$CN$338,KJ12,$CT$2:$CT$338,"J",$AK$2:$AK$338,">3") -> 93 | KI11: =COUNTIFS($CO$2:$CO$338,KJ11,$CN$2:$CN$338,KJ12,$CT$2:$CT$338,"V",$AK$2:$AK$338,">3") -> 69 | KJ11: =$CO2 -> 50 | KK11: 1 | KL11: 2 | KM11: 500.1009 | KN11: =SUM(KO11:KP11) -> 0 | KO11: =COUNTIFS($CO$2:$CO$338,KS11,$CN$2:$CN$338,KS12,$J$2:$J$338,"M",$AO$2:$AO$338,">3") -> 0 | KP11: =COUNTIFS($CO$2:$CO$338,KS11,$CN$2:$CN$338,KS12,$J$2:$J$338,"F",$AO$2:$AO$338,">3") -> 0 | KQ11: =COUNTIFS($CO$2:$CO$338,KS11,$CN$2:$CN$338,KS12,$CT$2:$CT$338,"J",$AO$2:$AO$338,">3") -> 0 | KR11: =COUNTIFS($CO$2:$CO$338,KS11,$CN$2:$CN$338,KS12,$CT$2:$CT$338,"V",$AO$2:$AO$338,">3") -> 0 | KS11: =$CO2 -> 50 | KV11: 500.1009 | KW11: =SUM(KX11:KY11) -> 0 | KX11: =COUNTIFS($CO$2:$CO$338,LB11,$CN$2:$CN$338,LB12,$J$2:$J$338,"M",$AS$2:$AS$338,">3") -> 0 | KY11: =COUNTIFS($CO$2:$CO$338,LB11,$CN$2:$CN$338,LB12,$J$2:$J$338,"F",$AS$2:$AS$338,">3") -> 0 | KZ11: =COUNTIFS($CO$2:$CO$338,LB11,$CN$2:$CN$338,LB12,$CT$2:$CT$338,"J",$AS$2:$AS$338,">3") -> 0 | LA11: =COUNTIFS($CO$2:$CO$338,LB11,$CN$2:$CN$338,LB12,$CT$2:$CT$338,"V",$AS$2:$AS$338,">3") -> 0 | LB11: =$CO2 -> 50 | LE11: 500.1009 | LF11: =SUM(LG11:LH11) -> 178 | LG11: =COUNTIFS($CO$2:$CO$338,LK11,$CN$2:$CN$338,LK12,$J$2:$J$338,"M",$AW$2:$AW$338,">3") -> 99 | LH11: =COUNTIFS($CO$2:$CO$338,LK11,$CN$2:$CN$338,LK12,$J$2:$J$338,"F",$AW$2:$AW$338,">3") -> 79 | LI11: =COUNTIFS($CO$2:$CO$338,LK11,$CN$2:$CN$338,LK12,$CT$2:$CT$338,"J",$AW$2:$AW$338,">3") -> 102 | LJ11: =COUNTIFS($CO$2:$CO$338,LK11,$CN$2:$CN$338,LK12,$CT$2:$CT$338,"V",$AW$2:$AW$338,">3") -> 76 | LK11: =$CO2 -> 50 | LL11: 1 | LM11: 2 | LN11: 500.1009 | LO11: =SUM(LP11:LQ11) -> 180 | LP11: =COUNTIFS($CO$2:$CO$338,LT11,$CN$2:$CN$338,LT12,$J$2:$J$338,"M",$BA$2:$BA$338,">3") -> 99 | LQ11: =COUNTIFS($CO$2:$CO$338,LT11,$CN$2:$CN$338,LT12,$J$2:$J$338,"F",$BA$2:$BA$338,">3") -> 81 | LR11: =COUNTIFS($CO$2:$CO$338,LT11,$CN$2:$CN$338,LT12,$CT$2:$CT$338,"J",$BA$2:$BA$338,">3") -> 103 | LS11: =COUNTIFS($CO$2:$CO$338,LT11,$CN$2:$CN$338,LT12,$CT$2:$CT$338,"V",$BA$2:$BA$338,">3") -> 77 | LT11: =$CO2 -> 50 | LU11: 1 | LV11: 1 | LW11: 500.1009 | LX11: =SUM(LY11:LZ11) -> 0 | LY11: =COUNTIFS($CO$2:$CO$338,MC11,$CN$2:$CN$338,MC12,$J$2:$J$338,"M",$BE$2:$BE$338,">3") -> 0 | LZ11: =COUNTIFS($CO$2:$CO$338,MC11,$CN$2:$CN$338,MC12,$J$2:$J$338,"F",$BE$2:$BE$338,">3") -> 0 | MA11: =COUNTIFS($CO$2:$CO$338,MC11,$CN$2:$CN$338,MC12,$CT$2:$CT$338,"J",$BE$2:$BE$338,">3") -> 0 | MB11: =COUNTIFS($CO$2:$CO$338,MC11,$CN$2:$CN$338,MC12,$CT$2:$CT$338,"V",$BE$2:$BE$338,">3") -> 0 | MC11: =$CO2 -> 50 | MF11: 500.1009 | MG11: =SUM(MH11:MI11) -> 28 | MH11: =COUNTIFS($CO$2:$CO$338,ML11,$CN$2:$CN$338,ML12,$J$2:$J$338,"M",$BI$2:$BI$338,">3") -> 14 | MI11: =COUNTIFS($CO$2:$CO$338,ML11,$CN$2:$CN$338,ML12,$J$2:$J$338,"F",$BI$2:$BI$338,">3") -> 14 | MJ11: =COUNTIFS($CO$2:$CO$338,ML11,$CN$2:$CN$338,ML12,$CT$2:$CT$338,"J",$BI$2:$BI$338,">3") -> 17 | MK11: =COUNTIFS($CO$2:$CO$338,ML11,$CN$2:$CN$338,ML12,$CT$2:$CT$338,"V",$BI$2:$BI$338,">3") -> 11 | ML11: =$CO2 -> 50 | MO11: 500.1009 | MP11: =SUM(MQ11:MR11) -> 145 | MQ11: =COUNTIFS($CO$2:$CO$338,MU11,$CN$2:$CN$338,MU12,$J$2:$J$338,"M",$BM$2:$BM$338,">3") -> 80 | MR11: =COUNTIFS($CO$2:$CO$338,MU11,$CN$2:$CN$338,MU12,$J$2:$J$338,"F",$BM$2:$BM$338,">3") -> 65 | MS11: =COUNTIFS($CO$2:$CO$338,MU11,$CN$2:$CN$338,MU12,$CT$2:$CT$338,"J",$BM$2:$BM$338,">3") -> 81 | MT11: =COUNTIFS($CO$2:$CO$338,MU11,$CN$2:$CN$338,MU12,$CT$2:$CT$338,"V",$BM$2:$BM$338,">3") -> 64 | MU11: =$CO2 -> 50 | MV11: 8 | MW11: 8 | MX11: 500.1009 | MY11: =SUM(MZ11:NA11) -> 162 | MZ11: =COUNTIFS($CO$2:$CO$338,ND11,$CN$2:$CN$338,ND12,$J$2:$J$338,"M",$CC$2:$CC$338,">3") -> 89 | NA11: =COUNTIFS($CO$2:$CO$338,ND11,$CN$2:$CN$338,ND12,$J$2:$J$338,"F",$CC$2:$CC$338,">3") -> 73 | NB11: =COUNTIFS($CO$2:$CO$338,ND11,$CN$2:$CN$338,ND12,$CT$2:$CT$338,"J",$CC$2:$CC$338,">3") -> 93 | NC11: =COUNTIFS($CO$2:$CO$338,ND11,$CN$2:$CN$338,ND12,$CT$2:$CT$338,"V",$CC$2:$CC$338,">3") -> 69 | ND11: =$CO2 -> 50 | NE11: 1 | NF11: 1 | NG11: 500.1009 | NH11: =SUM(NI11:NJ11) -> 0 | NI11: =COUNTIFS($CO$2:$CO$338,NM11,$CN$2:$CN$338,NM12,$J$2:$J$338,"M",$CD$2:$CD$338,">3") -> 0 | NJ11: =COUNTIFS($CO$2:$CO$338,NM11,$CN$2:$CN$338,NM12,$J$2:$J$338,"F",$CD$2:$CD$338,">3") -> 0 | NK11: =COUNTIFS($CO$2:$CO$338,NM11,$CN$2:$CN$338,NM12,$CT$2:$CT$338,"J",$CD$2:$CD$338,">3") -> 0 | NL11: =COUNTIFS($CO$2:$CO$338,NM11,$CN$2:$CN$338,NM12,$CT$2:$CT$338,"V",$CD$2:$CD$338,">3") -> 0 | NM11: =$CO2 -> 50 | NP11: 500.1009 | NQ11: =SUM(NR11:NS11) -> 177 | NR11: =COUNTIFS($CO$2:$CO$338,NV11,$CN$2:$CN$338,NV12,$J$2:$J$338,"M",$CE$2:$CE$338,">3") -> 98 | NS11: =COUNTIFS($CO$2:$CO$338,NV11,$CN$2:$CN$338,NV12,$J$2:$J$338,"F",$CE$2:$CE$338,">3") -> 79 | NT11: =COUNTIFS($CO$2:$CO$338,NV11,$CN$2:$CN$338,NV12,$CT$2:$CT$338,"J",$CE$2:$CE$338,">3") -> 101 | NU11: =COUNTIFS($CO$2:$CO$338,NV11,$CN$2:$CN$338,NV12,$CT$2:$CT$338,"V",$CE$2:$CE$338,">3") -> 76 | NV11: =$CO2 -> 50 | NW11: 1 | NX11: 1 | NY11: 500.1009 | NZ11: =SUM(OA11:OB11) -> 178 | OA11: =COUNTIFS($CO$2:$CO$338,OE11,$CN$2:$CN$338,OE12,$J$2:$J$338,"M",$CF$2:$CF$338,">3") -> 99 | OB11: =COUNTIFS($CO$2:$CO$338,OE11,$CN$2:$CN$338,OE12,$J$2:$J$338,"F",$CF$2:$CF$338,">3") -> 79 | OC11: =COUNTIFS($CO$2:$CO$338,OE11,$CN$2:$CN$338,OE12,$CT$2:$CT$338,"J",$CF$2:$CF$338,">3") -> 102 | OD11: =COUNTIFS($CO$2:$CO$338,OE11,$CN$2:$CN$338,OE12,$CT$2:$CT$338,"V",$CF$2:$CF$338,">3") -> 76 | OE11: =$CO2 -> 50 | OF11: 1 | OG11: 1 | OH11: 500.1009 | OI11: =SUM(OJ11:OK11) -> 180 | OJ11: =COUNTIFS($CO$2:$CO$338,ON11,$CN$2:$CN$338,ON12,$J$2:$J$338,"M",$CG$2:$CG$338,">3") -> 99 | OK11: =COUNTIFS($CO$2:$CO$338,ON11,$CN$2:$CN$338,ON12,$J$2:$J$338,"F",$CG$2:$CG$338,">3") -> 81 | OL11: =COUNTIFS($CO$2:$CO$338,ON11,$CN$2:$CN$338,ON12,$CT$2:$CT$338,"J",$CG$2:$CG$338,">3") -> 103 | OM11: =COUNTIFS($CO$2:$CO$338,ON11,$CN$2:$CN$338,ON12,$CT$2:$CT$338,"V",$CG$2:$CG$338,">3") -> 77 | ON11: =$CO2 -> 50 | OO11: 1 | OP11: 1 | OQ11: 500.1009 | OR11: =SUM(OS11:OT11) -> 0 | OS11: =COUNTIFS($CO$2:$CO$338,OW11,$CN$2:$CN$338,OW12,$J$2:$J$338,"M",$CH$2:$CH$338,">3") -> 0 | OT11: =COUNTIFS($CO$2:$CO$338,OW11,$CN$2:$CN$338,OW12,$J$2:$J$338,"F",$CH$2:$CH$338,">3") -> 0 | OU11: =COUNTIFS($CO$2:$CO$338,OW11,$CN$2:$CN$338,OW12,$CT$2:$CT$338,"J",$CH$2:$CH$338,">3") -> 0 | OV11: =COUNTIFS($CO$2:$CO$338,OW11,$CN$2:$CN$338,OW12,$CT$2:$CT$338,"V",$CH$2:$CH$338,">3") -> 0 | OW11: =$CO2 -> 50 | OZ11: 500.1009 | PA11: =SUM(PB11:PC11) -> 173 | PB11: =COUNTIFS($CO$2:$CO$338,PF11,$CN$2:$CN$338,PF12,$J$2:$J$338,"M",$CI$2:$CI$338,">3") -> 94 | PC11: =COUNTIFS($CO$2:$CO$338,PF11,$CN$2:$CN$338,PF12,$J$2:$J$338,"F",$CI$2:$CI$338,">3") -> 79 | PD11: =COUNTIFS($CO$2:$CO$338,PF11,$CN$2:$CN$338,PF12,$CT$2:$CT$338,"J",$CI$2:$CI$338,">3") -> 97 | PE11: =COUNTIFS($CO$2:$CO$338,PF11,$CN$2:$CN$338,PF12,$CT$2:$CT$338,"V",$CI$2:$CI$338,">3") -> 76 | PF11: =$CO2 -> 50 | PG11: 1 | PH11: 1
A12: 2010 | B12: 001 | C12: 501 | F12: 0 | G12: 2000-07-30 | J12: F | K12: 80 | L12: 75 | M12: 0 | N12: 80 | O12: 75 | P12: 85 | Q12: 80 | R12: 85 | S12: 90 | T12: 0 | U12: 0 | V12: 90 | W12: 0 | X12: 0 | Y12: 0 | Z12: 0 | AA12: 80 | AB12: 75 | AC12: 0 | AD12: 80 | AE12: 80 | AF12: 75 | AG12: 85 | AH12: 85 | AI12: 85 | AJ12: 80 | AK12: 80 | AL12: 75 | AM12: 0 | AN12: 0 | AO12: 0 | AP12: 0 | AQ12: 70 | AR12: 65 | AS12: 0 | AT12: 70 | AU12: 80 | AV12: 60 | AW12: 60 | AX12: 75 | AY12: 70 | AZ12: 60 | BA12: 55 | BB12: 65 | BC12: 0 | BD12: 0 | BE12: 0 | BF12: 0 | BG12: 70 | BH12: 77 | BI12: 0 | BJ12: 77 | BK12: 73 | BL12: 65 | BM12: 73 | BN12: 75 | BO12: 62 | BP12: 65 | BQ12: 73 | BR12: 78 | BS12: 80 | BT12: 75 | BU12: 92 | BV12: 68 | BX12: 53.33333333 | BY12: 81.25 | BZ12: 0 | CA12: 78.33333333 | CB12: 81.25 | CC12: 80 | CD12: 0 | CE12: 68.33333333 | CF12: 68.75 | CG12: 62.5 | CH12: 0 | CI12: 74.25 | CM12: 001501 | CN12: 0.100 | CO12: 50 | CP12: =Tableau_SSRSMSA03_BI_Integration_STEPH_2010[[#This Row],[DAT_NAISSANCE_ELEVE]] -> 2000-07-30 | CQ12: 2009-09-30 | CR12: 3349 | CS12: 9.169062286 | CT12: =IF(AND(LEFT(CO12,1)="1",CS12>5.5),"V",IF(AND(LEFT(CO12,1)="2",CS12>6.5),"V",IF(AND(LEFT(CO12,1)="3",CS12>7.5),"V",IF(AND(LEFT(CO12,1)="4",CS12>8.5),"V",IF(AND(LEFT(CO12,1)="5",CS12>9.5),"V",IF(AND(LEFT(CO12,1)="6",CS12>10.5),"V","J")))))) -> J | CU12: =IF(AJ12=0,0,IF(BH12=0,0,1)) -> 1 | CV12: =DC11&DC12&10 -> 500.10010 | CW12: moy def niveau | CX12: =IF(CX4<5,"",((CY12*CY11)+(CZ12*CZ11))/CX11) -> 81.57407407 | CY12: =IF(CX4<5,"",SUMPRODUCT((($CO$2:$CO$338=DC11)*($CN$2:$CN$338=DC12)*($J$2:$J$338="M")*($AJ$2:$AJ$338)))/CY11) -> 80.50561798 | CZ12: =IF(CX4<5,"",SUMPRODUCT((($CO$2:$CO$338=DC11)*($CN$2:$CN$338=DC12)*($J$2:$J$338="F")*($AJ$2:$AJ$338)))/CZ11) -> 82.87671233 | DA12: =IF(CX4<5,"",SUMPRODUCT((($CO$2:$CO$338=DC11)*($CN$2:$CN$338=DC12)*($CT$2:$CT$338="J")*($AJ$2:$AJ$338)))/DA11) -> 81.88172043 | DB12: =IF(CX4<5,"",SUMPRODUCT((($CO$2:$CO$338=DC11)*($CN$2:$CN$338=DC12)*($CT$2:$CT$338="V")*($AJ$2:$AJ$338)))/DB11) -> 81.15942029 | DC12: =$CN2 -> 0.100 | DD12: 2 | DE12: 2 | DF12: 500.10010 | DG12: =IF(DG4<5,"",((DH12*DH11)+(DI12*DI11))/DG11) ->  | DH12: =IF(DG4<5,"",SUMPRODUCT((($CO$2:$CO$338=DL11)*($CN$2:$CN$338=DL12)*($J$2:$J$338="M")*($AN$2:$AN$338)))/DH11) ->  | DI12: =IF(DG4<5,"",SUMPRODUCT((($CO$2:$CO$338=DL11)*($CN$2:$CN$338=DL12)*($J$2:$J$338="F")*($AN$2:$AN$338)))/DI11) ->  | DJ12: =IF(DG4<5,"",SUMPRODUCT((($CO$2:$CO$338=DL11)*($CN$2:$CN$338=DL12)*($CT$2:$CT$338="J")*($AN$2:$AN$338)))/DJ11) ->  | DK12: =IF(DG4<5,"",SUMPRODUCT((($CO$2:$CO$338=DL11)*($CN$2:$CN$338=DL12)*($CT$2:$CT$338="V")*($AN$2:$AN$338)))/DK11) ->  | DL12: =$CN2 -> 0.100 | DO12: 500.10010 | DP12: =IF(DP4<5,"",((DQ12*DQ11)+(DR12*DR11))/DP11) -> 79.40677966 | DQ12: =IF(DP4<5,"",SUMPRODUCT((($CO$2:$CO$338=DU11)*($CN$2:$CN$338=DU12)*($J$2:$J$338="M")*($AR$2:$AR$338)))/DQ11) -> 78.7244898 | DR12: =IF(DP4<5,"",SUMPRODUCT((($CO$2:$CO$338=DU11)*($CN$2:$CN$338=DU12)*($J$2:$J$338="F")*($AR$2:$AR$338)))/DR11) -> 80.25316456 | DS12: =IF(DP4<5,"",SUMPRODUCT((($CO$2:$CO$338=DU11)*($CN$2:$CN$338=DU12)*($CT$2:$CT$338="J")*($AR$2:$AR$338)))/DS11) -> 79.35643564 | DT12: =IF(DP4<5,"",SUMPRODUCT((($CO$2:$CO$338=DU11)*($CN$2:$CN$338=DU12)*($CT$2:$CT$338="V")*($AR$2:$AR$338)))/DT11) -> 79.47368421 | DU12: =$CN2 -> 0.100 | DV12: 3 | DW12: 6 | DX12: 500.10010 | DY12: =IF(DY4<5,"",((DZ12*DZ11)+(EA12*EA11))/DY11) -> 77.97752809 | DZ12: =IF(DY4<5,"",SUMPRODUCT((($CO$2:$CO$338=ED11)*($CN$2:$CN$338=ED12)*($J$2:$J$338="M")*($AV$2:$AV$338)))/DZ11) -> 77.37373737 | EA12: =IF(DY4<5,"",SUMPRODUCT((($CO$2:$CO$338=ED11)*($CN$2:$CN$338=ED12)*($J$2:$J$338="F")*($AV$2:$AV$338)))/EA11) -> 78.73417722 | EB12: =IF(DY4<5,"",SUMPRODUCT((($CO$2:$CO$338=ED11)*($CN$2:$CN$338=ED12)*($CT$2:$CT$338="J")*($AV$2:$AV$338)))/EB11) -> 77.74509804 | EC12: =IF(DY4<5,"",SUMPRODUCT((($CO$2:$CO$338=ED11)*($CN$2:$CN$338=ED12)*($CT$2:$CT$338="V")*($AV$2:$AV$338)))/EC11) -> 78.28947368 | ED12: =$CN2 -> 0.100 | EE12: 4 | EF12: 6 | EG12: 500.10010 | EH12: =IF(EH4<5,"",((EI12*EI11)+(EJ12*EJ11))/EH11) -> 78.52777778 | EI12: =IF(EH4<5,"",SUMPRODUCT((($CO$2:$CO$338=EM11)*($CN$2:$CN$338=EM12)*($J$2:$J$338="M")*($AZ$2:$AZ$338)))/EI11) -> 78.28282828 | EJ12: =IF(EH4<5,"",SUMPRODUCT((($CO$2:$CO$338=EM11)*($CN$2:$CN$338=EM12)*($J$2:$J$338="F")*($AZ$2:$AZ$338)))/EJ11) -> 78.82716049 | EK12: =IF(EH4<5,"",SUMPRODUCT((($CO$2:$CO$338=EM11)*($CN$2:$CN$338=EM12)*($CT$2:$CT$338="J")*($AZ$2:$AZ$338)))/EK11) -> 78.83495146 | EL12: =IF(EH4<5,"",SUMPRODUCT((($CO$2:$CO$338=EM11)*($CN$2:$CN$338=EM12)*($CT$2:$CT$338="V")*($AZ$2:$AZ$338)))/EL11) -> 78.11688312 | EM12: =$CN2 -> 0.100 | EN12: 4 | EO12: 6 | EP12: 500.10010 | EQ12: =IF(EQ4<5,"",((ER12*ER11)+(ES12*ES11))/EQ11) ->  | ER12: =IF(EQ4<5,"",SUMPRODUCT((($CO$2:$CO$338=EV11)*($CN$2:$CN$338=EV12)*($J$2:$J$338="M")*($BD$2:$BD$338)))/ER11) ->  | ES12: =IF(EQ4<5,"",SUMPRODUCT((($CO$2:$CO$338=EV11)*($CN$2:$CN$338=EV12)*($J$2:$J$338="F")*($BD$2:$BD$338)))/ES11) ->  | ET12: =IF(EQ4<5,"",SUMPRODUCT((($CO$2:$CO$338=EV11)*($CN$2:$CN$338=EV12)*($CT$2:$CT$338="J")*($BD$2:$BD$338)))/ET11) ->  | EU12: =IF(EQ4<5,"",SUMPRODUCT((($CO$2:$CO$338=EV11)*($CN$2:$CN$338=EV12)*($CT$2:$CT$338="V")*($BD$2:$BD$338)))/EU11) ->  | EV12: =$CN2 -> 0.100 | EY12: 500.10010 | EZ12: =IF(EZ4<5,"",((FA12*FA11)+(FB12*FB11))/EZ11) -> 76.59537572 | FA12: =IF(EZ4<5,"",SUMPRODUCT((($CO$2:$CO$338=FE11)*($CN$2:$CN$338=FE12)*($J$2:$J$338="M")*($BH$2:$BH$338)))/FA11) -> 76.15957447 | FB12: =IF(EZ4<5,"",SUMPRODUCT((($CO$2:$CO$338=FE11)*($CN$2:$CN$338=FE12)*($J$2:$J$338="F")*($BH$2:$BH$338)))/FB11) -> 77.11392405 | FC12: =IF(EZ4<5,"",SUMPRODUCT((($CO$2:$CO$338=FE11)*($CN$2:$CN$338=FE12)*($CT$2:$CT$338="J")*($BH$2:$BH$338)))/FC11) -> 77.10309278 | FD12: =IF(EZ4<5,"",SUMPRODUCT((($CO$2:$CO$338=FE11)*($CN$2:$CN$338=FE12)*($CT$2:$CT$338="V")*($BH$2:$BH$338)))/FD11) -> 75.94736842 | FE12: =$CN2 -> 0.100 | FF12: 2 | FG12: 2 | FH12: 500.10010 | FI12: =IF(FI4<5,"",((FJ12*FJ11)+(FK12*FK11))/FI11) -> 78.98148148 | FJ12: =IF(FI4<5,"",SUMPRODUCT((($CO$2:$CO$338=FN11)*($CN$2:$CN$338=FN12)*($J$2:$J$338="M")*($AI$2:$AI$338)))/FJ11) -> 77.92134831 | FK12: =IF(FI4<5,"",SUMPRODUCT((($CO$2:$CO$338=FN11)*($CN$2:$CN$338=FN12)*($J$2:$J$338="F")*($AI$2:$AI$338)))/FK11) -> 80.2739726 | FL12: =IF(FI4<5,"",SUMPRODUCT((($CO$2:$CO$338=FN11)*($CN$2:$CN$338=FN12)*($CT$2:$CT$338="J")*($AI$2:$AI$338)))/FL11) -> 78.33333333 | FM12: =IF(FI4<5,"",SUMPRODUCT((($CO$2:$CO$338=FN11)*($CN$2:$CN$338=FN12)*($CT$2:$CT$338="V")*($AI$2:$AI$338)))/FM11) -> 79.85507246 | FN12: =$CN2 -> 0.100 | FO12: 1 | FP12: 2 | FQ12: 500.10010 | FR12: =IF(FR4<5,"",((FS12*FS11)+(FT12*FT11))/FR11) ->  | FS12: =IF(FR4<5,"",SUMPRODUCT((($CO$2:$CO$338=FW11)*($CN$2:$CN$338=FW12)*($J$2:$J$338="M")*($AM$2:$AM$338)))/FS11) ->  | FT12: =IF(FR4<5,"",SUMPRODUCT((($CO$2:$CO$338=FW11)*($CN$2:$CN$338=FW12)*($J$2:$J$338="F")*($AM$2:$AM$338)))/FT11) ->  | FU12: =IF(FR4<5,"",SUMPRODUCT((($CO$2:$CO$338=FW11)*($CN$2:$CN$338=FW12)*($CT$2:$CT$338="J")*($AM$2:$AM$338)))/FU11) ->  | FV12: =IF(FR4<5,"",SUMPRODUCT((($CO$2:$CO$338=FW11)*($CN$2:$CN$338=FW12)*($CT$2:$CT$338="V")*($AM$2:$AM$338)))/FV11) ->  | FW12: =$CN2 -> 0.100 | FZ12: 500.10010 | GA12: =IF(GA4<5,"",((GB12*GB11)+(GC12*GC11))/GA11) -> 74.43502825 | GB12: =IF(GA4<5,"",SUMPRODUCT((($CO$2:$CO$338=GF11)*($CN$2:$CN$338=GF12)*($J$2:$J$338="M")*($AQ$2:$AQ$338)))/GB11) -> 72.60204082 | GC12: =IF(GA4<5,"",SUMPRODUCT((($CO$2:$CO$338=GF11)*($CN$2:$CN$338=GF12)*($J$2:$J$338="F")*($AQ$2:$AQ$338)))/GC11) -> 76.70886076 | GD12: =IF(GA4<5,"",SUMPRODUCT((($CO$2:$CO$338=GF11)*($CN$2:$CN$338=GF12)*($CT$2:$CT$338="J")*($AQ$2:$AQ$338)))/GD11) -> 75.3960396 | GE12: =IF(GA4<5,"",SUMPRODUCT((($CO$2:$CO$338=GF11)*($CN$2:$CN$338=GF12)*($CT$2:$CT$338="V")*($AQ$2:$AQ$338)))/GE11) -> 73.15789474 | GF12: =$CN2 -> 0.100 | GG12: 2 | GH12: 3 | GI12: 500.10010 | GJ12: =IF(GJ4<5,"",((GK12*GK11)+(GL12*GL11))/GJ11) -> 77.23033708 | GK12: =IF(GJ4<5,"",SUMPRODUCT((($CO$2:$CO$338=GO11)*($CN$2:$CN$338=GO12)*($J$2:$J$338="M")*($AU$2:$AU$338)))/GK11) -> 75.47474747 | GL12: =IF(GJ4<5,"",SUMPRODUCT((($CO$2:$CO$338=GO11)*($CN$2:$CN$338=GO12)*($J$2:$J$338="F")*($AU$2:$AU$338)))/GL11) -> 79.43037975 | GM12: =IF(GJ4<5,"",SUMPRODUCT((($CO$2:$CO$338=GO11)*($CN$2:$CN$338=GO12)*($CT$2:$CT$338="J")*($AU$2:$AU$338)))/GM11) -> 77.32352941 | GN12: =IF(GJ4<5,"",SUMPRODUCT((($CO$2:$CO$338=GO11)*($CN$2:$CN$338=GO12)*($CT$2:$CT$338="V")*($AU$2:$AU$338)))/GN11) -> 77.10526316 | GO12: =$CN2 -> 0.100 | GP12: 2 | GQ12: 2 | GR12: 500.10010 | GS12: =IF(GS4<5,"",((GT12*GT11)+(GU12*GU11))/GS11) -> 79.66666667 | GT12: =IF(GS4<5,"",SUMPRODUCT((($CO$2:$CO$338=GX11)*($CN$2:$CN$338=GX12)*($J$2:$J$338="M")*($AY$2:$AY$338)))/GT11) -> 78.13131313 | GU12: =IF(GS4<5,"",SUMPRODUCT((($CO$2:$CO$338=GX11)*($CN$2:$CN$338=GX12)*($J$2:$J$338="F")*($AY$2:$AY$338)))/GU11) -> 81.54320988 | GV12: =IF(GS4<5,"",SUMPRODUCT((($CO$2:$CO$338=GX11)*($CN$2:$CN$338=GX12)*($CT$2:$CT$338="J")*($AY$2:$AY$338)))/GV11) -> 80 | GW12: =IF(GS4<5,"",SUMPRODUCT((($CO$2:$CO$338=GX11)*($CN$2:$CN$338=GX12)*($CT$2:$CT$338="V")*($AY$2:$AY$338)))/GW11) -> 79.22077922 | GX12: =$CN2 -> 0.100 | GY12: 3 | GZ12: 3 | HA12: 500.10010 | HB12: =IF(HB4<5,"",((HC12*HC11)+(HD12*HD11))/HB11) ->  | HC12: =IF(HB4<5,"",SUMPRODUCT((($CO$2:$CO$338=HG11)*($CN$2:$CN$338=HG12)*($J$2:$J$338="M")*($BC$2:$BC$338)))/HC11) ->  | HD12: =IF(HB4<5,"",SUMPRODUCT((($CO$2:$CO$338=HG11)*($CN$2:$CN$338=HG12)*($J$2:$J$338="F")*($BC$2:$BC$338)))/HD11) ->  | HE12: =IF(HB4<5,"",SUMPRODUCT((($CO$2:$CO$338=HG11)*($CN$2:$CN$338=HG12)*($CT$2:$CT$338="J")*($BC$2:$BC$338)))/HE11) ->  | HF12: =IF(HB4<5,"",SUMPRODUCT((($CO$2:$CO$338=HG11)*($CN$2:$CN$338=HG12)*($CT$2:$CT$338="V")*($BC$2:$BC$338)))/HF11) ->  | HG12: =$CN2 -> 0.100 | HJ12: 500.10010 | HK12: =IF(HK4<5,"",((HL12*HL11)+(HM12*HM11))/HK11) -> 77.67630058 | HL12: =IF(HK4<5,"",SUMPRODUCT((($CO$2:$CO$338=HP11)*($CN$2:$CN$338=HP12)*($J$2:$J$338="M")*($BG$2:$BG$338)))/HL11) -> 75.82978723 | HM12: =IF(HK4<5,"",SUMPRODUCT((($CO$2:$CO$338=HP11)*($CN$2:$CN$338=HP12)*($J$2:$J$338="F")*($BG$2:$BG$338)))/HM11) -> 79.87341772 | HN12: =IF(HK4<5,"",SUMPRODUCT((($CO$2:$CO$338=HP11)*($CN$2:$CN$338=HP12)*($CT$2:$CT$338="J")*($BG$2:$BG$338)))/HN11) -> 78.51546392 | HO12: =IF(HK4<5,"",SUMPRODUCT((($CO$2:$CO$338=HP11)*($CN$2:$CN$338=HP12)*($CT$2:$CT$338="V")*($BG$2:$BG$338)))/HO11) -> 76.60526316 | HP12: =$CN2 -> 0.100 | HQ12: 2 | HR12: 3 | HS12: 500.10010 | HT12: =IF(HT4<5,"",((HU12*HU11)+(HV12*HV11))/HT11) -> 82.64242424 | HU12: =IF(HT4<5,"",SUMPRODUCT((($CO$2:$CO$338=HY11)*($CN$2:$CN$338=HY12)*($J$2:$J$338="M")*($AL$2:$AL$338)))/HU11) -> 82.64835165 | HV12: =IF(HT4<5,"",SUMPRODUCT((($CO$2:$CO$338=HY11)*($CN$2:$CN$338=HY12)*($J$2:$J$338="F")*($AL$2:$AL$338)))/HV11) -> 82.63513514 | HW12: =IF(HT4<5,"",SUMPRODUCT((($CO$2:$CO$338=HY11)*($CN$2:$CN$338=HY12)*($CT$2:$CT$338="J")*($AL$2:$AL$338)))/HW11) -> 82.76595745 | HX12: =IF(HT4<5,"",SUMPRODUCT((($CO$2:$CO$338=HY11)*($CN$2:$CN$338=HY12)*($CT$2:$CT$338="V")*($AL$2:$AL$338)))/HX11) -> 82.47887324 | HY12: =$CN2 -> 0.100 | HZ12: 4 | IA12: 2 | IB12: 500.10010 | IC12: =IF(IC4<5,"",((ID12*ID11)+(IE12*IE11))/IC11) ->  | ID12: =IF(IC4<5,"",SUMPRODUCT((($CO$2:$CO$338=IH11)*($CN$2:$CN$338=IH12)*($J$2:$J$338="M")*($AP$2:$AP$338)))/ID11) ->  | IE12: =IF(IC4<5,"",SUMPRODUCT((($CO$2:$CO$338=IH11)*($CN$2:$CN$338=IH12)*($J$2:$J$338="F")*($AP$2:$AP$338)))/IE11) ->  | IF12: =IF(IC4<5,"",SUMPRODUCT((($CO$2:$CO$338=IH11)*($CN$2:$CN$338=IH12)*($CT$2:$CT$338="J")*($AP$2:$AP$338)))/IF11) ->  | IG12: =IF(IC4<5,"",SUMPRODUCT((($CO$2:$CO$338=IH11)*($CN$2:$CN$338=IH12)*($CT$2:$CT$338="V")*($AP$2:$AP$338)))/IG11) ->  | IH12: =$CN2 -> 0.100 | IK12: 500.10010 | IL12: =IF(IL4<5,"",((IM12*IM11)+(IN12*IN11))/IL11) -> 80 | IM12: =IF(IL4<5,"",SUMPRODUCT((($CO$2:$CO$338=IQ11)*($CN$2:$CN$338=IQ12)*($J$2:$J$338="M")*($AT$2:$AT$338)))/IM11) -> 80.30612245 | IN12: =IF(IL4<5,"",SUMPRODUCT((($CO$2:$CO$338=IQ11)*($CN$2:$CN$338=IQ12)*($J$2:$J$338="F")*($AT$2:$AT$338)))/IN11) -> 79.62025316 | IO12: =IF(IL4<5,"",SUMPRODUCT((($CO$2:$CO$338=IQ11)*($CN$2:$CN$338=IQ12)*($CT$2:$CT$338="J")*($AT$2:$AT$338)))/IO11) -> 80.0990099 | IP12: =IF(IL4<5,"",SUMPRODUCT((($CO$2:$CO$338=IQ11)*($CN$2:$CN$338=IQ12)*($CT$2:$CT$338="V")*($AT$2:$AT$338)))/IP11) -> 79.86842105 | IQ12: =$CN2 -> 0.100 | IR12: 2 | IS12: 3 | IT12: 500.10010 | IU12: =IF(IU4<5,"",((IV12*IV11)+(IW12*IW11))/IU11) -> 79.88764045 | IV12: =IF(IU4<5,"",SUMPRODUCT((($CO$2:$CO$338=IZ11)*($CN$2:$CN$338=IZ12)*($J$2:$J$338="M")*($AX$2:$AX$338)))/IV11) -> 80.15151515 | IW12: =IF(IU4<5,"",SUMPRODUCT((($CO$2:$CO$338=IZ11)*($CN$2:$CN$338=IZ12)*($J$2:$J$338="F")*($AX$2:$AX$338)))/IW11) -> 79.55696203 | IX12: =IF(IU4<5,"",SUMPRODUCT((($CO$2:$CO$338=IZ11)*($CN$2:$CN$338=IZ12)*($CT$2:$CT$338="J")*($AX$2:$AX$338)))/IX11) -> 79.31372549 | IY12: =IF(IU4<5,"",SUMPRODUCT((($CO$2:$CO$338=IZ11)*($CN$2:$CN$338=IZ12)*($CT$2:$CT$338="V")*($AX$2:$AX$338)))/IY11) -> 80.65789474 | IZ12: =$CN2 -> 0.100 | JA12: 2 | JB12: 2 | JC12: 500.10010 | JD12: =IF(JD4<5,"",((JE12*JE11)+(JF12*JF11))/JD11) -> 78.94444444 | JE12: =IF(JD4<5,"",SUMPRODUCT((($CO$2:$CO$338=JI11)*($CN$2:$CN$338=JI12)*($J$2:$J$338="M")*($BB$2:$BB$338)))/JE11) -> 79.84848485 | JF12: =IF(JD4<5,"",SUMPRODUCT((($CO$2:$CO$338=JI11)*($CN$2:$CN$338=JI12)*($J$2:$J$338="F")*($BB$2:$BB$338)))/JF11) -> 77.83950617 | JG12: =IF(JD4<5,"",SUMPRODUCT((($CO$2:$CO$338=JI11)*($CN$2:$CN$338=JI12)*($CT$2:$CT$338="J")*($BB$2:$BB$338)))/JG11) -> 79.41747573 | JH12: =IF(JD4<5,"",SUMPRODUCT((($CO$2:$CO$338=JI11)*($CN$2:$CN$338=JI12)*($CT$2:$CT$338="V")*($BB$2:$BB$338)))/JH11) -> 78.31168831 | JI12: =$CN2 -> 0.100 | JJ12: 2 | JK12: 6 | JL12: 500.10010 | JM12: =IF(JM4<5,"",((JN12*JN11)+(JO12*JO11))/JM11) ->  | JN12: =IF(JM4<5,"",SUMPRODUCT((($CO$2:$CO$338=JR11)*($CN$2:$CN$338=JR12)*($J$2:$J$338="M")*($BF$2:$BF$338)))/JN11) ->  | JO12: =IF(JM4<5,"",SUMPRODUCT((($CO$2:$CO$338=JR11)*($CN$2:$CN$338=JR12)*($J$2:$J$338="F")*($BF$2:$BF$338)))/JO11) ->  | JP12: =IF(JM4<5,"",SUMPRODUCT((($CO$2:$CO$338=JR11)*($CN$2:$CN$338=JR12)*($CT$2:$CT$338="J")*($BF$2:$BF$338)))/JP11) ->  | JQ12: =IF(JM4<5,"",SUMPRODUCT((($CO$2:$CO$338=JR11)*($CN$2:$CN$338=JR12)*($CT$2:$CT$338="V")*($BF$2:$BF$338)))/JQ11) ->  | JR12: =$CN2 -> 0.100 | JU12: 500.10010 | JV12: =IF(JV4<5,"",((JW12*JW11)+(JX12*JX11))/JV11) -> 79.95953757 | JW12: =IF(JV4<5,"",SUMPRODUCT((($CO$2:$CO$338=KA11)*($CN$2:$CN$338=KA12)*($J$2:$J$338="M")*($BJ$2:$BJ$338)))/JW11) -> 80.25531915 | JX12: =IF(JV4<5,"",SUMPRODUCT((($CO$2:$CO$338=KA11)*($CN$2:$CN$338=KA12)*($J$2:$J$338="F")*($BJ$2:$BJ$338)))/JX11) -> 79.60759494 | JY12: =IF(JV4<5,"",SUMPRODUCT((($CO$2:$CO$338=KA11)*($CN$2:$CN$338=KA12)*($CT$2:$CT$338="J")*($BJ$2:$BJ$338)))/JY11) -> 79.90721649 | JZ12: =IF(JV4<5,"",SUMPRODUCT((($CO$2:$CO$338=KA11)*($CN$2:$CN$338=KA12)*($CT$2:$CT$338="V")*($BJ$2:$BJ$338)))/JZ11) -> 80.02631579 | KA12: =$CN2 -> 0.100 | KB12: 2 | KC12: 2 | KD12: 500.10010 | KE12: =IF(KE4<5,"",((KF12*KF11)+(KG12*KG11))/KE11) -> 78.5 | KF12: =IF(KE4<5,"",SUMPRODUCT((($CO$2:$CO$338=KJ11)*($CN$2:$CN$338=KJ12)*($J$2:$J$338="M")*($AK$2:$AK$338)))/KF11) -> 78.73033708 | KG12: =IF(KE4<5,"",SUMPRODUCT((($CO$2:$CO$338=KJ11)*($CN$2:$CN$338=KJ12)*($J$2:$J$338="F")*($AK$2:$AK$338)))/KG11) -> 78.21917808 | KH12: =IF(KE4<5,"",SUMPRODUCT((($CO$2:$CO$338=KJ11)*($CN$2:$CN$338=KJ12)*($CT$2:$CT$338="J")*($AK$2:$AK$338)))/KH11) -> 78.33333333 | KI12: =IF(KE4<5,"",SUMPRODUCT((($CO$2:$CO$338=KJ11)*($CN$2:$CN$338=KJ12)*($CT$2:$CT$338="V")*($AK$2:$AK$338)))/KI11) -> 78.72463768 | KJ12: =$CN2 -> 0.100 | KK12: 2 | KL12: 2 | KM12: 500.10010 | KN12: =IF(KN4<5,"",((KO12*KO11)+(KP12*KP11))/KN11) ->  | KO12: =IF(KN4<5,"",SUMPRODUCT((($CO$2:$CO$338=KS11)*($CN$2:$CN$338=KS12)*($J$2:$J$338="M")*($AO$2:$AO$338)))/KO11) ->  | KP12: =IF(KN4<5,"",SUMPRODUCT((($CO$2:$CO$338=KS11)*($CN$2:$CN$338=KS12)*($J$2:$J$338="F")*($AO$2:$AO$338)))/KP11) ->  | KQ12: =IF(KN4<5,"",SUMPRODUCT((($CO$2:$CO$338=KS11)*($CN$2:$CN$338=KS12)*($CT$2:$CT$338="J")*($AO$2:$AO$338)))/KQ11) ->  | KR12: =IF(KN4<5,"",SUMPRODUCT((($CO$2:$CO$338=KS11)*($CN$2:$CN$338=KS12)*($CT$2:$CT$338="V")*($AO$2:$AO$338)))/KR11) ->  | KS12: =$CN2 -> 0.100 | KV12: 500.10010 | KW12: =IF(KW4<5,"",((KX12*KX11)+(KY12*KY11))/KW11) ->  | KX12: =IF(KW4<5,"",SUMPRODUCT((($CO$2:$CO$338=LB11)*($CN$2:$CN$338=LB12)*($J$2:$J$338="M")*($AS$2:$AS$338)))/KX11) ->  | KY12: =IF(KW4<5,"",SUMPRODUCT((($CO$2:$CO$338=LB11)*($CN$2:$CN$338=LB12)*($J$2:$J$338="F")*($AS$2:$AS$338)))/KY11) ->  | KZ12: =IF(KW4<5,"",SUMPRODUCT((($CO$2:$CO$338=LB11)*($CN$2:$CN$338=LB12)*($CT$2:$CT$338="J")*($AS$2:$AS$338)))/KZ11) ->  | LA12: =IF(KW4<5,"",SUMPRODUCT((($CO$2:$CO$338=LB11)*($CN$2:$CN$338=LB12)*($CT$2:$CT$338="V")*($AS$2:$AS$338)))/LA11) ->  | LB12: =$CN2 -> 0.100 | LE12: 500.10010 | LF12: =IF(LF4<5,"",((LG12*LG11)+(LH12*LH11))/LF11) -> 77.63483146 | LG12: =IF(LF4<5,"",SUMPRODUCT((($CO$2:$CO$338=LK11)*($CN$2:$CN$338=LK12)*($J$2:$J$338="M")*($AW$2:$AW$338)))/LG11) -> 77.07070707 | LH12: =IF(LF4<5,"",SUMPRODUCT((($CO$2:$CO$338=LK11)*($CN$2:$CN$338=LK12)*($J$2:$J$338="F")*($AW$2:$AW$338)))/LH11) -> 78.34177215 | LI12: =IF(LF4<5,"",SUMPRODUCT((($CO$2:$CO$338=LK11)*($CN$2:$CN$338=LK12)*($CT$2:$CT$338="J")*($AW$2:$AW$338)))/LI11) -> 75.87254902 | LJ12: =IF(LF4<5,"",SUMPRODUCT((($CO$2:$CO$338=LK11)*($CN$2:$CN$338=LK12)*($CT$2:$CT$338="V")*($AW$2:$AW$338)))/LJ11) -> 80 | LK12: =$CN2 -> 0.100 | LL12: 3 | LM12: 6 | LN12: 500.10010 | LO12: =IF(LO4<5,"",((LP12*LP11)+(LQ12*LQ11))/LO11) -> 79.36111111 | LP12: =IF(LO4<5,"",SUMPRODUCT((($CO$2:$CO$338=LT11)*($CN$2:$CN$338=LT12)*($J$2:$J$338="M")*($BA$2:$BA$338)))/LP11) -> 78.28282828 | LQ12: =IF(LO4<5,"",SUMPRODUCT((($CO$2:$CO$338=LT11)*($CN$2:$CN$338=LT12)*($J$2:$J$338="F")*($BA$2:$BA$338)))/LQ11) -> 80.67901235 | LR12: =IF(LO4<5,"",SUMPRODUCT((($CO$2:$CO$338=LT11)*($CN$2:$CN$338=LT12)*($CT$2:$CT$338="J")*($BA$2:$BA$338)))/LR11) -> 78.44660194 | LS12: =IF(LO4<5,"",SUMPRODUCT((($CO$2:$CO$338=LT11)*($CN$2:$CN$338=LT12)*($CT$2:$CT$338="V")*($BA$2:$BA$338)))/LS11) -> 80.58441558 | LT12: =$CN2 -> 0.100 | LU12: 3 | LV12: 4 | LW12: 500.10010 | LX12: =IF(LX4<5,"",((LY12*LY11)+(LZ12*LZ11))/LX11) ->  | LY12: =IF(LX4<5,"",SUMPRODUCT((($CO$2:$CO$338=MC11)*($CN$2:$CN$338=MC12)*($J$2:$J$338="M")*($BE$2:$BE$338)))/LY11) ->  | LZ12: =IF(LX4<5,"",SUMPRODUCT((($CO$2:$CO$338=MC11)*($CN$2:$CN$338=MC12)*($J$2:$J$338="F")*($BE$2:$BE$338)))/LZ11) ->  | MA12: =IF(LX4<5,"",SUMPRODUCT((($CO$2:$CO$338=MC11)*($CN$2:$CN$338=MC12)*($CT$2:$CT$338="J")*($BE$2:$BE$338)))/MA11) ->  | MB12: =IF(LX4<5,"",SUMPRODUCT((($CO$2:$CO$338=MC11)*($CN$2:$CN$338=MC12)*($CT$2:$CT$338="V")*($BE$2:$BE$338)))/MB11) ->  | MC12: =$CN2 -> 0.100 | MF12: 500.10010 | MG12: =IF(MG4<5,"",((MH12*MH11)+(MI12*MI11))/MG11) ->  | MH12: =IF(MG4<5,"",SUMPRODUCT((($CO$2:$CO$338=ML11)*($CN$2:$CN$338=ML12)*($J$2:$J$338="M")*($BI$2:$BI$338)))/MH11) ->  | MI12: =IF(MG4<5,"",SUMPRODUCT((($CO$2:$CO$338=ML11)*($CN$2:$CN$338=ML12)*($J$2:$J$338="F")*($BI$2:$BI$338)))/MI11) ->  | MJ12: =IF(MG4<5,"",SUMPRODUCT((($CO$2:$CO$338=ML11)*($CN$2:$CN$338=ML12)*($CT$2:$CT$338="J")*($BI$2:$BI$338)))/MJ11) ->  | MK12: =IF(MG4<5,"",SUMPRODUCT((($CO$2:$CO$338=ML11)*($CN$2:$CN$338=ML12)*($CT$2:$CT$338="V")*($BI$2:$BI$338)))/MK11) ->  | ML12: =$CN2 -> 0.100 | MO12: 500.10010 | MP12: =IF(MP4<5,"",((MQ12*MQ11)+(MR12*MR11))/MP11) -> 74.04827586 | MQ12: =IF(MP4<5,"",SUMPRODUCT((($CO$2:$CO$338=MU11)*($CN$2:$CN$338=MU12)*($J$2:$J$338="M")*($BM$2:$BM$338)))/MQ11) -> 74.9875 | MR12: =IF(MP4<5,"",SUMPRODUCT((($CO$2:$CO$338=MU11)*($CN$2:$CN$338=MU12)*($J$2:$J$338="F")*($BM$2:$BM$338)))/MR11) -> 72.89230769 | MS12: =IF(MP4<5,"",SUMPRODUCT((($CO$2:$CO$338=MU11)*($CN$2:$CN$338=MU12)*($CT$2:$CT$338="J")*($BM$2:$BM$338)))/MS11) -> 73.4691358 | MT12: =IF(MP4<5,"",SUMPRODUCT((($CO$2:$CO$338=MU11)*($CN$2:$CN$338=MU12)*($CT$2:$CT$338="V")*($BM$2:$BM$338)))/MT11) -> 74.78125 | MU12: =$CN2 -> 0.100 | MV12: 2 | MW12: 2 | MX12: 500.10010 | MY12: =IF(MY4<5,"",((MZ12*MZ11)+(NA12*NA11))/MY11) -> 80.4212963 | MZ12: =IF(MY4<5,"",SUMPRODUCT((($CO$2:$CO$338=ND11)*($CN$2:$CN$338=ND12)*($J$2:$J$338="M")*($CC$2:$CC$338)))/MZ11) -> 79.93820225 | NA12: =IF(MY4<5,"",SUMPRODUCT((($CO$2:$CO$338=ND11)*($CN$2:$CN$338=ND12)*($J$2:$J$338="F")*($CC$2:$CC$338)))/NA11) -> 81.01027397 | NB12: =IF(MY4<5,"",SUMPRODUCT((($CO$2:$CO$338=ND11)*($CN$2:$CN$338=ND12)*($CT$2:$CT$338="J")*($CC$2:$CC$338)))/NB11) -> 80.30913978 | NC12: =IF(MY4<5,"",SUMPRODUCT((($CO$2:$CO$338=ND11)*($CN$2:$CN$338=ND12)*($CT$2:$CT$338="V")*($CC$2:$CC$338)))/NC11) -> 80.57246377 | ND12: =$CN2 -> 0.100 | NE12: 2 | NF12: 2 | NG12: 500.10010 | NH12: =IF(NH4<5,"",((NI12*NI11)+(NJ12*NJ11))/NH11) ->  | NI12: =IF(NH4<5,"",SUMPRODUCT((($CO$2:$CO$338=NM11)*($CN$2:$CN$338=NM12)*($J$2:$J$338="M")*($CD$2:$CD$338)))/NI11) ->  | NJ12: =IF(NH4<5,"",SUMPRODUCT((($CO$2:$CO$338=NM11)*($CN$2:$CN$338=NM12)*($J$2:$J$338="F")*($CD$2:$CD$338)))/NJ11) ->  | NK12: =IF(NH4<5,"",SUMPRODUCT((($CO$2:$CO$338=NM11)*($CN$2:$CN$338=NM12)*($CT$2:$CT$338="J")*($CD$2:$CD$338)))/NK11) ->  | NL12: =IF(NH4<5,"",SUMPRODUCT((($CO$2:$CO$338=NM11)*($CN$2:$CN$338=NM12)*($CT$2:$CT$338="V")*($CD$2:$CD$338)))/NL11) ->  | NM12: =$CN2 -> 0.100 | NP12: 500.10010 | NQ12: =IF(NQ4<5,"",((NR12*NR11)+(NS12*NS11))/NQ11) -> 77.9472693 | NR12: =IF(NQ4<5,"",SUMPRODUCT((($CO$2:$CO$338=NV11)*($CN$2:$CN$338=NV12)*($J$2:$J$338="M")*($CE$2:$CE$338)))/NR11) -> 77.21088435 | NS12: =IF(NQ4<5,"",SUMPRODUCT((($CO$2:$CO$338=NV11)*($CN$2:$CN$338=NV12)*($J$2:$J$338="F")*($CE$2:$CE$338)))/NS11) -> 78.86075949 | NT12: =IF(NQ4<5,"",SUMPRODUCT((($CO$2:$CO$338=NV11)*($CN$2:$CN$338=NV12)*($CT$2:$CT$338="J")*($CE$2:$CE$338)))/NT11) -> 78.28382838 | NU12: =IF(NQ4<5,"",SUMPRODUCT((($CO$2:$CO$338=NV11)*($CN$2:$CN$338=NV12)*($CT$2:$CT$338="V")*($CE$2:$CE$338)))/NU11) -> 77.5 | NV12: =$CN2 -> 0.100 | NW12: 3 | NX12: 3 | NY12: 500.10010 | NZ12: =IF(NZ4<5,"",((OA12*OA11)+(OB12*OB11))/NZ11) -> 78.18258427 | OA12: =IF(NZ4<5,"",SUMPRODUCT((($CO$2:$CO$338=OE11)*($CN$2:$CN$338=OE12)*($J$2:$J$338="M")*($CF$2:$CF$338)))/OA11) -> 77.51767677 | OB12: =IF(NZ4<5,"",SUMPRODUCT((($CO$2:$CO$338=OE11)*($CN$2:$CN$338=OE12)*($J$2:$J$338="F")*($CF$2:$CF$338)))/OB11) -> 79.01582278 | OC12: =IF(NZ4<5,"",SUMPRODUCT((($CO$2:$CO$338=OE11)*($CN$2:$CN$338=OE12)*($CT$2:$CT$338="J")*($CF$2:$CF$338)))/OC11) -> 77.56372549 | OD12: =IF(NZ4<5,"",SUMPRODUCT((($CO$2:$CO$338=OE11)*($CN$2:$CN$338=OE12)*($CT$2:$CT$338="V")*($CF$2:$CF$338)))/OD11) -> 79.01315789 | OE12: =$CN2 -> 0.100 | OF12: 3 | OG12: 3 | OH12: 500.10010 | OI12: =IF(OI4<5,"",((OJ12*OJ11)+(OK12*OK11))/OI11) -> 79.125 | OJ12: =IF(OI4<5,"",SUMPRODUCT((($CO$2:$CO$338=ON11)*($CN$2:$CN$338=ON12)*($J$2:$J$338="M")*($CG$2:$CG$338)))/OJ11) -> 78.63636364 | OK12: =IF(OI4<5,"",SUMPRODUCT((($CO$2:$CO$338=ON11)*($CN$2:$CN$338=ON12)*($J$2:$J$338="F")*($CG$2:$CG$338)))/OK11) -> 79.72222222 | OL12: =IF(OI4<5,"",SUMPRODUCT((($CO$2:$CO$338=ON11)*($CN$2:$CN$338=ON12)*($CT$2:$CT$338="J")*($CG$2:$CG$338)))/OL11) -> 79.17475728 | OM12: =IF(OI4<5,"",SUMPRODUCT((($CO$2:$CO$338=ON11)*($CN$2:$CN$338=ON12)*($CT$2:$CT$338="V")*($CG$2:$CG$338)))/OM11) -> 79.05844156 | ON12: =$CN2 -> 0.100 | OO12: 3 | OP12: 6 | OQ12: 500.10010 | OR12: =IF(OR4<5,"",((OS12*OS11)+(OT12*OT11))/OR11) ->  | OS12: =IF(OR4<5,"",SUMPRODUCT((($CO$2:$CO$338=OW11)*($CN$2:$CN$338=OW12)*($J$2:$J$338="M")*($CH$2:$CH$338)))/OS11) ->  | OT12: =IF(OR4<5,"",SUMPRODUCT((($CO$2:$CO$338=OW11)*($CN$2:$CN$338=OW12)*($J$2:$J$338="F")*($CH$2:$CH$338)))/OT11) ->  | OU12: =IF(OR4<5,"",SUMPRODUCT((($CO$2:$CO$338=OW11)*($CN$2:$CN$338=OW12)*($CT$2:$CT$338="J")*($CH$2:$CH$338)))/OU11) ->  | OV12: =IF(OR4<5,"",SUMPRODUCT((($CO$2:$CO$338=OW11)*($CN$2:$CN$338=OW12)*($CT$2:$CT$338="V")*($CH$2:$CH$338)))/OV11) ->  | OW12: =$CN2 -> 0.100 | OZ12: 500.10010 | PA12: =IF(PA4<5,"",((PB12*PB11)+(PC12*PC11))/PA11) -> 77.33526012 | PB12: =IF(PA4<5,"",SUMPRODUCT((($CO$2:$CO$338=PF11)*($CN$2:$CN$338=PF12)*($J$2:$J$338="M")*($CI$2:$CI$338)))/PB11) -> 76.83776596 | PC12: =IF(PA4<5,"",SUMPRODUCT((($CO$2:$CO$338=PF11)*($CN$2:$CN$338=PF12)*($J$2:$J$338="F")*($CI$2:$CI$338)))/PC11) -> 77.92721519 | PD12: =IF(PA4<5,"",SUMPRODUCT((($CO$2:$CO$338=PF11)*($CN$2:$CN$338=PF12)*($CT$2:$CT$338="J")*($CI$2:$CI$338)))/PD11) -> 77.66237113 | PE12: =IF(PA4<5,"",SUMPRODUCT((($CO$2:$CO$338=PF11)*($CN$2:$CN$338=PF12)*($CT$2:$CT$338="V")*($CI$2:$CI$338)))/PE11) -> 76.91776316 | PF12: =$CN2 -> 0.100 | PG12: 2 | PH12: 2
A13: 2010 | B13: 001 | C13: 501 | F13: 0 | G13: 1999-09-30 | J13: M | K13: 0 | L13: 0 | M13: 0 | N13: 0 | O13: 0 | P13: 0 | Q13: 0 | R13: 0 | S13: 0 | T13: 0 | U13: 0 | V13: 0 | W13: 0 | X13: 0 | Y13: 0 | Z13: 0 | AA13: 0 | AB13: 0 | AC13: 0 | AD13: 0 | AE13: 0 | AF13: 0 | AG13: 0 | AH13: 0 | AI13: 0 | AJ13: 0 | AK13: 0 | AL13: 0 | AM13: 0 | AN13: 0 | AO13: 0 | AP13: 0 | AQ13: 60 | AR13: 75 | AS13: 0 | AT13: 80 | AU13: 65 | AV13: 75 | AW13: 70 | AX13: 75 | AY13: 60 | AZ13: 75 | BA13: 70 | BB13: 75 | BC13: 0 | BD13: 0 | BE13: 0 | BF13: 0 | BG13: 74 | BH13: 77 | BI13: 0 | BJ13: 74 | BK13: 73 | BL13: 67 | BM13: 78 | BN13: 91 | BO13: 60 | BP13: 80 | BQ13: 70 | BR13: 85 | BS13: 76 | BT13: 93 | BU13: 76 | BV13: 80 | BX13: 0 | BY13: 0 | BZ13: 0 | CA13: 0 | CB13: 0 | CC13: 0 | CD13: 0 | CE13: 71.66666667 | CF13: 71.25 | CG13: 70 | CH13: 0 | CI13: 75.75 | CM13: 001501 | CN13: 0.100 | CO13: 50 | CP13: =Tableau_SSRSMSA03_BI_Integration_STEPH_2010[[#This Row],[DAT_NAISSANCE_ELEVE]] -> 1999-09-30 | CQ13: 2009-09-30 | CR13: 3653 | CS13: 10.00136893 | CT13: =IF(AND(LEFT(CO13,1)="1",CS13>5.5),"V",IF(AND(LEFT(CO13,1)="2",CS13>6.5),"V",IF(AND(LEFT(CO13,1)="3",CS13>7.5),"V",IF(AND(LEFT(CO13,1)="4",CS13>8.5),"V",IF(AND(LEFT(CO13,1)="5",CS13>9.5),"V",IF(AND(LEFT(CO13,1)="6",CS13>10.5),"V","J")))))) -> V | CU13: =IF(AJ13=0,0,IF(BH13=0,0,1)) -> 0 | CV13: =DC11&DC12&11 -> 500.10011 | CW13: taux réussite | CX13: =IF(CX4<5,"",SUMPRODUCT((($CM$2:$CM$338=$CV2)*($AJ$2:$AJ$338>=60)/CX4*100))) -> 100 | CY13: qrel | CZ13: =CY14&","&CY15&","&CY16&","&CY17 -> 8,4,5,3 | DA13: qfix | DB13: =DA14&","&DA15&","&DA16&","&DA17 -> 4,13,1,0 | DC13: =(SUMPRODUCT(MAX(($CM$2:$CM$338=$CV2)*($AJ$2:$AJ$338>3)*($AJ$2:$AJ$338)))) -> 90 | DD13: 8 | DE13: 8 | DF13: 500.10011 | DG13: =IF(DG4<5,"",SUMPRODUCT((($CM$2:$CM$338=$CV2)*($AN$2:$AN$338>=60)/DG4*100))) ->  | DH13: qrel | DI13: =DH14&","&DH15&","&DH16&","&DH17 -> 0,0,0,0 | DJ13: qfix | DK13: =DJ14&","&DJ15&","&DJ16&","&DJ17 -> 0,0,0,0 | DL13: =(SUMPRODUCT(MAX(($CM$2:$CM$338=$CV2)*($AN$2:$AN$338>3)*($AN$2:$AN$338)))) -> 0 | DO13: 500.10011 | DP13: =IF(DP4<5,"",SUMPRODUCT((($CM$2:$CM$338=$CV2)*($AR$2:$AR$338>=60)/DP4*100))) -> 96 | DQ13: qrel | DR13: =DQ14&","&DQ15&","&DQ16&","&DQ17 -> 7,10,7,1 | DS13: qfix | DT13: =DS14&","&DS15&","&DS16&","&DS17 -> 6,11,3,1 | DU13: =(SUMPRODUCT(MAX(($CM$2:$CM$338=$CV2)*($AR$2:$AR$338>3)*($AR$2:$AR$338)))) -> 95 | DV13: 2 | DW13: 2 | DX13: 500.10011 | DY13: =IF(DY4<5,"",SUMPRODUCT((($CM$2:$CM$338=$CV2)*($AV$2:$AV$338>=60)/DY4*100))) -> 100 | DZ13: qrel | EA13: =DZ14&","&DZ15&","&DZ16&","&DZ17 -> 4,9,7,5 | EB13: qfix | EC13: =EB14&","&EB15&","&EB16&","&EB17 -> 4,12,5,0 | ED13: =(SUMPRODUCT(MAX(($CM$2:$CM$338=$CV2)*($AV$2:$AV$338>3)*($AV$2:$AV$338)))) -> 95 | EE13: 3 | EF13: 2 | EG13: 500.10011 | EH13: =IF(EH4<5,"",SUMPRODUCT((($CM$2:$CM$338=$CV2)*($AZ$2:$AZ$338>=60)/EH4*100))) -> 96.15384615 | EI13: qrel | EJ13: =EI14&","&EI15&","&EI16&","&EI17 -> 8,7,7,4 | EK13: qfix | EL13: =EK14&","&EK15&","&EK16&","&EK17 -> 3,12,4,1 | EM13: =(SUMPRODUCT(MAX(($CM$2:$CM$338=$CV2)*($AZ$2:$AZ$338>3)*($AZ$2:$AZ$338)))) -> 95 | EN13: 2 | EO13: 2 | EP13: 500.10011 | EQ13: =IF(EQ4<5,"",SUMPRODUCT((($CM$2:$CM$338=$CV2)*($BD$2:$BD$338>=60)/EQ4*100))) ->  | ER13: qrel | ES13: =ER14&","&ER15&","&ER16&","&ER17 -> 0,0,0,0 | ET13: qfix | EU13: =ET14&","&ET15&","&ET16&","&ET17 -> 0,0,0,0 | EV13: =(SUMPRODUCT(MAX(($CM$2:$CM$338=$CV2)*($BD$2:$BD$338>3)*($BD$2:$BD$338)))) -> 0 | EY13: 500.10011 | EZ13: =IF(EZ4<5,"",SUMPRODUCT((($CM$2:$CM$338=$CV2)*($BH$2:$BH$338>=60)/EZ4*100))) -> 92.30769231 | FA13: qrel | FB13: =FA14&","&FA15&","&FA16&","&FA17 -> 9,10,4,3 | FC13: qfix | FD13: =FC14&","&FC15&","&FC16&","&FC17 -> 4,10,3,2 | FE13: =(SUMPRODUCT(MAX(($CM$2:$CM$338=$CV2)*($BH$2:$BH$338>3)*($BH$2:$BH$338)))) -> 90 | FF13: 2 | FG13: 2 | FH13: 500.10011 | FI13: =IF(FI4<5,"",SUMPRODUCT((($CM$2:$CM$338=$CV2)*($AI$2:$AI$338>=60)/FI4*100))) -> 100 | FJ13: qrel | FK13: =FJ14&","&FJ15&","&FJ16&","&FJ17 -> 8,5,1,6 | FL13: qfix | FM13: =FL14&","&FL15&","&FL16&","&FL17 -> 3,11,3,0 | FN13: =(SUMPRODUCT(MAX(($CM$2:$CM$338=$CV2)*($AI$2:$AI$338>3)*($AI$2:$AI$338)))) -> 90 | FO13: 8 | FP13: 8 | FQ13: 500.10011 | FR13: =IF(FR4<5,"",SUMPRODUCT((($CM$2:$CM$338=$CV2)*($AM$2:$AM$338>=60)/FR4*100))) ->  | FS13: qrel | FT13: =FS14&","&FS15&","&FS16&","&FS17 -> 0,0,0,0 | FU13: qfix | FV13: =FU14&","&FU15&","&FU16&","&FU17 -> 0,0,0,0 | FW13: =(SUMPRODUCT(MAX(($CM$2:$CM$338=$CV2)*($AM$2:$AM$338>3)*($AM$2:$AM$338)))) -> 0 | FZ13: 500.10011 | GA13: =IF(GA4<5,"",SUMPRODUCT((($CM$2:$CM$338=$CV2)*($AQ$2:$AQ$338>=60)/GA4*100))) -> 84 | GB13: qrel | GC13: =GB14&","&GB15&","&GB16&","&GB17 -> 4,12,5,4 | GD13: qfix | GE13: =GD14&","&GD15&","&GD16&","&GD17 -> 0,10,5,4 | GF13: =(SUMPRODUCT(MAX(($CM$2:$CM$338=$CV2)*($AQ$2:$AQ$338>3)*($AQ$2:$AQ$338)))) -> 85 | GG13: 3 | GH13: 6 | GI13: 500.10011 | GJ13: =IF(GJ4<5,"",SUMPRODUCT((($CM$2:$CM$338=$CV2)*($AU$2:$AU$338>=60)/GJ4*100))) -> 92 | GK13: qrel | GL13: =GK14&","&GK15&","&GK16&","&GK17 -> 8,8,5,4 | GM13: qfix | GN13: =GM14&","&GM15&","&GM16&","&GM17 -> 4,12,5,2 | GO13: =(SUMPRODUCT(MAX(($CM$2:$CM$338=$CV2)*($AU$2:$AU$338>3)*($AU$2:$AU$338)))) -> 95 | GP13: 3 | GQ13: 6 | GR13: 500.10011 | GS13: =IF(GS4<5,"",SUMPRODUCT((($CM$2:$CM$338=$CV2)*($AY$2:$AY$338>=60)/GS4*100))) -> 96.15384615 | GT13: qrel | GU13: =GT14&","&GT15&","&GT16&","&GT17 -> 7,5,10,4 | GV13: qfix | GW13: =GV14&","&GV15&","&GV16&","&GV17 -> 3,9,5,1 | GX13: =(SUMPRODUCT(MAX(($CM$2:$CM$338=$CV2)*($AY$2:$AY$338>3)*($AY$2:$AY$338)))) -> 95 | GY13: 4 | GZ13: 6 | HA13: 500.10011 | HB13: =IF(HB4<5,"",SUMPRODUCT((($CM$2:$CM$338=$CV2)*($BC$2:$BC$338>=60)/HB4*100))) ->  | HC13: qrel | HD13: =HC14&","&HC15&","&HC16&","&HC17 -> 0,0,0,0 | HE13: qfix | HF13: =HE14&","&HE15&","&HE16&","&HE17 -> 0,0,0,0 | HG13: =(SUMPRODUCT(MAX(($CM$2:$CM$338=$CV2)*($BC$2:$BC$338>3)*($BC$2:$BC$338)))) -> 0 | HJ13: 500.10011 | HK13: =IF(HK4<5,"",SUMPRODUCT((($CM$2:$CM$338=$CV2)*($BG$2:$BG$338>=60)/HK4*100))) -> 92.30769231 | HL13: qrel | HM13: =HL14&","&HL15&","&HL16&","&HL17 -> 8,11,6,1 | HN13: qfix | HO13: =HN14&","&HN15&","&HN16&","&HN17 -> 6,7,5,2 | HP13: =(SUMPRODUCT(MAX(($CM$2:$CM$338=$CV2)*($BG$2:$BG$338>3)*($BG$2:$BG$338)))) -> 92 | HQ13: 2 | HR13: 2 | HS13: 500.10011 | HT13: =IF(HT4<5,"",SUMPRODUCT((($CM$2:$CM$338=$CV2)*($AL$2:$AL$338>=60)/HT4*100))) -> 100 | HU13: qrel | HV13: =HU14&","&HU15&","&HU16&","&HU17 -> 4,4,8,6 | HW13: qfix | HX13: =HW14&","&HW15&","&HW16&","&HW17 -> 4,14,0,0 | HY13: =(SUMPRODUCT(MAX(($CM$2:$CM$338=$CV2)*($AL$2:$AL$338>3)*($AL$2:$AL$338)))) -> 95 | HZ13: 8 | IA13: 8 | IB13: 500.10011 | IC13: =IF(IC4<5,"",SUMPRODUCT((($CM$2:$CM$338=$CV2)*($AP$2:$AP$338>=60)/IC4*100))) ->  | ID13: qrel | IE13: =ID14&","&ID15&","&ID16&","&ID17 -> 0,0,0,0 | IF13: qfix | IG13: =IF14&","&IF15&","&IF16&","&IF17 -> 0,0,0,0 | IH13: =(SUMPRODUCT(MAX(($CM$2:$CM$338=$CV2)*($AP$2:$AP$338>3)*($AP$2:$AP$338)))) -> 0 | IK13: 500.10011 | IL13: =IF(IL4<5,"",SUMPRODUCT((($CM$2:$CM$338=$CV2)*($AT$2:$AT$338>=60)/IL4*100))) -> 88 | IM13: qrel | IN13: =IM14&","&IM15&","&IM16&","&IM17 -> 10,8,4,3 | IO13: qfix | IP13: =IO14&","&IO15&","&IO16&","&IO17 -> 6,10,4,3 | IQ13: =(SUMPRODUCT(MAX(($CM$2:$CM$338=$CV2)*($AT$2:$AT$338>3)*($AT$2:$AT$338)))) -> 95 | IR13: 2 | IS13: 2 | IT13: 500.10011 | IU13: =IF(IU4<5,"",SUMPRODUCT((($CM$2:$CM$338=$CV2)*($AX$2:$AX$338>=60)/IU4*100))) -> 88 | IV13: qrel | IW13: =IV14&","&IV15&","&IV16&","&IV17 -> 9,11,4,1 | IX13: qfix | IY13: =IX14&","&IX15&","&IX16&","&IX17 -> 4,15,2,3 | IZ13: =(SUMPRODUCT(MAX(($CM$2:$CM$338=$CV2)*($AX$2:$AX$338>3)*($AX$2:$AX$338)))) -> 95 | JA13: 2 | JB13: 2 | JC13: 500.10011 | JD13: =IF(JD4<5,"",SUMPRODUCT((($CM$2:$CM$338=$CV2)*($BB$2:$BB$338>=60)/JD4*100))) -> 88.46153846 | JE13: qrel | JF13: =JE14&","&JE15&","&JE16&","&JE17 -> 7,11,6,2 | JG13: qfix | JH13: =JG14&","&JG15&","&JG16&","&JG17 -> 2,10,6,3 | JI13: =(SUMPRODUCT(MAX(($CM$2:$CM$338=$CV2)*($BB$2:$BB$338>3)*($BB$2:$BB$338)))) -> 90 | JJ13: 2 | JK13: 2 | JL13: 500.10011 | JM13: =IF(JM4<5,"",SUMPRODUCT((($CM$2:$CM$338=$CV2)*($BF$2:$BF$338>=60)/JM4*100))) ->  | JN13: qrel | JO13: =JN14&","&JN15&","&JN16&","&JN17 -> 0,0,0,0 | JP13: qfix | JQ13: =JP14&","&JP15&","&JP16&","&JP17 -> 0,0,0,0 | JR13: =(SUMPRODUCT(MAX(($CM$2:$CM$338=$CV2)*($BF$2:$BF$338>3)*($BF$2:$BF$338)))) -> 0 | JU13: 500.10011 | JV13: =IF(JV4<5,"",SUMPRODUCT((($CM$2:$CM$338=$CV2)*($BJ$2:$BJ$338>=60)/JV4*100))) -> 88.46153846 | JW13: qrel | JX13: =JW14&","&JW15&","&JW16&","&JW17 -> 5,15,5,1 | JY13: qfix | JZ13: =JY14&","&JY15&","&JY16&","&JY17 -> 3,12,3,3 | KA13: =(SUMPRODUCT(MAX(($CM$2:$CM$338=$CV2)*($BJ$2:$BJ$338>3)*($BJ$2:$BJ$338)))) -> 99 | KB13: 2 | KC13: 2 | KD13: 500.10011 | KE13: =IF(KE4<5,"",SUMPRODUCT((($CM$2:$CM$338=$CV2)*($AK$2:$AK$338>=60)/KE4*100))) -> 95 | KF13: qrel | KG13: =KF14&","&KF15&","&KF16&","&KF17 -> 6,9,2,3 | KH13: qfix | KI13: =KH14&","&KH15&","&KH16&","&KH17 -> 3,12,3,1 | KJ13: =(SUMPRODUCT(MAX(($CM$2:$CM$338=$CV2)*($AK$2:$AK$338>3)*($AK$2:$AK$338)))) -> 90 | KK13: 8 | KL13: 8 | KM13: 500.10011 | KN13: =IF(KN4<5,"",SUMPRODUCT((($CM$2:$CM$338=$CV2)*($AO$2:$AO$338>=60)/KN4*100))) ->  | KO13: qrel | KP13: =KO14&","&KO15&","&KO16&","&KO17 -> 0,0,0,0 | KQ13: qfix | KR13: =KQ14&","&KQ15&","&KQ16&","&KQ17 -> 0,0,0,0 | KS13: =(SUMPRODUCT(MAX(($CM$2:$CM$338=$CV2)*($AO$2:$AO$338>3)*($AO$2:$AO$338)))) -> 0 | KV13: 500.10011 | KW13: =IF(KW4<5,"",SUMPRODUCT((($CM$2:$CM$338=$CV2)*($AS$2:$AS$338>=60)/KW4*100))) ->  | KX13: qrel | KY13: =KX14&","&KX15&","&KX16&","&KX17 -> 0,0,0,0 | KZ13: qfix | LA13: =KZ14&","&KZ15&","&KZ16&","&KZ17 -> 0,0,0,0 | LB13: =(SUMPRODUCT(MAX(($CM$2:$CM$338=$CV2)*($AS$2:$AS$338>3)*($AS$2:$AS$338)))) -> 0 | LE13: 500.10011 | LF13: =IF(LF4<5,"",SUMPRODUCT((($CM$2:$CM$338=$CV2)*($AW$2:$AW$338>=60)/LF4*100))) -> 84 | LG13: qrel | LH13: =LG14&","&LG15&","&LG16&","&LG17 -> 8,9,6,2 | LI13: qfix | LJ13: =LI14&","&LI15&","&LI16&","&LI17 -> 4,10,4,4 | LK13: =(SUMPRODUCT(MAX(($CM$2:$CM$338=$CV2)*($AW$2:$AW$338>3)*($AW$2:$AW$338)))) -> 95 | LL13: 2 | LM13: 3 | LN13: 500.10011 | LO13: =IF(LO4<5,"",SUMPRODUCT((($CM$2:$CM$338=$CV2)*($BA$2:$BA$338>=60)/LO4*100))) -> 76.92307692 | LP13: qrel | LQ13: =LP14&","&LP15&","&LP16&","&LP17 -> 8,8,5,5 | LR13: qfix | LS13: =LR14&","&LR15&","&LR16&","&LR17 -> 2,9,5,6 | LT13: =(SUMPRODUCT(MAX(($CM$2:$CM$338=$CV2)*($BA$2:$BA$338>3)*($BA$2:$BA$338)))) -> 90 | LU13: 2 | LV13: 3 | LW13: 500.10011 | LX13: =IF(LX4<5,"",SUMPRODUCT((($CM$2:$CM$338=$CV2)*($BE$2:$BE$338>=60)/LX4*100))) ->  | LY13: qrel | LZ13: =LY14&","&LY15&","&LY16&","&LY17 -> 0,0,0,0 | MA13: qfix | MB13: =MA14&","&MA15&","&MA16&","&MA17 -> 0,0,0,0 | MC13: =(SUMPRODUCT(MAX(($CM$2:$CM$338=$CV2)*($BE$2:$BE$338>3)*($BE$2:$BE$338)))) -> 0 | MF13: 500.10011 | MG13: =IF(MG4<5,"",SUMPRODUCT((($CM$2:$CM$338=$CV2)*($BI$2:$BI$338>=60)/MG4*100))) ->  | MH13: qrel | MI13: =MH14&","&MH15&","&MH16&","&MH17 -> 0,0,0,0 | MJ13: qfix | MK13: =MJ14&","&MJ15&","&MJ16&","&MJ17 -> 0,0,0,0 | ML13: =(SUMPRODUCT(MAX(($CM$2:$CM$338=$CV2)*($BI$2:$BI$338>3)*($BI$2:$BI$338)))) -> 100 | MO13: 500.10011 | MP13: =IF(MP4<5,"",SUMPRODUCT((($CM$2:$CM$338=$CV2)*($BM$2:$BM$338>=60)/MP4*100))) -> 83.33333333 | MQ13: qrel | MR13: =MQ14&","&MQ15&","&MQ16&","&MQ17 -> 9,11,2,2 | MS13: qfix | MT13: =MS14&","&MS15&","&MS16&","&MS17 -> 6,9,4,4 | MU13: =(SUMPRODUCT(MAX(($CM$2:$CM$338=$CV2)*($BM$2:$BM$338>3)*($BM$2:$BM$338)))) -> 99 | MV13: 2 | MW13: 2 | MX13: 500.10011 | MY13: =IF(MY4<5,"",SUMPRODUCT((($CM$2:$CM$338=$CV2)*($CC$2:$CC$338>=60)/MY4*100))) -> 100 | MZ13: qrel | NA13: =MZ14&","&MZ15&","&MZ16&","&MZ17 -> 5,5,7,3 | NB13: qfix | NC13: =NB14&","&NB15&","&NB16&","&NB17 -> 3,14,0,0 | ND13: =(SUMPRODUCT(MAX(($CM$2:$CM$338=$CV2)*($CC$2:$CC$338>3)*($CC$2:$CC$338)))) -> 90 | NE13: 8 | NF13: 8 | NG13: 500.10011 | NH13: =IF(NH4<5,"",SUMPRODUCT((($CM$2:$CM$338=$CV2)*($CD$2:$CD$338>=60)/NH4*100))) ->  | NI13: qrel | NJ13: =NI14&","&NI15&","&NI16&","&NI17 -> 0,0,0,0 | NK13: qfix | NL13: =NK14&","&NK15&","&NK16&","&NK17 -> 0,0,0,0 | NM13: =(SUMPRODUCT(MAX(($CM$2:$CM$338=$CV2)*($CD$2:$CD$338>3)*($CD$2:$CD$338)))) -> 0 | NP13: 500.10011 | NQ13: =IF(NQ4<5,"",SUMPRODUCT((($CM$2:$CM$338=$CV2)*($CE$2:$CE$338>=60)/NQ4*100))) -> 96 | NR13: qrel | NS13: =NR14&","&NR15&","&NR16&","&NR17 -> 6,10,6,3 | NT13: qfix | NU13: =NT14&","&NT15&","&NT16&","&NT17 -> 3,11,6,1 | NV13: =(SUMPRODUCT(MAX(($CM$2:$CM$338=$CV2)*($CE$2:$CE$338>3)*($CE$2:$CE$338)))) -> 90 | NW13: 2 | NX13: 3 | NY13: 500.10011 | NZ13: =IF(NZ4<5,"",SUMPRODUCT((($CM$2:$CM$338=$CV2)*($CF$2:$CF$338>=60)/NZ4*100))) -> 92 | OA13: qrel | OB13: =OA14&","&OA15&","&OA16&","&OA17 -> 8,8,7,2 | OC13: qfix | OD13: =OC14&","&OC15&","&OC16&","&OC17 -> 6,8,3,2 | OE13: =(SUMPRODUCT(MAX(($CM$2:$CM$338=$CV2)*($CF$2:$CF$338>3)*($CF$2:$CF$338)))) -> 92.5 | OF13: 2 | OG13: 3 | OH13: 500.10011 | OI13: =IF(OI4<5,"",SUMPRODUCT((($CM$2:$CM$338=$CV2)*($CG$2:$CG$338>=60)/OI4*100))) -> 92.30769231 | OJ13: qrel | OK13: =OJ14&","&OJ15&","&OJ16&","&OJ17 -> 6,10,9,1 | OL13: qfix | OM13: =OL14&","&OL15&","&OL16&","&OL17 -> 3,8,8,2 | ON13: =(SUMPRODUCT(MAX(($CM$2:$CM$338=$CV2)*($CG$2:$CG$338>3)*($CG$2:$CG$338)))) -> 92.5 | OO13: 2 | OP13: 3 | OQ13: 500.10011 | OR13: =IF(OR4<5,"",SUMPRODUCT((($CM$2:$CM$338=$CV2)*($CH$2:$CH$338>=60)/OR4*100))) ->  | OS13: qrel | OT13: =OS14&","&OS15&","&OS16&","&OS17 -> 0,0,0,0 | OU13: qfix | OV13: =OU14&","&OU15&","&OU16&","&OU17 -> 0,0,0,0 | OW13: =(SUMPRODUCT(MAX(($CM$2:$CM$338=$CV2)*($CH$2:$CH$338>3)*($CH$2:$CH$338)))) -> 0 | OZ13: 500.10011 | PA13: =IF(PA4<5,"",SUMPRODUCT((($CM$2:$CM$338=$CV2)*($CI$2:$CI$338>=60)/PA4*100))) -> 92.30769231 | PB13: qrel | PC13: =PB14&","&PB15&","&PB16&","&PB17 -> 9,13,3,1 | PD13: qfix | PE13: =PD14&","&PD15&","&PD16&","&PD17 -> 4,11,4,2 | PF13: =(SUMPRODUCT(MAX(($CM$2:$CM$338=$CV2)*($CI$2:$CI$338>3)*($CI$2:$CI$338)))) -> 94.25 | PG13: 2 | PH13: 2
A14: 2010 | B14: 001 | C14: 501 | F14: 0 | G14: 1999-10-26 | J14: F | K14: 85 | L14: 85 | M14: 0 | N14: 90 | O14: 85 | P14: 95 | Q14: 90 | R14: 90 | S14: 90 | T14: 0 | U14: 0 | V14: 80 | W14: 0 | X14: 0 | Y14: 0 | Z14: 0 | AA14: 90 | AB14: 85 | AC14: 0 | AD14: 90 | AE14: 95 | AF14: 90 | AG14: 90 | AH14: 90 | AI14: 90 | AJ14: 90 | AK14: 85 | AL14: 90 | AM14: 0 | AN14: 0 | AO14: 0 | AP14: 0 | AQ14: 85 | AR14: 90 | AS14: 0 | AT14: 95 | AU14: 95 | AV14: 95 | AW14: 90 | AX14: 90 | AY14: 95 | AZ14: 95 | BA14: 90 | BB14: 90 | BC14: 0 | BD14: 0 | BE14: 0 | BF14: 0 | BG14: 92 | BH14: 87 | BI14: 0 | BJ14: 99 | BK14: 92 | BL14: 95 | BM14: 99 | BN14: 98 | BO14: 95 | BP14: 95 | BQ14: 90 | BR14: 95 | BS14: 92 | BT14: 93 | BU14: 99 | BV14: 95 | BX14: 58.33333333 | BY14: 90 | BZ14: 0 | CA14: 88.33333333 | CB14: 91.25 | CC14: 88.75 | CD14: 0 | CE14: 90 | CF14: 92.5 | CG14: 92.5 | CH14: 0 | CI14: 94.25 | CM14: 001501 | CN14: 0.100 | CO14: 50 | CP14: =Tableau_SSRSMSA03_BI_Integration_STEPH_2010[[#This Row],[DAT_NAISSANCE_ELEVE]] -> 1999-10-26 | CQ14: 2009-09-30 | CR14: 3627 | CS14: 9.930184805 | CT14: =IF(AND(LEFT(CO14,1)="1",CS14>5.5),"V",IF(AND(LEFT(CO14,1)="2",CS14>6.5),"V",IF(AND(LEFT(CO14,1)="3",CS14>7.5),"V",IF(AND(LEFT(CO14,1)="4",CS14>8.5),"V",IF(AND(LEFT(CO14,1)="5",CS14>9.5),"V",IF(AND(LEFT(CO14,1)="6",CS14>10.5),"V","J")))))) -> V | CU14: =IF(AJ14=0,0,IF(BH14=0,0,1)) -> 1 | CV14: =DC11&DC12&12 -> 500.10012 | CW14: Taux reu cs niv | CX14: =IF(CX4<5,"",INDEX(compilations,MATCH(DC11&"taux",$J$339:$J$424,0),27)) -> 96.91358025 | CY14: =COUNTIF(OFFSET(DD2,,,MAX(CX3),1),"=1") -> 8 | CZ14: =SUMPRODUCT(($CM$2:$CM$338=$CV2)*(DD$2:DD$338=1)*($AJ$2:$AJ$338))/CY14 -> 87.5 | DA14: =COUNTIF(OFFSET(DE2,,,MAX(CX3),1),"=1") -> 4 | DB14: =SUMPRODUCT(($CM$2:$CM$338=$CV2)*(DE$2:DE$338=1)*($AJ$2:$AJ$338))/DA14 -> 90 | DC14: =MIN(IF((($CM$2:$CM$338=$CV2)*($AJ$2:$AJ$338>3)),$AJ$2:$AJ$338)) -> 65 | DD14: 1 | DE14: 1 | DF14: 500.10012 | DG14: =IF(DG4<5,"",INDEX(compilations,MATCH(DL11&"taux",$J$339:$J$424,0),31)) ->  | DH14: =COUNTIF(OFFSET(DM2,,,MAX(DG3),1),"=1") -> 0 | DI14: =SUMPRODUCT(($CM$2:$CM$338=$CV2)*(DM$2:DM$338=1)*($AN$2:$AN$338))/DH14 ->  | DJ14: =COUNTIF(OFFSET(DN2,,,MAX(DG3),1),"=1") -> 0 | DK14: =SUMPRODUCT(($CM$2:$CM$338=$CV2)*(DN$2:DN$338=1)*($AN$2:$AN$338))/DJ14 ->  | DL14: =MIN(IF((($CM$2:$CM$338=$CV2)*($AN$2:$AN$338>3)),$AN$2:$AN$338)) -> 0 | DO14: 500.10012 | DP14: =IF(DP4<5,"",INDEX(compilations,MATCH(DU11&"taux",$J$339:$J$424,0),35)) -> 94.91525424 | DQ14: =COUNTIF(OFFSET(DV2,,,MAX(DP3),1),"=1") -> 7 | DR14: =SUMPRODUCT(($CM$2:$CM$338=$CV2)*(DV$2:DV$338=1)*($AR$2:$AR$338))/DQ14 -> 90.71428571 | DS14: =COUNTIF(OFFSET(DW2,,,MAX(DP3),1),"=1") -> 6 | DT14: =SUMPRODUCT(($CM$2:$CM$338=$CV2)*(DW$2:DW$338=1)*($AR$2:$AR$338))/DS14 -> 91.66666667 | DU14: =MIN(IF((($CM$2:$CM$338=$CV2)*($AR$2:$AR$338>3)),$AR$2:$AR$338)) -> 55 | DV14: 1 | DW14: 1 | DX14: 500.10012 | DY14: =IF(DY4<5,"",INDEX(compilations,MATCH(ED11&"taux",$J$339:$J$424,0),39)) -> 96.62921348 | DZ14: =COUNTIF(OFFSET(EE2,,,MAX(DY3),1),"=1") -> 4 | EA14: =SUMPRODUCT(($CM$2:$CM$338=$CV2)*(EE$2:EE$338=1)*($AV$2:$AV$338))/DZ14 -> 91.25 | EB14: =COUNTIF(OFFSET(EF2,,,MAX(DY3),1),"=1") -> 4 | EC14: =SUMPRODUCT(($CM$2:$CM$338=$CV2)*(EF$2:EF$338=1)*($AV$2:$AV$338))/EB14 -> 91.25 | ED14: =MIN(IF((($CM$2:$CM$338=$CV2)*($AV$2:$AV$338>3)),$AV$2:$AV$338)) -> 60 | EE14: 1 | EF14: 1 | EG14: 500.10012 | EH14: =IF(EH4<5,"",INDEX(compilations,MATCH(EM11&"taux",$J$339:$J$424,0),43)) -> 95.55555556 | EI14: =COUNTIF(OFFSET(EN2,,,MAX(EH3),1),"=1") -> 8 | EJ14: =SUMPRODUCT(($CM$2:$CM$338=$CV2)*(EN$2:EN$338=1)*($AZ$2:$AZ$338))/EI14 -> 88.125 | EK14: =COUNTIF(OFFSET(EO2,,,MAX(EH3),1),"=1") -> 3 | EL14: =SUMPRODUCT(($CM$2:$CM$338=$CV2)*(EO$2:EO$338=1)*($AZ$2:$AZ$338))/EK14 -> 93.33333333 | EM14: =MIN(IF((($CM$2:$CM$338=$CV2)*($AZ$2:$AZ$338>3)),$AZ$2:$AZ$338)) -> 50 | EN14: 1 | EO14: 1 | EP14: 500.10012 | EQ14: =IF(EQ4<5,"",INDEX(compilations,MATCH(EV11&"taux",$J$339:$J$424,0),47)) ->  | ER14: =COUNTIF(OFFSET(EW2,,,MAX(EQ3),1),"=1") -> 0 | ES14: =SUMPRODUCT(($CM$2:$CM$338=$CV2)*(EW$2:EW$338=1)*($BD$2:$BD$338))/ER14 ->  | ET14: =COUNTIF(OFFSET(EX2,,,MAX(EQ3),1),"=1") -> 0 | EU14: =SUMPRODUCT(($CM$2:$CM$338=$CV2)*(EX$2:EX$338=1)*($BD$2:$BD$338))/ET14 ->  | EV14: =MIN(IF((($CM$2:$CM$338=$CV2)*($BD$2:$BD$338>3)),$BD$2:$BD$338)) -> 0 | EY14: 500.10012 | EZ14: =IF(EZ4<5,"",INDEX(compilations,MATCH(FE11&"taux",$J$339:$J$424,0),51)) -> 93.06358382 | FA14: =COUNTIF(OFFSET(FF2,,,MAX(EZ3),1),"=1") -> 9 | FB14: =SUMPRODUCT(($CM$2:$CM$338=$CV2)*(FF$2:FF$338=1)*($BH$2:$BH$338))/FA14 -> 84.66666667 | FC14: =COUNTIF(OFFSET(FG2,,,MAX(EZ3),1),"=1") -> 4 | FD14: =SUMPRODUCT(($CM$2:$CM$338=$CV2)*(FG$2:FG$338=1)*($BH$2:$BH$338))/FC14 -> 87.5 | FE14: =MIN(IF((($CM$2:$CM$338=$CV2)*($BH$2:$BH$338>3)),$BH$2:$BH$338)) -> 51 | FF14: 1 | FG14: 1 | FH14: 500.10012 | FI14: =IF(FI4<5,"",INDEX(compilations,MATCH(FN11&"taux",$J$339:$J$424,0),26)) -> 95.67901235 | FJ14: =COUNTIF(OFFSET(FO2,,,MAX(FI3),1),"=1") -> 8 | FK14: =SUMPRODUCT(($CM$2:$CM$338=$CV2)*(FO$2:FO$338=1)*($AI$2:$AI$338))/FJ14 -> 86.875 | FL14: =COUNTIF(OFFSET(FP2,,,MAX(FI3),1),"=1") -> 3 | FM14: =SUMPRODUCT(($CM$2:$CM$338=$CV2)*(FP$2:FP$338=1)*($AI$2:$AI$338))/FL14 -> 90 | FN14: =MIN(IF((($CM$2:$CM$338=$CV2)*($AI$2:$AI$338>3)),$AI$2:$AI$338)) -> 65 | FO14: 1 | FP14: 1 | FQ14: 500.10012 | FR14: =IF(FR4<5,"",INDEX(compilations,MATCH(FW11&"taux",$J$339:$J$424,0),30)) ->  | FS14: =COUNTIF(OFFSET(FX2,,,MAX(FR3),1),"=1") -> 0 | FT14: =SUMPRODUCT(($CM$2:$CM$338=$CV2)*(FX$2:FX$338=1)*($AM$2:$AM$338))/FS14 ->  | FU14: =COUNTIF(OFFSET(FY2,,,MAX(FR3),1),"=1") -> 0 | FV14: =SUMPRODUCT(($CM$2:$CM$338=$CV2)*(FY$2:FY$338=1)*($AM$2:$AM$338))/FU14 ->  | FW14: =MIN(IF((($CM$2:$CM$338=$CV2)*($AM$2:$AM$338>3)),$AM$2:$AM$338)) -> 0 | FZ14: 500.10012 | GA14: =IF(GA4<5,"",INDEX(compilations,MATCH(GF11&"taux",$J$339:$J$424,0),34)) -> 90.39548023 | GB14: =COUNTIF(OFFSET(GG2,,,MAX(GA3),1),"=1") -> 4 | GC14: =SUMPRODUCT(($CM$2:$CM$338=$CV2)*(GG$2:GG$338=1)*($AQ$2:$AQ$338))/GB14 -> 81.25 | GD14: =COUNTIF(OFFSET(GH2,,,MAX(GA3),1),"=1") -> 0 | GE14: =SUMPRODUCT(($CM$2:$CM$338=$CV2)*(GH$2:GH$338=1)*($AQ$2:$AQ$338))/GD14 ->  | GF14: =MIN(IF((($CM$2:$CM$338=$CV2)*($AQ$2:$AQ$338>3)),$AQ$2:$AQ$338)) -> 50 | GG14: 1 | GH14: 2 | GI14: 500.10012 | GJ14: =IF(GJ4<5,"",INDEX(compilations,MATCH(GO11&"taux",$J$339:$J$424,0),38)) -> 94.38202247 | GK14: =COUNTIF(OFFSET(GP2,,,MAX(GJ3),1),"=1") -> 8 | GL14: =SUMPRODUCT(($CM$2:$CM$338=$CV2)*(GP$2:GP$338=1)*($AU$2:$AU$338))/GK14 -> 88.125 | GM14: =COUNTIF(OFFSET(GQ2,,,MAX(GJ3),1),"=1") -> 4 | GN14: =SUMPRODUCT(($CM$2:$CM$338=$CV2)*(GQ$2:GQ$338=1)*($AU$2:$AU$338))/GM14 -> 91.25 | GO14: =MIN(IF((($CM$2:$CM$338=$CV2)*($AU$2:$AU$338>3)),$AU$2:$AU$338)) -> 50 | GP14: 1 | GQ14: 1 | GR14: 500.10012 | GS14: =IF(GS4<5,"",INDEX(compilations,MATCH(GX11&"tayx",$J$339:$J$424,0),42)) ->  | GT14: =COUNTIF(OFFSET(GY2,,,MAX(GS3),1),"=1") -> 7 | GU14: =SUMPRODUCT(($CM$2:$CM$338=$CV2)*(GY$2:GY$338=1)*($AY$2:$AY$338))/GT14 -> 88.57142857 | GV14: =COUNTIF(OFFSET(GZ2,,,MAX(GS3),1),"=1") -> 3 | GW14: =SUMPRODUCT(($CM$2:$CM$338=$CV2)*(GZ$2:GZ$338=1)*($AY$2:$AY$338))/GV14 -> 93.33333333 | GX14: =MIN(IF((($CM$2:$CM$338=$CV2)*($AY$2:$AY$338>3)),$AY$2:$AY$338)) -> 50 | GY14: 1 | GZ14: 1 | HA14: 500.10012 | HB14: =IF(HB4<5,"",INDEX(compilations,MATCH(HG11&"taux",$J$339:$J$424,0),46)) ->  | HC14: =COUNTIF(OFFSET(HH2,,,MAX(HB3),1),"=1") -> 0 | HD14: =SUMPRODUCT(($CM$2:$CM$338=$CV2)*(HH$2:HH$338=1)*($BC$2:$BC$338))/HC14 ->  | HE14: =COUNTIF(OFFSET(HI2,,,MAX(HB3),1),"=1") -> 0 | HF14: =SUMPRODUCT(($CM$2:$CM$338=$CV2)*(HI$2:HI$338=1)*($BC$2:$BC$338))/HE14 ->  | HG14: =MIN(IF((($CM$2:$CM$338=$CV2)*($BC$2:$BC$338>3)),$BC$2:$BC$338)) -> 0 | HJ14: 500.10012 | HK14: =IF(HK4<5,"",INDEX(compilations,MATCH(HP11&"taux",$J$339:$J$424,0),50)) -> 93.6416185 | HL14: =COUNTIF(OFFSET(HQ2,,,MAX(HK3),1),"=1") -> 8 | HM14: =SUMPRODUCT(($CM$2:$CM$338=$CV2)*(HQ$2:HQ$338=1)*($BG$2:$BG$338))/HL14 -> 86.75 | HN14: =COUNTIF(OFFSET(HR2,,,MAX(HK3),1),"=1") -> 6 | HO14: =SUMPRODUCT(($CM$2:$CM$338=$CV2)*(HR$2:HR$338=1)*($BG$2:$BG$338))/HN14 -> 88.33333333 | HP14: =MIN(IF((($CM$2:$CM$338=$CV2)*($BG$2:$BG$338>3)),$BG$2:$BG$338)) -> 42 | HQ14: 1 | HR14: 1 | HS14: 500.10012 | HT14: =IF(HT4<5,"",INDEX(compilations,MATCH(HY11&"taux",$J$339:$J$424,0),29)) -> 96.96969697 | HU14: =COUNTIF(OFFSET(HZ2,,,MAX(HT3),1),"=1") -> 4 | HV14: =SUMPRODUCT(($CM$2:$CM$338=$CV2)*(HZ$2:HZ$338=1)*($AL$2:$AL$338))/HU14 -> 91.25 | HW14: =COUNTIF(OFFSET(IA2,,,MAX(HT3),1),"=1") -> 4 | HX14: =SUMPRODUCT(($CM$2:$CM$338=$CV2)*(IA$2:IA$338=1)*($AL$2:$AL$338))/HW14 -> 91.25 | HY14: =MIN(IF((($CM$2:$CM$338=$CV2)*($AL$2:$AL$338>3)),$AL$2:$AL$338)) -> 70 | HZ14: 1 | IA14: 1 | IB14: 500.10012 | IC14: =IF(IC4<5,"",INDEX(compilations,MATCH(IH11&"taux",$J$339:$J$424,0),33)) ->  | ID14: =COUNTIF(OFFSET(II2,,,MAX(IC3),1),"=1") -> 0 | IE14: =SUMPRODUCT(($CM$2:$CM$338=$CV2)*(II$2:II$338=1)*($AP$2:$AP$338))/ID14 ->  | IF14: =COUNTIF(OFFSET(IJ2,,,MAX(IC3),1),"=1") -> 0 | IG14: =SUMPRODUCT(($CM$2:$CM$338=$CV2)*(IJ$2:IJ$338=1)*($AP$2:$AP$338))/IF14 ->  | IH14: =MIN(IF((($CM$2:$CM$338=$CV2)*($AP$2:$AP$338>3)),$AP$2:$AP$338)) -> 0 | IK14: 500.10012 | IL14: =IF(IL4<5,"",INDEX(compilations,MATCH(IQ11&"taux",$J$339:$J$424,0),37)) -> 90.96045198 | IM14: =COUNTIF(OFFSET(IR2,,,MAX(IL3),1),"=1") -> 10 | IN14: =SUMPRODUCT(($CM$2:$CM$338=$CV2)*(IR$2:IR$338=1)*($AL$2:$AL$338))/IM14 -> 83 | IO14: =COUNTIF(OFFSET(IS2,,,MAX(IL3),1),"=1") -> 6 | IP14: =SUMPRODUCT(($CM$2:$CM$338=$CV2)*(IS$2:IS$338=1)*($AL$2:$AL$338))/IO14 -> 86.66666667 | IQ14: =MIN(IF((($CM$2:$CM$338=$CV2)*($AT$2:$AT$338>3)),$AT$2:$AT$338)) -> 45 | IR14: 1 | IS14: 1 | IT14: 500.10012 | IU14: =IF(IU4<5,"",INDEX(compilations,MATCH(IZ11&"taux",$J$339:$J$424,0),41)) -> 92.69662921 | IV14: =COUNTIF(OFFSET(JA2,,,MAX(IU3),1),"=1") -> 9 | IW14: =SUMPRODUCT(($CM$2:$CM$338=$CV2)*(JA$2:JA$338=1)*($AX$2:$AX$338))/IV14 -> 87.77777778 | IX14: =COUNTIF(OFFSET(JB2,,,MAX(IU3),1),"=1") -> 4 | IY14: =SUMPRODUCT(($CM$2:$CM$338=$CV2)*(JB$2:JB$338=1)*($AX$2:$AX$338))/IX14 -> 91.25 | IZ14: =MIN(IF((($CM$2:$CM$338=$CV2)*($AX$2:$AX$338>3)),$AX$2:$AX$338)) -> 40 | JA14: 1 | JB14: 1 | JC14: 500.10012 | JD14: =IF(JD4<5,"",INDEX(compilations,MATCH(JI11&"taux",$J$339:$J$424,0),45)) -> 92.77777778 | JE14: =COUNTIF(OFFSET(JJ2,,,MAX(JD3),1),"=1") -> 7 | JF14: =SUMPRODUCT(($CM$2:$CM$338=$CV2)*(JJ$2:JJ$338=1)*($BB$2:$BB$338))/JE14 -> 84.28571429 | JG14: =COUNTIF(OFFSET(JK2,,,MAX(JD3),1),"=1") -> 2 | JH14: =SUMPRODUCT(($CM$2:$CM$338=$CV2)*(JK$2:JK$338=1)*($BB$2:$BB$338))/JG14 -> 90 | JI14: =MIN(IF((($CM$2:$CM$338=$CV2)*($BB$2:$BB$338>3)),$BB$2:$BB$338)) -> 40 | JJ14: 1 | JK14: 1 | JL14: 500.10012 | JM14: =IF(JM4<5,"",INDEX(compilations,MATCH(JR11&"taux",$J$339:$J$424,0),49)) ->  | JN14: =COUNTIF(OFFSET(JS2,,,MAX(JM3),1),"=1") -> 0 | JO14: =SUMPRODUCT(($CM$2:$CM$338=$CV2)*(JS$2:JS$338=1)*($BF$2:$BF$338))/JN14 ->  | JP14: =COUNTIF(OFFSET(JT2,,,MAX(JM3),1),"=1") -> 0 | JQ14: =SUMPRODUCT(($CM$2:$CM$338=$CV2)*(JT$2:JT$338=1)*($BF$2:$BF$338))/JP14 ->  | JR14: =MIN(IF((($CM$2:$CM$338=$CV2)*($BF$2:$BF$338>3)),$BF$2:$BF$338)) -> 0 | JU14: 500.10012 | JV14: =IF(JV4<5,"",INDEX(compilations,MATCH(KA11&"taux",$J$339:$J$424,0),53)) -> 91.90751445 | JW14: =COUNTIF(OFFSET(KB2,,,MAX(JV3),1),"=1") -> 5 | JX14: =SUMPRODUCT(($CM$2:$CM$338=$CV2)*(KB$2:KB$338=1)*($BJ$2:$BJ$338))/JW14 -> 89.6 | JY14: =COUNTIF(OFFSET(KC2,,,MAX(JV3),1),"=1") -> 3 | JZ14: =SUMPRODUCT(($CM$2:$CM$338=$CV2)*(KC$2:KC$338=1)*($BJ$2:$BJ$338))/JY14 -> 94 | KA14: =MIN(IF((($CM$2:$CM$338=$CV2)*($BJ$2:$BJ$338>3)),$BJ$2:$BJ$338)) -> 30 | KB14: 1 | KC14: 1 | KD14: 500.10012 | KE14: =IF(KE4<5,"",INDEX(compilations,MATCH(KJ11&"taux",$J$339:$J$424,0),28)) -> 95.67901235 | KF14: =COUNTIF(OFFSET(KK2,,,MAX(KE3),1),"=1") -> 6 | KG14: =SUMPRODUCT(($CM$2:$CM$338=$CV2)*(KK$2:KK$338=1)*($AK$2:$AK$338))/KF14 -> 87.5 | KH14: =COUNTIF(OFFSET(KL2,,,MAX(KE3),1),"=1") -> 3 | KI14: =SUMPRODUCT(($CM$2:$CM$338=$CV2)*(KL$2:KL$338=1)*($AK$2:$AK$338))/KH14 -> 90 | KJ14: =MIN(IF((($CM$2:$CM$338=$CV2)*($AK$2:$AK$338>3)),$AK$2:$AK$338)) -> 55 | KK14: 1 | KL14: 2 | KM14: 500.10012 | KN14: =IF(KN4<5,"",INDEX(compilations,MATCH(KS11&"taux",$J$339:$J$424,0),32)) ->  | KO14: =COUNTIF(OFFSET(KT2,,,MAX(KN3),1),"=1") -> 0 | KP14: =SUMPRODUCT(($CM$2:$CM$338=$CV2)*(KT$2:KT$338=1)*($AO$2:$AO$338))/KO14 ->  | KQ14: =COUNTIF(OFFSET(KU2,,,MAX(KN3),1),"=1") -> 0 | KR14: =SUMPRODUCT(($CM$2:$CM$338=$CV2)*(KU$2:KU$338=1)*($AO$2:$AO$338))/KQ14 ->  | KS14: =MIN(IF((($CM$2:$CM$338=$CV2)*($AO$2:$AO$338>3)),$AO$2:$AO$338)) -> 0 | KV14: 500.10012 | KW14: =IF(KW4<5,"",INDEX(compilations,MATCH(LB11&"taux",$J$339:$J$424,0),36)) ->  | KX14: =COUNTIF(OFFSET(LC2,,,MAX(KW3),1),"=1") -> 0 | KY14: =SUMPRODUCT(($CM$2:$CM$338=$CV2)*(LC$2:LC$338=1)*($AS$2:$AS$338))/KX14 ->  | KZ14: =COUNTIF(OFFSET(LD2,,,MAX(KW3),1),"=1") -> 0 | LA14: =SUMPRODUCT(($CM$2:$CM$338=$CV2)*(LD$2:LD$338=1)*($AS$2:$AS$338))/KZ14 ->  | LB14: =MIN(IF((($CM$2:$CM$338=$CV2)*($AS$2:$AS$338>3)),$AS$2:$AS$338)) -> 0 | LE14: 500.10012 | LF14: =IF(LF4<5,"",INDEX(compilations,MATCH(LK11&"taux",$J$339:$J$424,0),40)) -> 88.20224719 | LG14: =COUNTIF(OFFSET(LL2,,,MAX(LF3),1),"=1") -> 8 | LH14: =SUMPRODUCT(($CM$2:$CM$338=$CV2)*(LL$2:LL$338=1)*($AW$2:$AW$338))/LG14 -> 88.125 | LI14: =COUNTIF(OFFSET(LM2,,,MAX(LF3),1),"=1") -> 4 | LJ14: =SUMPRODUCT(($CM$2:$CM$338=$CV2)*(LM$2:LM$338=1)*($AW$2:$AW$338))/LI14 -> 91.25 | LK14: =MIN(IF((($CM$2:$CM$338=$CV2)*($AW$2:$AW$338>3)),$AW$2:$AW$338)) -> 40 | LL14: 1 | LM14: 1 | LN14: 500.10012 | LO14: =IF(LO4<5,"",INDEX(compilations,MATCH(LT11&"taux",$J$339:$J$424,0),44)) -> 90.55555556 | LP14: =COUNTIF(OFFSET(LU2,,,MAX(LO3),1),"=1") -> 8 | LQ14: =SUMPRODUCT(($CM$2:$CM$338=$CV2)*(LU$2:LU$338=1)*($BA$2:$BA$338))/LP14 -> 83.75 | LR14: =COUNTIF(OFFSET(LV2,,,MAX(LO3),1),"=1") -> 2 | LS14: =SUMPRODUCT(($CM$2:$CM$338=$CV2)*(LV$2:LV$338=1)*($BA$2:$BA$338))/LR14 -> 90 | LT14: =MIN(IF((($CM$2:$CM$338=$CV2)*($BA$2:$BA$338>3)),$BA$2:$BA$338)) -> 40 | LU14: 1 | LV14: 1 | LW14: 500.10012 | LX14: =IF(LX4<5,"",INDEX(compilations,MATCH(MC11&"taux",$J$339:$J$424,0),48)) ->  | LY14: =COUNTIF(OFFSET(MD2,,,MAX(LX3),1),"=1") -> 0 | LZ14: =SUMPRODUCT(($CM$2:$CM$338=$CV2)*(MD$2:MD$338=1)*($BE$2:$BE$338))/LY14 ->  | MA14: =COUNTIF(OFFSET(ME2,,,MAX(LX3),1),"=1") -> 0 | MB14: =SUMPRODUCT(($CM$2:$CM$338=$CV2)*(ME$2:ME$338=1)*($BE$2:$BE$338))/MA14 ->  | MC14: =MIN(IF((($CM$2:$CM$338=$CV2)*($BE$2:$BE$338>3)),$BE$2:$BE$338)) -> 0 | MF14: 500.10012 | MG14: =IF(MG4<5,"",INDEX(compilations,MATCH(ML11&"taux",$J$339:$J$424,0),52)) ->  | MH14: =COUNTIF(OFFSET(MM2,,,MAX(MG3),1),"=1") -> 0 | MI14: =SUMPRODUCT(($CM$2:$CM$338=$CV2)*(MM$2:MM$338=1)*($BI$2:$BI$338))/MH14 ->  | MJ14: =COUNTIF(OFFSET(MN2,,,MAX(MG3),1),"=1") -> 0 | MK14: =SUMPRODUCT(($CM$2:$CM$338=$CV2)*(MN$2:MN$338=1)*($BI$2:$BI$338))/MJ14 ->  | ML14: =MIN(IF((($CM$2:$CM$338=$CV2)*($BI$2:$BI$338>3)),$BI$2:$BI$338)) -> 85 | MO14: 500.10012 | MP14: =IF(MP4<5,"",INDEX(compilations,MATCH(MU11&"taux",$J$339:$J$424,0),56)) -> 84.82758621 | MQ14: =COUNTIF(OFFSET(MV2,,,MAX(MP3),1),"=1") -> 9 | MR14: =SUMPRODUCT(($CM$2:$CM$338=$CV2)*(MV$2:MV$338=1)*($BM$2:$BM$338))/MQ14 -> 89 | MS14: =COUNTIF(OFFSET(MW2,,,MAX(MP3),1),"=1") -> 6 | MT14: =SUMPRODUCT(($CM$2:$CM$338=$CV2)*(MW$2:MW$338=1)*($BM$2:$BM$338))/MS14 -> 92.16666667 | MU14: =MIN(IF((($CM$2:$CM$338=$CV2)*($BM$2:$BM$338>3)),$BM$2:$BM$338)) -> 21 | MV14: 1 | MW14: 1 | MX14: 500.10012 | MY14: =IF(MY4<5,"",INDEX(compilations,MATCH(ND11&"taux",$J$339:$J$424,0),72)) -> 96.31032548 | MZ14: =COUNTIF(OFFSET(NE2,,,MAX(MY3),1),"=1") -> 5 | NA14: =SUMPRODUCT(($CM$2:$CM$338=$CV2)*(NE$2:NE$338=1)*($CC$2:$CC$338))/MZ14 -> 87.25 | NB14: =COUNTIF(OFFSET(NF2,,,MAX(MY3),1),"=1") -> 3 | NC14: =SUMPRODUCT(($CM$2:$CM$338=$CV2)*(NF$2:NF$338=1)*($CC$2:$CC$338))/NB14 -> 88.75 | ND14: =MIN(IF((($CM$2:$CM$338=$CV2)*($CC$2:$CC$338>3)),$CC$2:$CC$338)) -> 68.75 | NE14: 1 | NF14: 1 | NG14: 500.10012 | NH14: =IF(NH4<5,"",INDEX(compilations,MATCH(NM11&"taux",$J$339:$J$424,0),73)) ->  | NI14: =COUNTIF(OFFSET(NN2,,,MAX(NH3),1),"=1") -> 0 | NJ14: =SUMPRODUCT(($CM$2:$CM$338=$CV2)*(NN$2:NN$338=1)*($CD$2:$CD$338))/NI14 ->  | NK14: =COUNTIF(OFFSET(NO2,,,MAX(NH3),1),"=1") -> 0 | NL14: =SUMPRODUCT(($CM$2:$CM$338=$CV2)*(NO$2:NO$338=1)*($CD$2:$CD$338))/NK14 ->  | NM14: =MIN(IF((($CM$2:$CM$338=$CV2)*($CD$2:$CD$338>3)),$CD$2:$CD$338)) -> 0 | NP14: 500.10012 | NQ14: =IF(NQ4<5,"",INDEX(compilations,MATCH(NV11&"taux",$J$339:$J$424,0),74)) ->  | NR14: =COUNTIF(OFFSET(NW2,,,MAX(NQ3),1),"=1") -> 6 | NS14: =SUMPRODUCT(($CM$2:$CM$338=$CV2)*(NW$2:NW$338=1)*($CE$2:$CE$338))/NR14 -> 85.55555556 | NT14: =COUNTIF(OFFSET(NX2,,,MAX(NQ3),1),"=1") -> 3 | NU14: =SUMPRODUCT(($CM$2:$CM$338=$CV2)*(NX$2:NX$338=1)*($CE$2:$CE$338))/NT14 -> 88.33333333 | NV14: =MIN(IF((($CM$2:$CM$338=$CV2)*($CE$2:$CE$338>3)),$CE$2:$CE$338)) -> 53.33333333 | NW14: 1 | NX14: 1 | NY14: 500.10012 | NZ14: =IF(NZ4<5,"",INDEX(compilations,MATCH(OE11&"tcfx",$J$339:$J$424,0),75)) ->  | OA14: =COUNTIF(OFFSET(OF2,,,MAX(NZ3),1),"=1") -> 8 | OB14: =SUMPRODUCT(($CM$2:$CM$338=$CV2)*(OF$2:OF$338=1)*($CF$2:$CF$338))/OA14 -> 87.1875 | OC14: =COUNTIF(OFFSET(OG2,,,MAX(NZ3),1),"=1") -> 6 | OD14: =SUMPRODUCT(($CM$2:$CM$338=$CV2)*(OG$2:OG$338=1)*($CF$2:$CF$338))/OC14 -> 88.33333333 | OE14: =MIN(IF((($CM$2:$CM$338=$CV2)*($CF$2:$CF$338>3)),$CF$2:$CF$338)) -> 48.75 | OF14: 1 | OG14: 1 | OH14: 500.10012 | OI14: =IF(OI4<5,"",INDEX(compilations,MATCH(ON11&"tcgx",$J$339:$J$424,0),76)) ->  | OJ14: =COUNTIF(OFFSET(OO2,,,MAX(OI3),1),"=1") -> 6 | OK14: =SUMPRODUCT(($CM$2:$CM$338=$CV2)*(OO$2:OO$338=1)*($CG$2:$CG$338))/OJ14 -> 86.45833333 | OL14: =COUNTIF(OFFSET(OP2,,,MAX(OI3),1),"=1") -> 3 | OM14: =SUMPRODUCT(($CM$2:$CM$338=$CV2)*(OP$2:OP$338=1)*($CG$2:$CG$338))/OL14 -> 90 | ON14: =MIN(IF((($CM$2:$CM$338=$CV2)*($CG$2:$CG$338>3)),$CG$2:$CG$338)) -> 46.25 | OO14: 1 | OP14: 1 | OQ14: 500.10012 | OR14: =IF(OR4<5,"",INDEX(compilations,MATCH(OW11&"taux",$J$339:$J$424,0),77)) ->  | OS14: =COUNTIF(OFFSET(OX2,,,MAX(OR3),1),"=1") -> 0 | OT14: =SUMPRODUCT(($CM$2:$CM$338=$CV2)*(OX$2:OX$338=1)*($CH$2:$CH$338))/OS14 ->  | OU14: =COUNTIF(OFFSET(OY2,,,MAX(OR3),1),"=1") -> 0 | OV14: =SUMPRODUCT(($CM$2:$CM$338=$CV2)*(OY$2:OY$338=1)*($CH$2:$CH$338))/OU14 ->  | OW14: =MIN(IF((($CM$2:$CM$338=$CV2)*($CH$2:$CH$338>3)),$CH$2:$CH$338)) -> 0 | OZ14: 500.10012 | PA14: =IF(PA4<5,"",INDEX(compilations,MATCH(PF11&"taux",$J$339:$J$424,0),78)) -> 94.65317919 | PB14: =COUNTIF(OFFSET(PG2,,,MAX(PA3),1),"=1") -> 9 | PC14: =SUMPRODUCT(($CM$2:$CM$338=$CV2)*(PG$2:PG$338=1)*($CI$2:$CI$338))/PB14 -> 84.52777778 | PD14: =COUNTIF(OFFSET(PH2,,,MAX(PA3),1),"=1") -> 4 | PE14: =SUMPRODUCT(($CM$2:$CM$338=$CV2)*(PH$2:PH$338=1)*($CI$2:$CI$338))/PD14 -> 89.4375 | PF14: =MIN(IF((($CM$2:$CM$338=$CV2)*($CI$2:$CI$338>3)),$CI$2:$CI$338)) -> 36 | PG14: 1 | PH14: 1
A15: 2010 | B15: 001 | C15: 501 | F15: 0 | G15: 1999-11-23 | J15: M | K15: 80 | L15: 80 | M15: 0 | N15: 80 | O15: 70 | P15: 80 | Q15: 70 | R15: 90 | S15: 75 | T15: 75 | U15: 85 | V15: 80 | W15: 0 | X15: 0 | Y15: 0 | Z15: 0 | AA15: 75 | AB15: 80 | AC15: 0 | AD15: 80 | AE15: 75 | AF15: 75 | AG15: 75 | AH15: 85 | AI15: 80 | AJ15: 75 | AK15: 75 | AL15: 80 | AM15: 0 | AN15: 0 | AO15: 0 | AP15: 0 | AQ15: 70 | AR15: 90 | AS15: 0 | AT15: 85 | AU15: 80 | AV15: 85 | AW15: 95 | AX15: 90 | AY15: 80 | AZ15: 85 | BA15: 80 | BB15: 80 | BC15: 0 | BD15: 0 | BE15: 0 | BF15: 0 | BG15: 72 | BH15: 83 | BI15: 0 | BJ15: 80 | BK15: 78 | BL15: 81 | BM15: 87 | BN15: 81 | BO15: 69 | BP15: 86 | BQ15: 92 | BR15: 87 | BS15: 80 | BT15: 100 | BU15: 100 | BV15: 90 | BX15: 53.33333333 | BY15: 77.5 | BZ15: 78.75 | CA15: 78.33333333 | CB15: 77.5 | CC15: 77.5 | CD15: 0 | CE15: 81.66666667 | CF15: 87.5 | CG15: 81.25 | CH15: 0 | CI15: 80.5 | CM15: 001501 | CN15: 0.100 | CO15: 50 | CP15: =Tableau_SSRSMSA03_BI_Integration_STEPH_2010[[#This Row],[DAT_NAISSANCE_ELEVE]] -> 1999-11-23 | CQ15: 2009-09-30 | CR15: 3599 | CS15: 9.853524983 | CT15: =IF(AND(LEFT(CO15,1)="1",CS15>5.5),"V",IF(AND(LEFT(CO15,1)="2",CS15>6.5),"V",IF(AND(LEFT(CO15,1)="3",CS15>7.5),"V",IF(AND(LEFT(CO15,1)="4",CS15>8.5),"V",IF(AND(LEFT(CO15,1)="5",CS15>9.5),"V",IF(AND(LEFT(CO15,1)="6",CS15>10.5),"V","J")))))) -> V | CU15: =IF(AJ15=0,0,IF(BH15=0,0,1)) -> 1 | CV15: =DC11&DC12&13 -> 500.10013 | CW15: taux reu defav | CX15: =IF(CX4<5,"",SUMPRODUCT(($CN$2:$CN$338=DC12)*($CO$2:$CO$338=DC11)*($AJ$2:$AJ$338>=60))/CX11*100) -> 96.91358025 | CY15: =COUNTIF(OFFSET(DD2,,,MAX(CX3),1),"=2") -> 4 | CZ15: =SUMPRODUCT(($CM$2:$CM$338=$CV2)*(DD$2:DD$338=2)*($AJ$2:$AJ$338))/CY15 -> 80 | DA15: =COUNTIF(OFFSET(DE2,,,MAX(CX3),1),"=2") -> 13 | DB15: =SUMPRODUCT(($CM$2:$CM$338=$CV2)*(DE$2:DE$338=2)*($AJ$2:$AJ$338))/DA15 -> 79.61538462 | DC15: =((DC13-DC14)/4) -> 6.25 | DD15: 3 | DE15: 2 | DF15: 500.10013 | DG15: =IF(DG4<5,"",SUMPRODUCT(($CN$2:$CN$338=DL12)*($CO$2:$CO$338=DL11)*($AN$2:$AN$338>=60))/DG11*100) ->  | DH15: =COUNTIF(OFFSET(DM2,,,MAX(DG3),1),"=2") -> 0 | DI15: =SUMPRODUCT(($CM$2:$CM$338=$CV2)*(DM$2:DM$338=2)*($AN$2:$AN$338))/DH15 ->  | DJ15: =COUNTIF(OFFSET(DN2,,,MAX(DG3),1),"=2") -> 0 | DK15: =SUMPRODUCT(($CM$2:$CM$338=$CV2)*(DN$2:DN$338=2)*($AN$2:$AN$338))/DJ15 ->  | DL15: =((DL13-DL14)/4) -> 0 | DO15: =DF15 -> 500.10013 | DP15: =IF(DP4<5,"",SUMPRODUCT(($CN$2:$CN$338=DU12)*($CO$2:$CO$338=DU11)*($AR$2:$AR$338>=60))/DP11*100) -> 94.91525424 | DQ15: =COUNTIF(OFFSET(DV2,,,MAX(DP3),1),"=2") -> 10 | DR15: =SUMPRODUCT(($CM$2:$CM$338=$CV2)*(DV$2:DV$338=2)*($AR$2:$AR$338))/DQ15 -> 76 | DS15: =COUNTIF(OFFSET(DW2,,,MAX(DP3),1),"=2") -> 11 | DT15: =SUMPRODUCT(($CM$2:$CM$338=$CV2)*(DW$2:DW$338=2)*($AR$2:$AR$338))/DS15 -> 76.81818182 | DU15: =((DU13-DU14)/4) -> 10 | DV15: 1 | DW15: 1 | DX15: =DO15 -> 500.10013 | DY15: =IF(DY4<5,"",SUMPRODUCT(($CN$2:$CN$338=ED12)*($CO$2:$CO$338=ED11)*($AV$2:$AV$338>=60))/DY11*100) -> 96.62921348 | DZ15: =COUNTIF(OFFSET(EE2,,,MAX(DY3),1),"=2") -> 9 | EA15: =SUMPRODUCT(($CM$2:$CM$338=$CV2)*(EE$2:EE$338=2)*($AV$2:$AV$338))/DZ15 -> 82.77777778 | EB15: =COUNTIF(OFFSET(EF2,,,MAX(DY3),1),"=2") -> 12 | EC15: =SUMPRODUCT(($CM$2:$CM$338=$CV2)*(EF$2:EF$338=2)*($AV$2:$AV$338))/EB15 -> 80.83333333 | ED15: =((ED13-ED14)/4) -> 8.75 | EE15: 2 | EF15: 2 | EG15: =DX15 -> 500.10013 | EH15: =IF(EH4<5,"",SUMPRODUCT(($CN$2:$CN$338=EM12)*($CO$2:$CO$338=EM11)*($AZ$2:$AZ$338>=60))/EH11*100) -> 95.55555556 | EI15: =COUNTIF(OFFSET(EN2,,,MAX(EH3),1),"=2") -> 7 | EJ15: =SUMPRODUCT(($CM$2:$CM$338=$CV2)*(EN$2:EN$338=2)*($AZ$2:$AZ$338))/EI15 -> 77.14285714 | EK15: =COUNTIF(OFFSET(EO2,,,MAX(EH3),1),"=2") -> 12 | EL15: =SUMPRODUCT(($CM$2:$CM$338=$CV2)*(EO$2:EO$338=2)*($AZ$2:$AZ$338))/EK15 -> 80.41666667 | EM15: =((EM13-EM14)/4) -> 11.25 | EN15: 1 | EO15: 2 | EP15: =EG15 -> 500.10013 | EQ15: =IF(EQ4<5,"",SUMPRODUCT(($CN$2:$CN$338=EV12)*($CO$2:$CO$338=EV11)*($BD$2:$BD$338>=60))/EQ11*100) ->  | ER15: =COUNTIF(OFFSET(EW2,,,MAX(EQ3),1),"=2") -> 0 | ES15: =SUMPRODUCT(($CM$2:$CM$338=$CV2)*(EW$2:EW$338=2)*($BD$2:$BD$338))/ER15 ->  | ET15: =COUNTIF(OFFSET(EX2,,,MAX(EQ3),1),"=2") -> 0 | EU15: =SUMPRODUCT(($CM$2:$CM$338=$CV2)*(EX$2:EX$338=2)*($BD$2:$BD$338))/ET15 ->  | EV15: =((EV13-EV14)/4) -> 0 | EY15: =EP15 -> 500.10013 | EZ15: =IF(EZ4<5,"",SUMPRODUCT(($CN$2:$CN$338=FE12)*($CO$2:$CO$338=FE11)*($BH$2:$BH$338>=60))/EZ11*100) -> 93.06358382 | FA15: =COUNTIF(OFFSET(FF2,,,MAX(EZ3),1),"=2") -> 10 | FB15: =SUMPRODUCT(($CM$2:$CM$338=$CV2)*(FF$2:FF$338=2)*($BH$2:$BH$338))/FA15 -> 73.9 | FC15: =COUNTIF(OFFSET(FG2,,,MAX(EZ3),1),"=2") -> 10 | FD15: =SUMPRODUCT(($CM$2:$CM$338=$CV2)*(FG$2:FG$338=2)*($BH$2:$BH$338))/FC15 -> 79.5 | FE15: =((FE13-FE14)/4) -> 9.75 | FF15: 1 | FG15: 2 | FH15: =EY15 -> 500.10013 | FI15: =IF(FI4<5,"",SUMPRODUCT(($CN$2:$CN$338=FN12)*($CO$2:$CO$338=FN11)*($AI$2:$AI$338>=60))/FI11*100) -> 95.67901235 | FJ15: =COUNTIF(OFFSET(FO2,,,MAX(FI3),1),"=2") -> 5 | FK15: =SUMPRODUCT(($CM$2:$CM$338=$CV2)*(FO$2:FO$338=2)*($AI$2:$AI$338))/FJ15 -> 80 | FL15: =COUNTIF(OFFSET(FP2,,,MAX(FI3),1),"=2") -> 11 | FM15: =SUMPRODUCT(($CM$2:$CM$338=$CV2)*(FP$2:FP$338=2)*($AI$2:$AI$338))/FL15 -> 81.81818182 | FN15: =((FN13-FN14)/4) -> 6.25 | FO15: 2 | FP15: 2 | FQ15: =FH15 -> 500.10013 | FR15: =IF(FR4<5,"",SUMPRODUCT(($CN$2:$CN$338=FW12)*($CO$2:$CO$338=FW11)*($AM$2:$AM$338>=60))/FR11*100) ->  | FS15: =COUNTIF(OFFSET(FX2,,,MAX(FR3),1),"=2") -> 0 | FT15: =SUMPRODUCT(($CM$2:$CM$338=$CV2)*(FX$2:FX$338=2)*($AM$2:$AM$338))/FS15 ->  | FU15: =COUNTIF(OFFSET(FY2,,,MAX(FR3),1),"=2") -> 0 | FV15: =SUMPRODUCT(($CM$2:$CM$338=$CV2)*(FY$2:FY$338=2)*($AM$2:$AM$338))/FU15 ->  | FW15: =((FW13-FW14)/4) -> 0 | FZ15: =FQ15 -> 500.10013 | GA15: =IF(GA4<5,"",SUMPRODUCT(($CN$2:$CN$338=GF12)*($CO$2:$CO$338=GF11)*($AQ$2:$AQ$338>=60))/GA11*100) -> 90.39548023 | GB15: =COUNTIF(OFFSET(GG2,,,MAX(GA3),1),"=2") -> 12 | GC15: =SUMPRODUCT(($CM$2:$CM$338=$CV2)*(GG$2:GG$338=2)*($AQ$2:$AQ$338))/GB15 -> 72.5 | GD15: =COUNTIF(OFFSET(GH2,,,MAX(GA3),1),"=2") -> 10 | GE15: =SUMPRODUCT(($CM$2:$CM$338=$CV2)*(GH$2:GH$338=2)*($AQ$2:$AQ$338))/GD15 -> 77.5 | GF15: =((GF13-GF14)/4) -> 8.75 | GG15: 2 | GH15: 3 | GI15: =FZ15 -> 500.10013 | GJ15: =IF(GJ4<5,"",SUMPRODUCT(($CN$2:$CN$338=GO12)*($CO$2:$CO$338=GO11)*($AU$2:$AU$338>=60))/GJ11*100) -> 94.38202247 | GK15: =COUNTIF(OFFSET(GP2,,,MAX(GJ3),1),"=2") -> 8 | GL15: =SUMPRODUCT(($CM$2:$CM$338=$CV2)*(GP$2:GP$338=2)*($AU$2:$AU$338))/GK15 -> 77.5 | GM15: =COUNTIF(OFFSET(GQ2,,,MAX(GJ3),1),"=2") -> 12 | GN15: =SUMPRODUCT(($CM$2:$CM$338=$CV2)*(GQ$2:GQ$338=2)*($AU$2:$AU$338))/GM15 -> 80 | GO15: =((GO13-GO14)/4) -> 11.25 | GP15: 2 | GQ15: 2 | GR15: =GI15 -> 500.10013 | GS15: =IF(GS4<5,"",SUMPRODUCT(($CN$2:$CN$338=GX12)*($CO$2:$CO$338=GX11)*($AY$2:$AY$338>=60))/GS11*100) -> 96.66666667 | GT15: =COUNTIF(OFFSET(GY2,,,MAX(GS3),1),"=2") -> 5 | GU15: =SUMPRODUCT(($CM$2:$CM$338=$CV2)*(GY$2:GY$338=2)*($AY$2:$AY$338))/GT15 -> 79 | GV15: =COUNTIF(OFFSET(GZ2,,,MAX(GS3),1),"=2") -> 9 | GW15: =SUMPRODUCT(($CM$2:$CM$338=$CV2)*(GZ$2:GZ$338=2)*($AY$2:$AY$338))/GV15 -> 81.66666667 | GX15: =((GX13-GX14)/4) -> 11.25 | GY15: 2 | GZ15: 2 | HA15: =GR15 -> 500.10013 | HB15: =IF(HB4<5,"",SUMPRODUCT(($CN$2:$CN$338=HG12)*($CO$2:$CO$338=HG11)*($BC$2:$BC$338>=60))/HB11*100) ->  | HC15: =COUNTIF(OFFSET(HH2,,,MAX(HB3),1),"=2") -> 0 | HD15: =SUMPRODUCT(($CM$2:$CM$338=$CV2)*(HH$2:HH$338=2)*($BC$2:$BC$338))/HC15 ->  | HE15: =COUNTIF(OFFSET(HI2,,,MAX(HB3),1),"=2") -> 0 | HF15: =SUMPRODUCT(($CM$2:$CM$338=$CV2)*(HI$2:HI$338=2)*($BC$2:$BC$338))/HE15 ->  | HG15: =((HG13-HG14)/4) -> 0 | HJ15: =HA15 -> 500.10013 | HK15: =IF(HK4<5,"",SUMPRODUCT(($CN$2:$CN$338=HP12)*($CO$2:$CO$338=HP11)*($BG$2:$BG$338>=60))/HK11*100) -> 93.6416185 | HL15: =COUNTIF(OFFSET(HQ2,,,MAX(HK3),1),"=2") -> 11 | HM15: =SUMPRODUCT(($CM$2:$CM$338=$CV2)*(HQ$2:HQ$338=2)*($BG$2:$BG$338))/HL15 -> 72.81818182 | HN15: =COUNTIF(OFFSET(HR2,,,MAX(HK3),1),"=2") -> 7 | HO15: =SUMPRODUCT(($CM$2:$CM$338=$CV2)*(HR$2:HR$338=2)*($BG$2:$BG$338))/HN15 -> 77.57142857 | HP15: =((HP13-HP14)/4) -> 12.5 | HQ15: 2 | HR15: 3 | HS15: =HJ15 -> 500.10013 | HT15: =IF(HT4<5,"",SUMPRODUCT(($CN$2:$CN$338=HY12)*($CO$2:$CO$338=HY11)*($AL$2:$AL$338>=60))/HT11*100) -> 96.96969697 | HU15: =COUNTIF(OFFSET(HZ2,,,MAX(HT3),1),"=2") -> 4 | HV15: =SUMPRODUCT(($CM$2:$CM$338=$CV2)*(HZ$2:HZ$338=2)*($AL$2:$AL$338))/HU15 -> 85 | HW15: =COUNTIF(OFFSET(IA2,,,MAX(HT3),1),"=2") -> 14 | HX15: =SUMPRODUCT(($CM$2:$CM$338=$CV2)*(IA$2:IA$338=2)*($AL$2:$AL$338))/HW15 -> 80.71428571 | HY15: =((HY13-HY14)/4) -> 6.25 | HZ15: 3 | IA15: 2 | IB15: =HS15 -> 500.10013 | IC15: =IF(IC4<5,"",SUMPRODUCT(($CN$2:$CN$338=IH12)*($CO$2:$CO$338=IH11)*($AP$2:$AP$338>=60))/IC11*100) ->  | ID15: =COUNTIF(OFFSET(II2,,,MAX(IC3),1),"=2") -> 0 | IE15: =SUMPRODUCT(($CM$2:$CM$338=$CV2)*(II$2:II$338=2)*($AP$2:$AP$338))/ID15 ->  | IF15: =COUNTIF(OFFSET(IJ2,,,MAX(IC3),1),"=2") -> 0 | IG15: =SUMPRODUCT(($CM$2:$CM$338=$CV2)*(IJ$2:IJ$338=2)*($AP$2:$AP$338))/IF15 ->  | IH15: =((IH13-IH14)/4) -> 0 | IK15: =IB15 -> 500.10013 | IL15: =IF(IL4<5,"",SUMPRODUCT(($CN$2:$CN$338=IQ12)*($CO$2:$CO$338=IQ11)*($AT$2:$AT$338>=60))/IL11*100) -> 90.96045198 | IM15: =COUNTIF(OFFSET(IR2,,,MAX(IL3),1),"=2") -> 8 | IN15: =SUMPRODUCT(($CM$2:$CM$338=$CV2)*(IR$2:IR$338=2)*($AL$2:$AL$338))/IM15 -> 60 | IO15: =COUNTIF(OFFSET(IS2,,,MAX(IL3),1),"=2") -> 10 | IP15: =SUMPRODUCT(($CM$2:$CM$338=$CV2)*(IS$2:IS$338=2)*($AL$2:$AL$338))/IO15 -> 63.5 | IQ15: =((IQ13-IQ14)/4) -> 12.5 | IR15: 1 | IS15: 2 | IT15: =IK15 -> 500.10013 | IU15: =IF(IU4<5,"",SUMPRODUCT(($CN$2:$CN$338=IZ12)*($CO$2:$CO$338=IZ11)*($AX$2:$AX$338>=60))/IU11*100) -> 92.69662921 | IV15: =COUNTIF(OFFSET(JA2,,,MAX(IU3),1),"=2") -> 11 | IW15: =SUMPRODUCT(($CM$2:$CM$338=$CV2)*(JA$2:JA$338=2)*($AX$2:$AX$338))/IV15 -> 76.81818182 | IX15: =COUNTIF(OFFSET(JB2,,,MAX(IU3),1),"=2") -> 15 | IY15: =SUMPRODUCT(($CM$2:$CM$338=$CV2)*(JB$2:JB$338=2)*($AX$2:$AX$338))/IX15 -> 80 | IZ15: =((IZ13-IZ14)/4) -> 13.75 | JA15: 1 | JB15: 1 | JC15: =IT15 -> 500.10013 | JD15: =IF(JD4<5,"",SUMPRODUCT(($CN$2:$CN$338=JI12)*($CO$2:$CO$338=JI11)*($BB$2:$BB$338>=60))/JD11*100) -> 92.77777778 | JE15: =COUNTIF(OFFSET(JJ2,,,MAX(JD3),1),"=2") -> 11 | JF15: =SUMPRODUCT(($CM$2:$CM$338=$CV2)*(JJ$2:JJ$338=2)*($BB$2:$BB$338))/JE15 -> 71.81818182 | JG15: =COUNTIF(OFFSET(JK2,,,MAX(JD3),1),"=2") -> 10 | JH15: =SUMPRODUCT(($CM$2:$CM$338=$CV2)*(JK$2:JK$338=2)*($BB$2:$BB$338))/JG15 -> 78.5 | JI15: =((JI13-JI14)/4) -> 12.5 | JJ15: 1 | JK15: 2 | JL15: =JC15 -> 500.10013 | JM15: =IF(JM4<5,"",SUMPRODUCT(($CN$2:$CN$338=JR12)*($CO$2:$CO$338=JR11)*($BF$2:$BF$338>=60))/JM11*100) ->  | JN15: =COUNTIF(OFFSET(JS2,,,MAX(JM3),1),"=2") -> 0 | JO15: =SUMPRODUCT(($CM$2:$CM$338=$CV2)*(JS$2:JS$338=2)*($BF$2:$BF$338))/JN15 ->  | JP15: =COUNTIF(OFFSET(JT2,,,MAX(JM3),1),"=2") -> 0 | JQ15: =SUMPRODUCT(($CM$2:$CM$338=$CV2)*(JT$2:JT$338=2)*($BF$2:$BF$338))/JP15 ->  | JR15: =((JR13-JR14)/4) -> 0 | JU15: =JL15 -> 500.10013 | JV15: =IF(JV4<5,"",SUMPRODUCT(($CN$2:$CN$338=KA12)*($CO$2:$CO$338=KA11)*($BJ$2:$BJ$338>=60))/JV11*100) -> 91.90751445 | JW15: =COUNTIF(OFFSET(KB2,,,MAX(JV3),1),"=2") -> 15 | JX15: =SUMPRODUCT(($CM$2:$CM$338=$CV2)*(KB$2:KB$338=2)*($BJ$2:$BJ$338))/JW15 -> 74.66666667 | JY15: =COUNTIF(OFFSET(KC2,,,MAX(JV3),1),"=2") -> 12 | JZ15: =SUMPRODUCT(($CM$2:$CM$338=$CV2)*(KC$2:KC$338=2)*($BJ$2:$BJ$338))/JY15 -> 78 | KA15: =((KA13-KA14)/4) -> 17.25 | KB15: 2 | KC15: 2 | KD15: =JU15 -> 500.10013 | KE15: =IF(KE4<5,"",SUMPRODUCT(($CN$2:$CN$338=KJ12)*($CO$2:$CO$338=KJ11)*($AK$2:$AK$338>=60))/KE11*100) -> 95.67901235 | KF15: =COUNTIF(OFFSET(KK2,,,MAX(KE3),1),"=2") -> 9 | KG15: =SUMPRODUCT(($CM$2:$CM$338=$CV2)*(KK$2:KK$338=2)*($AK$2:$AK$338))/KF15 -> 78.33333333 | KH15: =COUNTIF(OFFSET(KL2,,,MAX(KE3),1),"=2") -> 12 | KI15: =SUMPRODUCT(($CM$2:$CM$338=$CV2)*(KL$2:KL$338=2)*($AK$2:$AK$338))/KH15 -> 80 | KJ15: =((KJ13-KJ14)/4) -> 8.75 | KK15: 2 | KL15: 2 | KM15: =KD15 -> 500.10013 | KN15: =IF(KN4<5,"",SUMPRODUCT(($CN$2:$CN$338=KS12)*($CO$2:$CO$338=KS11)*($AO$2:$AO$338>=60))/KN11*100) ->  | KO15: =COUNTIF(OFFSET(KT2,,,MAX(KN3),1),"=2") -> 0 | KP15: =SUMPRODUCT(($CM$2:$CM$338=$CV2)*(KT$2:KT$338=2)*($AO$2:$AO$338))/KO15 ->  | KQ15: =COUNTIF(OFFSET(KU2,,,MAX(KN3),1),"=2") -> 0 | KR15: =SUMPRODUCT(($CM$2:$CM$338=$CV2)*(KU$2:KU$338=2)*($AO$2:$AO$338))/KQ15 ->  | KS15: =((KS13-KS14)/4) -> 0 | KV15: =KM15 -> 500.10013 | KW15: =IF(KW4<5,"",SUMPRODUCT(($CN$2:$CN$338=LB12)*($CO$2:$CO$338=LB11)*($AS$2:$AS$338>=60))/KW11*100) ->  | KX15: =COUNTIF(OFFSET(LC2,,,MAX(KW3),1),"=2") -> 0 | KY15: =SUMPRODUCT(($CM$2:$CM$338=$CV2)*(LC$2:LC$338=2)*($AS$2:$AS$338))/KX15 ->  | KZ15: =COUNTIF(OFFSET(LD2,,,MAX(KW3),1),"=2") -> 0 | LA15: =SUMPRODUCT(($CM$2:$CM$338=$CV2)*(LD$2:LD$338=2)*($AS$2:$AS$338))/KZ15 ->  | LB15: =((LB13-LB14)/4) -> 0 | LE15: =KV15 -> 500.10013 | LF15: =IF(LF4<5,"",SUMPRODUCT(($CN$2:$CN$338=LK12)*($CO$2:$CO$338=LK11)*($AW$2:$AW$338>=60))/LF11*100) -> 88.20224719 | LG15: =COUNTIF(OFFSET(LL2,,,MAX(LF3),1),"=2") -> 9 | LH15: =SUMPRODUCT(($CM$2:$CM$338=$CV2)*(LL$2:LL$338=2)*($AW$2:$AW$338))/LG15 -> 74.44444444 | LI15: =COUNTIF(OFFSET(LM2,,,MAX(LF3),1),"=2") -> 10 | LJ15: =SUMPRODUCT(($CM$2:$CM$338=$CV2)*(LM$2:LM$338=2)*($AW$2:$AW$338))/LI15 -> 80 | LK15: =((LK13-LK14)/4) -> 13.75 | LL15: 1 | LM15: 1 | LN15: =LE15 -> 500.10013 | LO15: =IF(LO4<5,"",SUMPRODUCT(($CN$2:$CN$338=LT12)*($CO$2:$CO$338=LT11)*($BA$2:$BA$338>=60))/LO11*100) -> 90.55555556 | LP15: =COUNTIF(OFFSET(LU2,,,MAX(LO3),1),"=2") -> 8 | LQ15: =SUMPRODUCT(($CM$2:$CM$338=$CV2)*(LU$2:LU$338=2)*($BA$2:$BA$338))/LP15 -> 71.25 | LR15: =COUNTIF(OFFSET(LV2,,,MAX(LO3),1),"=2") -> 9 | LS15: =SUMPRODUCT(($CM$2:$CM$338=$CV2)*(LV$2:LV$338=2)*($BA$2:$BA$338))/LR15 -> 79.44444444 | LT15: =((LT13-LT14)/4) -> 12.5 | LU15: 1 | LV15: 2 | LW15: =LN15 -> 500.10013 | LX15: =IF(LX4<5,"",SUMPRODUCT(($CN$2:$CN$338=MC12)*($CO$2:$CO$338=MC11)*($BE$2:$BE$338>=60))/LX11*100) ->  | LY15: =COUNTIF(OFFSET(MD2,,,MAX(LX3),1),"=2") -> 0 | LZ15: =SUMPRODUCT(($CM$2:$CM$338=$CV2)*(MD$2:MD$338=2)*($BE$2:$BE$338))/LY15 ->  | MA15: =COUNTIF(OFFSET(ME2,,,MAX(LX3),1),"=2") -> 0 | MB15: =SUMPRODUCT(($CM$2:$CM$338=$CV2)*(ME$2:ME$338=2)*($BE$2:$BE$338))/MA15 ->  | MC15: =((MC13-MC14)/4) -> 0 | MF15: =LW15 -> 500.10013 | MG15: =IF(MG4<5,"",SUMPRODUCT(($CN$2:$CN$338=ML12)*($CO$2:$CO$338=ML11)*($BI$2:$BI$338>=60))/MG11*100) ->  | MH15: =COUNTIF(OFFSET(MM2,,,MAX(MG3),1),"=2") -> 0 | MI15: =SUMPRODUCT(($CM$2:$CM$338=$CV2)*(MM$2:MM$338=2)*($BI$2:$BI$338))/MH15 ->  | MJ15: =COUNTIF(OFFSET(MN2,,,MAX(MG3),1),"=2") -> 0 | MK15: =SUMPRODUCT(($CM$2:$CM$338=$CV2)*(MN$2:MN$338=2)*($BI$2:$BI$338))/MJ15 ->  | ML15: =((ML13-ML14)/4) -> 3.75 | MO15: =MF15 -> 500.10013 | MP15: =IF(MP4<5,"",SUMPRODUCT(($CN$2:$CN$338=MU12)*($CO$2:$CO$338=MU11)*($BM$2:$BM$338>=60))/MP11*100) -> 84.82758621 | MQ15: =COUNTIF(OFFSET(MV2,,,MAX(MP3),1),"=2") -> 11 | MR15: =SUMPRODUCT(($CM$2:$CM$338=$CV2)*(MV$2:MV$338=2)*($BM$2:$BM$338))/MQ15 -> 69.90909091 | MS15: =COUNTIF(OFFSET(MW2,,,MAX(MP3),1),"=2") -> 9 | MT15: =SUMPRODUCT(($CM$2:$CM$338=$CV2)*(MW$2:MW$338=2)*($BM$2:$BM$338))/MS15 -> 77.77777778 | MU15: =((MU13-MU14)/4) -> 19.5 | MV15: 1 | MW15: 1 | MX15: =MO15 -> 500.10013 | MY15: =IF(MY4<5,"",SUMPRODUCT(($CN$2:$CN$338=ND12)*($CO$2:$CO$338=ND11)*($CC$2:$CC$338>=60))/MY11*100) -> 97.5308642 | MZ15: =COUNTIF(OFFSET(NE2,,,MAX(MY3),1),"=2") -> 5 | NA15: =SUMPRODUCT(($CM$2:$CM$338=$CV2)*(NE$2:NE$338=2)*($CC$2:$CC$338))/MZ15 -> 81.75 | NB15: =COUNTIF(OFFSET(NF2,,,MAX(MY3),1),"=2") -> 14 | NC15: =SUMPRODUCT(($CM$2:$CM$338=$CV2)*(NF$2:NF$338=2)*($CC$2:$CC$338))/NB15 -> 78.92857143 | ND15: =((ND13-ND14)/4) -> 5.3125 | NE15: 3 | NF15: 2 | NG15: =MX15 -> 500.10013 | NH15: =IF(NH4<5,"",SUMPRODUCT(($CN$2:$CN$338=NM12)*($CO$2:$CO$338=NM11)*($CD$2:$CD$338>=60))/NH11*100) ->  | NI15: =COUNTIF(OFFSET(NN2,,,MAX(NH3),1),"=2") -> 0 | NJ15: =SUMPRODUCT(($CM$2:$CM$338=$CV2)*(NN$2:NN$338=2)*($CD$2:$CD$338))/NI15 ->  | NK15: =COUNTIF(OFFSET(NO2,,,MAX(NH3),1),"=2") -> 0 | NL15: =SUMPRODUCT(($CM$2:$CM$338=$CV2)*(NO$2:NO$338=2)*($CD$2:$CD$338))/NK15 ->  | NM15: =((NM13-NM14)/4) -> 0 | NP15: =NG15 -> 500.10013 | NQ15: =IF(NQ4<5,"",SUMPRODUCT(($CN$2:$CN$338=NV12)*($CO$2:$CO$338=NV11)*($CE$2:$CE$338>=60))/NQ11*100) -> 92.65536723 | NR15: =COUNTIF(OFFSET(NW2,,,MAX(NQ3),1),"=2") -> 10 | NS15: =SUMPRODUCT(($CM$2:$CM$338=$CV2)*(NW$2:NW$338=2)*($CE$2:$CE$338))/NR15 -> 76 | NT15: =COUNTIF(OFFSET(NX2,,,MAX(NQ3),1),"=2") -> 11 | NU15: =SUMPRODUCT(($CM$2:$CM$338=$CV2)*(NX$2:NX$338=2)*($CE$2:$CE$338))/NT15 -> 78.63636364 | NV15: =((NV13-NV14)/4) -> 9.166666667 | NW15: 1 | NX15: 2 | NY15: =NP15 -> 500.10013 | NZ15: =IF(NZ4<5,"",SUMPRODUCT(($CN$2:$CN$338=OE12)*($CO$2:$CO$338=OE11)*($CF$2:$CF$338>=60))/NZ11*100) -> 93.82022472 | OA15: =COUNTIF(OFFSET(OF2,,,MAX(NZ3),1),"=2") -> 8 | OB15: =SUMPRODUCT(($CM$2:$CM$338=$CV2)*(OF$2:OF$338=2)*($CF$2:$CF$338))/OA15 -> 75.9375 | OC15: =COUNTIF(OFFSET(OG2,,,MAX(NZ3),1),"=2") -> 8 | OD15: =SUMPRODUCT(($CM$2:$CM$338=$CV2)*(OG$2:OG$338=2)*($CF$2:$CF$338))/OC15 -> 79.0625 | OE15: =((OE13-OE14)/4) -> 10.9375 | OF15: 1 | OG15: 1 | OH15: =NY15 -> 500.10013 | OI15: =IF(OI4<5,"",SUMPRODUCT(($CN$2:$CN$338=ON12)*($CO$2:$CO$338=ON11)*($CG$2:$CG$338>=60))/OI11*100) -> 92.77777778 | OJ15: =COUNTIF(OFFSET(OO2,,,MAX(OI3),1),"=2") -> 10 | OK15: =SUMPRODUCT(($CM$2:$CM$338=$CV2)*(OO$2:OO$338=2)*($CG$2:$CG$338))/OJ15 -> 73.875 | OL15: =COUNTIF(OFFSET(OP2,,,MAX(OI3),1),"=2") -> 8 | OM15: =SUMPRODUCT(($CM$2:$CM$338=$CV2)*(OP$2:OP$338=2)*($CG$2:$CG$338))/OL15 -> 79.6875 | ON15: =((ON13-ON14)/4) -> 11.5625 | OO15: 1 | OP15: 2 | OQ15: =OH15 -> 500.10013 | OR15: =IF(OR4<5,"",SUMPRODUCT(($CN$2:$CN$338=OW12)*($CO$2:$CO$338=OW11)*($CH$2:$CH$338>=60))/OR11*100) ->  | OS15: =COUNTIF(OFFSET(OX2,,,MAX(OR3),1),"=2") -> 0 | OT15: =SUMPRODUCT(($CM$2:$CM$338=$CV2)*(OX$2:OX$338=2)*($CH$2:$CH$338))/OS15 ->  | OU15: =COUNTIF(OFFSET(OY2,,,MAX(OR3),1),"=2") -> 0 | OV15: =SUMPRODUCT(($CM$2:$CM$338=$CV2)*(OY$2:OY$338=2)*($CH$2:$CH$338))/OU15 ->  | OW15: =((OW13-OW14)/4) -> 0 | OZ15: =OQ15 -> 500.10013 | PA15: =IF(PA4<5,"",SUMPRODUCT(($CN$2:$CN$338=PF12)*($CO$2:$CO$338=PF11)*($CI$2:$CI$338>=60))/PA11*100) -> 91.90751445 | PB15: =COUNTIF(OFFSET(PG2,,,MAX(PA3),1),"=2") -> 13 | PC15: =SUMPRODUCT(($CM$2:$CM$338=$CV2)*(PG$2:PG$338=2)*($CI$2:$CI$338))/PB15 -> 71.96153846 | PD15: =COUNTIF(OFFSET(PH2,,,MAX(PA3),1),"=2") -> 11 | PE15: =SUMPRODUCT(($CM$2:$CM$338=$CV2)*(PH$2:PH$338=2)*($CI$2:$CI$338))/PD15 -> 78.02272727 | PF15: =((PF13-PF14)/4) -> 14.5625 | PG15: 1 | PH15: 2
A16: 2010 | B16: 001 | C16: 501 | F16: 0 | G16: 2000-05-21 | J16: M | K16: 80 | L16: 90 | M16: 0 | N16: 80 | O16: 75 | P16: 85 | Q16: 80 | R16: 85 | S16: 80 | T16: 0 | U16: 0 | V16: 85 | W16: 0 | X16: 0 | Y16: 0 | Z16: 0 | AA16: 80 | AB16: 80 | AC16: 0 | AD16: 80 | AE16: 80 | AF16: 85 | AG16: 85 | AH16: 80 | AI16: 75 | AJ16: 75 | AK16: 80 | AL16: 70 | AM16: 0 | AN16: 0 | AO16: 0 | AP16: 0 | AQ16: 75 | AR16: 70 | AS16: 0 | AT16: 85 | AU16: 85 | AV16: 80 | AW16: 85 | AX16: 85 | AY16: 70 | AZ16: 80 | BA16: 75 | BB16: 70 | BC16: 0 | BD16: 0 | BE16: 0 | BF16: 0 | BG16: 80 | BH16: 72 | BI16: 0 | BJ16: 69 | BK16: 72 | BL16: 72 | BM16: 63 | BN16: 65 | BO16: 71 | BP16: 85 | BQ16: 72 | BR16: 83 | BS16: 80 | BT16: 79 | BU16: 60 | BV16: 79 | BX16: 53.33333333 | BY16: 81.25 | BZ16: 0 | CA16: 80 | CB16: 82.5 | CC16: 75 | CD16: 0 | CE16: 76.66666667 | CF16: 83.75 | CG16: 73.75 | CH16: 0 | CI16: 71 | CM16: 001501 | CN16: 0.100 | CO16: 50 | CP16: =Tableau_SSRSMSA03_BI_Integration_STEPH_2010[[#This Row],[DAT_NAISSANCE_ELEVE]] -> 2000-05-21 | CQ16: 2009-09-30 | CR16: 3419 | CS16: 9.360711841 | CT16: =IF(AND(LEFT(CO16,1)="1",CS16>5.5),"V",IF(AND(LEFT(CO16,1)="2",CS16>6.5),"V",IF(AND(LEFT(CO16,1)="3",CS16>7.5),"V",IF(AND(LEFT(CO16,1)="4",CS16>8.5),"V",IF(AND(LEFT(CO16,1)="5",CS16>9.5),"V",IF(AND(LEFT(CO16,1)="6",CS16>10.5),"V","J")))))) -> J | CU16: =IF(AJ16=0,0,IF(BH16=0,0,1)) -> 1 | CV16: =DC11&DC12&14 -> 500.10014 | CW16: nb echec | CX16: =SUMPRODUCT((($CM$2:$CM$338=$CV2)*($AJ$2:$AJ$338>3)*($AJ$2:$AJ$338<60))) -> 0 | CY16: =COUNTIF(OFFSET(DD2,,,MAX(CX3),1),"=3") -> 5 | CZ16: =SUMPRODUCT(($CM$2:$CM$338=$CV2)*(DD$2:DD$338=3)*($AJ$2:$AJ$338))/CY16 -> 75 | DA16: =COUNTIF(OFFSET(DE2,,,MAX(CX3),1),"5")+COUNTIF(OFFSET(DE2,,,MAX(CX3),1),"6") -> 1 | DB16: =((SUMPRODUCT(($CM$2:$CM$338=$CV2)*(DE$2:DE$338=5)*($AJ$2:$AJ$338)))+(SUMPRODUCT(($CM$2:$CM$338=$CV2)*(DE$2:DE$338=6)*($AJ$2:$AJ$338))))/DA16 -> 65 | DC16: =DC13-DC15 -> 83.75 | DD16: 3 | DE16: 2 | DF16: 500.10014 | DG16: =SUMPRODUCT((($CM$2:$CM$338=$CV2)*($AN$2:$AN$338>3)*($AN$2:$AN$338<60))) -> 0 | DH16: =COUNTIF(OFFSET(DM2,,,MAX(DG3),1),"=3") -> 0 | DI16: =SUMPRODUCT(($CM$2:$CM$338=$CV2)*(DM$2:DM$338=3)*($AN$2:$AN$338))/DH16 ->  | DJ16: =COUNTIF(OFFSET(DN2,,,MAX(DG3),1),"5")+COUNTIF(OFFSET(DN2,,,MAX(DG3),1),"6") -> 0 | DK16: =((SUMPRODUCT(($CM$2:$CM$338=$CV2)*(DN$2:DN$338=5)*($AN$2:$AN$338)))+(SUMPRODUCT(($CM$2:$CM$338=$CV2)*(DN$2:DN$338=6)*($AN$2:$AN$338))))/DJ16 ->  | DL16: =DL13-DL15 -> 0 | DO16: 500.10014 | DP16: =SUMPRODUCT((($CM$2:$CM$338=$CV2)*($AR$2:$AR$338>3)*($AR$2:$AR$338<60))) -> 1 | DQ16: =COUNTIF(OFFSET(DV2,,,MAX(DP3),1),"=3") -> 7 | DR16: =SUMPRODUCT(($CM$2:$CM$338=$CV2)*(DV$2:DV$338=3)*($AR$2:$AR$338))/DQ16 -> 67.85714286 | DS16: =COUNTIF(OFFSET(DW2,,,MAX(DP3),1),"5")+COUNTIF(OFFSET(DW2,,,MAX(DP3),1),"6") -> 3 | DT16: =((SUMPRODUCT(($CM$2:$CM$338=$CV2)*(DW$2:DW$338=5)*($AR$2:$AR$338)))+(SUMPRODUCT(($CM$2:$CM$338=$CV2)*(DW$2:DW$338=6)*($AR$2:$AR$338))))/DS16 -> 65 | DU16: =DU13-DU15 -> 85 | DV16: 3 | DW16: 3 | DX16: 500.10014 | DY16: =SUMPRODUCT((($CM$2:$CM$338=$CV2)*($AV$2:$AV$338>3)*($AV$2:$AV$338<60))) -> 0 | DZ16: =COUNTIF(OFFSET(EE2,,,MAX(DY3),1),"=3") -> 7 | EA16: =SUMPRODUCT(($CM$2:$CM$338=$CV2)*(EE$2:EE$338=3)*($AV$2:$AV$338))/DZ16 -> 72.14285714 | EB16: =COUNTIF(OFFSET(EF2,,,MAX(DY3),1),"5")+COUNTIF(OFFSET(EF2,,,MAX(DY3),1),"6") -> 5 | EC16: =((SUMPRODUCT(($CM$2:$CM$338=$CV2)*(EF$2:EF$338=5)*($AV$2:$AV$338)))+(SUMPRODUCT(($CM$2:$CM$338=$CV2)*(EF$2:EF$338=6)*($AV$2:$AV$338))))/EB16 -> 61 | ED16: =ED13-ED15 -> 86.25 | EE16: 2 | EF16: 2 | EG16: 500.10014 | EH16: =SUMPRODUCT((($CM$2:$CM$338=$CV2)*($AZ$2:$AZ$338>3)*($AZ$2:$AZ$338<60))) -> 1 | EI16: =COUNTIF(OFFSET(EN2,,,MAX(EH3),1),"=3") -> 7 | EJ16: =SUMPRODUCT(($CM$2:$CM$338=$CV2)*(EN$2:EN$338=3)*($AZ$2:$AZ$338))/EI16 -> 69.28571429 | EK16: =COUNTIF(OFFSET(EO2,,,MAX(EH3),1),"5")+COUNTIF(OFFSET(EO2,,,MAX(EH3),1),"6") -> 4 | EL16: =((SUMPRODUCT(($CM$2:$CM$338=$CV2)*(EO$2:EO$338=5)*($AZ$2:$AZ$338)))+(SUMPRODUCT(($CM$2:$CM$338=$CV2)*(EO$2:EO$338=6)*($AZ$2:$AZ$338))))/EK16 -> 61.25 | EM16: =EM13-EM15 -> 83.75 | EN16: 2 | EO16: 2 | EP16: 500.10014 | EQ16: =SUMPRODUCT((($CM$2:$CM$338=$CV2)*($BD$2:$BD$338>3)*($BD$2:$BD$338<60))) -> 0 | ER16: =COUNTIF(OFFSET(EW2,,,MAX(EQ3),1),"=3") -> 0 | ES16: =SUMPRODUCT(($CM$2:$CM$338=$CV2)*(EW$2:EW$338=3)*($BD$2:$BD$338))/ER16 ->  | ET16: =COUNTIF(OFFSET(EX2,,,MAX(EQ3),1),"5")+COUNTIF(OFFSET(EX2,,,MAX(EQ3),1),"6") -> 0 | EU16: =((SUMPRODUCT(($CM$2:$CM$338=$CV2)*(EX$2:EX$338=5)*($BD$2:$BD$338)))+(SUMPRODUCT(($CM$2:$CM$338=$CV2)*(EX$2:EX$338=6)*($BD$2:$BD$338))))/ET16 ->  | EV16: =EV13-EV15 -> 0 | EY16: 500.10014 | EZ16: =SUMPRODUCT((($CM$2:$CM$338=$CV2)*($BH$2:$BH$338>3)*($BH$2:$BH$338<60))) -> 2 | FA16: =COUNTIF(OFFSET(FF2,,,MAX(EZ3),1),"=3") -> 4 | FB16: =SUMPRODUCT(($CM$2:$CM$338=$CV2)*(FF$2:FF$338=3)*($BH$2:$BH$338))/FA16 -> 67 | FC16: =COUNTIF(OFFSET(FG2,,,MAX(EZ3),1),"5")+COUNTIF(OFFSET(FG2,,,MAX(EZ3),1),"6") -> 3 | FD16: =((SUMPRODUCT(($CM$2:$CM$338=$CV2)*(FG$2:FG$338=5)*($BH$2:$BH$338)))+(SUMPRODUCT(($CM$2:$CM$338=$CV2)*(FG$2:FG$338=6)*($BH$2:$BH$338))))/FC16 -> 63.33333333 | FE16: =FE13-FE15 -> 80.25 | FF16: 2 | FG16: 3 | FH16: 500.10014 | FI16: =SUMPRODUCT((($CM$2:$CM$338=$CV2)*($AI$2:$AI$338>3)*($AI$2:$AI$338<60))) -> 0 | FJ16: =COUNTIF(OFFSET(FO2,,,MAX(FI3),1),"=3") -> 1 | FK16: =SUMPRODUCT(($CM$2:$CM$338=$CV2)*(FO$2:FO$338=3)*($AI$2:$AI$338))/FJ16 -> 75 | FL16: =COUNTIF(OFFSET(FP2,,,MAX(FI3),1),"5")+COUNTIF(OFFSET(FP2,,,MAX(FI3),1),"6") -> 3 | FM16: =((SUMPRODUCT(($CM$2:$CM$338=$CV2)*(FP$2:FP$338=5)*($AI$2:$AI$338)))+(SUMPRODUCT(($CM$2:$CM$338=$CV2)*(FP$2:FP$338=6)*($AI$2:$AI$338))))/FL16 -> 65 | FN16: =FN13-FN15 -> 83.75 | FO16: 3 | FP16: 2 | FQ16: 500.10014 | FR16: =SUMPRODUCT((($CM$2:$CM$338=$CV2)*($AM$2:$AM$338>3)*($AM$2:$AM$338<60))) -> 0 | FS16: =COUNTIF(OFFSET(FX2,,,MAX(FR3),1),"=3") -> 0 | FT16: =SUMPRODUCT(($CM$2:$CM$338=$CV2)*(FX$2:FX$338=3)*($AM$2:$AM$338))/FS16 ->  | FU16: =COUNTIF(OFFSET(FY2,,,MAX(FR3),1),"5")+COUNTIF(OFFSET(FY2,,,MAX(FR3),1),"6") -> 0 | FV16: =((SUMPRODUCT(($CM$2:$CM$338=$CV2)*(FY$2:FY$338=5)*($AM$2:$AM$338)))+(SUMPRODUCT(($CM$2:$CM$338=$CV2)*(FY$2:FY$338=6)*($AM$2:$AM$338))))/FU16 ->  | FW16: =FW13-FW15 -> 0 | FZ16: 500.10014 | GA16: =SUMPRODUCT((($CM$2:$CM$338=$CV2)*($AQ$2:$AQ$338>3)*($AQ$2:$AQ$338<60))) -> 4 | GB16: =COUNTIF(OFFSET(GG2,,,MAX(GA3),1),"=3") -> 5 | GC16: =SUMPRODUCT(($CM$2:$CM$338=$CV2)*(GG$2:GG$338=3)*($AQ$2:$AQ$338))/GB16 -> 62 | GD16: =COUNTIF(OFFSET(GH2,,,MAX(GA3),1),"5")+COUNTIF(OFFSET(GH2,,,MAX(GA3),1),"6") -> 5 | GE16: =((SUMPRODUCT(($CM$2:$CM$338=$CV2)*(GH$2:GH$338=5)*($AQ$2:$AQ$338)))+(SUMPRODUCT(($CM$2:$CM$338=$CV2)*(GH$2:GH$338=6)*($AQ$2:$AQ$338))))/GD16 -> 62 | GF16: =GF13-GF15 -> 76.25 | GG16: 2 | GH16: 2 | GI16: 500.10014 | GJ16: =SUMPRODUCT((($CM$2:$CM$338=$CV2)*($AU$2:$AU$338>3)*($AU$2:$AU$338<60))) -> 2 | GK16: =COUNTIF(OFFSET(GP2,,,MAX(GJ3),1),"=3") -> 5 | GL16: =SUMPRODUCT(($CM$2:$CM$338=$CV2)*(GP$2:GP$338=3)*($AU$2:$AU$338))/GK16 -> 67 | GM16: =COUNTIF(OFFSET(GQ2,,,MAX(GJ3),1),"5")+COUNTIF(OFFSET(GQ2,,,MAX(GJ3),1),"6") -> 5 | GN16: =((SUMPRODUCT(($CM$2:$CM$338=$CV2)*(GQ$2:GQ$338=5)*($AU$2:$AU$338)))+(SUMPRODUCT(($CM$2:$CM$338=$CV2)*(GQ$2:GQ$338=6)*($AU$2:$AU$338))))/GM16 -> 63 | GO16: =GO13-GO15 -> 83.75 | GP16: 1 | GQ16: 2 | GR16: 500.10014 | GS16: =SUMPRODUCT((($CM$2:$CM$338=$CV2)*($AY$2:$AY$338>3)*($AY$2:$AY$338<60))) -> 1 | GT16: =COUNTIF(OFFSET(GY2,,,MAX(GS3),1),"=3") -> 10 | GU16: =SUMPRODUCT(($CM$2:$CM$338=$CV2)*(GY$2:GY$338=3)*($AY$2:$AY$338))/GT16 -> 69 | GV16: =COUNTIF(OFFSET(GZ2,,,MAX(GS3),1),"5")+COUNTIF(OFFSET(GZ2,,,MAX(GS3),1),"6") -> 5 | GW16: =((SUMPRODUCT(($CM$2:$CM$338=$CV2)*(GZ$2:GZ$338=5)*($AY$2:$AY$338)))+(SUMPRODUCT(($CM$2:$CM$338=$CV2)*(GZ$2:GZ$338=6)*($AY$2:$AY$338))))/GV16 -> 62 | GX16: =GX13-GX15 -> 83.75 | GY16: 3 | GZ16: 3 | HA16: 500.10014 | HB16: =SUMPRODUCT((($CM$2:$CM$338=$CV2)*($BC$2:$BC$338>3)*($BC$2:$BC$338<60))) -> 0 | HC16: =COUNTIF(OFFSET(HH2,,,MAX(HB3),1),"=3") -> 0 | HD16: =SUMPRODUCT(($CM$2:$CM$338=$CV2)*(HH$2:HH$338=3)*($BC$2:$BC$338))/HC16 ->  | HE16: =COUNTIF(OFFSET(HI2,,,MAX(HB3),1),"5")+COUNTIF(OFFSET(HI2,,,MAX(HB3),1),"6") -> 0 | HF16: =((SUMPRODUCT(($CM$2:$CM$338=$CV2)*(HI$2:HI$338=5)*($BC$2:$BC$338)))+(SUMPRODUCT(($CM$2:$CM$338=$CV2)*(HI$2:HI$338=6)*($BC$2:$BC$338))))/HE16 ->  | HG16: =HG13-HG15 -> 0 | HJ16: 500.10014 | HK16: =SUMPRODUCT((($CM$2:$CM$338=$CV2)*($BG$2:$BG$338>3)*($BG$2:$BG$338<60))) -> 2 | HL16: =COUNTIF(OFFSET(HQ2,,,MAX(HK3),1),"=3") -> 6 | HM16: =SUMPRODUCT(($CM$2:$CM$338=$CV2)*(HQ$2:HQ$338=3)*($BG$2:$BG$338))/HL16 -> 63.16666667 | HN16: =COUNTIF(OFFSET(HR2,,,MAX(HK3),1),"5")+COUNTIF(OFFSET(HR2,,,MAX(HK3),1),"6") -> 5 | HO16: =((SUMPRODUCT(($CM$2:$CM$338=$CV2)*(HR$2:HR$338=5)*($BG$2:$BG$338)))+(SUMPRODUCT(($CM$2:$CM$338=$CV2)*(HR$2:HR$338=6)*($BG$2:$BG$338))))/HN16 -> 64.6 | HP16: =HP13-HP15 -> 79.5 | HQ16: 1 | HR16: 2 | HS16: 500.10014 | HT16: =SUMPRODUCT((($CM$2:$CM$338=$CV2)*($AL$2:$AL$338>3)*($AL$2:$AL$338<60))) -> 0 | HU16: =COUNTIF(OFFSET(HZ2,,,MAX(HT3),1),"=3") -> 8 | HV16: =SUMPRODUCT(($CM$2:$CM$338=$CV2)*(HZ$2:HZ$338=3)*($AL$2:$AL$338))/HU16 -> 80 | HW16: =COUNTIF(OFFSET(IA2,,,MAX(HT3),1),"5")+COUNTIF(OFFSET(IA2,,,MAX(HT3),1),"6") -> 0 | HX16: =((SUMPRODUCT(($CM$2:$CM$338=$CV2)*(IA$2:IA$338=5)*($AL$2:$AL$338)))+(SUMPRODUCT(($CM$2:$CM$338=$CV2)*(IA$2:IA$338=6)*($AL$2:$AL$338))))/HW16 ->  | HY16: =HY13-HY15 -> 88.75 | HZ16: 4 | IA16: 3 | IB16: 500.10014 | IC16: =SUMPRODUCT((($CM$2:$CM$338=$CV2)*($AP$2:$AP$338>3)*($AP$2:$AP$338<60))) -> 0 | ID16: =COUNTIF(OFFSET(II2,,,MAX(IC3),1),"=3") -> 0 | IE16: =SUMPRODUCT(($CM$2:$CM$338=$CV2)*(II$2:II$338=3)*($AP$2:$AP$338))/ID16 ->  | IF16: =COUNTIF(OFFSET(IJ2,,,MAX(IC3),1),"5")+COUNTIF(OFFSET(IJ2,,,MAX(IC3),1),"6") -> 0 | IG16: =((SUMPRODUCT(($CM$2:$CM$338=$CV2)*(IJ$2:IJ$338=5)*($AP$2:$AP$338)))+(SUMPRODUCT(($CM$2:$CM$338=$CV2)*(IJ$2:IJ$338=6)*($AP$2:$AP$338))))/IF16 ->  | IH16: =IH13-IH15 -> 0 | IK16: 500.10014 | IL16: =SUMPRODUCT((($CM$2:$CM$338=$CV2)*($AT$2:$AT$338>3)*($AT$2:$AT$338<60))) -> 3 | IM16: =COUNTIF(OFFSET(IR2,,,MAX(IL3),1),"=3") -> 4 | IN16: =SUMPRODUCT(($CM$2:$CM$338=$CV2)*(IR$2:IR$338=3)*($AL$2:$AL$338))/IM16 -> 78.75 | IO16: =COUNTIF(OFFSET(IS2,,,MAX(IL3),1),"5")+COUNTIF(OFFSET(IS2,,,MAX(IL3),1),"6") -> 4 | IP16: =((SUMPRODUCT(($CM$2:$CM$338=$CV2)*(IS$2:IS$338=5)*($AL$2:$AL$338)))+(SUMPRODUCT(($CM$2:$CM$338=$CV2)*(IS$2:IS$338=6)*($AL$2:$AL$338))))/IO16 -> 78.75 | IQ16: =IQ13-IQ15 -> 82.5 | IR16: 1 | IS16: 2 | IT16: 500.10014 | IU16: =SUMPRODUCT((($CM$2:$CM$338=$CV2)*($AX$2:$AX$338>3)*($AX$2:$AX$338<60))) -> 3 | IV16: =COUNTIF(OFFSET(JA2,,,MAX(IU3),1),"=3") -> 4 | IW16: =SUMPRODUCT(($CM$2:$CM$338=$CV2)*(JA$2:JA$338=3)*($AX$2:$AX$338))/IV16 -> 57.5 | IX16: =COUNTIF(OFFSET(JB2,,,MAX(IU3),1),"5")+COUNTIF(OFFSET(JB2,,,MAX(IU3),1),"6") -> 2 | IY16: =((SUMPRODUCT(($CM$2:$CM$338=$CV2)*(JB$2:JB$338=5)*($AX$2:$AX$338)))+(SUMPRODUCT(($CM$2:$CM$338=$CV2)*(JB$2:JB$338=6)*($AX$2:$AX$338))))/IX16 -> 60 | IZ16: =IZ13-IZ15 -> 81.25 | JA16: 1 | JB16: 2 | JC16: 500.10014 | JD16: =SUMPRODUCT((($CM$2:$CM$338=$CV2)*($BB$2:$BB$338>3)*($BB$2:$BB$338<60))) -> 3 | JE16: =COUNTIF(OFFSET(JJ2,,,MAX(JD3),1),"=3") -> 6 | JF16: =SUMPRODUCT(($CM$2:$CM$338=$CV2)*(JJ$2:JJ$338=3)*($BB$2:$BB$338))/JE16 -> 59.16666667 | JG16: =COUNTIF(OFFSET(JK2,,,MAX(JD3),1),"5")+COUNTIF(OFFSET(JK2,,,MAX(JD3),1),"6") -> 6 | JH16: =((SUMPRODUCT(($CM$2:$CM$338=$CV2)*(JK$2:JK$338=5)*($BB$2:$BB$338)))+(SUMPRODUCT(($CM$2:$CM$338=$CV2)*(JK$2:JK$338=6)*($BB$2:$BB$338))))/JG16 -> 60.83333333 | JI16: =JI13-JI15 -> 77.5 | JJ16: 2 | JK16: 3 | JL16: 500.10014 | JM16: =SUMPRODUCT((($CM$2:$CM$338=$CV2)*($BF$2:$BF$338>3)*($BF$2:$BF$338<60))) -> 0 | JN16: =COUNTIF(OFFSET(JS2,,,MAX(JM3),1),"=3") -> 0 | JO16: =SUMPRODUCT(($CM$2:$CM$338=$CV2)*(JS$2:JS$338=3)*($BF$2:$BF$338))/JN16 ->  | JP16: =COUNTIF(OFFSET(JT2,,,MAX(JM3),1),"5")+COUNTIF(OFFSET(JT2,,,MAX(JM3),1),"6") -> 0 | JQ16: =((SUMPRODUCT(($CM$2:$CM$338=$CV2)*(JT$2:JT$338=5)*($BF$2:$BF$338)))+(SUMPRODUCT(($CM$2:$CM$338=$CV2)*(JT$2:JT$338=6)*($BF$2:$BF$338))))/JP16 ->  | JR16: =JR13-JR15 -> 0 | JU16: 500.10014 | JV16: =SUMPRODUCT((($CM$2:$CM$338=$CV2)*($BJ$2:$BJ$338>3)*($BJ$2:$BJ$338<60))) -> 3 | JW16: =COUNTIF(OFFSET(KB2,,,MAX(JV3),1),"=3") -> 5 | JX16: =SUMPRODUCT(($CM$2:$CM$338=$CV2)*(KB$2:KB$338=3)*($BJ$2:$BJ$338))/JW16 -> 58.2 | JY16: =COUNTIF(OFFSET(KC2,,,MAX(JV3),1),"5")+COUNTIF(OFFSET(KC2,,,MAX(JV3),1),"6") -> 3 | JZ16: =((SUMPRODUCT(($CM$2:$CM$338=$CV2)*(KC$2:KC$338=5)*($BJ$2:$BJ$338)))+(SUMPRODUCT(($CM$2:$CM$338=$CV2)*(KC$2:KC$338=6)*($BJ$2:$BJ$338))))/JY16 -> 62 | KA16: =KA13-KA15 -> 81.75 | KB16: 2 | KC16: 3 | KD16: 500.10014 | KE16: =SUMPRODUCT((($CM$2:$CM$338=$CV2)*($AK$2:$AK$338>3)*($AK$2:$AK$338<60))) -> 1 | KF16: =COUNTIF(OFFSET(KK2,,,MAX(KE3),1),"=3") -> 2 | KG16: =SUMPRODUCT(($CM$2:$CM$338=$CV2)*(KK$2:KK$338=3)*($AK$2:$AK$338))/KF16 -> 67.5 | KH16: =COUNTIF(OFFSET(KL2,,,MAX(KE3),1),"5")+COUNTIF(OFFSET(KL2,,,MAX(KE3),1),"6") -> 3 | KI16: =((SUMPRODUCT(($CM$2:$CM$338=$CV2)*(KL$2:KL$338=5)*($AK$2:$AK$338)))+(SUMPRODUCT(($CM$2:$CM$338=$CV2)*(KL$2:KL$338=6)*($AK$2:$AK$338))))/KH16 -> 61.66666667 | KJ16: =KJ13-KJ15 -> 81.25 | KK16: 2 | KL16: 2 | KM16: 500.10014 | KN16: =SUMPRODUCT((($CM$2:$CM$338=$CV2)*($AO$2:$AO$338>3)*($AO$2:$AO$338<60))) -> 0 | KO16: =COUNTIF(OFFSET(KT2,,,MAX(KN3),1),"=3") -> 0 | KP16: =SUMPRODUCT(($CM$2:$CM$338=$CV2)*(KT$2:KT$338=3)*($AO$2:$AO$338))/KO16 ->  | KQ16: =COUNTIF(OFFSET(KU2,,,MAX(KN3),1),"5")+COUNTIF(OFFSET(KU2,,,MAX(KN3),1),"6") -> 0 | KR16: =((SUMPRODUCT(($CM$2:$CM$338=$CV2)*(KU$2:KU$338=5)*($AO$2:$AO$338)))+(SUMPRODUCT(($CM$2:$CM$338=$CV2)*(KU$2:KU$338=6)*($AO$2:$AO$338))))/KQ16 ->  | KS16: =KS13-KS15 -> 0 | KV16: 500.10014 | KW16: =SUMPRODUCT((($CM$2:$CM$338=$CV2)*($AS$2:$AS$338>3)*($AS$2:$AS$338<60))) -> 0 | KX16: =COUNTIF(OFFSET(LC2,,,MAX(KW3),1),"=3") -> 0 | KY16: =SUMPRODUCT(($CM$2:$CM$338=$CV2)*(LC$2:LC$338=3)*($AS$2:$AS$338))/KX16 ->  | KZ16: =COUNTIF(OFFSET(LD2,,,MAX(KW3),1),"5")+COUNTIF(OFFSET(LD2,,,MAX(KW3),1),"6") -> 0 | LA16: =((SUMPRODUCT(($CM$2:$CM$338=$CV2)*(LD$2:LD$338=5)*($AS$2:$AS$338)))+(SUMPRODUCT(($CM$2:$CM$338=$CV2)*(LD$2:LD$338=6)*($AS$2:$AS$338))))/KZ16 ->  | LB16: =LB13-LB15 -> 0 | LE16: 500.10014 | LF16: =SUMPRODUCT((($CM$2:$CM$338=$CV2)*($AW$2:$AW$338>3)*($AW$2:$AW$338<60))) -> 4 | LG16: =COUNTIF(OFFSET(LL2,,,MAX(LF3),1),"=3") -> 6 | LH16: =SUMPRODUCT(($CM$2:$CM$338=$CV2)*(LL$2:LL$338=3)*($AW$2:$AW$338))/LG16 -> 59.16666667 | LI16: =COUNTIF(OFFSET(LM2,,,MAX(LF3),1),"5")+COUNTIF(OFFSET(LM2,,,MAX(LF3),1),"6") -> 4 | LJ16: =((SUMPRODUCT(($CM$2:$CM$338=$CV2)*(LM$2:LM$338=5)*($AW$2:$AW$338)))+(SUMPRODUCT(($CM$2:$CM$338=$CV2)*(LM$2:LM$338=6)*($AW$2:$AW$338))))/LI16 -> 61.25 | LK16: =LK13-LK15 -> 81.25 | LL16: 1 | LM16: 2 | LN16: 500.10014 | LO16: =SUMPRODUCT((($CM$2:$CM$338=$CV2)*($BA$2:$BA$338>3)*($BA$2:$BA$338<60))) -> 6 | LP16: =COUNTIF(OFFSET(LU2,,,MAX(LO3),1),"=3") -> 5 | LQ16: =SUMPRODUCT(($CM$2:$CM$338=$CV2)*(LU$2:LU$338=3)*($BA$2:$BA$338))/LP16 -> 59 | LR16: =COUNTIF(OFFSET(LV2,,,MAX(LO3),1),"5")+COUNTIF(OFFSET(LV2,,,MAX(LO3),1),"6") -> 5 | LS16: =((SUMPRODUCT(($CM$2:$CM$338=$CV2)*(LV$2:LV$338=5)*($BA$2:$BA$338)))+(SUMPRODUCT(($CM$2:$CM$338=$CV2)*(LV$2:LV$338=6)*($BA$2:$BA$338))))/LR16 -> 61 | LT16: =LT13-LT15 -> 77.5 | LU16: 2 | LV16: 2 | LW16: 500.10014 | LX16: =SUMPRODUCT((($CM$2:$CM$338=$CV2)*($BE$2:$BE$338>3)*($BE$2:$BE$338<60))) -> 0 | LY16: =COUNTIF(OFFSET(MD2,,,MAX(LX3),1),"=3") -> 0 | LZ16: =SUMPRODUCT(($CM$2:$CM$338=$CV2)*(MD$2:MD$338=3)*($BE$2:$BE$338))/LY16 ->  | MA16: =COUNTIF(OFFSET(ME2,,,MAX(LX3),1),"5")+COUNTIF(OFFSET(ME2,,,MAX(LX3),1),"6") -> 0 | MB16: =((SUMPRODUCT(($CM$2:$CM$338=$CV2)*(ME$2:ME$338=5)*($BE$2:$BE$338)))+(SUMPRODUCT(($CM$2:$CM$338=$CV2)*(ME$2:ME$338=6)*($BE$2:$BE$338))))/MA16 ->  | MC16: =MC13-MC15 -> 0 | MF16: 500.10014 | MG16: =SUMPRODUCT((($CM$2:$CM$338=$CV2)*($BI$2:$BI$338>3)*($BI$2:$BI$338<60))) -> 0 | MH16: =COUNTIF(OFFSET(MM2,,,MAX(MG3),1),"=3") -> 0 | MI16: =SUMPRODUCT(($CM$2:$CM$338=$CV2)*(MM$2:MM$338=3)*($BI$2:$BI$338))/MH16 ->  | MJ16: =COUNTIF(OFFSET(MN2,,,MAX(MG3),1),"5")+COUNTIF(OFFSET(MN2,,,MAX(MG3),1),"6") -> 0 | MK16: =((SUMPRODUCT(($CM$2:$CM$338=$CV2)*(MN$2:MN$338=5)*($BI$2:$BI$338)))+(SUMPRODUCT(($CM$2:$CM$338=$CV2)*(MN$2:MN$338=6)*($BI$2:$BI$338))))/MJ16 ->  | ML16: =ML13-ML15 -> 96.25 | MO16: 500.10014 | MP16: =SUMPRODUCT((($CM$2:$CM$338=$CV2)*($BM$2:$BM$338>3)*($BM$2:$BM$338<60))) -> 4 | MQ16: =COUNTIF(OFFSET(MV2,,,MAX(MP3),1),"=3") -> 2 | MR16: =SUMPRODUCT(($CM$2:$CM$338=$CV2)*(MV$2:MV$338=3)*($BM$2:$BM$338))/MQ16 -> 49.5 | MS16: =COUNTIF(OFFSET(MW2,,,MAX(MP3),1),"5")+COUNTIF(OFFSET(MW2,,,MAX(MP3),1),"6") -> 4 | MT16: =((SUMPRODUCT(($CM$2:$CM$338=$CV2)*(MW$2:MW$338=5)*($BM$2:$BM$338)))+(SUMPRODUCT(($CM$2:$CM$338=$CV2)*(MW$2:MW$338=6)*($BM$2:$BM$338))))/MS16 -> 61.75 | MU16: =MU13-MU15 -> 79.5 | MV16: 2 | MW16: 6 | MX16: 500.10014 | MY16: =SUMPRODUCT((($CM$2:$CM$338=$CV2)*($CC$2:$CC$338>3)*($CC$2:$CC$338<60))) -> 0 | MZ16: =COUNTIF(OFFSET(NE2,,,MAX(MY3),1),"=3") -> 7 | NA16: =SUMPRODUCT(($CM$2:$CM$338=$CV2)*(NE$2:NE$338=3)*($CC$2:$CC$338))/MZ16 -> 75.17857143 | NB16: =COUNTIF(OFFSET(NF2,,,MAX(MY3),1),"5")+COUNTIF(OFFSET(NF2,,,MAX(MY3),1),"6") -> 0 | NC16: =((SUMPRODUCT(($CM$2:$CM$338=$CV2)*(NF$2:NF$338=5)*($CC$2:$CC$338)))+(SUMPRODUCT(($CM$2:$CM$338=$CV2)*(NF$2:NF$338=6)*($CC$2:$CC$338))))/NB16 ->  | ND16: =ND13-ND15 -> 84.6875 | NE16: 3 | NF16: 2 | NG16: 500.10014 | NH16: =SUMPRODUCT((($CM$2:$CM$338=$CV2)*($CD$2:$CD$338>3)*($CD$2:$CD$338<60))) -> 0 | NI16: =COUNTIF(OFFSET(NN2,,,MAX(NH3),1),"=3") -> 0 | NJ16: =SUMPRODUCT(($CM$2:$CM$338=$CV2)*(NN$2:NN$338=3)*($CD$2:$CD$338))/NI16 ->  | NK16: =COUNTIF(OFFSET(NO2,,,MAX(NH3),1),"5")+COUNTIF(OFFSET(NO2,,,MAX(NH3),1),"6") -> 0 | NL16: =((SUMPRODUCT(($CM$2:$CM$338=$CV2)*(NO$2:NO$338=5)*($CD$2:$CD$338)))+(SUMPRODUCT(($CM$2:$CM$338=$CV2)*(NO$2:NO$338=6)*($CD$2:$CD$338))))/NK16 ->  | NM16: =NM13-NM15 -> 0 | NP16: 500.10014 | NQ16: =SUMPRODUCT((($CM$2:$CM$338=$CV2)*($CE$2:$CE$338>3)*($CE$2:$CE$338<60))) -> 1 | NR16: =COUNTIF(OFFSET(NW2,,,MAX(NQ3),1),"=3") -> 6 | NS16: =SUMPRODUCT(($CM$2:$CM$338=$CV2)*(NW$2:NW$338=3)*($CE$2:$CE$338))/NR16 -> 65.83333333 | NT16: =COUNTIF(OFFSET(NX2,,,MAX(NQ3),1),"5")+COUNTIF(OFFSET(NX2,,,MAX(NQ3),1),"6") -> 6 | NU16: =((SUMPRODUCT(($CM$2:$CM$338=$CV2)*(NX$2:NX$338=5)*($CE$2:$CE$338)))+(SUMPRODUCT(($CM$2:$CM$338=$CV2)*(NX$2:NX$338=6)*($CE$2:$CE$338))))/NT16 -> 63.05555556 | NV16: =NV13-NV15 -> 80.83333333 | NW16: 2 | NX16: 2 | NY16: 500.10014 | NZ16: =SUMPRODUCT((($CM$2:$CM$338=$CV2)*($CF$2:$CF$338>3)*($CF$2:$CF$338<60))) -> 2 | OA16: =COUNTIF(OFFSET(OF2,,,MAX(NZ3),1),"=3") -> 7 | OB16: =SUMPRODUCT(($CM$2:$CM$338=$CV2)*(OF$2:OF$338=3)*($CF$2:$CF$338))/OA16 -> 66.96428571 | OC16: =COUNTIF(OFFSET(OG2,,,MAX(NZ3),1),"5")+COUNTIF(OFFSET(OG2,,,MAX(NZ3),1),"6") -> 3 | OD16: =((SUMPRODUCT(($CM$2:$CM$338=$CV2)*(OG$2:OG$338=5)*($CF$2:$CF$338)))+(SUMPRODUCT(($CM$2:$CM$338=$CV2)*(OG$2:OG$338=6)*($CF$2:$CF$338))))/OC16 -> 64.16666667 | OE16: =OE13-OE15 -> 81.5625 | OF16: 1 | OG16: 2 | OH16: 500.10014 | OI16: =SUMPRODUCT((($CM$2:$CM$338=$CV2)*($CG$2:$CG$338>3)*($CG$2:$CG$338<60))) -> 2 | OJ16: =COUNTIF(OFFSET(OO2,,,MAX(OI3),1),"=3") -> 9 | OK16: =SUMPRODUCT(($CM$2:$CM$338=$CV2)*(OO$2:OO$338=3)*($CG$2:$CG$338))/OJ16 -> 63.05555556 | OL16: =COUNTIF(OFFSET(OP2,,,MAX(OI3),1),"5")+COUNTIF(OFFSET(OP2,,,MAX(OI3),1),"6") -> 8 | OM16: =((SUMPRODUCT(($CM$2:$CM$338=$CV2)*(OP$2:OP$338=5)*($CG$2:$CG$338)))+(SUMPRODUCT(($CM$2:$CM$338=$CV2)*(OP$2:OP$338=6)*($CG$2:$CG$338))))/OL16 -> 63.59375 | ON16: =ON13-ON15 -> 80.9375 | OO16: 2 | OP16: 2 | OQ16: 500.10014 | OR16: =SUMPRODUCT((($CM$2:$CM$338=$CV2)*($CH$2:$CH$338>3)*($CH$2:$CH$338<60))) -> 0 | OS16: =COUNTIF(OFFSET(OX2,,,MAX(OR3),1),"=3") -> 0 | OT16: =SUMPRODUCT(($CM$2:$CM$338=$CV2)*(OX$2:OX$338=3)*($CH$2:$CH$338))/OS16 ->  | OU16: =COUNTIF(OFFSET(OY2,,,MAX(OR3),1),"5")+COUNTIF(OFFSET(OY2,,,MAX(OR3),1),"6") -> 0 | OV16: =((SUMPRODUCT(($CM$2:$CM$338=$CV2)*(OY$2:OY$338=5)*($CH$2:$CH$338)))+(SUMPRODUCT(($CM$2:$CM$338=$CV2)*(OY$2:OY$338=6)*($CH$2:$CH$338))))/OU16 ->  | OW16: =OW13-OW15 -> 0 | OZ16: 500.10014 | PA16: =SUMPRODUCT((($CM$2:$CM$338=$CV2)*($CI$2:$CI$338>3)*($CI$2:$CI$338<60))) -> 2 | PB16: =COUNTIF(OFFSET(PG2,,,MAX(PA3),1),"=3") -> 3 | PC16: =SUMPRODUCT(($CM$2:$CM$338=$CV2)*(PG$2:PG$338=3)*($CI$2:$CI$338))/PB16 -> 59.41666667 | PD16: =COUNTIF(OFFSET(PH2,,,MAX(PA3),1),"5")+COUNTIF(OFFSET(PH2,,,MAX(PA3),1),"6") -> 4 | PE16: =((SUMPRODUCT(($CM$2:$CM$338=$CV2)*(PH$2:PH$338=5)*($CI$2:$CI$338)))+(SUMPRODUCT(($CM$2:$CM$338=$CV2)*(PH$2:PH$338=6)*($CI$2:$CI$338))))/PD16 -> 63.375 | PF16: =PF13-PF15 -> 79.6875 | PG16: 2 | PH16: 3
